Workbook

Sheet Planning
A1: LVL HdV | C1: Date de Départ | D1: Pas (jour) | E1: Période Sélectionnée | F1: Créer Planning | H1: Réinitialiser | I1: Période | K1: NB | L1: Besoins d'Or (sans remparts) | N1: Besoins d'Elixir | P1: Besoins d'Elixir Noir | S1: Légende
A2: =Paramètres!$BE$2 -> 10 | C2: 2015-04-27 | D2: 1 | E2: 2015-04-30 | I2: =period_selected -> 2015-04-30 | K2: 1 | L2: 5360000 | N2: 0 | P2: 0 | T2: Planifié | X2: % Réalisé
A3: Planning | I3: =$I2+$D$2 -> 2015-05-01 | K3: 0 | L3: 0 | N3: 0 | P3: 0 | T3: Réel | X3: % Réalisé (au-delà du planifié)
I4: =$I3+$D$2 -> 2015-05-02 | K4: 1 | L4: 4500000 | N4: 0 | P4: 0 | T4: Réel (au-delà du planifié)
I5: =$I4+$D$2 -> 2015-05-03 | K5: 2 | L5: 3000000 | N5: 0 | P5: 20000 | T5: Ouvriers disponibles | X5: Erreur - Pas suffisament d'Ouvriers
I6: =SUM(I8:I35)+SUM(I59:I69) -> 0 | J6: 0 | K6: 0 | L6: 0 | M6: 0 | N6: 0 | O6: 0 | P6: 0 | Q6: 0 | R6: 0 | S6: 0 | T6: 0 | U6: 0 | V6: 0 | W6: 0 | X6: 0 | Y6: 0 | Z6: 0 | AA6: 0 | AB6: 0 | AC6: 0 | AD6: 0 | AE6: 0 | AF6: 0 | AG6: 0 | AH6: 0 | AI6: 0 | AJ6: 0 | AK6: 0 | AL6: 0 | AM6: 0 | AN6: 0 | AO6: =SUM(AO8:AO35)+SUM(AO59:AO69) -> 0 | AP6: 0 | AQ6: 0 | AR6: 0 | AS6: 0 | AT6: 0 | AU6: 0 | AV6: 0 | AW6: 0 | AX6: 0 | AY6: 0 | AZ6: 0 | BA6: 0 | BB6: 0 | BC6: 0 | BD6: 0 | BE6: 0 | BF6: 0 | BG6: 0 | BH6: 0 | BI6: 0 | BJ6: 0 | BK6: 0 | BL6: 0 | BM6: 0 | BN6: 0 | BO6: 0 | BP6: 0
A7: Construction / Amélioration | B7: + | C7: Coût | D7: Durée Planifée (jours) | E7: Début Planifiée | F7: Début Réel | G7: Durée Réelle | H7: % Réalisé | I7: =$C$2 -> 2015-04-27 | J7: =I$7+$D$2 -> 2015-04-28 | K7: =J$7+$D$2 -> 2015-04-29 | L7: 2015-04-30 | M7: 2015-05-01 | N7: 2015-05-02 | O7: 2015-05-03 | P7: 2015-05-04 | Q7: 2015-05-05 | R7: 2015-05-06 | S7: =R$7+$D$2 -> 2015-05-07 | T7: 2015-05-08 | U7: 2015-05-09 | V7: =U$7+$D$2 -> 2015-05-10 | W7: 2015-05-11 | X7: 2015-05-12 | Y7: 2015-05-13 | Z7: 2015-05-14 | AA7: 2015-05-15 | AB7: =AA$7+$D$2 -> 2015-05-16 | AC7: 2015-05-17 | AD7: 2015-05-18 | AE7: 2015-05-19 | AF7: 2015-05-20 | AG7: 2015-05-21 | AH7: 2015-05-22 | AI7: 2015-05-23 | AJ7: 2015-05-24 | AK7: 2015-05-25 | AL7: 2015-05-26 | AM7: 2015-05-27 | AN7: 2015-05-28 | AO7: 2015-05-29 | AP7: 2015-05-30 | AQ7: 2015-05-31 | AR7: 2015-06-01 | AS7: 2015-06-02 | AT7: 2015-06-03 | AU7: 2015-06-04 | AV7: 2015-06-05 | AW7: 2015-06-06 | AX7: 2015-06-07 | AY7: 2015-06-08 | AZ7: 2015-06-09 | BA7: 2015-06-10 | BB7: 2015-06-11 | BC7: 2015-06-12 | BD7: 2015-06-13 | BE7: 2015-06-14 | BF7: 2015-06-15 | BG7: 2015-06-16 | BH7: 2015-06-17 | BI7: 2015-06-18 | BJ7: 2015-06-19 | BK7: 2015-06-20 | BL7: 2015-06-21 | BM7: 2015-06-22 | BN7: 2015-06-23 | BO7: 2015-06-24 | BP7: 2015-06-25
A8: Bâtiments de Ressources | I8: =IF(ISERROR(Plan),0,Plan) -> 0 | J8: 0 | K8: 0 | L8: 0 | M8: 0 | N8: 0 | O8: 0 | P8: 0 | Q8: 0 | R8: 0 | S8: =IF(ISERROR(Plan),0,Plan) -> 0 | T8: 0 | U8: 0 | V8: 0 | W8: 0 | X8: 0 | Y8: 0 | Z8: 0 | AA8: 0 | AB8: 0 | AC8: =IF(ISERROR(Plan),0,Plan) -> 0 | AD8: 0 | AE8: 0 | AF8: 0 | AG8: 0 | AH8: 0 | AI8: 0 | AJ8: 0 | AK8: 0 | AL8: 0 | AM8: =IF(ISERROR(Plan),0,Plan) -> 0 | AN8: 0 | AO8: 0 | AP8: 0 | AQ8: 0 | AR8: 0 | AS8: 0 | AT8: 0 | AU8: 0 | AV8: 0 | AW8: =IF(ISERROR(Plan),0,Plan) -> 0 | AX8: 0 | AY8: 0 | AZ8: 0 | BA8: 0 | BB8: 0 | BC8: 0 | BD8: 0 | BE8: 0 | BF8: 0 | BG8: =IF(ISERROR(Plan),0,Plan) -> 0 | BH8: 0 | BI8: 0 | BJ8: 0 | BK8: 0 | BL8: 0 | BM8: 0 | BN8: 0 | BO8: 0 | BP8: 0
A9: Mine d'Or | C9: =IF($B9<>"",VLOOKUP($B9,COSTS_Gold_Mine[#All],2),"") ->  | D9: =IF($B9<>"",VLOOKUP($B9,COSTS_Gold_Mine[#All],3)/24,"") ->  | G9: =IF($D9<>"",$D9,"") ->  | I9: 0 | J9: 0 | K9: 0 | L9: 0 | M9: 0 | N9: 0 | O9: 0 | P9: 0 | Q9: 0 | R9: 0 | S9: 0 | T9: 0 | U9: 0 | V9: 0 | W9: 0 | X9: 0 | Y9: 0 | Z9: 0 | AA9: 0 | AB9: 0 | AC9: 0 | AD9: 0 | AE9: 0 | AF9: 0 | AG9: 0 | AH9: 0 | AI9: 0 | AJ9: 0 | AK9: 0 | AL9: 0 | AM9: 0 | AN9: 0 | AO9: 0 | AP9: 0 | AQ9: 0 | AR9: 0 | AS9: 0 | AT9: 0 | AU9: 0 | AV9: 0 | AW9: 0 | AX9: 0 | AY9: 0 | AZ9: 0 | BA9: 0 | BB9: 0 | BC9: 0 | BD9: 0 | BE9: 0 | BF9: 0 | BG9: 0 | BH9: 0 | BI9: 0 | BJ9: 0 | BK9: 0 | BL9: 0 | BM9: 0 | BN9: 0 | BO9: 0 | BP9: 0
A10: Extracteur d'Élixir | C10: =IF($B10<>"",VLOOKUP($B10,COSTS_Elixir_Collector[#All],2),"") ->  | D10: =IF($B10<>"",VLOOKUP($B10,COSTS_Elixir_Collector[#All],3)/24,"") ->  | G10: =IF($D10<>"",$D10,"") ->  | I10: =IF(ISERROR(Plan),0,Plan) -> 0 | J10: 0 | K10: 0 | L10: 0 | M10: 0 | N10: 0 | O10: 0 | P10: 0 | Q10: 0 | R10: 0 | S10: =IF(ISERROR(Plan),0,Plan) -> 0 | T10: 0 | U10: 0 | V10: 0 | W10: 0 | X10: 0 | Y10: 0 | Z10: 0 | AA10: 0 | AB10: 0 | AC10: =IF(ISERROR(Plan),0,Plan) -> 0 | AD10: 0 | AE10: 0 | AF10: 0 | AG10: 0 | AH10: 0 | AI10: 0 | AJ10: 0 | AK10: 0 | AL10: 0 | AM10: =IF(ISERROR(Plan),0,Plan) -> 0 | AN10: 0 | AO10: 0 | AP10: 0 | AQ10: 0 | AR10: 0 | AS10: 0 | AT10: 0 | AU10: 0 | AV10: 0 | AW10: =IF(ISERROR(Plan),0,Plan) -> 0 | AX10: 0 | AY10: 0 | AZ10: 0 | BA10: 0 | BB10: 0 | BC10: 0 | BD10: 0 | BE10: 0 | BF10: 0 | BG10: =IF(ISERROR(Plan),0,Plan) -> 0 | BH10: 0 | BI10: 0 | BJ10: 0 | BK10: 0 | BL10: 0 | BM10: 0 | BN10: 0 | BO10: 0 | BP10: 0
A11: Foreuse d'Élixir Noir | C11: =IF($B11<>"",VLOOKUP($B11,COSTS_Dark_Elixir_Drill[#All],2),"") ->  | D11: =IF($B11<>"",VLOOKUP($B11,COSTS_Dark_Elixir_Drill[#All],3)/24,"") ->  | I11: =IF(ISERROR(Plan),0,Plan) -> 0 | J11: 0 | K11: 0 | L11: 0 | M11: 0 | N11: 0 | O11: 0 | P11: 0 | Q11: 0 | R11: 0 | S11: =IF(ISERROR(Plan),0,Plan) -> 0 | T11: 0 | U11: 0 | V11: 0 | W11: 0 | X11: 0 | Y11: 0 | Z11: 0 | AA11: 0 | AB11: 0 | AC11: =IF(ISERROR(Plan),0,Plan) -> 0 | AD11: 0 | AE11: 0 | AF11: 0 | AG11: 0 | AH11: 0 | AI11: 0 | AJ11: 0 | AK11: 0 | AL11: 0 | AM11: =IF(ISERROR(Plan),0,Plan) -> 0 | AN11: 0 | AO11: 0 | AP11: 0 | AQ11: 0 | AR11: 0 | AS11: 0 | AT11: 0 | AU11: 0 | AV11: 0 | AW11: =IF(ISERROR(Plan),0,Plan) -> 0 | AX11: 0 | AY11: 0 | AZ11: 0 | BA11: 0 | BB11: 0 | BC11: 0 | BD11: 0 | BE11: 0 | BF11: 0 | BG11: =IF(ISERROR(Plan),0,Plan) -> 0 | BH11: 0 | BI11: 0 | BJ11: 0 | BK11: 0 | BL11: 0 | BM11: 0 | BN11: 0 | BO11: 0 | BP11: 0
A12: Réserve d'Or | C12: =IF($B12<>"",VLOOKUP($B12,COSTS_Gold_Storage[#All],2),"") ->  | D12: =IF($B12<>"",VLOOKUP($B12,COSTS_Gold_Storage[#All],3)/24,"") ->  | I12: =IF(ISERROR(Plan),0,Plan) -> 0 | J12: 0 | K12: 0 | L12: 0 | M12: 0 | N12: 0 | O12: 0 | P12: 0 | Q12: 0 | R12: 0 | S12: =IF(ISERROR(Plan),0,Plan) -> 0 | T12: 0 | U12: 0 | V12: 0 | W12: 0 | X12: 0 | Y12: 0 | Z12: 0 | AA12: 0 | AB12: 0 | AC12: =IF(ISERROR(Plan),0,Plan) -> 0 | AD12: 0 | AE12: 0 | AF12: 0 | AG12: 0 | AH12: 0 | AI12: 0 | AJ12: 0 | AK12: 0 | AL12: 0 | AM12: =IF(ISERROR(Plan),0,Plan) -> 0 | AN12: 0 | AO12: 0 | AP12: 0 | AQ12: 0 | AR12: 0 | AS12: 0 | AT12: 0 | AU12: 0 | AV12: 0 | AW12: =IF(ISERROR(Plan),0,Plan) -> 0 | AX12: 0 | AY12: 0 | AZ12: 0 | BA12: 0 | BB12: 0 | BC12: 0 | BD12: 0 | BE12: 0 | BF12: 0 | BG12: =IF(ISERROR(Plan),0,Plan) -> 0 | BH12: 0 | BI12: 0 | BJ12: 0 | BK12: 0 | BL12: 0 | BM12: 0 | BN12: 0 | BO12: 0 | BP12: 0
A13: Réservoir d'Élixir | C13: =IF($B13<>"",VLOOKUP($B13,COSTS_Elixir_Storage[#All],2),"") ->  | D13: =IF($B13<>"",VLOOKUP($B13,COSTS_Elixir_Storage[#All],3)/24,"") ->  | I13: =IF(ISERROR(Plan),0,Plan) -> 0 | J13: 0 | K13: 0 | L13: 0 | M13: 0 | N13: 0 | O13: 0 | P13: 0 | Q13: 0 | R13: 0 | S13: =IF(ISERROR(Plan),0,Plan) -> 0 | T13: 0 | U13: 0 | V13: 0 | W13: 0 | X13: 0 | Y13: 0 | Z13: 0 | AA13: 0 | AB13: 0 | AC13: =IF(ISERROR(Plan),0,Plan) -> 0 | AD13: 0 | AE13: 0 | AF13: 0 | AG13: 0 | AH13: 0 | AI13: 0 | AJ13: 0 | AK13: 0 | AL13: 0 | AM13: =IF(ISERROR(Plan),0,Plan) -> 0 | AN13: 0 | AO13: 0 | AP13: 0 | AQ13: 0 | AR13: 0 | AS13: 0 | AT13: 0 | AU13: 0 | AV13: 0 | AW13: =IF(ISERROR(Plan),0,Plan) -> 0 | AX13: 0 | AY13: 0 | AZ13: 0 | BA13: 0 | BB13: 0 | BC13: 0 | BD13: 0 | BE13: 0 | BF13: 0 | BG13: =IF(ISERROR(Plan),0,Plan) -> 0 | BH13: 0 | BI13: 0 | BJ13: 0 | BK13: 0 | BL13: 0 | BM13: 0 | BN13: 0 | BO13: 0 | BP13: 0
A14: Réservoir d'Élixir Noir | C14: =IF($B14<>"",VLOOKUP($B14,COSTS_Dark_Elixir_Storage[#All],2),"") ->  | D14: =IF($B14<>"",VLOOKUP($B14,COSTS_Dark_Elixir_Storage[#All],3)/24,"") ->  | I14: =IF(ISERROR(Plan),0,Plan) -> 0 | J14: 0 | K14: 0 | L14: 0 | M14: 0 | N14: 0 | O14: 0 | P14: 0 | Q14: 0 | R14: 0 | S14: =IF(ISERROR(Plan),0,Plan) -> 0 | T14: 0 | U14: 0 | V14: 0 | W14: 0 | X14: 0 | Y14: 0 | Z14: 0 | AA14: 0 | AB14: 0 | AC14: =IF(ISERROR(Plan),0,Plan) -> 0 | AD14: 0 | AE14: 0 | AF14: 0 | AG14: 0 | AH14: 0 | AI14: 0 | AJ14: 0 | AK14: 0 | AL14: 0 | AM14: =IF(ISERROR(Plan),0,Plan) -> 0 | AN14: 0 | AO14: 0 | AP14: 0 | AQ14: 0 | AR14: 0 | AS14: 0 | AT14: 0 | AU14: 0 | AV14: 0 | AW14: =IF(ISERROR(Plan),0,Plan) -> 0 | AX14: 0 | AY14: 0 | AZ14: 0 | BA14: 0 | BB14: 0 | BC14: 0 | BD14: 0 | BE14: 0 | BF14: 0 | BG14: =IF(ISERROR(Plan),0,Plan) -> 0 | BH14: 0 | BI14: 0 | BJ14: 0 | BK14: 0 | BL14: 0 | BM14: 0 | BN14: 0 | BO14: 0 | BP14: 0
A15: Bâtiments d'Armée | I15: =IF(ISERROR(Plan),0,Plan) -> 0 | J15: 0 | K15: 0 | L15: 0 | M15: 0 | N15: 0 | O15: 0 | P15: 0 | Q15: 0 | R15: 0 | S15: =IF(ISERROR(Plan),0,Plan) -> 0 | T15: 0 | U15: 0 | V15: 0 | W15: 0 | X15: 0 | Y15: 0 | Z15: 0 | AA15: 0 | AB15: 0 | AC15: =IF(ISERROR(Plan),0,Plan) -> 0 | AD15: 0 | AE15: 0 | AF15: 0 | AG15: 0 | AH15: 0 | AI15: 0 | AJ15: 0 | AK15: 0 | AL15: 0 | AM15: =IF(ISERROR(Plan),0,Plan) -> 0 | AN15: 0 | AO15: 0 | AP15: 0 | AQ15: 0 | AR15: 0 | AS15: 0 | AT15: 0 | AU15: 0 | AV15: 0 | AW15: =IF(ISERROR(Plan),0,Plan) -> 0 | AX15: 0 | AY15: 0 | AZ15: 0 | BA15: 0 | BB15: 0 | BC15: 0 | BD15: 0 | BE15: 0 | BF15: 0 | BG15: =IF(ISERROR(Plan),0,Plan) -> 0 | BH15: 0 | BI15: 0 | BJ15: 0 | BK15: 0 | BL15: 0 | BM15: 0 | BN15: 0 | BO15: 0 | BP15: 0
A16: Caserne | C16: =IF($B16<>"",VLOOKUP($B16,COSTS_Barrack[#All],2),"") ->  | D16: =IF($B16<>"",VLOOKUP($B16,COSTS_Barrack[#All],3)/24,"") ->  | G16: =IF($D16<>"",$D16,"") ->  | I16: 0 | J16: 0 | K16: 0 | L16: 0 | M16: 0 | N16: 0 | O16: 0 | P16: 0 | Q16: 0 | R16: 0 | S16: 0 | T16: 0 | U16: 0 | V16: 0 | W16: 0 | X16: 0 | Y16: 0 | Z16: 0 | AA16: 0 | AB16: 0 | AC16: 0 | AD16: 0 | AE16: 0 | AF16: 0 | AG16: 0 | AH16: 0 | AI16: 0 | AJ16: 0 | AK16: 0 | AL16: 0 | AM16: 0 | AN16: 0 | AO16: 0 | AP16: 0 | AQ16: 0 | AR16: 0 | AS16: 0 | AT16: 0 | AU16: 0 | AV16: 0 | AW16: 0 | AX16: 0 | AY16: 0 | AZ16: 0 | BA16: 0 | BB16: 0 | BC16: 0 | BD16: 0 | BE16: 0 | BF16: 0 | BG16: 0 | BH16: 0 | BI16: 0 | BJ16: 0 | BK16: 0 | BL16: 0 | BM16: 0 | BN16: 0 | BO16: 0 | BP16: 0
A17: Caserne Noire | C17: =IF($B17<>"",VLOOKUP($B17,COSTS_Dark_Barrack[#All],2),"") ->  | D17: =IF($B17<>"",VLOOKUP($B17,COSTS_Dark_Barrack[#All],3)/24,"") ->  | G17: =IF($D17<>"",$D17,"") ->  | I17: =IF(ISERROR(Plan),0,Plan) -> 0 | J17: 0 | K17: 0 | L17: 0 | M17: 0 | N17: 0 | O17: 0 | P17: 0 | Q17: 0 | R17: 0 | S17: =IF(ISERROR(Plan),0,Plan) -> 0 | T17: 0 | U17: 0 | V17: 0 | W17: 0 | X17: 0 | Y17: 0 | Z17: 0 | AA17: 0 | AB17: 0 | AC17: =IF(ISERROR(Plan),0,Plan) -> 0 | AD17: 0 | AE17: 0 | AF17: 0 | AG17: 0 | AH17: 0 | AI17: 0 | AJ17: 0 | AK17: 0 | AL17: 0 | AM17: =IF(ISERROR(Plan),0,Plan) -> 0 | AN17: 0 | AO17: 0 | AP17: 0 | AQ17: 0 | AR17: 0 | AS17: 0 | AT17: 0 | AU17: 0 | AV17: 0 | AW17: =IF(ISERROR(Plan),0,Plan) -> 0 | AX17: 0 | AY17: 0 | AZ17: 0 | BA17: 0 | BB17: 0 | BC17: 0 | BD17: 0 | BE17: 0 | BF17: 0 | BG17: =IF(ISERROR(Plan),0,Plan) -> 0 | BH17: 0 | BI17: 0 | BJ17: 0 | BK17: 0 | BL17: 0 | BM17: 0 | BN17: 0 | BO17: 0 | BP17: 0
A18: Camp Militaire | C18: =IF($B18<>"",VLOOKUP($B18,COSTS_Army_Camp[#All],2),"") ->  | D18: =IF($B18<>"",VLOOKUP($B18,COSTS_Army_Camp[#All],3)/24,"") ->  | I18: 0 | J18: 0 | K18: 0 | L18: 0 | M18: 0 | N18: 0 | O18: 0 | P18: 0 | Q18: 0 | R18: 0 | S18: 0 | T18: 0 | U18: 0 | V18: 0 | W18: 0 | X18: 0 | Y18: 0 | Z18: 0 | AA18: 0 | AB18: 0 | AC18: 0 | AD18: 0 | AE18: 0 | AF18: 0 | AG18: 0 | AH18: 0 | AI18: 0 | AJ18: 0 | AK18: 0 | AL18: 0 | AM18: 0 | AN18: 0 | AO18: 0 | AP18: 0 | AQ18: 0 | AR18: 0 | AS18: 0 | AT18: 0 | AU18: 0 | AV18: 0 | AW18: 0 | AX18: 0 | AY18: 0 | AZ18: 0 | BA18: 0 | BB18: 0 | BC18: 0 | BD18: 0 | BE18: 0 | BF18: 0 | BG18: 0 | BH18: 0 | BI18: 0 | BJ18: 0 | BK18: 0 | BL18: 0 | BM18: 0 | BN18: 0 | BO18: 0 | BP18: 0
A19: Laboratoire | C19: =IF($B19<>"",VLOOKUP($B19,COSTS_Laboratory[#All],2),"") ->  | D19: =IF($B19<>"",VLOOKUP($B19,COSTS_Laboratory[#All],3)/24,"") ->  | I19: =IF(ISERROR(Plan),0,Plan) -> 0 | J19: 0 | K19: 0 | L19: 0 | M19: 0 | N19: 0 | O19: 0 | P19: 0 | Q19: 0 | R19: 0 | S19: =IF(ISERROR(Plan),0,Plan) -> 0 | T19: 0 | U19: 0 | V19: 0 | W19: 0 | X19: 0 | Y19: 0 | Z19: 0 | AA19: 0 | AB19: 0 | AC19: =IF(ISERROR(Plan),0,Plan) -> 0 | AD19: 0 | AE19: 0 | AF19: 0 | AG19: 0 | AH19: 0 | AI19: 0 | AJ19: 0 | AK19: 0 | AL19: 0 | AM19: =IF(ISERROR(Plan),0,Plan) -> 0 | AN19: 0 | AO19: 0 | AP19: 0 | AQ19: 0 | AR19: 0 | AS19: 0 | AT19: 0 | AU19: 0 | AV19: 0 | AW19: =IF(ISERROR(Plan),0,Plan) -> 0 | AX19: 0 | AY19: 0 | AZ19: 0 | BA19: 0 | BB19: 0 | BC19: 0 | BD19: 0 | BE19: 0 | BF19: 0 | BG19: =IF(ISERROR(Plan),0,Plan) -> 0 | BH19: 0 | BI19: 0 | BJ19: 0 | BK19: 0 | BL19: 0 | BM19: 0 | BN19: 0 | BO19: 0 | BP19: 0
A20: Usine de Sorts | C20: =IF($B20<>"",VLOOKUP($B20,COSTS_Spell_Factory[#All],2),"") ->  | D20: =IF($B20<>"",VLOOKUP($B20,COSTS_Spell_Factory[#All],3)/24,"") ->  | I20: =IF(ISERROR(Plan),0,Plan) -> 0 | J20: 0 | K20: 0 | L20: 0 | M20: 0 | N20: 0 | O20: 0 | P20: 0 | Q20: 0 | R20: 0 | S20: =IF(ISERROR(Plan),0,Plan) -> 0 | T20: 0 | U20: 0 | V20: 0 | W20: 0 | X20: 0 | Y20: 0 | Z20: 0 | AA20: 0 | AB20: 0 | AC20: =IF(ISERROR(Plan),0,Plan) -> 0 | AD20: 0 | AE20: 0 | AF20: 0 | AG20: 0 | AH20: 0 | AI20: 0 | AJ20: 0 | AK20: 0 | AL20: 0 | AM20: =IF(ISERROR(Plan),0,Plan) -> 0 | AN20: 0 | AO20: 0 | AP20: 0 | AQ20: 0 | AR20: 0 | AS20: 0 | AT20: 0 | AU20: 0 | AV20: 0 | AW20: =IF(ISERROR(Plan),0,Plan) -> 0 | AX20: 0 | AY20: 0 | AZ20: 0 | BA20: 0 | BB20: 0 | BC20: 0 | BD20: 0 | BE20: 0 | BF20: 0 | BG20: =IF(ISERROR(Plan),0,Plan) -> 0 | BH20: 0 | BI20: 0 | BJ20: 0 | BK20: 0 | BL20: 0 | BM20: 0 | BN20: 0 | BO20: 0 | BP20: 0
A21: Bâtiments Défensifs | I21: 0 | J21: 0 | K21: 0 | L21: 0 | M21: 0 | N21: 0 | O21: 0 | P21: 0 | Q21: 0 | R21: 0 | S21: 0 | T21: 0 | U21: 0 | V21: 0 | W21: 0 | X21: 0 | Y21: 0 | Z21: 0 | AA21: 0 | AB21: 0 | AC21: 0 | AD21: 0 | AE21: 0 | AF21: 0 | AG21: 0 | AH21: 0 | AI21: 0 | AJ21: 0 | AK21: 0 | AL21: 0 | AM21: 0 | AN21: 0 | AO21: 0 | AP21: 0 | AQ21: 0 | AR21: 0 | AS21: 0 | AT21: 0 | AU21: 0 | AV21: 0 | AW21: 0 | AX21: 0 | AY21: 0 | AZ21: 0 | BA21: 0 | BB21: 0 | BC21: 0 | BD21: 0 | BE21: 0 | BF21: 0 | BG21: 0 | BH21: 0 | BI21: 0 | BJ21: 0 | BK21: 0 | BL21: 0 | BM21: 0 | BN21: 0 | BO21: 0 | BP21: 0
A22: Rempart | C22: =IF($B22<>"",VLOOKUP($B22,COSTS_Wall[#All],2),"") ->  | D22: =IF($B22<>"",VLOOKUP($B22,COSTS_Wall[#All],3)/24,"") ->  | G22: =IF($D22<>"",$D22,"") ->  | I22: 0 | J22: 0 | K22: 0 | L22: 0 | M22: 0 | N22: 0 | O22: 0 | P22: 0 | Q22: 0 | R22: 0 | S22: 0 | T22: 0 | U22: 0 | V22: 0 | W22: 0 | X22: 0 | Y22: 0 | Z22: 0 | AA22: 0 | AB22: 0 | AC22: 0 | AD22: 0 | AE22: 0 | AF22: 0 | AG22: 0 | AH22: 0 | AI22: 0 | AJ22: 0 | AK22: 0 | AL22: 0 | AM22: 0 | AN22: 0 | AO22: 0 | AP22: 0 | AQ22: 0 | AR22: 0 | AS22: 0 | AT22: 0 | AU22: 0 | AV22: 0 | AW22: 0 | AX22: 0 | AY22: 0 | AZ22: 0 | BA22: 0 | BB22: 0 | BC22: 0 | BD22: 0 | BE22: 0 | BF22: 0 | BG22: 0 | BH22: 0 | BI22: 0 | BJ22: 0 | BK22: 0 | BL22: 0 | BM22: 0 | BN22: 0 | BO22: 0 | BP22: 0
A23: Canon | C23: =IF($B23<>"",VLOOKUP($B23,COSTS_Cannon[#All],2),"") ->  | D23: =IF($B23<>"",VLOOKUP($B23,COSTS_Cannon[#All],3)/24,"") ->  | G23: =IF($D23<>"",$D23,"") ->  | I23: =IF(ISERROR(Plan),0,Plan) -> 0 | J23: 0 | K23: 0 | L23: 0 | M23: 0 | N23: 0 | O23: 0 | P23: 0 | Q23: 0 | R23: 0 | S23: =IF(ISERROR(Plan),0,Plan) -> 0 | T23: 0 | U23: 0 | V23: 0 | W23: 0 | X23: 0 | Y23: 0 | Z23: 0 | AA23: 0 | AB23: 0 | AC23: =IF(ISERROR(Plan),0,Plan) -> 0 | AD23: 0 | AE23: 0 | AF23: 0 | AG23: 0 | AH23: 0 | AI23: 0 | AJ23: 0 | AK23: 0 | AL23: 0 | AM23: =IF(ISERROR(Plan),0,Plan) -> 0 | AN23: 0 | AO23: 0 | AP23: 0 | AQ23: 0 | AR23: 0 | AS23: 0 | AT23: 0 | AU23: 0 | AV23: 0 | AW23: =IF(ISERROR(Plan),0,Plan) -> 0 | AX23: 0 | AY23: 0 | AZ23: 0 | BA23: 0 | BB23: 0 | BC23: 0 | BD23: 0 | BE23: 0 | BF23: 0 | BG23: =IF(ISERROR(Plan),0,Plan) -> 0 | BH23: 0 | BI23: 0 | BJ23: 0 | BK23: 0 | BL23: 0 | BM23: 0 | BN23: 0 | BO23: 0 | BP23: 0
A24: Tour d'Archers | C24: =IF($B24<>"",VLOOKUP($B24,COSTS_Archer_Tower[#All],2),"") ->  | D24: =IF($B24<>"",VLOOKUP($B24,COSTS_Archer_Tower[#All],3)/24,"") ->  | I24: =IF(ISERROR(Plan),0,Plan) -> 0 | J24: 0 | K24: 0 | L24: 0 | M24: 0 | N24: 0 | O24: 0 | P24: 0 | Q24: 0 | R24: 0 | S24: =IF(ISERROR(Plan),0,Plan) -> 0 | T24: 0 | U24: 0 | V24: 0 | W24: 0 | X24: 0 | Y24: 0 | Z24: 0 | AA24: 0 | AB24: 0 | AC24: =IF(ISERROR(Plan),0,Plan) -> 0 | AD24: 0 | AE24: 0 | AF24: 0 | AG24: 0 | AH24: 0 | AI24: 0 | AJ24: 0 | AK24: 0 | AL24: 0 | AM24: =IF(ISERROR(Plan),0,Plan) -> 0 | AN24: 0 | AO24: 0 | AP24: 0 | AQ24: 0 | AR24: 0 | AS24: 0 | AT24: 0 | AU24: 0 | AV24: 0 | AW24: =IF(ISERROR(Plan),0,Plan) -> 0 | AX24: 0 | AY24: 0 | AZ24: 0 | BA24: 0 | BB24: 0 | BC24: 0 | BD24: 0 | BE24: 0 | BF24: 0 | BG24: =IF(ISERROR(Plan),0,Plan) -> 0 | BH24: 0 | BI24: 0 | BJ24: 0 | BK24: 0 | BL24: 0 | BM24: 0 | BN24: 0 | BO24: 0 | BP24: 0
A25: Mortier | C25: =IF($B25<>"",VLOOKUP($B25,COSTS_Mortar[#All],2),"") ->  | D25: =IF($B25<>"",VLOOKUP($B25,COSTS_Mortar[#All],3)/24,"") ->  | I25: =IF(ISERROR(Plan),0,Plan) -> 0 | J25: 0 | K25: 0 | L25: 0 | M25: 0 | N25: 0 | O25: 0 | P25: 0 | Q25: 0 | R25: 0 | S25: =IF(ISERROR(Plan),0,Plan) -> 0 | T25: 0 | U25: 0 | V25: 0 | W25: 0 | X25: 0 | Y25: 0 | Z25: 0 | AA25: 0 | AB25: 0 | AC25: =IF(ISERROR(Plan),0,Plan) -> 0 | AD25: 0 | AE25: 0 | AF25: 0 | AG25: 0 | AH25: 0 | AI25: 0 | AJ25: 0 | AK25: 0 | AL25: 0 | AM25: =IF(ISERROR(Plan),0,Plan) -> 0 | AN25: 0 | AO25: 0 | AP25: 0 | AQ25: 0 | AR25: 0 | AS25: 0 | AT25: 0 | AU25: 0 | AV25: 0 | AW25: =IF(ISERROR(Plan),0,Plan) -> 0 | AX25: 0 | AY25: 0 | AZ25: 0 | BA25: 0 | BB25: 0 | BC25: 0 | BD25: 0 | BE25: 0 | BF25: 0 | BG25: =IF(ISERROR(Plan),0,Plan) -> 0 | BH25: 0 | BI25: 0 | BJ25: 0 | BK25: 0 | BL25: 0 | BM25: 0 | BN25: 0 | BO25: 0 | BP25: 0
A26: Défense Antiaérienne | C26: =IF($B26<>"",VLOOKUP($B26,COSTS_Air_Defense[#All],2),"") ->  | D26: =IF($B26<>"",VLOOKUP($B26,COSTS_Air_Defense[#All],3)/24,"") ->  | I26: =IF(ISERROR(Plan),0,Plan) -> 0 | J26: 0 | K26: 0 | L26: 0 | M26: 0 | N26: 0 | O26: 0 | P26: 0 | Q26: 0 | R26: 0 | S26: =IF(ISERROR(Plan),0,Plan) -> 0 | T26: 0 | U26: 0 | V26: 0 | W26: 0 | X26: 0 | Y26: 0 | Z26: 0 | AA26: 0 | AB26: 0 | AC26: =IF(ISERROR(Plan),0,Plan) -> 0 | AD26: 0 | AE26: 0 | AF26: 0 | AG26: 0 | AH26: 0 | AI26: 0 | AJ26: 0 | AK26: 0 | AL26: 0 | AM26: =IF(ISERROR(Plan),0,Plan) -> 0 | AN26: 0 | AO26: 0 | AP26: 0 | AQ26: 0 | AR26: 0 | AS26: 0 | AT26: 0 | AU26: 0 | AV26: 0 | AW26: =IF(ISERROR(Plan),0,Plan) -> 0 | AX26: 0 | AY26: 0 | AZ26: 0 | BA26: 0 | BB26: 0 | BC26: 0 | BD26: 0 | BE26: 0 | BF26: 0 | BG26: =IF(ISERROR(Plan),0,Plan) -> 0 | BH26: 0 | BI26: 0 | BJ26: 0 | BK26: 0 | BL26: 0 | BM26: 0 | BN26: 0 | BO26: 0 | BP26: 0
A27: Tour de Sorciers | C27: =IF($B27<>"",VLOOKUP($B27,COSTS_Wizard_Tower[#All],2),"") ->  | D27: =IF($B27<>"",VLOOKUP($B27,COSTS_Wizard_Tower[#All],3)/24,"") ->  | I27: =IF(ISERROR(Plan),0,Plan) -> 0 | J27: 0 | K27: 0 | L27: 0 | M27: 0 | N27: 0 | O27: 0 | P27: 0 | Q27: 0 | R27: 0 | S27: =IF(ISERROR(Plan),0,Plan) -> 0 | T27: 0 | U27: 0 | V27: 0 | W27: 0 | X27: 0 | Y27: 0 | Z27: 0 | AA27: 0 | AB27: 0 | AC27: =IF(ISERROR(Plan),0,Plan) -> 0 | AD27: 0 | AE27: 0 | AF27: 0 | AG27: 0 | AH27: 0 | AI27: 0 | AJ27: 0 | AK27: 0 | AL27: 0 | AM27: =IF(ISERROR(Plan),0,Plan) -> 0 | AN27: 0 | AO27: 0 | AP27: 0 | AQ27: 0 | AR27: 0 | AS27: 0 | AT27: 0 | AU27: 0 | AV27: 0 | AW27: =IF(ISERROR(Plan),0,Plan) -> 0 | AX27: 0 | AY27: 0 | AZ27: 0 | BA27: 0 | BB27: 0 | BC27: 0 | BD27: 0 | BE27: 0 | BF27: 0 | BG27: =IF(ISERROR(Plan),0,Plan) -> 0 | BH27: 0 | BI27: 0 | BJ27: 0 | BK27: 0 | BL27: 0 | BM27: 0 | BN27: 0 | BO27: 0 | BP27: 0
A28: Propulseur d'air
A29: Tesla Camouflée | C29: =IF($B29<>"",VLOOKUP($B29,COSTS_Hidden_Tesla[#All],2),"") ->  | D29: =IF($B29<>"",VLOOKUP($B29,COSTS_Hidden_Tesla[#All],3)/24,"") ->  | I29: =IF(ISERROR(Plan),0,Plan) -> 0 | J29: 0 | K29: 0 | L29: 0 | M29: 0 | N29: 0 | O29: 0 | P29: 0 | Q29: 0 | R29: 0 | S29: =IF(ISERROR(Plan),0,Plan) -> 0 | T29: 0 | U29: 0 | V29: 0 | W29: 0 | X29: 0 | Y29: 0 | Z29: 0 | AA29: 0 | AB29: 0 | AC29: =IF(ISERROR(Plan),0,Plan) -> 0 | AD29: 0 | AE29: 0 | AF29: 0 | AG29: 0 | AH29: 0 | AI29: 0 | AJ29: 0 | AK29: 0 | AL29: 0 | AM29: =IF(ISERROR(Plan),0,Plan) -> 0 | AN29: 0 | AO29: 0 | AP29: 0 | AQ29: 0 | AR29: 0 | AS29: 0 | AT29: 0 | AU29: 0 | AV29: 0 | AW29: =IF(ISERROR(Plan),0,Plan) -> 0 | AX29: 0 | AY29: 0 | AZ29: 0 | BA29: 0 | BB29: 0 | BC29: 0 | BD29: 0 | BE29: 0 | BF29: 0 | BG29: =IF(ISERROR(Plan),0,Plan) -> 0 | BH29: 0 | BI29: 0 | BJ29: 0 | BK29: 0 | BL29: 0 | BM29: 0 | BN29: 0 | BO29: 0 | BP29: 0
A30: Arc-X | C30: =IF($B30<>"",VLOOKUP($B30,COSTS_XBow[#All],2),"") ->  | D30: =IF($B30<>"",VLOOKUP($B30,COSTS_XBow[#All],3)/24,"") ->  | I30: =IF(ISERROR(Plan),0,Plan) -> 0 | J30: 0 | K30: 0 | L30: 0 | M30: 0 | N30: 0 | O30: 0 | P30: 0 | Q30: 0 | R30: 0 | S30: =IF(ISERROR(Plan),0,Plan) -> 0 | T30: 0 | U30: 0 | V30: 0 | W30: 0 | X30: 0 | Y30: 0 | Z30: 0 | AA30: 0 | AB30: 0 | AC30: =IF(ISERROR(Plan),0,Plan) -> 0 | AD30: 0 | AE30: 0 | AF30: 0 | AG30: 0 | AH30: 0 | AI30: 0 | AJ30: 0 | AK30: 0 | AL30: 0 | AM30: =IF(ISERROR(Plan),0,Plan) -> 0 | AN30: 0 | AO30: 0 | AP30: 0 | AQ30: 0 | AR30: 0 | AS30: 0 | AT30: 0 | AU30: 0 | AV30: 0 | AW30: =IF(ISERROR(Plan),0,Plan) -> 0 | AX30: 0 | AY30: 0 | AZ30: 0 | BA30: 0 | BB30: 0 | BC30: 0 | BD30: 0 | BE30: 0 | BF30: 0 | BG30: =IF(ISERROR(Plan),0,Plan) -> 0 | BH30: 0 | BI30: 0 | BJ30: 0 | BK30: 0 | BL30: 0 | BM30: 0 | BN30: 0 | BO30: 0 | BP30: 0
A31: Tour de l'Enfer | C31: =IF($B31<>"",VLOOKUP($B31,COSTS_Inferno_Tower[#All],2),"") ->  | D31: =IF($B31<>"",VLOOKUP($B31,COSTS_Inferno_Tower[#All],3)/24,"") ->  | I31: 0 | J31: 0 | K31: 0 | L31: 0 | M31: 0 | N31: 0 | O31: 0 | P31: 0 | Q31: 0 | R31: 0 | S31: 0 | T31: 0 | U31: 0 | V31: 0 | W31: 0 | X31: 0 | Y31: 0 | Z31: 0 | AA31: 0 | AB31: 0 | AC31: 0 | AD31: 0 | AE31: 0 | AF31: 0 | AG31: 0 | AH31: 0 | AI31: 0 | AJ31: 0 | AK31: 0 | AL31: 0 | AM31: 0 | AN31: 0 | AO31: 0 | AP31: 0 | AQ31: 0 | AR31: 0 | AS31: 0 | AT31: 0 | AU31: 0 | AV31: 0 | AW31: 0 | AX31: 0 | AY31: 0 | AZ31: 0 | BA31: 0 | BB31: 0 | BC31: 0 | BD31: 0 | BE31: 0 | BF31: 0 | BG31: 0 | BH31: 0 | BI31: 0 | BJ31: 0 | BK31: 0 | BL31: 0 | BM31: 0 | BN31: 0 | BO31: 0 | BP31: 0
A32: Bâtiments Autres | I32: =IF(ISERROR(Plan),0,Plan) -> 0 | J32: 0 | K32: 0 | L32: 0 | M32: 0 | N32: 0 | O32: 0 | P32: 0 | Q32: 0 | R32: 0 | S32: =IF(ISERROR(Plan),0,Plan) -> 0 | T32: 0 | U32: 0 | V32: 0 | W32: 0 | X32: 0 | Y32: 0 | Z32: 0 | AA32: 0 | AB32: 0 | AC32: =IF(ISERROR(Plan),0,Plan) -> 0 | AD32: 0 | AE32: 0 | AF32: 0 | AG32: 0 | AH32: 0 | AI32: 0 | AJ32: 0 | AK32: 0 | AL32: 0 | AM32: =IF(ISERROR(Plan),0,Plan) -> 0 | AN32: 0 | AO32: 0 | AP32: 0 | AQ32: 0 | AR32: 0 | AS32: 0 | AT32: 0 | AU32: 0 | AV32: 0 | AW32: =IF(ISERROR(Plan),0,Plan) -> 0 | AX32: 0 | AY32: 0 | AZ32: 0 | BA32: 0 | BB32: 0 | BC32: 0 | BD32: 0 | BE32: 0 | BF32: 0 | BG32: =IF(ISERROR(Plan),0,Plan) -> 0 | BH32: 0 | BI32: 0 | BJ32: 0 | BK32: 0 | BL32: 0 | BM32: 0 | BN32: 0 | BO32: 0 | BP32: 0
A33: Château de Clan | C33: =IF($B33<>"",VLOOKUP($B33,COSTS_Clan_Castle[#All],2),"") ->  | D33: =IF($B33<>"",VLOOKUP($B33,COSTS_Clan_Castle[#All],3)/24,"") ->  | G33: =IF($D33<>"",$D33,"") ->  | I33: 0 | J33: 0 | K33: 0 | L33: 0 | M33: 0 | N33: 0 | O33: 0 | P33: 0 | Q33: 0 | R33: 0 | S33: 0 | T33: 0 | U33: 0 | V33: 0 | W33: 0 | X33: 0 | Y33: 0 | Z33: 0 | AA33: 0 | AB33: 0 | AC33: 0 | AD33: 0 | AE33: 0 | AF33: 0 | AG33: 0 | AH33: 0 | AI33: 0 | AJ33: 0 | AK33: 0 | AL33: 0 | AM33: 0 | AN33: 0 | AO33: 0 | AP33: 0 | AQ33: 0 | AR33: 0 | AS33: 0 | AT33: 0 | AU33: 0 | AV33: 0 | AW33: 0 | AX33: 0 | AY33: 0 | AZ33: 0 | BA33: 0 | BB33: 0 | BC33: 0 | BD33: 0 | BE33: 0 | BF33: 0 | BG33: 0 | BH33: 0 | BI33: 0 | BJ33: 0 | BK33: 0 | BL33: 0 | BM33: 0 | BN33: 0 | BO33: 0 | BP33: 0
A34: Hôtel de Ville | C34: =IF($B34<>"",VLOOKUP($B34,COSTS_Town_Home[#All],2),"") ->  | D34: =IF($B34<>"",VLOOKUP($B34,COSTS_Town_Home[#All],3)/24,"") ->  | G34: =IF($D34<>"",$D34,"") ->  | I34: 0 | J34: 0 | K34: 0 | L34: 0 | M34: 0 | N34: 0 | O34: 0 | P34: 0 | Q34: 0 | R34: 0 | S34: 0 | T34: 0 | U34: 0 | V34: 0 | W34: 0 | X34: 0 | Y34: 0 | Z34: 0 | AA34: 0 | AB34: 0 | AC34: 0 | AD34: 0 | AE34: 0 | AF34: 0 | AG34: 0 | AH34: 0 | AI34: 0 | AJ34: 0 | AK34: 0 | AL34: 0 | AM34: 0 | AN34: 0 | AO34: 0 | AP34: 0 | AQ34: 0 | AR34: 0 | AS34: 0 | AT34: 0 | AU34: 0 | AV34: 0 | AW34: 0 | AX34: 0 | AY34: 0 | AZ34: 0 | BA34: 0 | BB34: 0 | BC34: 0 | BD34: 0 | BE34: 0 | BF34: 0 | BG34: 0 | BH34: 0 | BI34: 0 | BJ34: 0 | BK34: 0 | BL34: 0 | BM34: 0 | BN34: 0 | BO34: 0 | BP34: 0
A35: Améliorations de Sorts | I35: 0 | J35: 0 | K35: 0 | L35: 0 | M35: 0 | N35: 0 | O35: 0 | P35: 0 | Q35: 0 | R35: 0 | S35: 0 | T35: 0 | U35: 0 | V35: 0 | W35: 0 | X35: 0 | Y35: 0 | Z35: 0 | AA35: 0 | AB35: 0 | AC35: 0 | AD35: 0 | AE35: 0 | AF35: 0 | AG35: 0 | AH35: 0 | AI35: 0 | AJ35: 0 | AK35: 0 | AL35: 0 | AM35: 0 | AN35: 0 | AO35: 0 | AP35: 0 | AQ35: 0 | AR35: 0 | AS35: 0 | AT35: 0 | AU35: 0 | AV35: 0 | AW35: 0 | AX35: 0 | AY35: 0 | AZ35: 0 | BA35: 0 | BB35: 0 | BC35: 0 | BD35: 0 | BE35: 0 | BF35: 0 | BG35: 0 | BH35: 0 | BI35: 0 | BJ35: 0 | BK35: 0 | BL35: 0 | BM35: 0 | BN35: 0 | BO35: 0 | BP35: 0
A36: Sort de Foudre | C36: =IF($B36<>"",VLOOKUP($B36,COSTS_Spell_Lightning[#All],2),"") ->  | D36: =IF($B36<>"",VLOOKUP($B36,COSTS_Spell_Lightning[#All],3)/24,"") ->  | G36: =IF($D36<>"",$D36,"") ->  | I36: 0 | J36: 0 | K36: 0 | L36: 0 | M36: 0 | N36: 0 | O36: 0 | P36: 0 | Q36: 0 | R36: 0 | S36: 0 | T36: 0 | U36: 0 | V36: 0 | W36: 0 | X36: 0 | Y36: 0 | Z36: 0 | AA36: 0 | AB36: 0 | AC36: 0 | AD36: 0 | AE36: 0 | AF36: 0 | AG36: 0 | AH36: 0 | AI36: 0 | AJ36: 0 | AK36: 0 | AL36: 0 | AM36: 0 | AN36: 0 | AO36: 0 | AP36: 0 | AQ36: 0 | AR36: 0 | AS36: 0 | AT36: 0 | AU36: 0 | AV36: 0 | AW36: 0 | AX36: 0 | AY36: 0 | AZ36: 0 | BA36: 0 | BB36: 0 | BC36: 0 | BD36: 0 | BE36: 0 | BF36: 0 | BG36: 0 | BH36: 0 | BI36: 0 | BJ36: 0 | BK36: 0 | BL36: 0 | BM36: 0 | BN36: 0 | BO36: 0 | BP36: 0
A37: Sort de Guérison | C37: =IF($B37<>"",VLOOKUP($B37,COSTS_Spell_Healing[#All],2),"") ->  | D37: =IF($B37<>"",VLOOKUP($B37,COSTS_Spell_Healing[#All],3)/24,"") ->  | G37: =IF($D37<>"",$D37,"") ->  | I37: =IF(ISERROR(Plan),0,Plan) -> 0 | J37: 0 | K37: 0 | L37: 0 | M37: 0 | N37: 0 | O37: 0 | P37: 0 | Q37: 0 | R37: 0 | S37: =IF(ISERROR(Plan),0,Plan) -> 0 | T37: 0 | U37: 0 | V37: 0 | W37: 0 | X37: 0 | Y37: 0 | Z37: 0 | AA37: 0 | AB37: 0 | AC37: =IF(ISERROR(Plan),0,Plan) -> 0 | AD37: 0 | AE37: 0 | AF37: 0 | AG37: 0 | AH37: 0 | AI37: 0 | AJ37: 0 | AK37: 0 | AL37: 0 | AM37: =IF(ISERROR(Plan),0,Plan) -> 0 | AN37: 0 | AO37: 0 | AP37: 0 | AQ37: 0 | AR37: 0 | AS37: 0 | AT37: 0 | AU37: 0 | AV37: 0 | AW37: =IF(ISERROR(Plan),0,Plan) -> 0 | AX37: 0 | AY37: 0 | AZ37: 0 | BA37: 0 | BB37: 0 | BC37: 0 | BD37: 0 | BE37: 0 | BF37: 0 | BG37: =IF(ISERROR(Plan),0,Plan) -> 0 | BH37: 0 | BI37: 0 | BJ37: 0 | BK37: 0 | BL37: 0 | BM37: 0 | BN37: 0 | BO37: 0 | BP37: 0
A38: Sort de Rage | C38: =IF($B38<>"",VLOOKUP($B38,COSTS_Spell_Rage[#All],2),"") ->  | D38: =IF($B38<>"",VLOOKUP($B38,COSTS_Spell_Rage[#All],3)/24,"") ->  | I38: 0 | J38: 0 | K38: 0 | L38: 0 | M38: 0 | N38: 0 | O38: 0 | P38: 0 | Q38: 0 | R38: 0 | S38: 0 | T38: 0 | U38: 0 | V38: 0 | W38: 0 | X38: 0 | Y38: 0 | Z38: 0 | AA38: 0 | AB38: 0 | AC38: 0 | AD38: 0 | AE38: 0 | AF38: 0 | AG38: 0 | AH38: 0 | AI38: 0 | AJ38: 0 | AK38: 0 | AL38: 0 | AM38: 0 | AN38: 0 | AO38: 0 | AP38: 0 | AQ38: 0 | AR38: 0 | AS38: 0 | AT38: 0 | AU38: 0 | AV38: 0 | AW38: 0 | AX38: 0 | AY38: 0 | AZ38: 0 | BA38: 0 | BB38: 0 | BC38: 0 | BD38: 0 | BE38: 0 | BF38: 0 | BG38: 0 | BH38: 0 | BI38: 0 | BJ38: 0 | BK38: 0 | BL38: 0 | BM38: 0 | BN38: 0 | BO38: 0 | BP38: 0
A39: Sort de Saut | C39: =IF($B39<>"",VLOOKUP($B39,COSTS_Spell_Jump[#All],2),"") ->  | D39: =IF($B39<>"",VLOOKUP($B39,COSTS_Spell_Jump[#All],3)/24,"") ->  | I39: =IF(ISERROR(Plan),0,Plan) -> 0 | J39: 0 | K39: 0 | L39: 0 | M39: 0 | N39: 0 | O39: 0 | P39: 0 | Q39: 0 | R39: 0 | S39: =IF(ISERROR(Plan),0,Plan) -> 0 | T39: 0 | U39: 0 | V39: 0 | W39: 0 | X39: 0 | Y39: 0 | Z39: 0 | AA39: 0 | AB39: 0 | AC39: =IF(ISERROR(Plan),0,Plan) -> 0 | AD39: 0 | AE39: 0 | AF39: 0 | AG39: 0 | AH39: 0 | AI39: 0 | AJ39: 0 | AK39: 0 | AL39: 0 | AM39: =IF(ISERROR(Plan),0,Plan) -> 0 | AN39: 0 | AO39: 0 | AP39: 0 | AQ39: 0 | AR39: 0 | AS39: 0 | AT39: 0 | AU39: 0 | AV39: 0 | AW39: =IF(ISERROR(Plan),0,Plan) -> 0 | AX39: 0 | AY39: 0 | AZ39: 0 | BA39: 0 | BB39: 0 | BC39: 0 | BD39: 0 | BE39: 0 | BF39: 0 | BG39: =IF(ISERROR(Plan),0,Plan) -> 0 | BH39: 0 | BI39: 0 | BJ39: 0 | BK39: 0 | BL39: 0 | BM39: 0 | BN39: 0 | BO39: 0 | BP39: 0
A40: Sort de Gel | C40: =IF($B40<>"",VLOOKUP($B40,COSTS_Spell_Freeze[#All],2),"") ->  | D40: =IF($B40<>"",VLOOKUP($B40,COSTS_Spell_Freeze[#All],3)/24,"") ->  | I40: 0 | J40: 0 | K40: 0 | L40: 0 | M40: 0 | N40: 0 | O40: 0 | P40: 0 | Q40: 0 | R40: 0 | S40: 0 | T40: 0 | U40: 0 | V40: 0 | W40: 0 | X40: 0 | Y40: 0 | Z40: 0 | AA40: 0 | AB40: 0 | AC40: 0 | AD40: 0 | AE40: 0 | AF40: 0 | AG40: 0 | AH40: 0 | AI40: 0 | AJ40: 0 | AK40: 0 | AL40: 0 | AM40: 0 | AN40: 0 | AO40: 0 | AP40: 0 | AQ40: 0 | AR40: 0 | AS40: 0 | AT40: 0 | AU40: 0 | AV40: 0 | AW40: 0 | AX40: 0 | AY40: 0 | AZ40: 0 | BA40: 0 | BB40: 0 | BC40: 0 | BD40: 0 | BE40: 0 | BF40: 0 | BG40: 0 | BH40: 0 | BI40: 0 | BJ40: 0 | BK40: 0 | BL40: 0 | BM40: 0 | BN40: 0 | BO40: 0 | BP40: 0
A41: Améliorations de Troupes | I41: 0 | J41: 0 | K41: 0 | L41: 0 | M41: 0 | N41: 0 | O41: 0 | P41: 0 | Q41: 0 | R41: 0 | S41: 0 | T41: 0 | U41: 0 | V41: 0 | W41: 0 | X41: 0 | Y41: 0 | Z41: 0 | AA41: 0 | AB41: 0 | AC41: 0 | AD41: 0 | AE41: 0 | AF41: 0 | AG41: 0 | AH41: 0 | AI41: 0 | AJ41: 0 | AK41: 0 | AL41: 0 | AM41: 0 | AN41: 0 | AO41: 0 | AP41: 0 | AQ41: 0 | AR41: 0 | AS41: 0 | AT41: 0 | AU41: 0 | AV41: 0 | AW41: 0 | AX41: 0 | AY41: 0 | AZ41: 0 | BA41: 0 | BB41: 0 | BC41: 0 | BD41: 0 | BE41: 0 | BF41: 0 | BG41: 0 | BH41: 0 | BI41: 0 | BJ41: 0 | BK41: 0 | BL41: 0 | BM41: 0 | BN41: 0 | BO41: 0 | BP41: 0
A42: Barbare | C42: =IF($B42<>"",VLOOKUP($B42,COSTS_Barbarian[#All],2),"") ->  | D42: =IF($B42<>"",VLOOKUP($B42,COSTS_Barbarian[#All],3)/24,"") ->  | I42: 0 | J42: 0 | K42: 0 | L42: 0 | M42: 0 | N42: 0 | O42: 0 | P42: 0 | Q42: 0 | R42: 0 | S42: 0 | T42: 0 | U42: 0 | V42: 0 | W42: 0 | X42: 0 | Y42: 0 | Z42: 0 | AA42: 0 | AB42: 0 | AC42: 0 | AD42: 0 | AE42: 0 | AF42: 0 | AG42: 0 | AH42: 0 | AI42: 0 | AJ42: 0 | AK42: 0 | AL42: 0 | AM42: 0 | AN42: 0 | AO42: 0 | AP42: 0 | AQ42: 0 | AR42: 0 | AS42: 0 | AT42: 0 | AU42: 0 | AV42: 0 | AW42: 0 | AX42: 0 | AY42: 0 | AZ42: 0 | BA42: 0 | BB42: 0 | BC42: 0 | BD42: 0 | BE42: 0 | BF42: 0 | BG42: 0 | BH42: 0 | BI42: 0 | BJ42: 0 | BK42: 0 | BL42: 0 | BM42: 0 | BN42: 0 | BO42: 0 | BP42: 0
A43: Archer | C43: =IF($B43<>"",VLOOKUP($B43,COSTS_Archer[#All],2),"") ->  | D43: =IF($B43<>"",VLOOKUP($B43,COSTS_Archer[#All],3)/24,"") ->  | I43: =IF(ISERROR(Plan),0,Plan) -> 0 | J43: 0 | K43: 0 | L43: 0 | M43: 0 | N43: 0 | O43: 0 | P43: 0 | Q43: 0 | R43: 0 | S43: =IF(ISERROR(Plan),0,Plan) -> 0 | T43: 0 | U43: 0 | V43: 0 | W43: 0 | X43: 0 | Y43: 0 | Z43: 0 | AA43: 0 | AB43: 0 | AC43: =IF(ISERROR(Plan),0,Plan) -> 0 | AD43: 0 | AE43: 0 | AF43: 0 | AG43: 0 | AH43: 0 | AI43: 0 | AJ43: 0 | AK43: 0 | AL43: 0 | AM43: =IF(ISERROR(Plan),0,Plan) -> 0 | AN43: 0 | AO43: 0 | AP43: 0 | AQ43: 0 | AR43: 0 | AS43: 0 | AT43: 0 | AU43: 0 | AV43: 0 | AW43: =IF(ISERROR(Plan),0,Plan) -> 0 | AX43: 0 | AY43: 0 | AZ43: 0 | BA43: 0 | BB43: 0 | BC43: 0 | BD43: 0 | BE43: 0 | BF43: 0 | BG43: =IF(ISERROR(Plan),0,Plan) -> 0 | BH43: 0 | BI43: 0 | BJ43: 0 | BK43: 0 | BL43: 0 | BM43: 0 | BN43: 0 | BO43: 0 | BP43: 0
A44: Gobelin | C44: =IF($B44<>"",VLOOKUP($B44,COSTS_Goblin[#All],2),"") ->  | D44: =IF($B44<>"",VLOOKUP($B44,COSTS_Goblin[#All],3)/24,"") ->  | I44: =IF(ISERROR(Plan),0,Plan) -> 0 | J44: 0 | K44: 0 | L44: 0 | M44: 0 | N44: 0 | O44: 0 | P44: 0 | Q44: 0 | R44: 0 | S44: =IF(ISERROR(Plan),0,Plan) -> 0 | T44: 0 | U44: 0 | V44: 0 | W44: 0 | X44: 0 | Y44: 0 | Z44: 0 | AA44: 0 | AB44: 0 | AC44: =IF(ISERROR(Plan),0,Plan) -> 0 | AD44: 0 | AE44: 0 | AF44: 0 | AG44: 0 | AH44: 0 | AI44: 0 | AJ44: 0 | AK44: 0 | AL44: 0 | AM44: =IF(ISERROR(Plan),0,Plan) -> 0 | AN44: 0 | AO44: 0 | AP44: 0 | AQ44: 0 | AR44: 0 | AS44: 0 | AT44: 0 | AU44: 0 | AV44: 0 | AW44: =IF(ISERROR(Plan),0,Plan) -> 0 | AX44: 0 | AY44: 0 | AZ44: 0 | BA44: 0 | BB44: 0 | BC44: 0 | BD44: 0 | BE44: 0 | BF44: 0 | BG44: =IF(ISERROR(Plan),0,Plan) -> 0 | BH44: 0 | BI44: 0 | BJ44: 0 | BK44: 0 | BL44: 0 | BM44: 0 | BN44: 0 | BO44: 0 | BP44: 0
A45: Géant | C45: =IF($B45<>"",VLOOKUP($B45,COSTS_Giant[#All],2),"") ->  | D45: =IF($B45<>"",VLOOKUP($B45,COSTS_Giant[#All],3)/24,"") ->  | I45: 0 | J45: 0 | K45: 0 | L45: 0 | M45: 0 | N45: 0 | O45: 0 | P45: 0 | Q45: 0 | R45: 0 | S45: 0 | T45: 0 | U45: 0 | V45: 0 | W45: 0 | X45: 0 | Y45: 0 | Z45: 0 | AA45: 0 | AB45: 0 | AC45: 0 | AD45: 0 | AE45: 0 | AF45: 0 | AG45: 0 | AH45: 0 | AI45: 0 | AJ45: 0 | AK45: =IF(ISERROR(Plan),0,Plan) -> 0 | AL45: 0 | AM45: 0 | AN45: 0 | AO45: 0 | AP45: 0 | AQ45: 0 | AR45: 0 | AS45: 0 | AT45: 0 | AU45: 0 | AV45: 0 | AW45: 0 | AX45: 0 | AY45: 0 | AZ45: 0 | BA45: 0 | BB45: 0 | BC45: 0 | BD45: 0 | BE45: 0 | BF45: 0 | BG45: 0 | BH45: 0 | BI45: 0 | BJ45: 0 | BK45: 0 | BL45: 0 | BM45: 0 | BN45: 0 | BO45: 0 | BP45: 0
A46: Sapeur | C46: =IF($B46<>"",VLOOKUP($B46,COSTS_Wall_Breaker[#All],2),"") ->  | D46: =IF($B46<>"",VLOOKUP($B46,COSTS_Wall_Breaker[#All],3)/24,"") ->  | I46: =IF(ISERROR(Plan),0,Plan) -> 0 | J46: 0 | K46: 0 | L46: 0 | M46: 0 | N46: 0 | O46: 0 | P46: 0 | Q46: 0 | R46: 0 | S46: =IF(ISERROR(Plan),0,Plan) -> 0 | T46: 0 | U46: 0 | V46: 0 | W46: 0 | X46: 0 | Y46: 0 | Z46: 0 | AA46: 0 | AB46: 0 | AC46: =IF(ISERROR(Plan),0,Plan) -> 0 | AD46: 0 | AE46: 0 | AF46: 0 | AG46: 0 | AH46: 0 | AI46: 0 | AJ46: 0 | AK46: 0 | AL46: 0 | AM46: =IF(ISERROR(Plan),0,Plan) -> 0 | AN46: 0 | AO46: 0 | AP46: 0 | AQ46: 0 | AR46: 0 | AS46: 0 | AT46: 0 | AU46: 0 | AV46: 0 | AW46: =IF(ISERROR(Plan),0,Plan) -> 0 | AX46: 0 | AY46: 0 | AZ46: 0 | BA46: 0 | BB46: 0 | BC46: 0 | BD46: 0 | BE46: 0 | BF46: 0 | BG46: =IF(ISERROR(Plan),0,Plan) -> 0 | BH46: 0 | BI46: 0 | BJ46: 0 | BK46: 0 | BL46: 0 | BM46: 0 | BN46: 0 | BO46: 0 | BP46: 0
A47: Ballon | C47: =IF($B47<>"",VLOOKUP($B47,COSTS_Balloon[#All],2),"") ->  | D47: =IF($B47<>"",VLOOKUP($B47,COSTS_Balloon[#All],3)/24,"") ->  | I47: 0 | J47: 0 | K47: 0 | L47: 0 | M47: 0 | N47: 0 | O47: 0 | P47: 0 | Q47: 0 | R47: 0 | S47: 0 | T47: 0 | U47: 0 | V47: 0 | W47: 0 | X47: 0 | Y47: 0 | Z47: 0 | AA47: 0 | AB47: 0 | AC47: 0 | AD47: 0 | AE47: 0 | AF47: 0 | AG47: 0 | AH47: 0 | AI47: 0 | AJ47: 0 | AK47: 0 | AL47: 0 | AM47: 0 | AN47: 0 | AO47: 0 | AP47: 0 | AQ47: 0 | AR47: 0 | AS47: 0 | AT47: 0 | AU47: 0 | AV47: 0 | AW47: 0 | AX47: 0 | AY47: 0 | AZ47: 0 | BA47: 0 | BB47: 0 | BC47: 0 | BD47: 0 | BE47: 0 | BF47: 0 | BG47: 0 | BH47: 0 | BI47: 0 | BJ47: 0 | BK47: 0 | BL47: 0 | BM47: 0 | BN47: 0 | BO47: 0 | BP47: 0
A48: Sorcier | C48: =IF($B48<>"",VLOOKUP($B48,COSTS_Wizard[#All],2),"") ->  | D48: =IF($B48<>"",VLOOKUP($B48,COSTS_Wizard[#All],3)/24,"") ->  | I48: =IF(ISERROR(Plan),0,Plan) -> 0 | J48: 0 | K48: 0 | L48: 0 | M48: 0 | N48: 0 | O48: 0 | P48: 0 | Q48: 0 | R48: 0 | S48: =IF(ISERROR(Plan),0,Plan) -> 0 | T48: 0 | U48: 0 | V48: 0 | W48: 0 | X48: 0 | Y48: 0 | Z48: 0 | AA48: 0 | AB48: 0 | AC48: =IF(ISERROR(Plan),0,Plan) -> 0 | AD48: 0 | AE48: 0 | AF48: 0 | AG48: 0 | AH48: 0 | AI48: 0 | AJ48: 0 | AK48: 0 | AL48: 0 | AM48: =IF(ISERROR(Plan),0,Plan) -> 0 | AN48: 0 | AO48: 0 | AP48: 0 | AQ48: 0 | AR48: 0 | AS48: 0 | AT48: 0 | AU48: 0 | AV48: 0 | AW48: =IF(ISERROR(Plan),0,Plan) -> 0 | AX48: 0 | AY48: 0 | AZ48: 0 | BA48: 0 | BB48: 0 | BC48: 0 | BD48: 0 | BE48: 0 | BF48: 0 | BG48: =IF(ISERROR(Plan),0,Plan) -> 0 | BH48: 0 | BI48: 0 | BJ48: 0 | BK48: 0 | BL48: 0 | BM48: 0 | BN48: 0 | BO48: 0 | BP48: 0
A49: Guérisseuse | C49: =IF($B49<>"",VLOOKUP($B49,COSTS_Healer[#All],2),"") ->  | D49: =IF($B49<>"",VLOOKUP($B49,COSTS_Healer[#All],3)/24,"") ->  | I49: =IF(ISERROR(Plan),0,Plan) -> 0 | J49: 0 | K49: 0 | L49: 0 | M49: 0 | N49: 0 | O49: 0 | P49: 0 | Q49: 0 | R49: 0 | S49: =IF(ISERROR(Plan),0,Plan) -> 0 | T49: 0 | U49: 0 | V49: 0 | W49: 0 | X49: 0 | Y49: 0 | Z49: 0 | AA49: 0 | AB49: 0 | AC49: =IF(ISERROR(Plan),0,Plan) -> 0 | AD49: 0 | AE49: 0 | AF49: 0 | AG49: 0 | AH49: 0 | AI49: 0 | AJ49: 0 | AK49: 0 | AL49: 0 | AM49: =IF(ISERROR(Plan),0,Plan) -> 0 | AN49: 0 | AO49: 0 | AP49: 0 | AQ49: 0 | AR49: 0 | AS49: 0 | AT49: 0 | AU49: 0 | AV49: 0 | AW49: =IF(ISERROR(Plan),0,Plan) -> 0 | AX49: 0 | AY49: 0 | AZ49: 0 | BA49: 0 | BB49: 0 | BC49: 0 | BD49: 0 | BE49: 0 | BF49: 0 | BG49: =IF(ISERROR(Plan),0,Plan) -> 0 | BH49: 0 | BI49: 0 | BJ49: 0 | BK49: 0 | BL49: 0 | BM49: 0 | BN49: 0 | BO49: 0 | BP49: 0
A50: Dragon | C50: =IF($B50<>"",VLOOKUP($B50,COSTS_Dragon[#All],2),"") ->  | D50: =IF($B50<>"",VLOOKUP($B50,COSTS_Dragon[#All],3)/24,"") ->  | I50: 0 | J50: 0 | K50: 0 | L50: 0 | M50: 0 | N50: 0 | O50: 0 | P50: 0 | Q50: 0 | R50: 0 | S50: 0 | T50: 0 | U50: 0 | V50: 0 | W50: 0 | X50: 0 | Y50: 0 | Z50: 0 | AA50: 0 | AB50: 0 | AC50: 0 | AD50: 0 | AE50: 0 | AF50: 0 | AG50: 0 | AH50: 0 | AI50: 0 | AJ50: 0 | AK50: 0 | AL50: 0 | AM50: 0 | AN50: 0 | AO50: 0 | AP50: 0 | AQ50: 0 | AR50: 0 | AS50: 0 | AT50: 0 | AU50: 0 | AV50: 0 | AW50: 0 | AX50: 0 | AY50: 0 | AZ50: 0 | BA50: 0 | BB50: 0 | BC50: 0 | BD50: 0 | BE50: 0 | BF50: 0 | BG50: 0 | BH50: 0 | BI50: 0 | BJ50: 0 | BK50: 0 | BL50: 0 | BM50: 0 | BN50: 0 | BO50: 0 | BP50: 0
A51: P.E.K.K.A | C51: =IF($B51<>"",VLOOKUP($B51,COSTS_PEKKA[#All],2),"") ->  | D51: =IF($B51<>"",VLOOKUP($B51,COSTS_PEKKA[#All],3)/24,"") ->  | I51: 0 | J51: 0 | K51: 0 | L51: 0 | M51: 0 | N51: 0 | O51: 0 | P51: 0 | Q51: 0 | R51: 0 | S51: 0 | T51: 0 | U51: 0 | V51: 0 | W51: 0 | X51: 0 | Y51: 0 | Z51: 0 | AA51: 0 | AB51: 0 | AC51: 0 | AD51: 0 | AE51: 0 | AF51: 0 | AG51: 0 | AH51: 0 | AI51: 0 | AJ51: 0 | AK51: 0 | AL51: 0 | AM51: 0 | AN51: 0 | AO51: 0 | AP51: 0 | AQ51: 0 | AR51: 0 | AS51: 0 | AT51: 0 | AU51: 0 | AV51: 0 | AW51: 0 | AX51: 0 | AY51: 0 | AZ51: 0 | BA51: 0 | BB51: 0 | BC51: 0 | BD51: 0 | BE51: 0 | BF51: 0 | BG51: 0 | BH51: 0 | BI51: 0 | BJ51: 0 | BK51: 0 | BL51: 0 | BM51: 0 | BN51: 0 | BO51: 0 | BP51: 0
A52: Améliorations de Troupes Noires | I52: =IF(ISERROR(Plan),0,Plan) -> 0 | J52: 0 | K52: 0 | L52: 0 | M52: 0 | N52: 0 | O52: 0 | P52: 0 | Q52: 0 | R52: 0 | S52: =IF(ISERROR(Plan),0,Plan) -> 0 | T52: 0 | U52: 0 | V52: 0 | W52: 0 | X52: 0 | Y52: 0 | Z52: 0 | AA52: 0 | AB52: 0 | AC52: =IF(ISERROR(Plan),0,Plan) -> 0 | AD52: 0 | AE52: 0 | AF52: 0 | AG52: 0 | AH52: 0 | AI52: 0 | AJ52: 0 | AK52: 0 | AL52: 0 | AM52: =IF(ISERROR(Plan),0,Plan) -> 0 | AN52: 0 | AO52: 0 | AP52: 0 | AQ52: 0 | AR52: 0 | AS52: 0 | AT52: 0 | AU52: 0 | AV52: 0 | AW52: =IF(ISERROR(Plan),0,Plan) -> 0 | AX52: 0 | AY52: 0 | AZ52: 0 | BA52: 0 | BB52: 0 | BC52: 0 | BD52: 0 | BE52: 0 | BF52: 0 | BG52: =IF(ISERROR(Plan),0,Plan) -> 0 | BH52: 0 | BI52: 0 | BJ52: 0 | BK52: 0 | BL52: 0 | BM52: 0 | BN52: 0 | BO52: 0 | BP52: 0
A53: Serviteur | C53: =IF($B53<>"",VLOOKUP($B53,COSTS_Minion[#All],2),"") ->  | D53: =IF($B53<>"",VLOOKUP($B53,COSTS_Minion[#All],3)/24,"") ->  | I53: 0 | J53: 0 | K53: 0 | L53: 0 | M53: 0 | N53: 0 | O53: 0 | P53: 0 | Q53: 0 | R53: 0 | S53: 0 | T53: 0 | U53: 0 | V53: 0 | W53: 0 | X53: 0 | Y53: 0 | Z53: 0 | AA53: 0 | AB53: 0 | AC53: 0 | AD53: 0 | AE53: 0 | AF53: 0 | AG53: 0 | AH53: 0 | AI53: 0 | AJ53: 0 | AK53: 0 | AL53: 0 | AM53: 0 | AN53: 0 | AO53: 0 | AP53: 0 | AQ53: 0 | AR53: 0 | AS53: 0 | AT53: 0 | AU53: 0 | AV53: 0 | AW53: 0 | AX53: 0 | AY53: 0 | AZ53: 0 | BA53: 0 | BB53: 0 | BC53: 0 | BD53: 0 | BE53: 0 | BF53: 0 | BG53: 0 | BH53: 0 | BI53: 0 | BJ53: 0 | BK53: 0 | BL53: 0 | BM53: 0 | BN53: 0 | BO53: 0 | BP53: 0
A54: Chevaucheur de Cochon | C54: =IF($B54<>"",VLOOKUP($B54,COSTS_Hog_Rider[#All],2),"") ->  | D54: =IF($B54<>"",VLOOKUP($B54,COSTS_Hog_Rider[#All],3)/24,"") ->  | I54: =IF(ISERROR(Plan),0,Plan) -> 0 | J54: 0 | K54: 0 | L54: 0 | M54: 0 | N54: 0 | O54: 0 | P54: 0 | Q54: 0 | R54: 0 | S54: =IF(ISERROR(Plan),0,Plan) -> 0 | T54: 0 | U54: 0 | V54: 0 | W54: 0 | X54: 0 | Y54: 0 | Z54: 0 | AA54: 0 | AB54: 0 | AC54: =IF(ISERROR(Plan),0,Plan) -> 0 | AD54: 0 | AE54: 0 | AF54: 0 | AG54: 0 | AH54: 0 | AI54: 0 | AJ54: 0 | AK54: 0 | AL54: 0 | AM54: =IF(ISERROR(Plan),0,Plan) -> 0 | AN54: 0 | AO54: 0 | AP54: 0 | AQ54: 0 | AR54: 0 | AS54: 0 | AT54: 0 | AU54: 0 | AV54: 0 | AW54: =IF(ISERROR(Plan),0,Plan) -> 0 | AX54: 0 | AY54: 0 | AZ54: 0 | BA54: 0 | BB54: 0 | BC54: 0 | BD54: 0 | BE54: 0 | BF54: 0 | BG54: =IF(ISERROR(Plan),0,Plan) -> 0 | BH54: 0 | BI54: 0 | BJ54: 0 | BK54: 0 | BL54: 0 | BM54: 0 | BN54: 0 | BO54: 0 | BP54: 0
A55: Valkyrie | C55: =IF($B55<>"",VLOOKUP($B55,COSTS_Valkyrie[#All],2),"") ->  | D55: =IF($B55<>"",VLOOKUP($B55,COSTS_Valkyrie[#All],3)/24,"") ->  | I55: =IF(ISERROR(Plan),0,Plan) -> 0 | J55: 0 | K55: 0 | L55: 0 | M55: 0 | N55: 0 | O55: 0 | P55: 0 | Q55: 0 | R55: 0 | S55: =IF(ISERROR(Plan),0,Plan) -> 0 | T55: 0 | U55: 0 | V55: 0 | W55: 0 | X55: 0 | Y55: 0 | Z55: 0 | AA55: 0 | AB55: 0 | AC55: =IF(ISERROR(Plan),0,Plan) -> 0 | AD55: 0 | AE55: 0 | AF55: 0 | AG55: 0 | AH55: 0 | AI55: 0 | AJ55: 0 | AK55: 0 | AL55: 0 | AM55: =IF(ISERROR(Plan),0,Plan) -> 0 | AN55: 0 | AO55: 0 | AP55: 0 | AQ55: 0 | AR55: 0 | AS55: 0 | AT55: 0 | AU55: 0 | AV55: 0 | AW55: =IF(ISERROR(Plan),0,Plan) -> 0 | AX55: 0 | AY55: 0 | AZ55: 0 | BA55: 0 | BB55: 0 | BC55: 0 | BD55: 0 | BE55: 0 | BF55: 0 | BG55: =IF(ISERROR(Plan),0,Plan) -> 0 | BH55: 0 | BI55: 0 | BJ55: 0 | BK55: 0 | BL55: 0 | BM55: 0 | BN55: 0 | BO55: 0 | BP55: 0
A56: Golem | C56: =IF($B56<>"",VLOOKUP($B56,COSTS_Golem[#All],2),"") ->  | D56: =IF($B56<>"",VLOOKUP($B56,COSTS_Golem[#All],3)/24,"") ->  | G56: =IF($D56<>"",$D56,"") ->  | I56: 0 | J56: 0 | K56: 0 | L56: 0 | M56: 0 | N56: 0 | O56: 0 | P56: 0 | Q56: 0 | R56: 0 | S56: 0 | T56: 0 | U56: 0 | V56: 0 | W56: 0 | X56: 0 | Y56: 0 | Z56: 0 | AA56: 0 | AB56: 0 | AC56: 0 | AD56: 0 | AE56: 0 | AF56: 0 | AG56: 0 | AH56: 0 | AI56: 0 | AJ56: 0 | AK56: 0 | AL56: 0 | AM56: 0 | AN56: 0 | AO56: 0 | AP56: 0 | AQ56: 0 | AR56: 0 | AS56: 0 | AT56: 0 | AU56: 0 | AV56: 0 | AW56: 0 | AX56: 0 | AY56: 0 | AZ56: 0 | BA56: 0 | BB56: 0 | BC56: 0 | BD56: 0 | BE56: 0 | BF56: 0 | BG56: 0 | BH56: 0 | BI56: 0 | BJ56: 0 | BK56: 0 | BL56: 0 | BM56: 0 | BN56: 0 | BO56: 0 | BP56: 0
A57: Sorcière | C57: =IF($B57<>"",VLOOKUP($B57,COSTS_Witch[#All],2),"") ->  | D57: =IF($B57<>"",VLOOKUP($B57,COSTS_Witch[#All],3)/24,"") -> 
A58: Molosse de lave | C58: =IF($B58<>"",VLOOKUP($B58,COSTS_Lava_Hound[#All],2),"") ->  | D58: =IF($B58<>"",VLOOKUP($B58,COSTS_Lava_Hound[#All],3)/24,"") -> 
A59: Héros | I59: =IF(ISERROR(Plan),0,Plan) -> 0 | J59: 0 | K59: 0 | L59: 0 | M59: 0 | N59: 0 | O59: 0 | P59: 0 | Q59: 0 | R59: 0 | S59: 0 | T59: 0 | U59: 0 | V59: 0 | W59: 0 | X59: 0 | Y59: 0 | Z59: =IF(ISERROR(Plan),0,Plan) -> 0 | AA59: 0 | AB59: 0 | AC59: 0 | AD59: 0 | AE59: 0 | AF59: 0 | AG59: 0 | AH59: 0 | AI59: 0 | AJ59: 0 | AK59: 0 | AL59: 0 | AM59: 0 | AN59: 0 | AO59: 0 | AP59: 0 | AQ59: 0 | AR59: 0 | AS59: 0 | AT59: 0 | AU59: 0 | AV59: 0 | AW59: 0 | AX59: 0 | AY59: 0 | AZ59: 0 | BA59: 0 | BB59: 0 | BC59: 0 | BD59: 0 | BE59: 0 | BF59: 0 | BG59: 0 | BH59: 0 | BI59: 0 | BJ59: 0 | BK59: 0 | BL59: 0 | BM59: 0 | BN59: 0 | BO59: 0 | BP59: 0
A60: Roi des Barbares | C60: =IF($B60<>"",VLOOKUP($B60,COSTS_Barbarian_King[#All],2),"") ->  | D60: =IF($B60<>"",VLOOKUP($B60,COSTS_Barbarian_King[#All],3)/24,"") ->  | I60: =IF(ISERROR(Plan),0,Plan) -> 0 | J60: 0 | K60: 0 | L60: 0 | M60: 0 | N60: 0 | O60: 0 | P60: 0 | Q60: 0 | R60: 0 | S60: 0 | T60: 0 | U60: 0 | V60: 0 | W60: 0 | X60: 0 | Y60: 0 | Z60: 0 | AA60: 0 | AB60: 0 | AC60: 0 | AD60: 0 | AE60: 0 | AF60: 0 | AG60: 0 | AH60: 0 | AI60: 0 | AJ60: 0 | AK60: 0 | AL60: 0 | AM60: 0 | AN60: 0 | AO60: 0 | AP60: 0 | AQ60: 0 | AR60: 0 | AS60: 0 | AT60: 0 | AU60: 0 | AV60: 0 | AW60: 0 | AX60: 0 | AY60: 0 | AZ60: 0 | BA60: 0 | BB60: 0 | BC60: 0 | BD60: 0 | BE60: 0 | BF60: 0 | BG60: 0 | BH60: 0 | BI60: 0 | BJ60: 0 | BK60: 0 | BL60: 0 | BM60: 0 | BN60: 0 | BO60: 0 | BP60: 0
A61: Reine des Archers | C61: =IF($B61<>"",VLOOKUP($B61,COSTS_Archer_Queen[#All],2),"") ->  | D61: =IF($B61<>"",VLOOKUP($B61,COSTS_Archer_Queen[#All],3)/24,"") ->  | I61: =IF(ISERROR(Plan),0,Plan) -> 0 | J61: 0 | K61: =IF(ISERROR(Plan),0,Plan) -> 0 | L61: 0 | M61: 0 | N61: 0 | O61: 0 | P61: 0 | Q61: 0 | R61: 0 | S61: 0 | T61: 0 | U61: =IF(ISERROR(Plan),0,Plan) -> 0 | V61: 0 | W61: 0 | X61: 0 | Y61: 0 | Z61: 0 | AA61: 0 | AB61: 0 | AC61: 0 | AD61: 0 | AE61: =IF(ISERROR(Plan),0,Plan) -> 0 | AF61: 0 | AG61: 0 | AH61: 0 | AI61: 0 | AJ61: 0 | AK61: 0 | AL61: 0 | AM61: 0 | AN61: 0 | AO61: =IF(ISERROR(Plan),0,Plan) -> 0 | AP61: 0 | AQ61: 0 | AR61: 0 | AS61: 0 | AT61: 0 | AU61: 0 | AV61: 0 | AW61: 0 | AX61: 0 | AY61: =IF(ISERROR(Plan),0,Plan) -> 0 | AZ61: 0 | BA61: 0 | BB61: 0 | BC61: 0 | BD61: 0 | BE61: 0 | BF61: 0 | BG61: 0 | BH61: 0 | BI61: =IF(ISERROR(Plan),0,Plan) -> 0 | BJ61: 0 | BK61: 0 | BL61: 0 | BM61: 0 | BN61: 0 | BO61: 0 | BP61: 0
A62: Pièges Défensifs | I62: =IF(ISERROR(Plan),0,Plan) -> 0 | J62: 0 | K62: 0 | L62: 0 | M62: 0 | N62: 0 | O62: 0 | P62: 0 | Q62: 0 | R62: 0 | S62: 0 | T62: 0 | U62: 0 | V62: 0 | W62: 0 | X62: 0 | Y62: 0 | Z62: 0 | AA62: 0 | AB62: 0 | AC62: 0 | AD62: 0 | AE62: 0 | AF62: 0 | AG62: 0 | AH62: 0 | AI62: 0 | AJ62: 0 | AK62: 0 | AL62: 0 | AM62: 0 | AN62: 0 | AO62: 0 | AP62: 0 | AQ62: 0 | AR62: 0 | AS62: 0 | AT62: 0 | AU62: 0 | AV62: 0 | AW62: 0 | AX62: 0 | AY62: 0 | AZ62: 0 | BA62: 0 | BB62: 0 | BC62: 0 | BD62: 0 | BE62: 0 | BF62: 0 | BG62: 0 | BH62: 0 | BI62: 0 | BJ62: 0 | BK62: 0 | BL62: 0 | BM62: 0 | BN62: 0 | BO62: 0 | BP62: 0
A63: Bombe | C63: =IF($B63<>"",VLOOKUP($B63,COSTS_Bomb[#All],2),"") ->  | D63: =IF($B63<>"",VLOOKUP($B63,COSTS_Bomb[#All],3)/24,"") ->  | I63: 0 | J63: 0 | K63: 0 | L63: 0 | M63: 0 | N63: 0 | O63: 0 | P63: 0 | Q63: 0 | R63: 0 | S63: 0 | T63: 0 | U63: 0 | V63: 0 | W63: 0 | X63: 0 | Y63: 0 | Z63: 0 | AA63: 0 | AB63: 0 | AC63: 0 | AD63: 0 | AE63: 0 | AF63: 0 | AG63: 0 | AH63: 0 | AI63: 0 | AJ63: 0 | AK63: 0 | AL63: 0 | AM63: 0 | AN63: 0 | AO63: 0 | AP63: 0 | AQ63: 0 | AR63: 0 | AS63: 0 | AT63: 0 | AU63: 0 | AV63: 0 | AW63: 0 | AX63: 0 | AY63: 0 | AZ63: 0 | BA63: 0 | BB63: 0 | BC63: 0 | BD63: 0 | BE63: 0 | BF63: 0 | BG63: 0 | BH63: 0 | BI63: 0 | BJ63: 0 | BK63: 0 | BL63: 0 | BM63: 0 | BN63: 0 | BO63: 0 | BP63: 0
A64: Piège à ressort | C64: =IF($B64<>"",VLOOKUP($B64,COSTS_Spring_Trap[#All],2),"") ->  | D64: =IF($B64<>"",VLOOKUP($B64,COSTS_Spring_Trap[#All],3)/24,"") ->  | G64: =IF($D64<>"",$D64,"") ->  | I64: 0 | J64: 0 | K64: =IF(ISERROR(Plan),0,Plan) -> 0 | L64: 0 | M64: 0 | N64: 0 | O64: 0 | P64: 0 | Q64: 0 | R64: 0 | S64: 0 | T64: 0 | U64: 0 | V64: 0 | W64: 0 | X64: 0 | Y64: 0 | Z64: 0 | AA64: 0 | AB64: 0 | AC64: 0 | AD64: 0 | AE64: 0 | AF64: 0 | AG64: 0 | AH64: 0 | AI64: 0 | AJ64: 0 | AK64: 0 | AL64: 0 | AM64: 0 | AN64: 0 | AO64: 0 | AP64: 0 | AQ64: =IF(ISERROR(Plan),0,Plan) -> 0 | AR64: 0 | AS64: 0 | AT64: 0 | AU64: 0 | AV64: 0 | AW64: 0 | AX64: 0 | AY64: 0 | AZ64: 0 | BA64: 0 | BB64: 0 | BC64: 0 | BD64: 0 | BE64: 0 | BF64: 0 | BG64: 0 | BH64: 0 | BI64: 0 | BJ64: =IF(ISERROR(Plan),0,Plan) -> 0 | BK64: 0 | BL64: 0 | BM64: 0 | BN64: 0 | BO64: 0 | BP64: 0
A65: Bombe géante | C65: =IF($B65<>"",VLOOKUP($B65,COSTS_Giant_Bomb[#All],2),"") ->  | D65: =IF($B65<>"",VLOOKUP($B65,COSTS_Giant_Bomb[#All],3)/24,"") ->  | I65: 0 | J65: 0 | K65: =IF(ISERROR(Plan),0,Plan) -> 0 | L65: 0 | M65: 0 | N65: 0 | O65: 0 | P65: 0 | Q65: 0 | R65: 0 | S65: 0 | T65: 0 | U65: 0 | V65: 0 | W65: 0 | X65: 0 | Y65: =IF(ISERROR(Plan),0,Plan) -> 0 | Z65: 0 | AA65: 0 | AB65: 0 | AC65: 0 | AD65: 0 | AE65: 0 | AF65: 0 | AG65: 0 | AH65: 0 | AI65: 0 | AJ65: 0 | AK65: 0 | AL65: 0 | AM65: 0 | AN65: 0 | AO65: =IF(ISERROR(Plan),0,Plan) -> 0 | AP65: 0 | AQ65: 0 | AR65: 0 | AS65: 0 | AT65: 0 | AU65: 0 | AV65: 0 | AW65: 0 | AX65: 0 | AY65: 0 | AZ65: 0 | BA65: 0 | BB65: 0 | BC65: 0 | BD65: 0 | BE65: =IF(ISERROR(Plan),0,Plan) -> 0 | BF65: 0 | BG65: 0 | BH65: 0 | BI65: 0 | BJ65: 0 | BK65: 0 | BL65: 0 | BM65: 0 | BN65: 0 | BO65: 0 | BP65: 0
A66: Bombe aérienne | C66: =IF($B66<>"",VLOOKUP($B66,COST_Air_Bomb[#All],2),"") ->  | D66: =IF($B66<>"",VLOOKUP($B66,COST_Air_Bomb[#All],3)/24,"") ->  | I66: 0 | J66: 0 | K66: 0 | L66: 0 | M66: 0 | N66: 0 | O66: 0 | P66: 0 | Q66: 0 | R66: 0 | S66: 0 | T66: 0 | U66: 0 | V66: 0 | W66: 0 | X66: 0 | Y66: 0 | Z66: 0 | AA66: 0 | AB66: 0 | AC66: 0 | AD66: 0 | AE66: 0 | AF66: 0 | AG66: 0 | AH66: 0 | AI66: 0 | AJ66: 0 | AK66: 0 | AL66: 0 | AM66: 0 | AN66: 0 | AO66: 0 | AP66: 0 | AQ66: 0 | AR66: 0 | AS66: 0 | AT66: 0 | AU66: 0 | AV66: 0 | AW66: 0 | AX66: 0 | AY66: 0 | AZ66: 0 | BA66: 0 | BB66: 0 | BC66: 0 | BD66: 0 | BE66: 0 | BF66: 0 | BG66: 0 | BH66: 0 | BI66: 0 | BJ66: 0 | BK66: 0 | BL66: 0 | BM66: 0 | BN66: 0 | BO66: 0 | BP66: 0
A67: Tête chercheuse | C67: =IF($B67<>"",VLOOKUP($B67,COST_Seeking_Air_Mine[#All],2),"") ->  | D67: =IF($B67<>"",VLOOKUP($B67,COST_Seeking_Air_Mine[#All],3)/24,"") ->  | I67: 0 | J67: 0 | K67: 0 | L67: 0 | M67: 0 | N67: 0 | O67: 0 | P67: 0 | Q67: 0 | R67: 0 | S67: 0 | T67: 0 | U67: 0 | V67: 0 | W67: 0 | X67: 0 | Y67: 0 | Z67: 0 | AA67: 0 | AB67: 0 | AC67: 0 | AD67: 0 | AE67: 0 | AF67: 0 | AG67: 0 | AH67: 0 | AI67: 0 | AJ67: 0 | AK67: 0 | AL67: 0 | AM67: 0 | AN67: 0 | AO67: 0 | AP67: 0 | AQ67: 0 | AR67: 0 | AS67: 0 | AT67: 0 | AU67: 0 | AV67: 0 | AW67: 0 | AX67: 0 | AY67: 0 | AZ67: 0 | BA67: 0 | BB67: 0 | BC67: 0 | BD67: 0 | BE67: 0 | BF67: 0 | BG67: 0 | BH67: 0 | BI67: 0 | BJ67: 0 | BK67: 0 | BL67: 0 | BM67: 0 | BN67: 0 | BO67: 0 | BP67: 0
A68: Piège squelettique | C68: =IF($B68<>"",VLOOKUP($B68,COST_Skeleton_Trap[#All],2),"") ->  | D68: =IF($B68<>"",VLOOKUP($B68,COST_Skeleton_Trap[#All],3)/24,"") ->  | I68: =IF(ISERROR(Plan),0,Plan) -> 0 | J68: 0 | K68: 0 | L68: 0 | M68: 0 | N68: 0 | O68: 0 | P68: 0 | Q68: 0 | R68: 0 | S68: 0 | T68: 0 | U68: 0 | V68: 0 | W68: 0 | X68: 0 | Y68: 0 | Z68: 0 | AA68: 0 | AB68: 0 | AC68: 0 | AD68: 0 | AE68: 0 | AF68: 0 | AG68: 0 | AH68: 0 | AI68: 0 | AJ68: 0 | AK68: 0 | AL68: 0 | AM68: 0 | AN68: 0 | AO68: 0 | AP68: 0 | AQ68: 0 | AR68: 0 | AS68: 0 | AT68: 0 | AU68: 0 | AV68: 0 | AW68: 0 | AX68: 0 | AY68: 0 | AZ68: 0 | BA68: 0 | BB68: 0 | BC68: 0 | BD68: 0 | BE68: 0 | BF68: 0 | BG68: 0 | BH68: 0 | BI68: 0 | BJ68: 0 | BK68: 0 | BL68: 0 | BM68: 0 | BN68: 0 | BO68: 0 | BP68: 0

Sheet À Faire - Récapitulatif
A1: LVL HdV | B1: Affichage Temps | D1: Or Total : | G1: Élixir Total : | I1: Élixir Noir Total : | L1: Temps Total : | N1: ='Paramètres - Admin'!$D$7 & IF($B$2='Paramètres - Admin'!$B$2,TEXT((E13+K12+Q16+W9+AC13)*60*60,"# 0")&" " & 'Paramètres - Admin'!$B$2,IF($B$2='Paramètres - Admin'!$B$3,TEXT((E13+K12+Q16+W9+AC13)*60,"# 0")&" " & 'Paramètres - Admin'!$B$3,IF($B$2='Paramètres - Admin'!$B$4,TEXT((E13+K12+Q16+W9+AC13),"# 0,00")&" " & 'Paramètres - Admin'!$B$4,IF($B$2='Paramètres - Admin'!$B$5,TEXT((E13+K12+Q16+W9+AC13)/24,"# 0,00")&" " & 'Paramètres - Admin'!$B$5,IF($B$2='Paramètres - Admin'!$B$6,TEXT(((E13+K12+Q16+W9+AC13)/24)/30,"# 0,00")&" " & 'Paramètres - Admin'!$B$6,IF((E13+K12+Q16+W9+AC13)/24>=1,INT((E13+K12+Q16+W9+AC13)/24)&" " & 'Paramètres - Admin'!$D$4 & " " & HOUR((E13+K12+Q16+W9+AC13)/24-INT((E13+K12+Q16+W9+AC13)/24))&" " & 'Paramètres - Admin'!$D$3 & " " & MINUTE((E13+K12+Q16+W9+AC13)/24-INT((E13+K12+Q16+W9+AC13)/24))&" " & 'Paramètres - Admin'!$D$2,HOUR((E13+K12+Q16+W9+AC13)/24-INT((E13+K12+Q16+W9+AC13)/24))&" " & 'Paramètres - Admin'!$D$3 & " " & MINUTE((E13+K12+Q16+W9+AC13)/24-INT((E13+K12+Q16+W9+AC13)/24))&" " & 'Paramètres - Admin'!$D$2)))))) -> Bâtiments : 992 jours 6 hrs 0 mins | S1: => Temps par Ouvrier : | V1: Améliorations de Troupes/Sorts :
A2: =Paramètres!$BE$2 -> 10 | B2: j/h/m | D2: =TEXT(D8+D11+P16+V9+AB13,"# ##0") -> 2 562 492 000 | G2: =TEXT(D7+D9+D10+D12+J12+D26+J31,"# ##0") -> 163 486 000 | I2: =TEXT(P27+V23,"# ##0") -> 8 397 500 | L2: =IF($B$2='Paramètres - Admin'!$B$2,TEXT((E13+K12+Q16+W9+E26+K31+Q27+AC13+W23)*60*60,"# 0")&" " & 'Paramètres - Admin'!$B$2,IF($B$2='Paramètres - Admin'!$B$3,TEXT((E13+K12+Q16+W9+E26+K31+Q27+AC13+W23)*60,"# 0")&" " & 'Paramètres - Admin'!$B$3,IF($B$2='Paramètres - Admin'!$B$4,TEXT((E13+K12+Q16+W9+E26+K31+Q27+AC13+W23),"# 0,00")&" " & 'Paramètres - Admin'!$B$4,IF($B$2='Paramètres - Admin'!$B$5,TEXT((E13+K12+Q16+W9+E26+K31+Q27+AC13+W23)/24,"# 0,00")&" " & 'Paramètres - Admin'!$B$5,IF($B$2='Paramètres - Admin'!$B$6,TEXT(((E13+K12+Q16+W9+E26+K31+Q27+AC13+W23)/24)/30,"# 0,00")&" " & 'Paramètres - Admin'!$B$6,IF((E13+K12+Q16+W9+E26+K31+Q27+AC13+W23)/24>=1,INT((E13+K12+Q16+W9+E26+K31+Q27+AC13+W23)/24)&" " & 'Paramètres - Admin'!$D$4 & " " & HOUR((E13+K12+Q16+W9+E26+K31+Q27+AC13+W23)/24-INT((E13+K12+Q16+W9+E26+K31+Q27+AC13+W23)/24))&" " & 'Paramètres - Admin'!$D$3 & " " & MINUTE((E13+K12+Q16+W9+E26+K31+Q27+AC13+W23)/24-INT((E13+K12+Q16+W9+E26+K31+Q27+AC13+W23)/24))&" " & 'Paramètres - Admin'!$D$2,HOUR((E13+K12+Q16+W9+E26+K31+Q27+W23)/24-INT((E13+K12+Q16+W9+E26+K31+Q27+AC13+W23)/24))&" " & 'Paramètres - Admin'!$D$3 & " " & MINUTE((E13+K12+Q16+W9+E26+K31+Q27+AC13+W23)/24-INT((E13+K12+Q16+W9+E26+K31+Q27+AC13+W23)/24))&" " & 'Paramètres - Admin'!$D$2)))))) -> 1763 jours 18 hrs 0 mins | N2: ='Paramètres - Admin'!$D$6 & IF($B$2='Paramètres - Admin'!$B$2,TEXT(W23*60*60,"# 0")&" " & 'Paramètres - Admin'!$B$2,IF($B$2='Paramètres - Admin'!$B$3,TEXT(W23*60,"# 0")&" " & 'Paramètres - Admin'!$B$3,IF($B$2='Paramètres - Admin'!$B$4,TEXT(W23,"# 0,00")&" " & 'Paramètres - Admin'!$B$4,IF($B$2='Paramètres - Admin'!$B$5,TEXT(W23/24,"# 0,00")&" " & 'Paramètres - Admin'!$B$5,IF($B$2='Paramètres - Admin'!$B$6,TEXT((W23/24)/30,"# 0,00")&" " & 'Paramètres - Admin'!$B$6,IF(W23/24>=1,INT(W23/24)&" " & 'Paramètres - Admin'!$D$4 & " " & HOUR(W23/24-INT(W23/24))&" " & 'Paramètres - Admin'!$D$3 & " " & MINUTE(W23/24-INT(W23/24))&" " & 'Paramètres - Admin'!$D$2,HOUR(W23/24-INT(W23/24))&" " & 'Paramètres - Admin'!$D$3 & " " & MINUTE(W23/24-INT(W23/24))&" " & 'Paramètres - Admin'!$D$2)))))) -> Héros : 442 jours 12 hrs 0 mins | S2: =IF($B$2='Paramètres - Admin'!$B$2,TEXT((E13+K12+Q16+W9+AC13+W23)/Paramètres!$BF$2*60*60,"# 0")&" " & 'Paramètres - Admin'!$B$2,IF($B$2='Paramètres - Admin'!$B$3,TEXT((E13+K12+Q16+W9+AC13+W23)/Paramètres!$BF$2*60,"# 0")&" " & 'Paramètres - Admin'!$B$3,IF($B$2='Paramètres - Admin'!$B$4,TEXT((E13+K12+Q16+W9+AC13+W23)/Paramètres!$BF$2,"# 0,00")&" " & 'Paramètres - Admin'!$B$4,IF($B$2='Paramètres - Admin'!$B$5,TEXT((E13+K12+Q16+W9+AC13+W23)/Paramètres!$BF$2/24,"# 0,00")&" " & 'Paramètres - Admin'!$B$5,IF($B$2='Paramètres - Admin'!$B$6,TEXT(((E13+K12+Q16+W9+AC13+W23)/Paramètres!$BF$2/24)/30,"# 0,00")&" " & 'Paramètres - Admin'!$B$6,IF((E13+K12+Q16+W9+AC13+W23)/Paramètres!$BF$2/24>=1,INT((E13+K12+Q16+W9+AC13+W23)/Paramètres!$BF$2/24)&" " & 'Paramètres - Admin'!$D$4 & " " & HOUR((E13+K12+Q16+W9+AC13+W23)/Paramètres!$BF$2/24-INT((E13+K12+Q16+W9+AC13+W23)/Paramètres!$BF$2/24))&" " & 'Paramètres - Admin'!$D$3 & " " & MINUTE((E13+K12+Q16+W9+AC13+W23)/Paramètres!$BF$2/24-INT((E13+K12+Q16+W9+AC13+W23)/Paramètres!$BF$2/24))&" " & 'Paramètres - Admin'!$D$2,HOUR((E13+K12+Q16+W9+AC13+W23)/Paramètres!$BF$2/24-INT((E13+K12+Q16+W9+AC13+W23)/Paramètres!$BF$2/24))&" " & 'Paramètres - Admin'!$D$3 & " " & MINUTE((E13+K12+Q16+W9+AC13+W23)/Paramètres!$BF$2/24-INT((E13+K12+Q16+W9+AC13+W23)/Paramètres!$BF$2/24))&" " & 'Paramètres - Admin'!$D$2)))))) -> 286 jours 22 hrs 48 mins | V2: =IF($B$2='Paramètres - Admin'!$B$2,TEXT((E26+K31+Q27)*60*60,"# 0")&" " & 'Paramètres - Admin'!$B$2,IF($B$2='Paramètres - Admin'!$B$3,TEXT((E26+K31+Q27)*60,"# 0")&" " & 'Paramètres - Admin'!$B$3,IF($B$2='Paramètres - Admin'!$B$4,TEXT((E26+K31+Q27),"# 0,00")&" " & 'Paramètres - Admin'!$B$4,IF($B$2='Paramètres - Admin'!$B$5,TEXT((E26+K31+Q27)/24,"# 0,00")&" " & 'Paramètres - Admin'!$B$5,IF($B$2='Paramètres - Admin'!$B$6,TEXT(((E26+K31+Q27)/24)/30,"# 0,00")&" " & 'Paramètres - Admin'!$B$6,IF((E26+K31+Q27)/24>=1,INT((E26+K31+Q27)/24)&" " & 'Paramètres - Admin'!$D$4 & " " & HOUR((E26+K31+Q27)/24-INT((E26+K31+Q27)/24))&" " & 'Paramètres - Admin'!$D$3 & " " & MINUTE((E26+K31+Q27)/24-INT((E26+K31+Q27)/24))&" " & 'Paramètres - Admin'!$D$2,HOUR((E26+K31+Q27)/24-INT((E26+K31+Q27)/24))&" " & 'Paramètres - Admin'!$D$3 & " " & MINUTE((E26+K31+Q27)/24-INT((E26+K31+Q27)/24))&" " & 'Paramètres - Admin'!$D$2)))))) -> 329 jours 0 hrs 0 mins
A3: Tableaux récapitulatifs | AE3: Or | AF3: =D8+D11+P16+V9+AB13 -> 2562492000
AE4: Élixir | AF4: =D7+D9+D10+D12+J12+D26+J31 -> 163486000
A5: Bâtiments de Ressources | G5: Bâtiments d'Armée | M5: Bâtiments Défensifs | S5: Bâtiments Autres | Y5: Pièges Défensifs | AE5: Élixir Noir | AF5: =P27+V23 -> 8397500
A6: Bâtiment | B6: À Faire | C6: Up. | D6: Coût Total | E6: Temps Total | F6: Temps Total | G6: Bâtiment | H6: À Faire | I6: Up. | J6: Coût Total | K6: Temps Total | L6: Temps Total | M6: Bâtiment | N6: À Faire | O6: Up. | P6: Coût Total | Q6: Temps Total | R6: Temps Total | S6: Bâtiment | T6: À Faire | U6: Up. | V6: Coût Total | W6: Temps Total | X6: Temps Total | Y6: Bâtiment | Z6: À Faire | AA6: Up. | AB6: Coût Total | AC6: Temps Total | AD6: Temps Total
A7: Mine d'Or | B7: ='À Faire - Détails'!J6 -> 0 | C7: ='À Faire - Détails'!K6 -> 1 | D7: ='À Faire - Détails'!J20 -> 336000 | E7: ='À Faire - Détails'!K20 -> 120 | F7: =IF($B$2='Paramètres - Admin'!$B$2,TEXT(E7*60*60,"# 0")&" " & 'Paramètres - Admin'!$B$2,IF($B$2='Paramètres - Admin'!$B$3,TEXT(E7*60,"# 0")&" " & 'Paramètres - Admin'!$B$3,IF($B$2='Paramètres - Admin'!$B$4,TEXT(E7,"# 0,00")&" " & 'Paramètres - Admin'!$B$4,IF($B$2='Paramètres - Admin'!$B$5,TEXT(E7/24,"# 0,00")&" " & 'Paramètres - Admin'!$B$5,IF($B$2='Paramètres - Admin'!$B$6,TEXT((E7/24)/30,"# 0,00")&" " & 'Paramètres - Admin'!$B$6,IF(E7/24>=1,INT(E7/24)&" " & 'Paramètres - Admin'!$D$4 & " " & HOUR(E7/24-INT(E7/24))&" " & 'Paramètres - Admin'!$D$3 & " " & MINUTE(E7/24-INT(E7/24))&" " & 'Paramètres - Admin'!$D$2,HOUR(E7/24-INT(E7/24))&" " & 'Paramètres - Admin'!$D$3 & " " & MINUTE(E7/24-INT(E7/24))&" " & 'Paramètres - Admin'!$D$2)))))) -> 5 jours 0 hrs 0 mins | G7: Caserne | H7: ='À Faire - Détails'!J61 -> 0 | I7: ='À Faire - Détails'!K61 -> 1 | J7: ='À Faire - Détails'!J73 -> 2000000 | K7: ='À Faire - Détails'!K73 -> 144 | L7: =IF($B$2='Paramètres - Admin'!$B$2,TEXT(K7*60*60,"# 0")&" " & 'Paramètres - Admin'!$B$2,IF($B$2='Paramètres - Admin'!$B$3,TEXT(K7*60,"# 0")&" " & 'Paramètres - Admin'!$B$3,IF($B$2='Paramètres - Admin'!$B$4,TEXT(K7,"# 0,00")&" " & 'Paramètres - Admin'!$B$4,IF($B$2='Paramètres - Admin'!$B$5,TEXT(K7/24,"# 0,00")&" " & 'Paramètres - Admin'!$B$5,IF($B$2='Paramètres - Admin'!$B$6,TEXT((K7/24)/30,"# 0,00")&" " & 'Paramètres - Admin'!$B$6,IF(K7/24>=1,INT(K7/24)&" " & 'Paramètres - Admin'!$D$4 & " " & HOUR(K7/24-INT(K7/24))&" " & 'Paramètres - Admin'!$D$3 & " " & MINUTE(K7/24-INT(K7/24))&" " & 'Paramètres - Admin'!$D$2,HOUR(K7/24-INT(K7/24))&" " & 'Paramètres - Admin'!$D$3 & " " & MINUTE(K7/24-INT(K7/24))&" " & 'Paramètres - Admin'!$D$2)))))) -> 6 jours 0 hrs 0 mins | M7: Rempart | N7: ='À Faire - Détails'!J101 -> 0 | O7: ='À Faire - Détails'!K101 -> 748 | P7: ='À Faire - Détails'!J114 -> 1998000000 | Q7: ='À Faire - Détails'!K114 -> 0 | R7: =IF($B$2='Paramètres - Admin'!$B$2,TEXT(Q7*60*60,"# 0")&" " & 'Paramètres - Admin'!$B$2,IF($B$2='Paramètres - Admin'!$B$3,TEXT(Q7*60,"# 0")&" " & 'Paramètres - Admin'!$B$3,IF($B$2='Paramètres - Admin'!$B$4,TEXT(Q7,"# 0,00")&" " & 'Paramètres - Admin'!$B$4,IF($B$2='Paramètres - Admin'!$B$5,TEXT(Q7/24,"# 0,00")&" " & 'Paramètres - Admin'!$B$5,IF($B$2='Paramètres - Admin'!$B$6,TEXT((Q7/24)/30,"# 0,00")&" " & 'Paramètres - Admin'!$B$6,IF(Q7/24>=1,INT(Q7/24)&" " & 'Paramètres - Admin'!$D$4 & " " & HOUR(Q7/24-INT(Q7/24))&" " & 'Paramètres - Admin'!$D$3 & " " & MINUTE(Q7/24-INT(Q7/24))&" " & 'Paramètres - Admin'!$D$2,HOUR(Q7/24-INT(Q7/24))&" " & 'Paramètres - Admin'!$D$3 & " " & MINUTE(Q7/24-INT(Q7/24))&" " & 'Paramètres - Admin'!$D$2)))))) -> 0 hrs 0 mins | S7: Château de Clan | T7: ='À Faire - Détails'!J165 -> 0 | U7: ='À Faire - Détails'!K165 -> 2 | V7: ='À Faire - Détails'!J173 -> 12000000 | W7: ='À Faire - Détails'!K173 -> 504 | X7: =IF($B$2='Paramètres - Admin'!$B$2,TEXT(W7*60*60,"# 0")&" " & 'Paramètres - Admin'!$B$2,IF($B$2='Paramètres - Admin'!$B$3,TEXT(W7*60,"# 0")&" " & 'Paramètres - Admin'!$B$3,IF($B$2='Paramètres - Admin'!$B$4,TEXT(W7,"# 0,00")&" " & 'Paramètres - Admin'!$B$4,IF($B$2='Paramètres - Admin'!$B$5,TEXT(W7/24,"# 0,00")&" " & 'Paramètres - Admin'!$B$5,IF($B$2='Paramètres - Admin'!$B$6,TEXT((W7/24)/30,"# 0,00")&" " & 'Paramètres - Admin'!$B$6,IF(W7/24>=1,INT(W7/24)&" " & 'Paramètres - Admin'!$D$4 & " " & HOUR(W7/24-INT(W7/24))&" " & 'Paramètres - Admin'!$D$3 & " " & MINUTE(W7/24-INT(W7/24))&" " & 'Paramètres - Admin'!$D$2,HOUR(W7/24-INT(W7/24))&" " & 'Paramètres - Admin'!$D$3 & " " & MINUTE(W7/24-INT(W7/24))&" " & 'Paramètres - Admin'!$D$2)))))) -> 21 jours 0 hrs 0 mins | Y7: Bombe | Z7: ='À Faire - Détails'!J183 -> 0 | AA7: ='À Faire - Détails'!K183 -> 12 | AB7: ='À Faire - Détails'!J191 -> 15000000 | AC7: ='À Faire - Détails'!K191 -> 432 | AD7: =IF($B$2='Paramètres - Admin'!$B$2,TEXT(AC7*60*60,"# 0")&" " & 'Paramètres - Admin'!$B$2,IF($B$2='Paramètres - Admin'!$B$3,TEXT(AC7*60,"# 0")&" " & 'Paramètres - Admin'!$B$3,IF($B$2='Paramètres - Admin'!$B$4,TEXT(AC7,"# 0,00")&" " & 'Paramètres - Admin'!$B$4,IF($B$2='Paramètres - Admin'!$B$5,TEXT(AC7/24,"# 0,00")&" " & 'Paramètres - Admin'!$B$5,IF($B$2='Paramètres - Admin'!$B$6,TEXT((AC7/24)/30,"# 0,00")&" " & 'Paramètres - Admin'!$B$6,IF(AC7/24>=1,INT(AC7/24)&" " & 'Paramètres - Admin'!$D$4 & " " & HOUR(AC7/24-INT(AC7/24))&" " & 'Paramètres - Admin'!$D$3 & " " & MINUTE(AC7/24-INT(AC7/24))&" " & 'Paramètres - Admin'!$D$2,HOUR(AC7/24-INT(AC7/24))&" " & 'Paramètres - Admin'!$D$3 & " " & MINUTE(AC7/24-INT(AC7/24))&" " & 'Paramètres - Admin'!$D$2)))))) -> 18 jours 0 hrs 0 mins
A8: Extracteur d'Élixir | B8: ='À Faire - Détails'!U6 -> 0 | C8: ='À Faire - Détails'!V6 -> 7 | D8: ='À Faire - Détails'!U20 -> 2352000 | E8: ='À Faire - Détails'!V20 -> 840 | F8: =IF($B$2='Paramètres - Admin'!$B$2,TEXT(E8*60*60,"# 0")&" " & 'Paramètres - Admin'!$B$2,IF($B$2='Paramètres - Admin'!$B$3,TEXT(E8*60,"# 0")&" " & 'Paramètres - Admin'!$B$3,IF($B$2='Paramètres - Admin'!$B$4,TEXT(E8,"# 0,00")&" " & 'Paramètres - Admin'!$B$4,IF($B$2='Paramètres - Admin'!$B$5,TEXT(E8/24,"# 0,00")&" " & 'Paramètres - Admin'!$B$5,IF($B$2='Paramètres - Admin'!$B$6,TEXT((E8/24)/30,"# 0,00")&" " & 'Paramètres - Admin'!$B$6,IF(E8/24>=1,INT(E8/24)&" " & 'Paramètres - Admin'!$D$4 & " " & HOUR(E8/24-INT(E8/24))&" " & 'Paramètres - Admin'!$D$3 & " " & MINUTE(E8/24-INT(E8/24))&" " & 'Paramètres - Admin'!$D$2,HOUR(E8/24-INT(E8/24))&" " & 'Paramètres - Admin'!$D$3 & " " & MINUTE(E8/24-INT(E8/24))&" " & 'Paramètres - Admin'!$D$2)))))) -> 35 jours 0 hrs 0 mins | G8: Caserne Noire | H8: ='À Faire - Détails'!J75 -> 0 | I8: ='À Faire - Détails'!K75 -> 3 | J8: ='À Faire - Détails'!J83 -> 8500000 | K8: ='À Faire - Détails'!K83 -> 576 | L8: =IF($B$2='Paramètres - Admin'!$B$2,TEXT(K8*60*60,"# 0")&" " & 'Paramètres - Admin'!$B$2,IF($B$2='Paramètres - Admin'!$B$3,TEXT(K8*60,"# 0")&" " & 'Paramètres - Admin'!$B$3,IF($B$2='Paramètres - Admin'!$B$4,TEXT(K8,"# 0,00")&" " & 'Paramètres - Admin'!$B$4,IF($B$2='Paramètres - Admin'!$B$5,TEXT(K8/24,"# 0,00")&" " & 'Paramètres - Admin'!$B$5,IF($B$2='Paramètres - Admin'!$B$6,TEXT((K8/24)/30,"# 0,00")&" " & 'Paramètres - Admin'!$B$6,IF(K8/24>=1,INT(K8/24)&" " & 'Paramètres - Admin'!$D$4 & " " & HOUR(K8/24-INT(K8/24))&" " & 'Paramètres - Admin'!$D$3 & " " & MINUTE(K8/24-INT(K8/24))&" " & 'Paramètres - Admin'!$D$2,HOUR(K8/24-INT(K8/24))&" " & 'Paramètres - Admin'!$D$3 & " " & MINUTE(K8/24-INT(K8/24))&" " & 'Paramètres - Admin'!$D$2)))))) -> 24 jours 0 hrs 0 mins | M8: Canon | N8: ='À Faire - Détails'!J116 -> 0 | O8: ='À Faire - Détails'!K116 -> 19 | P8: ='À Faire - Détails'!J131 -> 78400000 | Q8: ='À Faire - Détails'!K131 -> 2400 | R8: =IF($B$2='Paramètres - Admin'!$B$2,TEXT(Q8*60*60,"# 0")&" " & 'Paramètres - Admin'!$B$2,IF($B$2='Paramètres - Admin'!$B$3,TEXT(Q8*60,"# 0")&" " & 'Paramètres - Admin'!$B$3,IF($B$2='Paramètres - Admin'!$B$4,TEXT(Q8,"# 0,00")&" " & 'Paramètres - Admin'!$B$4,IF($B$2='Paramètres - Admin'!$B$5,TEXT(Q8/24,"# 0,00")&" " & 'Paramètres - Admin'!$B$5,IF($B$2='Paramètres - Admin'!$B$6,TEXT((Q8/24)/30,"# 0,00")&" " & 'Paramètres - Admin'!$B$6,IF(Q8/24>=1,INT(Q8/24)&" " & 'Paramètres - Admin'!$D$4 & " " & HOUR(Q8/24-INT(Q8/24))&" " & 'Paramètres - Admin'!$D$3 & " " & MINUTE(Q8/24-INT(Q8/24))&" " & 'Paramètres - Admin'!$D$2,HOUR(Q8/24-INT(Q8/24))&" " & 'Paramètres - Admin'!$D$3 & " " & MINUTE(Q8/24-INT(Q8/24))&" " & 'Paramètres - Admin'!$D$2)))))) -> 100 jours 0 hrs 0 mins | S8: Hôtel de Ville | T8: ='À Faire - Détails'!U165 -> 0 | U8: ='À Faire - Détails'!V165 -> 0 | V8: ='À Faire - Détails'!U177 -> 0 | W8: ='À Faire - Détails'!V177 -> 0 | X8: =IF($B$2='Paramètres - Admin'!$B$2,TEXT(W8*60*60,"# 0")&" " & 'Paramètres - Admin'!$B$2,IF($B$2='Paramètres - Admin'!$B$3,TEXT(W8*60,"# 0")&" " & 'Paramètres - Admin'!$B$3,IF($B$2='Paramètres - Admin'!$B$4,TEXT(W8,"# 0,00")&" " & 'Paramètres - Admin'!$B$4,IF($B$2='Paramètres - Admin'!$B$5,TEXT(W8/24,"# 0,00")&" " & 'Paramètres - Admin'!$B$5,IF($B$2='Paramètres - Admin'!$B$6,TEXT((W8/24)/30,"# 0,00")&" " & 'Paramètres - Admin'!$B$6,IF(W8/24>=1,INT(W8/24)&" " & 'Paramètres - Admin'!$D$4 & " " & HOUR(W8/24-INT(W8/24))&" " & 'Paramètres - Admin'!$D$3 & " " & MINUTE(W8/24-INT(W8/24))&" " & 'Paramètres - Admin'!$D$2,HOUR(W8/24-INT(W8/24))&" " & 'Paramètres - Admin'!$D$3 & " " & MINUTE(W8/24-INT(W8/24))&" " & 'Paramètres - Admin'!$D$2)))))) -> 0 hrs 0 mins | Y8: Piège à ressort | Z8: ='À Faire - Détails'!J193 -> 0 | AA8: ='À Faire - Détails'!K193 -> 0 | AB8: ='À Faire - Détails'!J196 -> 0 | AC8: ='À Faire - Détails'!K196 -> 0 | AD8: =IF($B$2='Paramètres - Admin'!$B$2,TEXT(AC8*60*60,"# 0")&" " & 'Paramètres - Admin'!$B$2,IF($B$2='Paramètres - Admin'!$B$3,TEXT(AC8*60,"# 0")&" " & 'Paramètres - Admin'!$B$3,IF($B$2='Paramètres - Admin'!$B$4,TEXT(AC8,"# 0,00")&" " & 'Paramètres - Admin'!$B$4,IF($B$2='Paramètres - Admin'!$B$5,TEXT(AC8/24,"# 0,00")&" " & 'Paramètres - Admin'!$B$5,IF($B$2='Paramètres - Admin'!$B$6,TEXT((AC8/24)/30,"# 0,00")&" " & 'Paramètres - Admin'!$B$6,IF(AC8/24>=1,INT(AC8/24)&" " & 'Paramètres - Admin'!$D$4 & " " & HOUR(AC8/24-INT(AC8/24))&" " & 'Paramètres - Admin'!$D$3 & " " & MINUTE(AC8/24-INT(AC8/24))&" " & 'Paramètres - Admin'!$D$2,HOUR(AC8/24-INT(AC8/24))&" " & 'Paramètres - Admin'!$D$3 & " " & MINUTE(AC8/24-INT(AC8/24))&" " & 'Paramètres - Admin'!$D$2)))))) -> 0 hrs 0 mins
A9: Foreuse d'Élixir Noir | B9: ='À Faire - Détails'!J22 -> 0 | C9: ='À Faire - Détails'!K22 -> 6 | D9: ='À Faire - Détails'!J30 -> 27000000 | E9: ='À Faire - Détails'!K30 -> 1008 | F9: =IF($B$2='Paramètres - Admin'!$B$2,TEXT(E9*60*60,"# 0")&" " & 'Paramètres - Admin'!$B$2,IF($B$2='Paramètres - Admin'!$B$3,TEXT(E9*60,"# 0")&" " & 'Paramètres - Admin'!$B$3,IF($B$2='Paramètres - Admin'!$B$4,TEXT(E9,"# 0,00")&" " & 'Paramètres - Admin'!$B$4,IF($B$2='Paramètres - Admin'!$B$5,TEXT(E9/24,"# 0,00")&" " & 'Paramètres - Admin'!$B$5,IF($B$2='Paramètres - Admin'!$B$6,TEXT((E9/24)/30,"# 0,00")&" " & 'Paramètres - Admin'!$B$6,IF(E9/24>=1,INT(E9/24)&" " & 'Paramètres - Admin'!$D$4 & " " & HOUR(E9/24-INT(E9/24))&" " & 'Paramètres - Admin'!$D$3 & " " & MINUTE(E9/24-INT(E9/24))&" " & 'Paramètres - Admin'!$D$2,HOUR(E9/24-INT(E9/24))&" " & 'Paramètres - Admin'!$D$3 & " " & MINUTE(E9/24-INT(E9/24))&" " & 'Paramètres - Admin'!$D$2)))))) -> 42 jours 0 hrs 0 mins | G9: Camp Militaire | H9: ='À Faire - Détails'!J85 -> 0 | I9: ='À Faire - Détails'!K85 -> 0 | J9: ='À Faire - Détails'!J95 -> 0 | K9: ='À Faire - Détails'!K95 -> 0 | L9: =IF($B$2='Paramètres - Admin'!$B$2,TEXT(K9*60*60,"# 0")&" " & 'Paramètres - Admin'!$B$2,IF($B$2='Paramètres - Admin'!$B$3,TEXT(K9*60,"# 0")&" " & 'Paramètres - Admin'!$B$3,IF($B$2='Paramètres - Admin'!$B$4,TEXT(K9,"# 0,00")&" " & 'Paramètres - Admin'!$B$4,IF($B$2='Paramètres - Admin'!$B$5,TEXT(K9/24,"# 0,00")&" " & 'Paramètres - Admin'!$B$5,IF($B$2='Paramètres - Admin'!$B$6,TEXT((K9/24)/30,"# 0,00")&" " & 'Paramètres - Admin'!$B$6,IF(K9/24>=1,INT(K9/24)&" " & 'Paramètres - Admin'!$D$4 & " " & HOUR(K9/24-INT(K9/24))&" " & 'Paramètres - Admin'!$D$3 & " " & MINUTE(K9/24-INT(K9/24))&" " & 'Paramètres - Admin'!$D$2,HOUR(K9/24-INT(K9/24))&" " & 'Paramètres - Admin'!$D$3 & " " & MINUTE(K9/24-INT(K9/24))&" " & 'Paramètres - Admin'!$D$2)))))) -> 0 hrs 0 mins | M9: Tour d'Archers | N9: ='À Faire - Détails'!J133 -> 0 | O9: ='À Faire - Détails'!K133 -> 24 | P9: ='À Faire - Détails'!J148 -> 136000000 | Q9: ='À Faire - Détails'!K148 -> 3864 | R9: =IF($B$2='Paramètres - Admin'!$B$2,TEXT(Q9*60*60,"# 0")&" " & 'Paramètres - Admin'!$B$2,IF($B$2='Paramètres - Admin'!$B$3,TEXT(Q9*60,"# 0")&" " & 'Paramètres - Admin'!$B$3,IF($B$2='Paramètres - Admin'!$B$4,TEXT(Q9,"# 0,00")&" " & 'Paramètres - Admin'!$B$4,IF($B$2='Paramètres - Admin'!$B$5,TEXT(Q9/24,"# 0,00")&" " & 'Paramètres - Admin'!$B$5,IF($B$2='Paramètres - Admin'!$B$6,TEXT((Q9/24)/30,"# 0,00")&" " & 'Paramètres - Admin'!$B$6,IF(Q9/24>=1,INT(Q9/24)&" " & 'Paramètres - Admin'!$D$4 & " " & HOUR(Q9/24-INT(Q9/24))&" " & 'Paramètres - Admin'!$D$3 & " " & MINUTE(Q9/24-INT(Q9/24))&" " & 'Paramètres - Admin'!$D$2,HOUR(Q9/24-INT(Q9/24))&" " & 'Paramètres - Admin'!$D$3 & " " & MINUTE(Q9/24-INT(Q9/24))&" " & 'Paramètres - Admin'!$D$2)))))) -> 161 jours 0 hrs 0 mins | S9: Total | T9: =SUM(T7:T8) -> 0 | U9: =SUM(U7:U8) -> 2 | V9: =SUM(V7:V8) -> 12000000 | W9: =SUM(W7:W8) -> 504 | X9: =IF($B$2='Paramètres - Admin'!$B$2,TEXT(W9*60*60,"# 0")&" " & 'Paramètres - Admin'!$B$2,IF($B$2='Paramètres - Admin'!$B$3,TEXT(W9*60,"# 0")&" " & 'Paramètres - Admin'!$B$3,IF($B$2='Paramètres - Admin'!$B$4,TEXT(W9,"# 0,00")&" " & 'Paramètres - Admin'!$B$4,IF($B$2='Paramètres - Admin'!$B$5,TEXT(W9/24,"# 0,00")&" " & 'Paramètres - Admin'!$B$5,IF($B$2='Paramètres - Admin'!$B$6,TEXT((W9/24)/30,"# 0,00")&" " & 'Paramètres - Admin'!$B$6,IF(W9/24>=1,INT(W9/24)&" " & 'Paramètres - Admin'!$D$4 & " " & HOUR(W9/24-INT(W9/24))&" " & 'Paramètres - Admin'!$D$3 & " " & MINUTE(W9/24-INT(W9/24))&" " & 'Paramètres - Admin'!$D$2,HOUR(W9/24-INT(W9/24))&" " & 'Paramètres - Admin'!$D$3 & " " & MINUTE(W9/24-INT(W9/24))&" " & 'Paramètres - Admin'!$D$2)))))) -> 21 jours 0 hrs 0 mins | Y9: Bombe géante | Z9: ='À Faire - Détails'!J198 -> 0 | AA9: ='À Faire - Détails'!K198 -> 10 | AB9: ='À Faire - Détails'!J204 -> 16250000 | AC9: ='À Faire - Détails'!K204 -> 480 | AD9: =IF($B$2='Paramètres - Admin'!$B$2,TEXT(AC9*60*60,"# 0")&" " & 'Paramètres - Admin'!$B$2,IF($B$2='Paramètres - Admin'!$B$3,TEXT(AC9*60,"# 0")&" " & 'Paramètres - Admin'!$B$3,IF($B$2='Paramètres - Admin'!$B$4,TEXT(AC9,"# 0,00")&" " & 'Paramètres - Admin'!$B$4,IF($B$2='Paramètres - Admin'!$B$5,TEXT(AC9/24,"# 0,00")&" " & 'Paramètres - Admin'!$B$5,IF($B$2='Paramètres - Admin'!$B$6,TEXT((AC9/24)/30,"# 0,00")&" " & 'Paramètres - Admin'!$B$6,IF(AC9/24>=1,INT(AC9/24)&" " & 'Paramètres - Admin'!$D$4 & " " & HOUR(AC9/24-INT(AC9/24))&" " & 'Paramètres - Admin'!$D$3 & " " & MINUTE(AC9/24-INT(AC9/24))&" " & 'Paramètres - Admin'!$D$2,HOUR(AC9/24-INT(AC9/24))&" " & 'Paramètres - Admin'!$D$3 & " " & MINUTE(AC9/24-INT(AC9/24))&" " & 'Paramètres - Admin'!$D$2)))))) -> 20 jours 0 hrs 0 mins
A10: Réserve d'Or | B10: ='À Faire - Détails'!J32 -> 0 | C10: ='À Faire - Détails'!K32 -> 0 | D10: ='À Faire - Détails'!J45 -> 0 | E10: ='À Faire - Détails'!K45 -> 0 | F10: =IF($B$2='Paramètres - Admin'!$B$2,TEXT(E10*60*60,"# 0")&" " & 'Paramètres - Admin'!$B$2,IF($B$2='Paramètres - Admin'!$B$3,TEXT(E10*60,"# 0")&" " & 'Paramètres - Admin'!$B$3,IF($B$2='Paramètres - Admin'!$B$4,TEXT(E10,"# 0,00")&" " & 'Paramètres - Admin'!$B$4,IF($B$2='Paramètres - Admin'!$B$5,TEXT(E10/24,"# 0,00")&" " & 'Paramètres - Admin'!$B$5,IF($B$2='Paramètres - Admin'!$B$6,TEXT((E10/24)/30,"# 0,00")&" " & 'Paramètres - Admin'!$B$6,IF(E10/24>=1,INT(E10/24)&" " & 'Paramètres - Admin'!$D$4 & " " & HOUR(E10/24-INT(E10/24))&" " & 'Paramètres - Admin'!$D$3 & " " & MINUTE(E10/24-INT(E10/24))&" " & 'Paramètres - Admin'!$D$2,HOUR(E10/24-INT(E10/24))&" " & 'Paramètres - Admin'!$D$3 & " " & MINUTE(E10/24-INT(E10/24))&" " & 'Paramètres - Admin'!$D$2)))))) -> 0 hrs 0 mins | G10: Laboratoire | H10: ='À Faire - Détails'!U61 -> 0 | I10: ='À Faire - Détails'!V61 -> 0 | J10: ='À Faire - Détails'!U71 -> 0 | K10: ='À Faire - Détails'!V71 -> 0 | L10: =IF($B$2='Paramètres - Admin'!$B$2,TEXT(K10*60*60,"# 0")&" " & 'Paramètres - Admin'!$B$2,IF($B$2='Paramètres - Admin'!$B$3,TEXT(K10*60,"# 0")&" " & 'Paramètres - Admin'!$B$3,IF($B$2='Paramètres - Admin'!$B$4,TEXT(K10,"# 0,00")&" " & 'Paramètres - Admin'!$B$4,IF($B$2='Paramètres - Admin'!$B$5,TEXT(K10/24,"# 0,00")&" " & 'Paramètres - Admin'!$B$5,IF($B$2='Paramètres - Admin'!$B$6,TEXT((K10/24)/30,"# 0,00")&" " & 'Paramètres - Admin'!$B$6,IF(K10/24>=1,INT(K10/24)&" " & 'Paramètres - Admin'!$D$4 & " " & HOUR(K10/24-INT(K10/24))&" " & 'Paramètres - Admin'!$D$3 & " " & MINUTE(K10/24-INT(K10/24))&" " & 'Paramètres - Admin'!$D$2,HOUR(K10/24-INT(K10/24))&" " & 'Paramètres - Admin'!$D$3 & " " & MINUTE(K10/24-INT(K10/24))&" " & 'Paramètres - Admin'!$D$2)))))) -> 0 hrs 0 mins | M10: Mortier | N10: ='À Faire - Détails'!J150 -> 0 | O10: ='À Faire - Détails'!K150 -> 8 | P10: ='À Faire - Détails'!J160 -> 38400000 | Q10: ='À Faire - Détails'!K160 -> 1632 | R10: =IF($B$2='Paramètres - Admin'!$B$2,TEXT(Q10*60*60,"# 0")&" " & 'Paramètres - Admin'!$B$2,IF($B$2='Paramètres - Admin'!$B$3,TEXT(Q10*60,"# 0")&" " & 'Paramètres - Admin'!$B$3,IF($B$2='Paramètres - Admin'!$B$4,TEXT(Q10,"# 0,00")&" " & 'Paramètres - Admin'!$B$4,IF($B$2='Paramètres - Admin'!$B$5,TEXT(Q10/24,"# 0,00")&" " & 'Paramètres - Admin'!$B$5,IF($B$2='Paramètres - Admin'!$B$6,TEXT((Q10/24)/30,"# 0,00")&" " & 'Paramètres - Admin'!$B$6,IF(Q10/24>=1,INT(Q10/24)&" " & 'Paramètres - Admin'!$D$4 & " " & HOUR(Q10/24-INT(Q10/24))&" " & 'Paramètres - Admin'!$D$3 & " " & MINUTE(Q10/24-INT(Q10/24))&" " & 'Paramètres - Admin'!$D$2,HOUR(Q10/24-INT(Q10/24))&" " & 'Paramètres - Admin'!$D$3 & " " & MINUTE(Q10/24-INT(Q10/24))&" " & 'Paramètres - Admin'!$D$2)))))) -> 68 jours 0 hrs 0 mins | Y10: Bombe aérienne | Z10: ='À Faire - Détails'!U183 -> 0 | AA10: ='À Faire - Détails'!V183 -> 6 | AB10: ='À Faire - Détails'!U189 -> 7700000 | AC10: ='À Faire - Détails'!V189 -> 132 | AD10: =IF($B$2='Paramètres - Admin'!$B$2,TEXT(AC10*60*60,"# 0")&" " & 'Paramètres - Admin'!$B$2,IF($B$2='Paramètres - Admin'!$B$3,TEXT(AC10*60,"# 0")&" " & 'Paramètres - Admin'!$B$3,IF($B$2='Paramètres - Admin'!$B$4,TEXT(AC10,"# 0,00")&" " & 'Paramètres - Admin'!$B$4,IF($B$2='Paramètres - Admin'!$B$5,TEXT(AC10/24,"# 0,00")&" " & 'Paramètres - Admin'!$B$5,IF($B$2='Paramètres - Admin'!$B$6,TEXT((AC10/24)/30,"# 0,00")&" " & 'Paramètres - Admin'!$B$6,IF(AC10/24>=1,INT(AC10/24)&" " & 'Paramètres - Admin'!$D$4 & " " & HOUR(AC10/24-INT(AC10/24))&" " & 'Paramètres - Admin'!$D$3 & " " & MINUTE(AC10/24-INT(AC10/24))&" " & 'Paramètres - Admin'!$D$2,HOUR(AC10/24-INT(AC10/24))&" " & 'Paramètres - Admin'!$D$3 & " " & MINUTE(AC10/24-INT(AC10/24))&" " & 'Paramètres - Admin'!$D$2)))))) -> 5 jours 12 hrs 0 mins
A11: Réservoir d'Élixir | B11: ='À Faire - Détails'!U22 -> 0 | C11: ='À Faire - Détails'!V22 -> 0 | D11: ='À Faire - Détails'!U35 -> 0 | E11: ='À Faire - Détails'!V35 -> 0 | F11: =IF($B$2='Paramètres - Admin'!$B$2,TEXT(E11*60*60,"# 0")&" " & 'Paramètres - Admin'!$B$2,IF($B$2='Paramètres - Admin'!$B$3,TEXT(E11*60,"# 0")&" " & 'Paramètres - Admin'!$B$3,IF($B$2='Paramètres - Admin'!$B$4,TEXT(E11,"# 0,00")&" " & 'Paramètres - Admin'!$B$4,IF($B$2='Paramètres - Admin'!$B$5,TEXT(E11/24,"# 0,00")&" " & 'Paramètres - Admin'!$B$5,IF($B$2='Paramètres - Admin'!$B$6,TEXT((E11/24)/30,"# 0,00")&" " & 'Paramètres - Admin'!$B$6,IF(E11/24>=1,INT(E11/24)&" " & 'Paramètres - Admin'!$D$4 & " " & HOUR(E11/24-INT(E11/24))&" " & 'Paramètres - Admin'!$D$3 & " " & MINUTE(E11/24-INT(E11/24))&" " & 'Paramètres - Admin'!$D$2,HOUR(E11/24-INT(E11/24))&" " & 'Paramètres - Admin'!$D$3 & " " & MINUTE(E11/24-INT(E11/24))&" " & 'Paramètres - Admin'!$D$2)))))) -> 0 hrs 0 mins | G11: Usine de Sorts | H11: ='À Faire - Détails'!U73 -> 0 | I11: ='À Faire - Détails'!V73 -> 0 | J11: ='À Faire - Détails'!U80 -> 0 | K11: ='À Faire - Détails'!V80 -> 0 | L11: =IF($B$2='Paramètres - Admin'!$B$2,TEXT(K11*60*60,"# 0")&" " & 'Paramètres - Admin'!$B$2,IF($B$2='Paramètres - Admin'!$B$3,TEXT(K11*60,"# 0")&" " & 'Paramètres - Admin'!$B$3,IF($B$2='Paramètres - Admin'!$B$4,TEXT(K11,"# 0,00")&" " & 'Paramètres - Admin'!$B$4,IF($B$2='Paramètres - Admin'!$B$5,TEXT(K11/24,"# 0,00")&" " & 'Paramètres - Admin'!$B$5,IF($B$2='Paramètres - Admin'!$B$6,TEXT((K11/24)/30,"# 0,00")&" " & 'Paramètres - Admin'!$B$6,IF(K11/24>=1,INT(K11/24)&" " & 'Paramètres - Admin'!$D$4 & " " & HOUR(K11/24-INT(K11/24))&" " & 'Paramètres - Admin'!$D$3 & " " & MINUTE(K11/24-INT(K11/24))&" " & 'Paramètres - Admin'!$D$2,HOUR(K11/24-INT(K11/24))&" " & 'Paramètres - Admin'!$D$3 & " " & MINUTE(K11/24-INT(K11/24))&" " & 'Paramètres - Admin'!$D$2)))))) -> 0 hrs 0 mins | M11: Défense Antiaérienne | N11: ='À Faire - Détails'!U101 -> 0 | O11: ='À Faire - Détails'!V101 -> 10 | P11: ='À Faire - Détails'!U111 -> 50760000 | Q11: ='À Faire - Détails'!V111 -> 2448 | R11: =IF($B$2='Paramètres - Admin'!$B$2,TEXT(Q11*60*60,"# 0")&" " & 'Paramètres - Admin'!$B$2,IF($B$2='Paramètres - Admin'!$B$3,TEXT(Q11*60,"# 0")&" " & 'Paramètres - Admin'!$B$3,IF($B$2='Paramètres - Admin'!$B$4,TEXT(Q11,"# 0,00")&" " & 'Paramètres - Admin'!$B$4,IF($B$2='Paramètres - Admin'!$B$5,TEXT(Q11/24,"# 0,00")&" " & 'Paramètres - Admin'!$B$5,IF($B$2='Paramètres - Admin'!$B$6,TEXT((Q11/24)/30,"# 0,00")&" " & 'Paramètres - Admin'!$B$6,IF(Q11/24>=1,INT(Q11/24)&" " & 'Paramètres - Admin'!$D$4 & " " & HOUR(Q11/24-INT(Q11/24))&" " & 'Paramètres - Admin'!$D$3 & " " & MINUTE(Q11/24-INT(Q11/24))&" " & 'Paramètres - Admin'!$D$2,HOUR(Q11/24-INT(Q11/24))&" " & 'Paramètres - Admin'!$D$3 & " " & MINUTE(Q11/24-INT(Q11/24))&" " & 'Paramètres - Admin'!$D$2)))))) -> 102 jours 0 hrs 0 mins | Y11: Tête chercheuse | Z11: ='À Faire - Détails'!U191 -> 0 | AA11: ='À Faire - Détails'!V191 -> 10 | AB11: ='À Faire - Détails'!U196 -> 30000000 | AC11: ='À Faire - Détails'!V196 -> 480 | AD11: =IF($B$2='Paramètres - Admin'!$B$2,TEXT(AC11*60*60,"# 0")&" " & 'Paramètres - Admin'!$B$2,IF($B$2='Paramètres - Admin'!$B$3,TEXT(AC11*60,"# 0")&" " & 'Paramètres - Admin'!$B$3,IF($B$2='Paramètres - Admin'!$B$4,TEXT(AC11,"# 0,00")&" " & 'Paramètres - Admin'!$B$4,IF($B$2='Paramètres - Admin'!$B$5,TEXT(AC11/24,"# 0,00")&" " & 'Paramètres - Admin'!$B$5,IF($B$2='Paramètres - Admin'!$B$6,TEXT((AC11/24)/30,"# 0,00")&" " & 'Paramètres - Admin'!$B$6,IF(AC11/24>=1,INT(AC11/24)&" " & 'Paramètres - Admin'!$D$4 & " " & HOUR(AC11/24-INT(AC11/24))&" " & 'Paramètres - Admin'!$D$3 & " " & MINUTE(AC11/24-INT(AC11/24))&" " & 'Paramètres - Admin'!$D$2,HOUR(AC11/24-INT(AC11/24))&" " & 'Paramètres - Admin'!$D$3 & " " & MINUTE(AC11/24-INT(AC11/24))&" " & 'Paramètres - Admin'!$D$2)))))) -> 20 jours 0 hrs 0 mins
A12: Réservoir d'Élixir Noir | B12: ='À Faire - Détails'!J47 -> 0 | C12: ='À Faire - Détails'!K47 -> 1 | D12: ='À Faire - Détails'!J55 -> 3600000 | E12: ='À Faire - Détails'!K55 -> 144 | F12: =IF($B$2='Paramètres - Admin'!$B$2,TEXT(E12*60*60,"# 0")&" " & 'Paramètres - Admin'!$B$2,IF($B$2='Paramètres - Admin'!$B$3,TEXT(E12*60,"# 0")&" " & 'Paramètres - Admin'!$B$3,IF($B$2='Paramètres - Admin'!$B$4,TEXT(E12,"# 0,00")&" " & 'Paramètres - Admin'!$B$4,IF($B$2='Paramètres - Admin'!$B$5,TEXT(E12/24,"# 0,00")&" " & 'Paramètres - Admin'!$B$5,IF($B$2='Paramètres - Admin'!$B$6,TEXT((E12/24)/30,"# 0,00")&" " & 'Paramètres - Admin'!$B$6,IF(E12/24>=1,INT(E12/24)&" " & 'Paramètres - Admin'!$D$4 & " " & HOUR(E12/24-INT(E12/24))&" " & 'Paramètres - Admin'!$D$3 & " " & MINUTE(E12/24-INT(E12/24))&" " & 'Paramètres - Admin'!$D$2,HOUR(E12/24-INT(E12/24))&" " & 'Paramètres - Admin'!$D$3 & " " & MINUTE(E12/24-INT(E12/24))&" " & 'Paramètres - Admin'!$D$2)))))) -> 6 jours 0 hrs 0 mins | G12: Total | H12: =SUM(H8:H11) -> 0 | I12: =SUM(I7:I11) -> 4 | J12: =SUM(J7:J11) -> 10500000 | K12: =SUM(K7:K11) -> 720 | L12: =IF($B$2='Paramètres - Admin'!$B$2,TEXT(K12*60*60,"# 0")&" " & 'Paramètres - Admin'!$B$2,IF($B$2='Paramètres - Admin'!$B$3,TEXT(K12*60,"# 0")&" " & 'Paramètres - Admin'!$B$3,IF($B$2='Paramètres - Admin'!$B$4,TEXT(K12,"# 0,00")&" " & 'Paramètres - Admin'!$B$4,IF($B$2='Paramètres - Admin'!$B$5,TEXT(K12/24,"# 0,00")&" " & 'Paramètres - Admin'!$B$5,IF($B$2='Paramètres - Admin'!$B$6,TEXT((K12/24)/30,"# 0,00")&" " & 'Paramètres - Admin'!$B$6,IF(K12/24>=1,INT(K12/24)&" " & 'Paramètres - Admin'!$D$4 & " " & HOUR(K12/24-INT(K12/24))&" " & 'Paramètres - Admin'!$D$3 & " " & MINUTE(K12/24-INT(K12/24))&" " & 'Paramètres - Admin'!$D$2,HOUR(K12/24-INT(K12/24))&" " & 'Paramètres - Admin'!$D$3 & " " & MINUTE(K12/24-INT(K12/24))&" " & 'Paramètres - Admin'!$D$2)))))) -> 30 jours 0 hrs 0 mins | M12: Tour de Sorciers | N12: ='À Faire - Détails'!U113 -> 0 | O12: ='À Faire - Détails'!V113 -> 10 | P12: ='À Faire - Détails'!U123 -> 51680000 | Q12: ='À Faire - Détails'!V123 -> 1848 | R12: =IF($B$2='Paramètres - Admin'!$B$2,TEXT(Q12*60*60,"# 0")&" " & 'Paramètres - Admin'!$B$2,IF($B$2='Paramètres - Admin'!$B$3,TEXT(Q12*60,"# 0")&" " & 'Paramètres - Admin'!$B$3,IF($B$2='Paramètres - Admin'!$B$4,TEXT(Q12,"# 0,00")&" " & 'Paramètres - Admin'!$B$4,IF($B$2='Paramètres - Admin'!$B$5,TEXT(Q12/24,"# 0,00")&" " & 'Paramètres - Admin'!$B$5,IF($B$2='Paramètres - Admin'!$B$6,TEXT((Q12/24)/30,"# 0,00")&" " & 'Paramètres - Admin'!$B$6,IF(Q12/24>=1,INT(Q12/24)&" " & 'Paramètres - Admin'!$D$4 & " " & HOUR(Q12/24-INT(Q12/24))&" " & 'Paramètres - Admin'!$D$3 & " " & MINUTE(Q12/24-INT(Q12/24))&" " & 'Paramètres - Admin'!$D$2,HOUR(Q12/24-INT(Q12/24))&" " & 'Paramètres - Admin'!$D$3 & " " & MINUTE(Q12/24-INT(Q12/24))&" " & 'Paramètres - Admin'!$D$2)))))) -> 77 jours 0 hrs 0 mins | Y12: Piège squelettique | Z12: ='À Faire - Détails'!U198 -> 0 | AA12: ='À Faire - Détails'!V198 -> 6 | AB12: ='À Faire - Détails'!U203 -> 5700000 | AC12: ='À Faire - Détails'!V203 -> 90 | AD12: =IF($B$2='Paramètres - Admin'!$B$2,TEXT(AC12*60*60,"# 0")&" " & 'Paramètres - Admin'!$B$2,IF($B$2='Paramètres - Admin'!$B$3,TEXT(AC12*60,"# 0")&" " & 'Paramètres - Admin'!$B$3,IF($B$2='Paramètres - Admin'!$B$4,TEXT(AC12,"# 0,00")&" " & 'Paramètres - Admin'!$B$4,IF($B$2='Paramètres - Admin'!$B$5,TEXT(AC12/24,"# 0,00")&" " & 'Paramètres - Admin'!$B$5,IF($B$2='Paramètres - Admin'!$B$6,TEXT((AC12/24)/30,"# 0,00")&" " & 'Paramètres - Admin'!$B$6,IF(AC12/24>=1,INT(AC12/24)&" " & 'Paramètres - Admin'!$D$4 & " " & HOUR(AC12/24-INT(AC12/24))&" " & 'Paramètres - Admin'!$D$3 & " " & MINUTE(AC12/24-INT(AC12/24))&" " & 'Paramètres - Admin'!$D$2,HOUR(AC12/24-INT(AC12/24))&" " & 'Paramètres - Admin'!$D$3 & " " & MINUTE(AC12/24-INT(AC12/24))&" " & 'Paramètres - Admin'!$D$2)))))) -> 3 jours 18 hrs 0 mins
A13: Total | B13: =SUM(B7:B12) -> 0 | C13: =SUM(C7:C12) -> 15 | D13: =SUM(D7:D12) -> 33288000 | E13: =SUM(E7:E12) -> 2112 | F13: =IF($B$2='Paramètres - Admin'!$B$2,TEXT(E13*60*60,"# 0")&" " & 'Paramètres - Admin'!$B$2,IF($B$2='Paramètres - Admin'!$B$3,TEXT(E13*60,"# 0")&" " & 'Paramètres - Admin'!$B$3,IF($B$2='Paramètres - Admin'!$B$4,TEXT(E13,"# 0,00")&" " & 'Paramètres - Admin'!$B$4,IF($B$2='Paramètres - Admin'!$B$5,TEXT(E13/24,"# 0,00")&" " & 'Paramètres - Admin'!$B$5,IF($B$2='Paramètres - Admin'!$B$6,TEXT((E13/24)/30,"# 0,00")&" " & 'Paramètres - Admin'!$B$6,IF(E13/24>=1,INT(E13/24)&" " & 'Paramètres - Admin'!$D$4 & " " & HOUR(E13/24-INT(E13/24))&" " & 'Paramètres - Admin'!$D$3 & " " & MINUTE(E13/24-INT(E13/24))&" " & 'Paramètres - Admin'!$D$2,HOUR(E13/24-INT(E13/24))&" " & 'Paramètres - Admin'!$D$3 & " " & MINUTE(E13/24-INT(E13/24))&" " & 'Paramètres - Admin'!$D$2)))))) -> 88 jours 0 hrs 0 mins | M13: Tesla Camouflée | N13: ='À Faire - Détails'!U125 -> 0 | O13: ='À Faire - Détails'!V125 -> 13 | P13: ='À Faire - Détails'!U135 -> 44250000 | Q13: ='À Faire - Détails'!V135 -> 3264 | R13: =IF($B$2='Paramètres - Admin'!$B$2,TEXT(Q13*60*60,"# 0")&" " & 'Paramètres - Admin'!$B$2,IF($B$2='Paramètres - Admin'!$B$3,TEXT(Q13*60,"# 0")&" " & 'Paramètres - Admin'!$B$3,IF($B$2='Paramètres - Admin'!$B$4,TEXT(Q13,"# 0,00")&" " & 'Paramètres - Admin'!$B$4,IF($B$2='Paramètres - Admin'!$B$5,TEXT(Q13/24,"# 0,00")&" " & 'Paramètres - Admin'!$B$5,IF($B$2='Paramètres - Admin'!$B$6,TEXT((Q13/24)/30,"# 0,00")&" " & 'Paramètres - Admin'!$B$6,IF(Q13/24>=1,INT(Q13/24)&" " & 'Paramètres - Admin'!$D$4 & " " & HOUR(Q13/24-INT(Q13/24))&" " & 'Paramètres - Admin'!$D$3 & " " & MINUTE(Q13/24-INT(Q13/24))&" " & 'Paramètres - Admin'!$D$2,HOUR(Q13/24-INT(Q13/24))&" " & 'Paramètres - Admin'!$D$3 & " " & MINUTE(Q13/24-INT(Q13/24))&" " & 'Paramètres - Admin'!$D$2)))))) -> 136 jours 0 hrs 0 mins | Y13: Total | Z13: =SUM(Z7:Z12) -> 0 | AA13: =SUM(AA7:AA12) -> 44 | AB13: =SUM(AB7:AB12) -> 74650000 | AC13: =SUM(AC7:AC12) -> 1614 | AD13: =IF($B$2='Paramètres - Admin'!$B$2,TEXT(AC13*60*60,"# 0")&" " & 'Paramètres - Admin'!$B$2,IF($B$2='Paramètres - Admin'!$B$3,TEXT(AC13*60,"# 0")&" " & 'Paramètres - Admin'!$B$3,IF($B$2='Paramètres - Admin'!$B$4,TEXT(AC13,"# 0,00")&" " & 'Paramètres - Admin'!$B$4,IF($B$2='Paramètres - Admin'!$B$5,TEXT(AC13/24,"# 0,00")&" " & 'Paramètres - Admin'!$B$5,IF($B$2='Paramètres - Admin'!$B$6,TEXT((AC13/24)/30,"# 0,00")&" " & 'Paramètres - Admin'!$B$6,IF(AC13/24>=1,INT(AC13/24)&" " & 'Paramètres - Admin'!$D$4 & " " & HOUR(AC13/24-INT(AC13/24))&" " & 'Paramètres - Admin'!$D$3 & " " & MINUTE(AC13/24-INT(AC13/24))&" " & 'Paramètres - Admin'!$D$2,HOUR(AC13/24-INT(AC13/24))&" " & 'Paramètres - Admin'!$D$3 & " " & MINUTE(AC13/24-INT(AC13/24))&" " & 'Paramètres - Admin'!$D$2)))))) -> 67 jours 6 hrs 0 mins
M14: Arc-X | N14: ='À Faire - Détails'!U137 -> 0 | O14: ='À Faire - Détails'!V137 -> 9 | P14: ='À Faire - Détails'!U143 -> 60000000 | Q14: ='À Faire - Détails'!V143 -> 2736 | R14: =IF($B$2='Paramètres - Admin'!$B$2,TEXT(Q14*60*60,"# 0")&" " & 'Paramètres - Admin'!$B$2,IF($B$2='Paramètres - Admin'!$B$3,TEXT(Q14*60,"# 0")&" " & 'Paramètres - Admin'!$B$3,IF($B$2='Paramètres - Admin'!$B$4,TEXT(Q14,"# 0,00")&" " & 'Paramètres - Admin'!$B$4,IF($B$2='Paramètres - Admin'!$B$5,TEXT(Q14/24,"# 0,00")&" " & 'Paramètres - Admin'!$B$5,IF($B$2='Paramètres - Admin'!$B$6,TEXT((Q14/24)/30,"# 0,00")&" " & 'Paramètres - Admin'!$B$6,IF(Q14/24>=1,INT(Q14/24)&" " & 'Paramètres - Admin'!$D$4 & " " & HOUR(Q14/24-INT(Q14/24))&" " & 'Paramètres - Admin'!$D$3 & " " & MINUTE(Q14/24-INT(Q14/24))&" " & 'Paramètres - Admin'!$D$2,HOUR(Q14/24-INT(Q14/24))&" " & 'Paramètres - Admin'!$D$3 & " " & MINUTE(Q14/24-INT(Q14/24))&" " & 'Paramètres - Admin'!$D$2)))))) -> 114 jours 0 hrs 0 mins
M15: Inferno Tower | N15: ='À Faire - Détails'!U145 -> 0 | O15: ='À Faire - Détails'!V145 -> 2 | P15: ='À Faire - Détails'!U150 -> 16000000 | Q15: ='À Faire - Détails'!V150 -> 672 | R15: =IF($B$2='Paramètres - Admin'!$B$2,TEXT(Q15*60*60,"# 0")&" " & 'Paramètres - Admin'!$B$2,IF($B$2='Paramètres - Admin'!$B$3,TEXT(Q15*60,"# 0")&" " & 'Paramètres - Admin'!$B$3,IF($B$2='Paramètres - Admin'!$B$4,TEXT(Q15,"# 0,00")&" " & 'Paramètres - Admin'!$B$4,IF($B$2='Paramètres - Admin'!$B$5,TEXT(Q15/24,"# 0,00")&" " & 'Paramètres - Admin'!$B$5,IF($B$2='Paramètres - Admin'!$B$6,TEXT((Q15/24)/30,"# 0,00")&" " & 'Paramètres - Admin'!$B$6,IF(Q15/24>=1,INT(Q15/24)&" " & 'Paramètres - Admin'!$D$4 & " " & HOUR(Q15/24-INT(Q15/24))&" " & 'Paramètres - Admin'!$D$3 & " " & MINUTE(Q15/24-INT(Q15/24))&" " & 'Paramètres - Admin'!$D$2,HOUR(Q15/24-INT(Q15/24))&" " & 'Paramètres - Admin'!$D$3 & " " & MINUTE(Q15/24-INT(Q15/24))&" " & 'Paramètres - Admin'!$D$2)))))) -> 28 jours 0 hrs 0 mins
M16: Total | N16: =SUM(N7:N15) -> 0 | O16: =SUM(O7:O15) -> 843 | P16: =SUM(P7:P15) -> 2473490000 | Q16: =SUM(Q7:Q15) -> 18864 | R16: =IF($B$2='Paramètres - Admin'!$B$2,TEXT(Q16*60*60,"# 0")&" " & 'Paramètres - Admin'!$B$2,IF($B$2='Paramètres - Admin'!$B$3,TEXT(Q16*60,"# 0")&" " & 'Paramètres - Admin'!$B$3,IF($B$2='Paramètres - Admin'!$B$4,TEXT(Q16,"# 0,00")&" " & 'Paramètres - Admin'!$B$4,IF($B$2='Paramètres - Admin'!$B$5,TEXT(Q16/24,"# 0,00")&" " & 'Paramètres - Admin'!$B$5,IF($B$2='Paramètres - Admin'!$B$6,TEXT((Q16/24)/30,"# 0,00")&" " & 'Paramètres - Admin'!$B$6,IF(Q16/24>=1,INT(Q16/24)&" " & 'Paramètres - Admin'!$D$4 & " " & HOUR(Q16/24-INT(Q16/24))&" " & 'Paramètres - Admin'!$D$3 & " " & MINUTE(Q16/24-INT(Q16/24))&" " & 'Paramètres - Admin'!$D$2,HOUR(Q16/24-INT(Q16/24))&" " & 'Paramètres - Admin'!$D$3 & " " & MINUTE(Q16/24-INT(Q16/24))&" " & 'Paramètres - Admin'!$D$2)))))) -> 786 jours 0 hrs 0 mins
A19: Améliorations de Sorts | G19: Améliorations de Troupes | M19: Améliorations de Troupes Noires | S19: Héros
A20: Sort | B20: À Faire | C20: Up. | D20: Coût Total | E20: Temps Total | F20: Temps Total | G20: Troupe Normale | H20: À Faire | I20: Up. | J20: Coût Total | K20: Temps Total | L20: Temps Total | M20: Troupe Noire | N20: À Faire | O20: Up. | P20: Coût Total | Q20: Temps Total | R20: Temps Total | S20: Héros | T20: À Faire | U20: Up. | V20: Coût Total | W20: Temps Total | X20: Temps Total
A21: Sort de Foudre | B21: ='À Faire - Détails'!J210 -> 0 | C21: ='À Faire - Détails'!K210 -> 1 | D21: ='À Faire - Détails'!J218 -> 8000000 | E21: ='À Faire - Détails'!K218 -> 336 | F21: =IF($B$2='Paramètres - Admin'!$B$2,TEXT(E21*60*60,"# 0")&" " & 'Paramètres - Admin'!$B$2,IF($B$2='Paramètres - Admin'!$B$3,TEXT(E21*60,"# 0")&" " & 'Paramètres - Admin'!$B$3,IF($B$2='Paramètres - Admin'!$B$4,TEXT(E21,"# 0,00")&" " & 'Paramètres - Admin'!$B$4,IF($B$2='Paramètres - Admin'!$B$5,TEXT(E21/24,"# 0,00")&" " & 'Paramètres - Admin'!$B$5,IF($B$2='Paramètres - Admin'!$B$6,TEXT((E21/24)/30,"# 0,00")&" " & 'Paramètres - Admin'!$B$6,IF(E21/24>=1,INT(E21/24)&" " & 'Paramètres - Admin'!$D$4 & " " & HOUR(E21/24-INT(E21/24))&" " & 'Paramètres - Admin'!$D$3 & " " & MINUTE(E21/24-INT(E21/24))&" " & 'Paramètres - Admin'!$D$2,HOUR(E21/24-INT(E21/24))&" " & 'Paramètres - Admin'!$D$3 & " " & MINUTE(E21/24-INT(E21/24))&" " & 'Paramètres - Admin'!$D$2)))))) -> 14 jours 0 hrs 0 mins | G21: Barbare | H21: ='À Faire - Détails'!J243 -> 0 | I21: ='À Faire - Détails'!K243 -> 2 | J21: ='À Faire - Détails'!J252 -> 10500000 | K21: ='À Faire - Détails'!K252 -> 576 | L21: =IF($B$2='Paramètres - Admin'!$B$2,TEXT(K21*60*60,"# 0")&" " & 'Paramètres - Admin'!$B$2,IF($B$2='Paramètres - Admin'!$B$3,TEXT(K21*60,"# 0")&" " & 'Paramètres - Admin'!$B$3,IF($B$2='Paramètres - Admin'!$B$4,TEXT(K21,"# 0,00")&" " & 'Paramètres - Admin'!$B$4,IF($B$2='Paramètres - Admin'!$B$5,TEXT(K21/24,"# 0,00")&" " & 'Paramètres - Admin'!$B$5,IF($B$2='Paramètres - Admin'!$B$6,TEXT((K21/24)/30,"# 0,00")&" " & 'Paramètres - Admin'!$B$6,IF(K21/24>=1,INT(K21/24)&" " & 'Paramètres - Admin'!$D$4 & " " & HOUR(K21/24-INT(K21/24))&" " & 'Paramètres - Admin'!$D$3 & " " & MINUTE(K21/24-INT(K21/24))&" " & 'Paramètres - Admin'!$D$2,HOUR(K21/24-INT(K21/24))&" " & 'Paramètres - Admin'!$D$3 & " " & MINUTE(K21/24-INT(K21/24))&" " & 'Paramètres - Admin'!$D$2)))))) -> 24 jours 0 hrs 0 mins | M21: Serviteur | N21: ='À Faire - Détails'!J300 -> 0 | O21: ='À Faire - Détails'!K300 -> 1 | P21: ='À Faire - Détails'!J308 -> 100000 | Q21: ='À Faire - Détails'!K308 -> 0 | R21: =IF($B$2='Paramètres - Admin'!$B$2,TEXT(Q21*60*60,"# 0")&" " & 'Paramètres - Admin'!$B$2,IF($B$2='Paramètres - Admin'!$B$3,TEXT(Q21*60,"# 0")&" " & 'Paramètres - Admin'!$B$3,IF($B$2='Paramètres - Admin'!$B$4,TEXT(Q21,"# 0,00")&" " & 'Paramètres - Admin'!$B$4,IF($B$2='Paramètres - Admin'!$B$5,TEXT(Q21/24,"# 0,00")&" " & 'Paramètres - Admin'!$B$5,IF($B$2='Paramètres - Admin'!$B$6,TEXT((Q21/24)/30,"# 0,00")&" " & 'Paramètres - Admin'!$B$6,IF(Q21/24>=1,INT(Q21/24)&" " & 'Paramètres - Admin'!$D$4 & " " & HOUR(Q21/24-INT(Q21/24))&" " & 'Paramètres - Admin'!$D$3 & " " & MINUTE(Q21/24-INT(Q21/24))&" " & 'Paramètres - Admin'!$D$2,HOUR(Q21/24-INT(Q21/24))&" " & 'Paramètres - Admin'!$D$3 & " " & MINUTE(Q21/24-INT(Q21/24))&" " & 'Paramètres - Admin'!$D$2)))))) -> 0 hrs 0 mins | S21: Roi des Barbares | T21: ='À Faire - Détails'!J331 -> 0 | U21: ='À Faire - Détails'!K331 -> 34 | V21: ='À Faire - Détails'!J373 -> 3655000 | W21: ='À Faire - Détails'!K373 -> 5280 | X21: =IF($B$2='Paramètres - Admin'!$B$2,TEXT(W21*60*60,"# 0")&" " & 'Paramètres - Admin'!$B$2,IF($B$2='Paramètres - Admin'!$B$3,TEXT(W21*60,"# 0")&" " & 'Paramètres - Admin'!$B$3,IF($B$2='Paramètres - Admin'!$B$4,TEXT(W21,"# 0,00")&" " & 'Paramètres - Admin'!$B$4,IF($B$2='Paramètres - Admin'!$B$5,TEXT(W21/24,"# 0,00")&" " & 'Paramètres - Admin'!$B$5,IF($B$2='Paramètres - Admin'!$B$6,TEXT((W21/24)/30,"# 0,00")&" " & 'Paramètres - Admin'!$B$6,IF(W21/24>=1,INT(W21/24)&" " & 'Paramètres - Admin'!$D$4 & " " & HOUR(W21/24-INT(W21/24))&" " & 'Paramètres - Admin'!$D$3 & " " & MINUTE(W21/24-INT(W21/24))&" " & 'Paramètres - Admin'!$D$2,HOUR(W21/24-INT(W21/24))&" " & 'Paramètres - Admin'!$D$3 & " " & MINUTE(W21/24-INT(W21/24))&" " & 'Paramètres - Admin'!$D$2)))))) -> 220 jours 0 hrs 0 mins
A22: Sort de Guérison | B22: ='À Faire - Détails'!J220 -> 0 | C22: ='À Faire - Détails'!K220 -> 1 | D22: ='À Faire - Détails'!J228 -> 4800000 | E22: ='À Faire - Détails'!K228 -> 168 | F22: =IF($B$2='Paramètres - Admin'!$B$2,TEXT(E22*60*60,"# 0")&" " & 'Paramètres - Admin'!$B$2,IF($B$2='Paramètres - Admin'!$B$3,TEXT(E22*60,"# 0")&" " & 'Paramètres - Admin'!$B$3,IF($B$2='Paramètres - Admin'!$B$4,TEXT(E22,"# 0,00")&" " & 'Paramètres - Admin'!$B$4,IF($B$2='Paramètres - Admin'!$B$5,TEXT(E22/24,"# 0,00")&" " & 'Paramètres - Admin'!$B$5,IF($B$2='Paramètres - Admin'!$B$6,TEXT((E22/24)/30,"# 0,00")&" " & 'Paramètres - Admin'!$B$6,IF(E22/24>=1,INT(E22/24)&" " & 'Paramètres - Admin'!$D$4 & " " & HOUR(E22/24-INT(E22/24))&" " & 'Paramètres - Admin'!$D$3 & " " & MINUTE(E22/24-INT(E22/24))&" " & 'Paramètres - Admin'!$D$2,HOUR(E22/24-INT(E22/24))&" " & 'Paramètres - Admin'!$D$3 & " " & MINUTE(E22/24-INT(E22/24))&" " & 'Paramètres - Admin'!$D$2)))))) -> 7 jours 0 hrs 0 mins | G22: Archer | H22: ='À Faire - Détails'!J254 -> 0 | I22: ='À Faire - Détails'!K254 -> 2 | J22: ='À Faire - Détails'!J263 -> 13500000 | K22: ='À Faire - Détails'!K263 -> 576 | L22: =IF($B$2='Paramètres - Admin'!$B$2,TEXT(K22*60*60,"# 0")&" " & 'Paramètres - Admin'!$B$2,IF($B$2='Paramètres - Admin'!$B$3,TEXT(K22*60,"# 0")&" " & 'Paramètres - Admin'!$B$3,IF($B$2='Paramètres - Admin'!$B$4,TEXT(K22,"# 0,00")&" " & 'Paramètres - Admin'!$B$4,IF($B$2='Paramètres - Admin'!$B$5,TEXT(K22/24,"# 0,00")&" " & 'Paramètres - Admin'!$B$5,IF($B$2='Paramètres - Admin'!$B$6,TEXT((K22/24)/30,"# 0,00")&" " & 'Paramètres - Admin'!$B$6,IF(K22/24>=1,INT(K22/24)&" " & 'Paramètres - Admin'!$D$4 & " " & HOUR(K22/24-INT(K22/24))&" " & 'Paramètres - Admin'!$D$3 & " " & MINUTE(K22/24-INT(K22/24))&" " & 'Paramètres - Admin'!$D$2,HOUR(K22/24-INT(K22/24))&" " & 'Paramètres - Admin'!$D$3 & " " & MINUTE(K22/24-INT(K22/24))&" " & 'Paramètres - Admin'!$D$2)))))) -> 24 jours 0 hrs 0 mins | M22: Chevaucheur de Cochon | N22: ='À Faire - Détails'!J310 -> 0 | O22: ='À Faire - Détails'!K310 -> 1 | P22: ='À Faire - Détails'!J317 -> 50000 | Q22: ='À Faire - Détails'!K317 -> 336 | R22: =IF($B$2='Paramètres - Admin'!$B$2,TEXT(Q22*60*60,"# 0")&" " & 'Paramètres - Admin'!$B$2,IF($B$2='Paramètres - Admin'!$B$3,TEXT(Q22*60,"# 0")&" " & 'Paramètres - Admin'!$B$3,IF($B$2='Paramètres - Admin'!$B$4,TEXT(Q22,"# 0,00")&" " & 'Paramètres - Admin'!$B$4,IF($B$2='Paramètres - Admin'!$B$5,TEXT(Q22/24,"# 0,00")&" " & 'Paramètres - Admin'!$B$5,IF($B$2='Paramètres - Admin'!$B$6,TEXT((Q22/24)/30,"# 0,00")&" " & 'Paramètres - Admin'!$B$6,IF(Q22/24>=1,INT(Q22/24)&" " & 'Paramètres - Admin'!$D$4 & " " & HOUR(Q22/24-INT(Q22/24))&" " & 'Paramètres - Admin'!$D$3 & " " & MINUTE(Q22/24-INT(Q22/24))&" " & 'Paramètres - Admin'!$D$2,HOUR(Q22/24-INT(Q22/24))&" " & 'Paramètres - Admin'!$D$3 & " " & MINUTE(Q22/24-INT(Q22/24))&" " & 'Paramètres - Admin'!$D$2)))))) -> 14 jours 0 hrs 0 mins | S22: Reine des Archers | T22: ='À Faire - Détails'!U331 -> 0 | U22: ='À Faire - Détails'!V331 -> 35 | V22: ='À Faire - Détails'!U373 -> 4027500 | W22: ='À Faire - Détails'!V373 -> 5340 | X22: =IF($B$2='Paramètres - Admin'!$B$2,TEXT(W22*60*60,"# 0")&" " & 'Paramètres - Admin'!$B$2,IF($B$2='Paramètres - Admin'!$B$3,TEXT(W22*60,"# 0")&" " & 'Paramètres - Admin'!$B$3,IF($B$2='Paramètres - Admin'!$B$4,TEXT(W22,"# 0,00")&" " & 'Paramètres - Admin'!$B$4,IF($B$2='Paramètres - Admin'!$B$5,TEXT(W22/24,"# 0,00")&" " & 'Paramètres - Admin'!$B$5,IF($B$2='Paramètres - Admin'!$B$6,TEXT((W22/24)/30,"# 0,00")&" " & 'Paramètres - Admin'!$B$6,IF(W22/24>=1,INT(W22/24)&" " & 'Paramètres - Admin'!$D$4 & " " & HOUR(W22/24-INT(W22/24))&" " & 'Paramètres - Admin'!$D$3 & " " & MINUTE(W22/24-INT(W22/24))&" " & 'Paramètres - Admin'!$D$2,HOUR(W22/24-INT(W22/24))&" " & 'Paramètres - Admin'!$D$3 & " " & MINUTE(W22/24-INT(W22/24))&" " & 'Paramètres - Admin'!$D$2)))))) -> 222 jours 12 hrs 0 mins
A23: Sort de Rage | B23: ='À Faire - Détails'!J230 -> 0 | C23: ='À Faire - Détails'!K230 -> 0 | D23: ='À Faire - Détails'!J237 -> 0 | E23: ='À Faire - Détails'!K237 -> 0 | F23: =IF($B$2='Paramètres - Admin'!$B$2,TEXT(E23*60*60,"# 0")&" " & 'Paramètres - Admin'!$B$2,IF($B$2='Paramètres - Admin'!$B$3,TEXT(E23*60,"# 0")&" " & 'Paramètres - Admin'!$B$3,IF($B$2='Paramètres - Admin'!$B$4,TEXT(E23,"# 0,00")&" " & 'Paramètres - Admin'!$B$4,IF($B$2='Paramètres - Admin'!$B$5,TEXT(E23/24,"# 0,00")&" " & 'Paramètres - Admin'!$B$5,IF($B$2='Paramètres - Admin'!$B$6,TEXT((E23/24)/30,"# 0,00")&" " & 'Paramètres - Admin'!$B$6,IF(E23/24>=1,INT(E23/24)&" " & 'Paramètres - Admin'!$D$4 & " " & HOUR(E23/24-INT(E23/24))&" " & 'Paramètres - Admin'!$D$3 & " " & MINUTE(E23/24-INT(E23/24))&" " & 'Paramètres - Admin'!$D$2,HOUR(E23/24-INT(E23/24))&" " & 'Paramètres - Admin'!$D$3 & " " & MINUTE(E23/24-INT(E23/24))&" " & 'Paramètres - Admin'!$D$2)))))) -> 0 hrs 0 mins | G23: Gobelin | H23: ='À Faire - Détails'!J265 -> 0 | I23: ='À Faire - Détails'!K265 -> 1 | J23: ='À Faire - Détails'!J273 -> 4500000 | K23: ='À Faire - Détails'!K273 -> 240 | L23: =IF($B$2='Paramètres - Admin'!$B$2,TEXT(K23*60*60,"# 0")&" " & 'Paramètres - Admin'!$B$2,IF($B$2='Paramètres - Admin'!$B$3,TEXT(K23*60,"# 0")&" " & 'Paramètres - Admin'!$B$3,IF($B$2='Paramètres - Admin'!$B$4,TEXT(K23,"# 0,00")&" " & 'Paramètres - Admin'!$B$4,IF($B$2='Paramètres - Admin'!$B$5,TEXT(K23/24,"# 0,00")&" " & 'Paramètres - Admin'!$B$5,IF($B$2='Paramètres - Admin'!$B$6,TEXT((K23/24)/30,"# 0,00")&" " & 'Paramètres - Admin'!$B$6,IF(K23/24>=1,INT(K23/24)&" " & 'Paramètres - Admin'!$D$4 & " " & HOUR(K23/24-INT(K23/24))&" " & 'Paramètres - Admin'!$D$3 & " " & MINUTE(K23/24-INT(K23/24))&" " & 'Paramètres - Admin'!$D$2,HOUR(K23/24-INT(K23/24))&" " & 'Paramètres - Admin'!$D$3 & " " & MINUTE(K23/24-INT(K23/24))&" " & 'Paramètres - Admin'!$D$2)))))) -> 10 jours 0 hrs 0 mins | M23: Valkyrie | N23: ='À Faire - Détails'!J319 -> 0 | O23: ='À Faire - Détails'!K319 -> 3 | P23: ='À Faire - Détails'!J325 -> 180000 | Q23: ='À Faire - Détails'!K325 -> 864 | R23: =IF($B$2='Paramètres - Admin'!$B$2,TEXT(Q23*60*60,"# 0")&" " & 'Paramètres - Admin'!$B$2,IF($B$2='Paramètres - Admin'!$B$3,TEXT(Q23*60,"# 0")&" " & 'Paramètres - Admin'!$B$3,IF($B$2='Paramètres - Admin'!$B$4,TEXT(Q23,"# 0,00")&" " & 'Paramètres - Admin'!$B$4,IF($B$2='Paramètres - Admin'!$B$5,TEXT(Q23/24,"# 0,00")&" " & 'Paramètres - Admin'!$B$5,IF($B$2='Paramètres - Admin'!$B$6,TEXT((Q23/24)/30,"# 0,00")&" " & 'Paramètres - Admin'!$B$6,IF(Q23/24>=1,INT(Q23/24)&" " & 'Paramètres - Admin'!$D$4 & " " & HOUR(Q23/24-INT(Q23/24))&" " & 'Paramètres - Admin'!$D$3 & " " & MINUTE(Q23/24-INT(Q23/24))&" " & 'Paramètres - Admin'!$D$2,HOUR(Q23/24-INT(Q23/24))&" " & 'Paramètres - Admin'!$D$3 & " " & MINUTE(Q23/24-INT(Q23/24))&" " & 'Paramètres - Admin'!$D$2)))))) -> 36 jours 0 hrs 0 mins | S23: Total | T23: =SUM(T21:T22) -> 0 | U23: =SUM(U21:U22) -> 69 | V23: =SUM(V21:V22) -> 7682500 | W23: =SUM(W21:W22) -> 10620 | X23: =IF($B$2='Paramètres - Admin'!$B$2,TEXT(W23*60*60,"# 0")&" " & 'Paramètres - Admin'!$B$2,IF($B$2='Paramètres - Admin'!$B$3,TEXT(W23*60,"# 0")&" " & 'Paramètres - Admin'!$B$3,IF($B$2='Paramètres - Admin'!$B$4,TEXT(W23,"# 0,00")&" " & 'Paramètres - Admin'!$B$4,IF($B$2='Paramètres - Admin'!$B$5,TEXT(W23/24,"# 0,00")&" " & 'Paramètres - Admin'!$B$5,IF($B$2='Paramètres - Admin'!$B$6,TEXT((W23/24)/30,"# 0,00")&" " & 'Paramètres - Admin'!$B$6,IF(W23/24>=1,INT(W23/24)&" " & 'Paramètres - Admin'!$D$4 & " " & HOUR(W23/24-INT(W23/24))&" " & 'Paramètres - Admin'!$D$3 & " " & MINUTE(W23/24-INT(W23/24))&" " & 'Paramètres - Admin'!$D$2,HOUR(W23/24-INT(W23/24))&" " & 'Paramètres - Admin'!$D$3 & " " & MINUTE(W23/24-INT(W23/24))&" " & 'Paramètres - Admin'!$D$2)))))) -> 442 jours 12 hrs 0 mins
A24: Sort de Saut | B24: ='À Faire - Détails'!U210 -> 0 | C24: ='À Faire - Détails'!V210 -> 1 | D24: ='À Faire - Détails'!U215 -> 6000000 | E24: ='À Faire - Détails'!V215 -> 168 | F24: =IF($B$2='Paramètres - Admin'!$B$2,TEXT(E24*60*60,"# 0")&" " & 'Paramètres - Admin'!$B$2,IF($B$2='Paramètres - Admin'!$B$3,TEXT(E24*60,"# 0")&" " & 'Paramètres - Admin'!$B$3,IF($B$2='Paramètres - Admin'!$B$4,TEXT(E24,"# 0,00")&" " & 'Paramètres - Admin'!$B$4,IF($B$2='Paramètres - Admin'!$B$5,TEXT(E24/24,"# 0,00")&" " & 'Paramètres - Admin'!$B$5,IF($B$2='Paramètres - Admin'!$B$6,TEXT((E24/24)/30,"# 0,00")&" " & 'Paramètres - Admin'!$B$6,IF(E24/24>=1,INT(E24/24)&" " & 'Paramètres - Admin'!$D$4 & " " & HOUR(E24/24-INT(E24/24))&" " & 'Paramètres - Admin'!$D$3 & " " & MINUTE(E24/24-INT(E24/24))&" " & 'Paramètres - Admin'!$D$2,HOUR(E24/24-INT(E24/24))&" " & 'Paramètres - Admin'!$D$3 & " " & MINUTE(E24/24-INT(E24/24))&" " & 'Paramètres - Admin'!$D$2)))))) -> 7 jours 0 hrs 0 mins | G24: Géant | H24: ='À Faire - Détails'!J275 -> 0 | I24: ='À Faire - Détails'!K275 -> 2 | J24: ='À Faire - Détails'!J284 -> 13000000 | K24: ='À Faire - Détails'!K284 -> 576 | L24: =IF($B$2='Paramètres - Admin'!$B$2,TEXT(K24*60*60,"# 0")&" " & 'Paramètres - Admin'!$B$2,IF($B$2='Paramètres - Admin'!$B$3,TEXT(K24*60,"# 0")&" " & 'Paramètres - Admin'!$B$3,IF($B$2='Paramètres - Admin'!$B$4,TEXT(K24,"# 0,00")&" " & 'Paramètres - Admin'!$B$4,IF($B$2='Paramètres - Admin'!$B$5,TEXT(K24/24,"# 0,00")&" " & 'Paramètres - Admin'!$B$5,IF($B$2='Paramètres - Admin'!$B$6,TEXT((K24/24)/30,"# 0,00")&" " & 'Paramètres - Admin'!$B$6,IF(K24/24>=1,INT(K24/24)&" " & 'Paramètres - Admin'!$D$4 & " " & HOUR(K24/24-INT(K24/24))&" " & 'Paramètres - Admin'!$D$3 & " " & MINUTE(K24/24-INT(K24/24))&" " & 'Paramètres - Admin'!$D$2,HOUR(K24/24-INT(K24/24))&" " & 'Paramètres - Admin'!$D$3 & " " & MINUTE(K24/24-INT(K24/24))&" " & 'Paramètres - Admin'!$D$2)))))) -> 24 jours 0 hrs 0 mins | M24: Golem | N24: ='À Faire - Détails'!U300 -> 0 | O24: ='À Faire - Détails'!V300 -> 3 | P24: ='À Faire - Détails'!U307 -> 240000 | Q24: ='À Faire - Détails'!V307 -> 960 | R24: =IF($B$2='Paramètres - Admin'!$B$2,TEXT(Q24*60*60,"# 0")&" " & 'Paramètres - Admin'!$B$2,IF($B$2='Paramètres - Admin'!$B$3,TEXT(Q24*60,"# 0")&" " & 'Paramètres - Admin'!$B$3,IF($B$2='Paramètres - Admin'!$B$4,TEXT(Q24,"# 0,00")&" " & 'Paramètres - Admin'!$B$4,IF($B$2='Paramètres - Admin'!$B$5,TEXT(Q24/24,"# 0,00")&" " & 'Paramètres - Admin'!$B$5,IF($B$2='Paramètres - Admin'!$B$6,TEXT((Q24/24)/30,"# 0,00")&" " & 'Paramètres - Admin'!$B$6,IF(Q24/24>=1,INT(Q24/24)&" " & 'Paramètres - Admin'!$D$4 & " " & HOUR(Q24/24-INT(Q24/24))&" " & 'Paramètres - Admin'!$D$3 & " " & MINUTE(Q24/24-INT(Q24/24))&" " & 'Paramètres - Admin'!$D$2,HOUR(Q24/24-INT(Q24/24))&" " & 'Paramètres - Admin'!$D$3 & " " & MINUTE(Q24/24-INT(Q24/24))&" " & 'Paramètres - Admin'!$D$2)))))) -> 40 jours 0 hrs 0 mins
A25: Sort de Gel | B25: ='À Faire - Détails'!U217 -> 0 | C25: ='À Faire - Détails'!V217 -> 4 | D25: ='À Faire - Détails'!U224 -> 23500000 | E25: ='À Faire - Détails'!V224 -> 864 | F25: =IF($B$2='Paramètres - Admin'!$B$2,TEXT(E25*60*60,"# 0")&" " & 'Paramètres - Admin'!$B$2,IF($B$2='Paramètres - Admin'!$B$3,TEXT(E25*60,"# 0")&" " & 'Paramètres - Admin'!$B$3,IF($B$2='Paramètres - Admin'!$B$4,TEXT(E25,"# 0,00")&" " & 'Paramètres - Admin'!$B$4,IF($B$2='Paramètres - Admin'!$B$5,TEXT(E25/24,"# 0,00")&" " & 'Paramètres - Admin'!$B$5,IF($B$2='Paramètres - Admin'!$B$6,TEXT((E25/24)/30,"# 0,00")&" " & 'Paramètres - Admin'!$B$6,IF(E25/24>=1,INT(E25/24)&" " & 'Paramètres - Admin'!$D$4 & " " & HOUR(E25/24-INT(E25/24))&" " & 'Paramètres - Admin'!$D$3 & " " & MINUTE(E25/24-INT(E25/24))&" " & 'Paramètres - Admin'!$D$2,HOUR(E25/24-INT(E25/24))&" " & 'Paramètres - Admin'!$D$3 & " " & MINUTE(E25/24-INT(E25/24))&" " & 'Paramètres - Admin'!$D$2)))))) -> 36 jours 0 hrs 0 mins | G25: Sapeur | H25: ='À Faire - Détails'!J286 -> 0 | I25: ='À Faire - Détails'!K286 -> 1 | J25: ='À Faire - Détails'!J294 -> 6750000 | K25: ='À Faire - Détails'!K294 -> 240 | L25: =IF($B$2='Paramètres - Admin'!$B$2,TEXT(K25*60*60,"# 0")&" " & 'Paramètres - Admin'!$B$2,IF($B$2='Paramètres - Admin'!$B$3,TEXT(K25*60,"# 0")&" " & 'Paramètres - Admin'!$B$3,IF($B$2='Paramètres - Admin'!$B$4,TEXT(K25,"# 0,00")&" " & 'Paramètres - Admin'!$B$4,IF($B$2='Paramètres - Admin'!$B$5,TEXT(K25/24,"# 0,00")&" " & 'Paramètres - Admin'!$B$5,IF($B$2='Paramètres - Admin'!$B$6,TEXT((K25/24)/30,"# 0,00")&" " & 'Paramètres - Admin'!$B$6,IF(K25/24>=1,INT(K25/24)&" " & 'Paramètres - Admin'!$D$4 & " " & HOUR(K25/24-INT(K25/24))&" " & 'Paramètres - Admin'!$D$3 & " " & MINUTE(K25/24-INT(K25/24))&" " & 'Paramètres - Admin'!$D$2,HOUR(K25/24-INT(K25/24))&" " & 'Paramètres - Admin'!$D$3 & " " & MINUTE(K25/24-INT(K25/24))&" " & 'Paramètres - Admin'!$D$2)))))) -> 10 jours 0 hrs 0 mins | M25: Sorcière | N25: ='À Faire - Détails'!U309 -> 0 | O25: ='À Faire - Détails'!V309 -> 1 | P25: ='À Faire - Détails'!U312 -> 75000 | Q25: ='À Faire - Détails'!V313 -> 240 | R25: =IF($B$2='Paramètres - Admin'!$B$2,TEXT(Q25*60*60,"# 0")&" " & 'Paramètres - Admin'!$B$2,IF($B$2='Paramètres - Admin'!$B$3,TEXT(Q25*60,"# 0")&" " & 'Paramètres - Admin'!$B$3,IF($B$2='Paramètres - Admin'!$B$4,TEXT(Q25,"# 0,00")&" " & 'Paramètres - Admin'!$B$4,IF($B$2='Paramètres - Admin'!$B$5,TEXT(Q25/24,"# 0,00")&" " & 'Paramètres - Admin'!$B$5,IF($B$2='Paramètres - Admin'!$B$6,TEXT((Q25/24)/30,"# 0,00")&" " & 'Paramètres - Admin'!$B$6,IF(Q25/24>=1,INT(Q25/24)&" " & 'Paramètres - Admin'!$D$4 & " " & HOUR(Q25/24-INT(Q25/24))&" " & 'Paramètres - Admin'!$D$3 & " " & MINUTE(Q25/24-INT(Q25/24))&" " & 'Paramètres - Admin'!$D$2,HOUR(Q25/24-INT(Q25/24))&" " & 'Paramètres - Admin'!$D$3 & " " & MINUTE(Q25/24-INT(Q25/24))&" " & 'Paramètres - Admin'!$D$2)))))) -> 10 jours 0 hrs 0 mins
A26: Total | B26: =SUM(B21:B25) -> 0 | C26: =SUM(C21:C25) -> 7 | D26: =SUM(D21:D25) -> 42300000 | E26: =SUM(E21:E25) -> 1536 | F26: =IF($B$2='Paramètres - Admin'!$B$2,TEXT(E26*60*60,"# 0")&" " & 'Paramètres - Admin'!$B$2,IF($B$2='Paramètres - Admin'!$B$3,TEXT(E26*60,"# 0")&" " & 'Paramètres - Admin'!$B$3,IF($B$2='Paramètres - Admin'!$B$4,TEXT(E26,"# 0,00")&" " & 'Paramètres - Admin'!$B$4,IF($B$2='Paramètres - Admin'!$B$5,TEXT(E26/24,"# 0,00")&" " & 'Paramètres - Admin'!$B$5,IF($B$2='Paramètres - Admin'!$B$6,TEXT((E26/24)/30,"# 0,00")&" " & 'Paramètres - Admin'!$B$6,IF(E26/24>=1,INT(E26/24)&" " & 'Paramètres - Admin'!$D$4 & " " & HOUR(E26/24-INT(E26/24))&" " & 'Paramètres - Admin'!$D$3 & " " & MINUTE(E26/24-INT(E26/24))&" " & 'Paramètres - Admin'!$D$2,HOUR(E26/24-INT(E26/24))&" " & 'Paramètres - Admin'!$D$3 & " " & MINUTE(E26/24-INT(E26/24))&" " & 'Paramètres - Admin'!$D$2)))))) -> 64 jours 0 hrs 0 mins | G26: Ballon | H26: ='À Faire - Détails'!U243 -> 0 | I26: ='À Faire - Détails'!V243 -> 0 | J26: ='À Faire - Détails'!U251 -> 0 | K26: ='À Faire - Détails'!V251 -> 0 | L26: =IF($B$2='Paramètres - Admin'!$B$2,TEXT(K26*60*60,"# 0")&" " & 'Paramètres - Admin'!$B$2,IF($B$2='Paramètres - Admin'!$B$3,TEXT(K26*60,"# 0")&" " & 'Paramètres - Admin'!$B$3,IF($B$2='Paramètres - Admin'!$B$4,TEXT(K26,"# 0,00")&" " & 'Paramètres - Admin'!$B$4,IF($B$2='Paramètres - Admin'!$B$5,TEXT(K26/24,"# 0,00")&" " & 'Paramètres - Admin'!$B$5,IF($B$2='Paramètres - Admin'!$B$6,TEXT((K26/24)/30,"# 0,00")&" " & 'Paramètres - Admin'!$B$6,IF(K26/24>=1,INT(K26/24)&" " & 'Paramètres - Admin'!$D$4 & " " & HOUR(K26/24-INT(K26/24))&" " & 'Paramètres - Admin'!$D$3 & " " & MINUTE(K26/24-INT(K26/24))&" " & 'Paramètres - Admin'!$D$2,HOUR(K26/24-INT(K26/24))&" " & 'Paramètres - Admin'!$D$3 & " " & MINUTE(K26/24-INT(K26/24))&" " & 'Paramètres - Admin'!$D$2)))))) -> 0 hrs 0 mins | M26: Molosse de lave | N26: ='À Faire - Détails'!U315 -> 0 | O26: ='À Faire - Détails'!V315 -> 1 | P26: ='À Faire - Détails'!U320 -> 70000 | Q26: ='À Faire - Détails'!V320 -> 288 | R26: =IF($B$2='Paramètres - Admin'!$B$2,TEXT(Q26*60*60,"# 0")&" " & 'Paramètres - Admin'!$B$2,IF($B$2='Paramètres - Admin'!$B$3,TEXT(Q26*60,"# 0")&" " & 'Paramètres - Admin'!$B$3,IF($B$2='Paramètres - Admin'!$B$4,TEXT(Q26,"# 0,00")&" " & 'Paramètres - Admin'!$B$4,IF($B$2='Paramètres - Admin'!$B$5,TEXT(Q26/24,"# 0,00")&" " & 'Paramètres - Admin'!$B$5,IF($B$2='Paramètres - Admin'!$B$6,TEXT((Q26/24)/30,"# 0,00")&" " & 'Paramètres - Admin'!$B$6,IF(Q26/24>=1,INT(Q26/24)&" " & 'Paramètres - Admin'!$D$4 & " " & HOUR(Q26/24-INT(Q26/24))&" " & 'Paramètres - Admin'!$D$3 & " " & MINUTE(Q26/24-INT(Q26/24))&" " & 'Paramètres - Admin'!$D$2,HOUR(Q26/24-INT(Q26/24))&" " & 'Paramètres - Admin'!$D$3 & " " & MINUTE(Q26/24-INT(Q26/24))&" " & 'Paramètres - Admin'!$D$2)))))) -> 12 jours 0 hrs 0 mins
G27: Sorcier | H27: ='À Faire - Détails'!U253 -> 0 | I27: ='À Faire - Détails'!V253 -> 1 | J27: ='À Faire - Détails'!U261 -> 7500000 | K27: ='À Faire - Détails'!V261 -> 336 | L27: =IF($B$2='Paramètres - Admin'!$B$2,TEXT(K27*60*60,"# 0")&" " & 'Paramètres - Admin'!$B$2,IF($B$2='Paramètres - Admin'!$B$3,TEXT(K27*60,"# 0")&" " & 'Paramètres - Admin'!$B$3,IF($B$2='Paramètres - Admin'!$B$4,TEXT(K27,"# 0,00")&" " & 'Paramètres - Admin'!$B$4,IF($B$2='Paramètres - Admin'!$B$5,TEXT(K27/24,"# 0,00")&" " & 'Paramètres - Admin'!$B$5,IF($B$2='Paramètres - Admin'!$B$6,TEXT((K27/24)/30,"# 0,00")&" " & 'Paramètres - Admin'!$B$6,IF(K27/24>=1,INT(K27/24)&" " & 'Paramètres - Admin'!$D$4 & " " & HOUR(K27/24-INT(K27/24))&" " & 'Paramètres - Admin'!$D$3 & " " & MINUTE(K27/24-INT(K27/24))&" " & 'Paramètres - Admin'!$D$2,HOUR(K27/24-INT(K27/24))&" " & 'Paramètres - Admin'!$D$3 & " " & MINUTE(K27/24-INT(K27/24))&" " & 'Paramètres - Admin'!$D$2)))))) -> 14 jours 0 hrs 0 mins | M27: Total | N27: =SUM(N21:N26) -> 0 | O27: =SUM(O21:O26) -> 10 | P27: =SUM(P21:P26) -> 715000 | Q27: =SUM(Q21:Q26) -> 2688 | R27: =IF($B$2='Paramètres - Admin'!$B$2,TEXT(Q27*60*60,"# 0")&" " & 'Paramètres - Admin'!$B$2,IF($B$2='Paramètres - Admin'!$B$3,TEXT(Q27*60,"# 0")&" " & 'Paramètres - Admin'!$B$3,IF($B$2='Paramètres - Admin'!$B$4,TEXT(Q27,"# 0,00")&" " & 'Paramètres - Admin'!$B$4,IF($B$2='Paramètres - Admin'!$B$5,TEXT(Q27/24,"# 0,00")&" " & 'Paramètres - Admin'!$B$5,IF($B$2='Paramètres - Admin'!$B$6,TEXT((Q27/24)/30,"# 0,00")&" " & 'Paramètres - Admin'!$B$6,IF(Q27/24>=1,INT(Q27/24)&" " & 'Paramètres - Admin'!$D$4 & " " & HOUR(Q27/24-INT(Q27/24))&" " & 'Paramètres - Admin'!$D$3 & " " & MINUTE(Q27/24-INT(Q27/24))&" " & 'Paramètres - Admin'!$D$2,HOUR(Q27/24-INT(Q27/24))&" " & 'Paramètres - Admin'!$D$3 & " " & MINUTE(Q27/24-INT(Q27/24))&" " & 'Paramètres - Admin'!$D$2)))))) -> 112 jours 0 hrs 0 mins
G28: Guérisseuse | H28: ='À Faire - Détails'!U263 -> 0 | I28: ='À Faire - Détails'!V263 -> 1 | J28: ='À Faire - Détails'!U269 -> 3000000 | K28: ='À Faire - Détails'!V269 -> 168 | L28: =IF($B$2='Paramètres - Admin'!$B$2,TEXT(K28*60*60,"# 0")&" " & 'Paramètres - Admin'!$B$2,IF($B$2='Paramètres - Admin'!$B$3,TEXT(K28*60,"# 0")&" " & 'Paramètres - Admin'!$B$3,IF($B$2='Paramètres - Admin'!$B$4,TEXT(K28,"# 0,00")&" " & 'Paramètres - Admin'!$B$4,IF($B$2='Paramètres - Admin'!$B$5,TEXT(K28/24,"# 0,00")&" " & 'Paramètres - Admin'!$B$5,IF($B$2='Paramètres - Admin'!$B$6,TEXT((K28/24)/30,"# 0,00")&" " & 'Paramètres - Admin'!$B$6,IF(K28/24>=1,INT(K28/24)&" " & 'Paramètres - Admin'!$D$4 & " " & HOUR(K28/24-INT(K28/24))&" " & 'Paramètres - Admin'!$D$3 & " " & MINUTE(K28/24-INT(K28/24))&" " & 'Paramètres - Admin'!$D$2,HOUR(K28/24-INT(K28/24))&" " & 'Paramètres - Admin'!$D$3 & " " & MINUTE(K28/24-INT(K28/24))&" " & 'Paramètres - Admin'!$D$2)))))) -> 7 jours 0 hrs 0 mins | O28: Ressources Nécessaires
G29: Dragon | H29: ='À Faire - Détails'!U271 -> 0 | I29: ='À Faire - Détails'!V271 -> 0 | J29: ='À Faire - Détails'!U277 -> 0 | K29: ='À Faire - Détails'!V277 -> 0 | L29: =IF($B$2='Paramètres - Admin'!$B$2,TEXT(K29*60*60,"# 0")&" " & 'Paramètres - Admin'!$B$2,IF($B$2='Paramètres - Admin'!$B$3,TEXT(K29*60,"# 0")&" " & 'Paramètres - Admin'!$B$3,IF($B$2='Paramètres - Admin'!$B$4,TEXT(K29,"# 0,00")&" " & 'Paramètres - Admin'!$B$4,IF($B$2='Paramètres - Admin'!$B$5,TEXT(K29/24,"# 0,00")&" " & 'Paramètres - Admin'!$B$5,IF($B$2='Paramètres - Admin'!$B$6,TEXT((K29/24)/30,"# 0,00")&" " & 'Paramètres - Admin'!$B$6,IF(K29/24>=1,INT(K29/24)&" " & 'Paramètres - Admin'!$D$4 & " " & HOUR(K29/24-INT(K29/24))&" " & 'Paramètres - Admin'!$D$3 & " " & MINUTE(K29/24-INT(K29/24))&" " & 'Paramètres - Admin'!$D$2,HOUR(K29/24-INT(K29/24))&" " & 'Paramètres - Admin'!$D$3 & " " & MINUTE(K29/24-INT(K29/24))&" " & 'Paramètres - Admin'!$D$2)))))) -> 0 hrs 0 mins
G30: P.E.K.K.A | H30: ='À Faire - Détails'!U279 -> 0 | I30: ='À Faire - Détails'!V279 -> 3 | J30: ='À Faire - Détails'!U286 -> 21000000 | K30: ='À Faire - Détails'!V286 -> 960 | L30: =IF($B$2='Paramètres - Admin'!$B$2,TEXT(K30*60*60,"# 0")&" " & 'Paramètres - Admin'!$B$2,IF($B$2='Paramètres - Admin'!$B$3,TEXT(K30*60,"# 0")&" " & 'Paramètres - Admin'!$B$3,IF($B$2='Paramètres - Admin'!$B$4,TEXT(K30,"# 0,00")&" " & 'Paramètres - Admin'!$B$4,IF($B$2='Paramètres - Admin'!$B$5,TEXT(K30/24,"# 0,00")&" " & 'Paramètres - Admin'!$B$5,IF($B$2='Paramètres - Admin'!$B$6,TEXT((K30/24)/30,"# 0,00")&" " & 'Paramètres - Admin'!$B$6,IF(K30/24>=1,INT(K30/24)&" " & 'Paramètres - Admin'!$D$4 & " " & HOUR(K30/24-INT(K30/24))&" " & 'Paramètres - Admin'!$D$3 & " " & MINUTE(K30/24-INT(K30/24))&" " & 'Paramètres - Admin'!$D$2,HOUR(K30/24-INT(K30/24))&" " & 'Paramètres - Admin'!$D$3 & " " & MINUTE(K30/24-INT(K30/24))&" " & 'Paramètres - Admin'!$D$2)))))) -> 40 jours 0 hrs 0 mins
G31: Total | H31: =SUM(H21:H30) -> 0 | I31: =SUM(I21:I30) -> 13 | J31: =SUM(J21:J30) -> 79750000 | K31: =SUM(K21:K30) -> 3672 | L31: =IF($B$2='Paramètres - Admin'!$B$2,TEXT(K31*60*60,"# 0")&" " & 'Paramètres - Admin'!$B$2,IF($B$2='Paramètres - Admin'!$B$3,TEXT(K31*60,"# 0")&" " & 'Paramètres - Admin'!$B$3,IF($B$2='Paramètres - Admin'!$B$4,TEXT(K31,"# 0,00")&" " & 'Paramètres - Admin'!$B$4,IF($B$2='Paramètres - Admin'!$B$5,TEXT(K31/24,"# 0,00")&" " & 'Paramètres - Admin'!$B$5,IF($B$2='Paramètres - Admin'!$B$6,TEXT((K31/24)/30,"# 0,00")&" " & 'Paramètres - Admin'!$B$6,IF(K31/24>=1,INT(K31/24)&" " & 'Paramètres - Admin'!$D$4 & " " & HOUR(K31/24-INT(K31/24))&" " & 'Paramètres - Admin'!$D$3 & " " & MINUTE(K31/24-INT(K31/24))&" " & 'Paramètres - Admin'!$D$2,HOUR(K31/24-INT(K31/24))&" " & 'Paramètres - Admin'!$D$3 & " " & MINUTE(K31/24-INT(K31/24))&" " & 'Paramètres - Admin'!$D$2)))))) -> 153 jours 0 hrs 0 mins

Sheet À Faire - Détails
A1: LVL HdV | C1: Or Total : | F1: Élixir Total : | I1: Élixir Noir Total : | K1: Temps Total : | N1: ='À Faire - Récapitulatif'!N1 -> Bâtiments : 992 jours 6 hrs 0 mins | R1: => Temps par Ouvrier : | U1: Améliorations de Troupes/Sorts :
A2: =Paramètres!$BE$2 -> 10 | C2: ='À Faire - Récapitulatif'!D2 -> 2 562 492 000 | F2: ='À Faire - Récapitulatif'!G2 -> 163 486 000 | I2: ='À Faire - Récapitulatif'!I2 -> 8 397 500 | K2: ='À Faire - Récapitulatif'!L2 -> 1763 jours 18 hrs 0 mins | N2: ='À Faire - Récapitulatif'!N2 -> Héros : 442 jours 12 hrs 0 mins | R2: ='À Faire - Récapitulatif'!S2 -> 286 jours 22 hrs 48 mins | U2: ='À Faire - Récapitulatif'!V2 -> 329 jours 0 hrs 0 mins
A3: Bâtiments de Ressources
A4: Élixir | L4: Or
A5: Mine d'Or | D5: Max | E5: Max + | I5: Actuel | J5: À Faire | K5: Améliorations | L5: Extracteur d'Élixir | O5: Max | P5: Max + | T5: Actuel | U5: À Faire | V5: Améliorations
D6: =VLOOKUP($A$2,AVAILABLE_Buildings_Resource[#All],MATCH(A5,AVAILABLE_Buildings_Resource[#Headers],0)) -> 7 | E6: =VLOOKUP($A$2,AVAILABLE_Buildings_Resource[#All],MATCH(A5,AVAILABLE_Buildings_Resource[#Headers],0)+1) -> 12 | I6: =IF(SUM(B8:B19)>D6,"Error",SUM(B8:B19)) -> 7 | J6: =IF(I$6="Error","Error",D6-I6) -> 0 | K6: =IF(I$6="Error","Error",SUM(F8:F19)) -> 1 | O6: =VLOOKUP($A$2,AVAILABLE_Buildings_Resource[#All],MATCH(L5,AVAILABLE_Buildings_Resource[#Headers],0)) -> 7 | P6: =VLOOKUP($A$2,AVAILABLE_Buildings_Resource[#All],MATCH(L5,AVAILABLE_Buildings_Resource[#Headers],0)+1) -> 12 | T6: =IF(SUM(M8:M19)>O6,"Error",SUM(M8:M19)) -> 7 | U6: =IF(T$6="Error","Error",O6-T6) -> 0 | V6: =IF(T$6="Error","Error",SUM(Q8:Q19)) -> 7
A7: + | B7: NB | F7: NB | G7: + | H7: Coût | I7: Temps | J7: Coût Total | K7: Temps Total | L7: + | M7: NB | Q7: NB | R7: + | S7: Coût | T7: Temps | U7: Coût Total | V7: Temps Total
A8: 1 | B8: =IF(Paramètres!B6=0,"",Paramètres!B6) ->  | C8: =IF(C7<>0,C7+IF(AND(B7<>"",A7<E$6),B7,0),IF(AND(B7<>"",A7<E$6),B7,0)) -> 0 | F8: =IF(G8<>"/",IF(I$6="Error","Error",$J$6+C8),"/") -> 0 | G8: =IF(I$6="Error","Error",IF(AND($E$6<>"/",$E$6>'Paramètres - Admin'!$A2),'Paramètres - Admin'!$A3,"/")) -> 1 | H8: =IF(G8<>"/",VLOOKUP(G8,COSTS_Gold_Mine[#All],2),"/") -> 150 | I8: =IF(G8<>"/",VLOOKUP(G8,COSTS_Gold_Mine[#All],3),"/") -> 0.01666666667 | J8: =IF(I$6="Error","Error",IF(H8<>"/",F8*H8,0)) -> 0 | K8: =IF(I$6="Error","Error",IF(I8<>"/",F8*I8,0)) -> 0 | L8: 1 | M8: =IF(Paramètres!C6=0,"",Paramètres!C6) ->  | N8: =IF(N7<>0,N7+IF(AND(M7<>"",L7<P$6),M7,0),IF(AND(M7<>"",L7<P$6),M7,0)) -> 0 | Q8: =IF(R8<>"/",IF(T$6="Error","Error",$U$6+N8),"/") -> 0 | R8: =IF(T$6="Error","Error",IF(AND($P$6<>"/",$P$6>'Paramètres - Admin'!$A2),'Paramètres - Admin'!$A3,"/")) -> 1 | S8: =IF(R8<>"/",VLOOKUP(R8,COSTS_Elixir_Collector[#All],2),"/") -> 150 | T8: =IF(R8<>"/",VLOOKUP(R8,COSTS_Elixir_Collector[#All],3),"/") -> 0.01666666667 | U8: =IF(T$6="Error","Error",IF(S8<>"/",Q8*S8,0)) -> 0 | V8: =IF(T$6="Error","Error",IF(T8<>"/",Q8*T8,0)) -> 0
A9: 2 | B9: =IF(Paramètres!B7=0,"",Paramètres!B7) ->  | C9: =IF(C8<>0,C8+IF(AND(B8<>"",A8<E$6),B8,0),IF(AND(B8<>"",A8<E$6),B8,0)) -> 0 | F9: =IF(G9<>"/",IF(I$6="Error","Error",$J$6+C9),"/") -> 0 | G9: =IF(I$6="Error","Error",IF(AND($E$6<>"/",$E$6>'Paramètres - Admin'!$A3),'Paramètres - Admin'!$A4,"/")) -> 2 | H9: =IF(G9<>"/",VLOOKUP(G9,COSTS_Gold_Mine[#All],2),"/") -> 300 | I9: =IF(G9<>"/",VLOOKUP(G9,COSTS_Gold_Mine[#All],3),"/") -> 0.08333333333 | J9: =IF(I$6="Error","Error",IF(H9<>"/",F9*H9,0)) -> 0 | K9: =IF(I$6="Error","Error",IF(I9<>"/",F9*I9,0)) -> 0 | L9: 2 | M9: =IF(Paramètres!C7=0,"",Paramètres!C7) ->  | N9: =IF(N8<>0,N8+IF(AND(M8<>"",L8<P$6),M8,0),IF(AND(M8<>"",L8<P$6),M8,0)) -> 0 | Q9: =IF(R9<>"/",IF(T$6="Error","Error",$U$6+N9),"/") -> 0 | R9: =IF(T$6="Error","Error",IF(AND($P$6<>"/",$P$6>'Paramètres - Admin'!$A3),'Paramètres - Admin'!$A4,"/")) -> 2 | S9: =IF(R9<>"/",VLOOKUP(R9,COSTS_Elixir_Collector[#All],2),"/") -> 300 | T9: =IF(R9<>"/",VLOOKUP(R9,COSTS_Elixir_Collector[#All],3),"/") -> 0.08333333333 | U9: =IF(T$6="Error","Error",IF(S9<>"/",Q9*S9,0)) -> 0 | V9: =IF(T$6="Error","Error",IF(T9<>"/",Q9*T9,0)) -> 0
A10: 3 | B10: =IF(Paramètres!B8=0,"",Paramètres!B8) ->  | C10: 0 | F10: 0 | G10: =IF(I$6="Error","Error",IF(AND($E$6<>"/",$E$6>'Paramètres - Admin'!$A4),'Paramètres - Admin'!$A5,"/")) -> 3 | H10: =IF(G10<>"/",VLOOKUP(G10,COSTS_Gold_Mine[#All],2),"/") -> 700 | I10: =IF(G10<>"/",VLOOKUP(G10,COSTS_Gold_Mine[#All],3),"/") -> 0.25 | J10: 0 | K10: 0 | L10: 3 | M10: =IF(Paramètres!C8=0,"",Paramètres!C8) ->  | N10: 0 | Q10: 0 | R10: =IF(T$6="Error","Error",IF(AND($P$6<>"/",$P$6>'Paramètres - Admin'!$A4),'Paramètres - Admin'!$A5,"/")) -> 3 | S10: =IF(R10<>"/",VLOOKUP(R10,COSTS_Elixir_Collector[#All],2),"/") -> 700 | T10: =IF(R10<>"/",VLOOKUP(R10,COSTS_Elixir_Collector[#All],3),"/") -> 0.25 | U10: 0 | V10: 0
A11: 4 | B11: =IF(Paramètres!B9=0,"",Paramètres!B9) ->  | C11: 0 | F11: 0 | G11: =IF(I$6="Error","Error",IF(AND($E$6<>"/",$E$6>'Paramètres - Admin'!$A5),'Paramètres - Admin'!$A6,"/")) -> 4 | H11: =IF(G11<>"/",VLOOKUP(G11,COSTS_Gold_Mine[#All],2),"/") -> 1400 | I11: =IF(G11<>"/",VLOOKUP(G11,COSTS_Gold_Mine[#All],3),"/") -> 1 | J11: 0 | K11: 0 | L11: 4 | M11: =IF(Paramètres!C9=0,"",Paramètres!C9) ->  | N11: 0 | Q11: 0 | R11: =IF(T$6="Error","Error",IF(AND($P$6<>"/",$P$6>'Paramètres - Admin'!$A5),'Paramètres - Admin'!$A6,"/")) -> 4 | S11: =IF(R11<>"/",VLOOKUP(R11,COSTS_Elixir_Collector[#All],2),"/") -> 1400 | T11: =IF(R11<>"/",VLOOKUP(R11,COSTS_Elixir_Collector[#All],3),"/") -> 1 | U11: 0 | V11: 0
A12: 5 | B12: =IF(Paramètres!B10=0,"",Paramètres!B10) ->  | C12: 0 | F12: 0 | G12: =IF(I$6="Error","Error",IF(AND($E$6<>"/",$E$6>'Paramètres - Admin'!$A6),'Paramètres - Admin'!$A7,"/")) -> 5 | H12: =IF(G12<>"/",VLOOKUP(G12,COSTS_Gold_Mine[#All],2),"/") -> 3000 | I12: =IF(G12<>"/",VLOOKUP(G12,COSTS_Gold_Mine[#All],3),"/") -> 2 | J12: 0 | K12: 0 | L12: 5 | M12: =IF(Paramètres!C10=0,"",Paramètres!C10) ->  | N12: 0 | Q12: 0 | R12: =IF(T$6="Error","Error",IF(AND($P$6<>"/",$P$6>'Paramètres - Admin'!$A6),'Paramètres - Admin'!$A7,"/")) -> 5 | S12: =IF(R12<>"/",VLOOKUP(R12,COSTS_Elixir_Collector[#All],2),"/") -> 3000 | T12: =IF(R12<>"/",VLOOKUP(R12,COSTS_Elixir_Collector[#All],3),"/") -> 2 | U12: 0 | V12: 0
A13: 6 | B13: =IF(Paramètres!B11=0,"",Paramètres!B11) ->  | C13: 0 | F13: 0 | G13: =IF(I$6="Error","Error",IF(AND($E$6<>"/",$E$6>'Paramètres - Admin'!$A7),'Paramètres - Admin'!$A8,"/")) -> 6 | H13: =IF(G13<>"/",VLOOKUP(G13,COSTS_Gold_Mine[#All],2),"/") -> 7000 | I13: =IF(G13<>"/",VLOOKUP(G13,COSTS_Gold_Mine[#All],3),"/") -> 6 | J13: 0 | K13: 0 | L13: 6 | M13: =IF(Paramètres!C11=0,"",Paramètres!C11) ->  | N13: 0 | Q13: 0 | R13: =IF(T$6="Error","Error",IF(AND($P$6<>"/",$P$6>'Paramètres - Admin'!$A7),'Paramètres - Admin'!$A8,"/")) -> 6 | S13: =IF(R13<>"/",VLOOKUP(R13,COSTS_Elixir_Collector[#All],2),"/") -> 7000 | T13: =IF(R13<>"/",VLOOKUP(R13,COSTS_Elixir_Collector[#All],3),"/") -> 6 | U13: 0 | V13: 0
A14: 7 | B14: =IF(Paramètres!B12=0,"",Paramètres!B12) ->  | C14: 0 | F14: 0 | G14: =IF(I$6="Error","Error",IF(AND($E$6<>"/",$E$6>'Paramètres - Admin'!$A8),'Paramètres - Admin'!$A9,"/")) -> 7 | H14: =IF(G14<>"/",VLOOKUP(G14,COSTS_Gold_Mine[#All],2),"/") -> 14000 | I14: =IF(G14<>"/",VLOOKUP(G14,COSTS_Gold_Mine[#All],3),"/") -> 12 | J14: 0 | K14: 0 | L14: 7 | M14: =IF(Paramètres!C12=0,"",Paramètres!C12) ->  | N14: 0 | Q14: 0 | R14: =IF(T$6="Error","Error",IF(AND($P$6<>"/",$P$6>'Paramètres - Admin'!$A8),'Paramètres - Admin'!$A9,"/")) -> 7 | S14: =IF(R14<>"/",VLOOKUP(R14,COSTS_Elixir_Collector[#All],2),"/") -> 14000 | T14: =IF(R14<>"/",VLOOKUP(R14,COSTS_Elixir_Collector[#All],3),"/") -> 12 | U14: 0 | V14: 0
A15: 8 | B15: =IF(Paramètres!B13=0,"",Paramètres!B13) ->  | C15: 0 | F15: 0 | G15: =IF(I$6="Error","Error",IF(AND($E$6<>"/",$E$6>'Paramètres - Admin'!$A9),'Paramètres - Admin'!$A10,"/")) -> 8 | H15: =IF(G15<>"/",VLOOKUP(G15,COSTS_Gold_Mine[#All],2),"/") -> 28000 | I15: =IF(G15<>"/",VLOOKUP(G15,COSTS_Gold_Mine[#All],3),"/") -> 24 | J15: 0 | K15: 0 | L15: 8 | M15: =IF(Paramètres!C13=0,"",Paramètres!C13) ->  | N15: 0 | Q15: 0 | R15: =IF(T$6="Error","Error",IF(AND($P$6<>"/",$P$6>'Paramètres - Admin'!$A9),'Paramètres - Admin'!$A10,"/")) -> 8 | S15: =IF(R15<>"/",VLOOKUP(R15,COSTS_Elixir_Collector[#All],2),"/") -> 28000 | T15: =IF(R15<>"/",VLOOKUP(R15,COSTS_Elixir_Collector[#All],3),"/") -> 24 | U15: 0 | V15: 0
A16: 9 | B16: =IF(Paramètres!B14=0,"",Paramètres!B14) ->  | C16: 0 | F16: 0 | G16: =IF(I$6="Error","Error",IF(AND($E$6<>"/",$E$6>'Paramètres - Admin'!$A10),'Paramètres - Admin'!$A11,"/")) -> 9 | H16: =IF(G16<>"/",VLOOKUP(G16,COSTS_Gold_Mine[#All],2),"/") -> 56000 | I16: =IF(G16<>"/",VLOOKUP(G16,COSTS_Gold_Mine[#All],3),"/") -> 48 | J16: 0 | K16: 0 | L16: 9 | M16: =IF(Paramètres!C14=0,"",Paramètres!C14) ->  | N16: 0 | Q16: 0 | R16: =IF(T$6="Error","Error",IF(AND($P$6<>"/",$P$6>'Paramètres - Admin'!$A10),'Paramètres - Admin'!$A11,"/")) -> 9 | S16: =IF(R16<>"/",VLOOKUP(R16,COSTS_Elixir_Collector[#All],2),"/") -> 56000 | T16: =IF(R16<>"/",VLOOKUP(R16,COSTS_Elixir_Collector[#All],3),"/") -> 48 | U16: 0 | V16: 0
A17: 10 | B17: =IF(Paramètres!B15=0,"",Paramètres!B15) ->  | C17: 0 | F17: 0 | G17: =IF(I$6="Error","Error",IF(AND($E$6<>"/",$E$6>'Paramètres - Admin'!$A11),'Paramètres - Admin'!$A12,"/")) -> 10 | H17: =IF(G17<>"/",VLOOKUP(G17,COSTS_Gold_Mine[#All],2),"/") -> 84000 | I17: =IF(G17<>"/",VLOOKUP(G17,COSTS_Gold_Mine[#All],3),"/") -> 72 | J17: 0 | K17: 0 | L17: 10 | M17: =IF(Paramètres!C15=0,"",Paramètres!C15) ->  | N17: 0 | Q17: 0 | R17: =IF(T$6="Error","Error",IF(AND($P$6<>"/",$P$6>'Paramètres - Admin'!$A11),'Paramètres - Admin'!$A12,"/")) -> 10 | S17: =IF(R17<>"/",VLOOKUP(R17,COSTS_Elixir_Collector[#All],2),"/") -> 84000 | T17: =IF(R17<>"/",VLOOKUP(R17,COSTS_Elixir_Collector[#All],3),"/") -> 72 | U17: 0 | V17: 0
A18: 11 | B18: =IF(Paramètres!B16=0,"",Paramètres!B16) -> 1 | C18: 0 | F18: 0 | G18: =IF(I$6="Error","Error",IF(AND($E$6<>"/",$E$6>'Paramètres - Admin'!$A12),'Paramètres - Admin'!$A13,"/")) -> 11 | H18: =IF(G18<>"/",VLOOKUP(G18,COSTS_Gold_Mine[#All],2),"/") -> 168000 | I18: =IF(G18<>"/",VLOOKUP(G18,COSTS_Gold_Mine[#All],3),"/") -> 96 | J18: 0 | K18: 0 | L18: 11 | M18: =IF(Paramètres!C16=0,"",Paramètres!C16) -> 7 | N18: =IF(N17<>0,N17+IF(AND(M17<>"",L17<P$6),M17,0),IF(AND(M17<>"",L17<P$6),M17,0)) -> 0 | Q18: =IF(R18<>"/",IF(T$6="Error","Error",$U$6+N18),"/") -> 0 | R18: =IF(T$6="Error","Error",IF(AND($P$6<>"/",$P$6>'Paramètres - Admin'!$A12),'Paramètres - Admin'!$A13,"/")) -> 11 | S18: =IF(R18<>"/",VLOOKUP(R18,COSTS_Elixir_Collector[#All],2),"/") -> 168000 | T18: =IF(R18<>"/",VLOOKUP(R18,COSTS_Elixir_Collector[#All],3),"/") -> 96 | U18: =IF(T$6="Error","Error",IF(S18<>"/",Q18*S18,0)) -> 0 | V18: =IF(T$6="Error","Error",IF(T18<>"/",Q18*T18,0)) -> 0
A19: 12 | B19: =IF(Paramètres!B17=0,"",Paramètres!B17) -> 6 | C19: =IF(C18<>0,C18+IF(AND(B18<>"",A18<E$6),B18,0),IF(AND(B18<>"",A18<E$6),B18,0)) -> 1 | F19: =IF(G19<>"/",IF(I$6="Error","Error",$J$6+C19),"/") -> 1 | G19: =IF(I$6="Error","Error",IF(AND($E$6<>"/",$E$6>'Paramètres - Admin'!$A13),'Paramètres - Admin'!$A14,"/")) -> 12 | H19: =IF(G19<>"/",VLOOKUP(G19,COSTS_Gold_Mine[#All],2),"/") -> 336000 | I19: =IF(G19<>"/",VLOOKUP(G19,COSTS_Gold_Mine[#All],3),"/") -> 120 | J19: =IF(I$6="Error","Error",IF(H19<>"/",F19*H19,0)) -> 336000 | K19: =IF(I$6="Error","Error",IF(I19<>"/",F19*I19,0)) -> 120 | L19: 12 | M19: =IF(Paramètres!C17=0,"",Paramètres!C17) ->  | N19: =IF(N18<>0,N18+IF(AND(M18<>"",L18<P$6),M18,0),IF(AND(M18<>"",L18<P$6),M18,0)) -> 7 | Q19: =IF(R19<>"/",IF(T$6="Error","Error",$U$6+N19),"/") -> 7 | R19: =IF(T$6="Error","Error",IF(AND($P$6<>"/",$P$6>'Paramètres - Admin'!$A13),'Paramètres - Admin'!$A14,"/")) -> 12 | S19: =IF(R19<>"/",VLOOKUP(R19,COSTS_Elixir_Collector[#All],2),"/") -> 336000 | T19: =IF(R19<>"/",VLOOKUP(R19,COSTS_Elixir_Collector[#All],3),"/") -> 120 | U19: =IF(T$6="Error","Error",IF(S19<>"/",Q19*S19,0)) -> 2352000 | V19: =IF(T$6="Error","Error",IF(T19<>"/",Q19*T19,0)) -> 840
I20: Total | J20: =IF(I$6="Error","Error",SUM(J8:J19)) -> 336000 | K20: =IF(I$6="Error","Error",SUM(K8:K19)) -> 120 | T20: Total | U20: =IF(T$6="Error","Error",SUM(U8:U19)) -> 2352000 | V20: =IF(T$6="Error","Error",SUM(V8:V19)) -> 840
A21: Foreuse d'Élixir Noir | D21: Max | E21: Max + | I21: Actuel | J21: À Faire | K21: Améliorations | L21: Réservoir d'Élixir | O21: Max | P21: Max + | T21: Actuel | U21: À Faire | V21: Améliorations
D22: =VLOOKUP($A$2,AVAILABLE_Buildings_Resource[#All],MATCH(A21,AVAILABLE_Buildings_Resource[#Headers],0)) -> 3 | E22: =VLOOKUP($A$2,AVAILABLE_Buildings_Resource[#All],MATCH(A21,AVAILABLE_Buildings_Resource[#Headers],0)+1) -> 6 | I22: =IF(SUM(B24:B29)>D22,"Error",SUM(B24:B29)) -> 3 | J22: =IF(I$22="Error","Error",D22-I22) -> 0 | K22: =IF(I$22="Error","Error",SUM(F24:F29)) -> 6 | O22: =VLOOKUP($A$2,AVAILABLE_Buildings_Resource[#All],MATCH(L21,AVAILABLE_Buildings_Resource[#Headers],0)) -> 4 | P22: =VLOOKUP($A$2,AVAILABLE_Buildings_Resource[#All],MATCH(L21,AVAILABLE_Buildings_Resource[#Headers],0)+1) -> 11 | T22: =IF(SUM(M24:M34)>O22,"Error",SUM(M24:M34)) -> 4 | U22: =IF(T$22="Error","Error",O22-T22) -> 0 | V22: =IF(T$22="Error","Error",SUM(Q24:Q34)) -> 0
A23: + | B23: NB | F23: NB | G23: + | H23: Coût | I23: Temps | J23: Coût Total | K23: Temps Total | L23: + | M23: NB | Q23: NB | R23: + | S23: Coût | T23: Temps | U23: Coût Total | V23: Temps Total
A24: 1 | B24: =IF(Paramètres!D6=0,"",Paramètres!D6) ->  | C24: =IF(C23<>0,C23+IF(AND(B23<>"",A23<E$6),B23,0),IF(AND(B23<>"",A23<E$6),B23,0)) -> 0 | F24: =IF(G24<>"/",IF(I$22="Error","Error",$J$22+C24),"/") -> 0 | G24: =IF(I$22="Error","Error",IF(AND($E$22<>"/",$E$22>'Paramètres - Admin'!$A2),'Paramètres - Admin'!$A3,"/")) -> 1 | H24: =IF(G24<>"/",VLOOKUP(G24,COSTS_Dark_Elixir_Drill[#All],2),"/") -> 1000000 | I24: =IF(G24<>"/",VLOOKUP(G24,COSTS_Dark_Elixir_Drill[#All],3),"/") -> 24 | J24: =IF(I$22="Error","Error",IF(H24<>"/",F24*H24,0)) -> 0 | K24: =IF(I$22="Error","Error",IF(I24<>"/",F24*I24,0)) -> 0 | L24: 1 | M24: =IF(Paramètres!F6=0,"",Paramètres!F6) ->  | N24: =IF(N23<>0,N23+IF(AND(M23<>"",L23<P$6),M23,0),IF(AND(M23<>"",L23<P$6),M23,0)) -> 0 | Q24: =IF(R24<>"/",IF(T$22="Error","Error",$U$22+N24),"/") -> 0 | R24: =IF(T$22="Error","Error",IF(AND($P$22<>"/",$P$22>'Paramètres - Admin'!$A2),'Paramètres - Admin'!$A3,"/")) -> 1 | S24: =IF(R24<>"/",VLOOKUP(R24,COSTS_Elixir_Storage[#All],2),"/") -> 300 | T24: =IF(R24<>"/",VLOOKUP(R24,COSTS_Elixir_Storage[#All],3),"/") -> 0.25 | U24: =IF(T$22="Error","Error",IF(S24<>"/",Q24*S24,0)) -> 0 | V24: =IF(T$22="Error","Error",IF(T24<>"/",Q24*T24,0)) -> 0
A25: 2 | B25: =IF(Paramètres!D7=0,"",Paramètres!D7) ->  | C25: 0 | F25: 0 | G25: =IF(I$22="Error","Error",IF(AND($E$22<>"/",$E$22>'Paramètres - Admin'!$A3),'Paramètres - Admin'!$A4,"/")) -> 2 | H25: =IF(G25<>"/",VLOOKUP(G25,COSTS_Dark_Elixir_Drill[#All],2),"/") -> 1500000 | I25: =IF(G25<>"/",VLOOKUP(G25,COSTS_Dark_Elixir_Drill[#All],3),"/") -> 48 | J25: 0 | K25: 0 | L25: 2 | M25: =IF(Paramètres!F7=0,"",Paramètres!F7) ->  | N25: 0 | Q25: 0 | R25: =IF(T$22="Error","Error",IF(AND($P$22<>"/",$P$22>'Paramètres - Admin'!$A3),'Paramètres - Admin'!$A4,"/")) -> 2 | S25: =IF(R25<>"/",VLOOKUP(R25,COSTS_Elixir_Storage[#All],2),"/") -> 750 | T25: =IF(R25<>"/",VLOOKUP(R25,COSTS_Elixir_Storage[#All],3),"/") -> 0.5 | U25: 0 | V25: 0
A26: 3 | B26: =IF(Paramètres!D8=0,"",Paramètres!D8) ->  | C26: 0 | F26: 0 | G26: =IF(I$22="Error","Error",IF(AND($E$22<>"/",$E$22>'Paramètres - Admin'!$A4),'Paramètres - Admin'!$A5,"/")) -> 3 | H26: =IF(G26<>"/",VLOOKUP(G26,COSTS_Dark_Elixir_Drill[#All],2),"/") -> 2000000 | I26: =IF(G26<>"/",VLOOKUP(G26,COSTS_Dark_Elixir_Drill[#All],3),"/") -> 72 | J26: 0 | K26: 0 | L26: 3 | M26: =IF(Paramètres!F8=0,"",Paramètres!F8) ->  | N26: 0 | Q26: 0 | R26: =IF(T$22="Error","Error",IF(AND($P$22<>"/",$P$22>'Paramètres - Admin'!$A4),'Paramètres - Admin'!$A5,"/")) -> 3 | S26: =IF(R26<>"/",VLOOKUP(R26,COSTS_Elixir_Storage[#All],2),"/") -> 1500 | T26: =IF(R26<>"/",VLOOKUP(R26,COSTS_Elixir_Storage[#All],3),"/") -> 1 | U26: 0 | V26: 0
A27: 4 | B27: =IF(Paramètres!D9=0,"",Paramètres!D9) -> 3 | C27: 0 | F27: 0 | G27: =IF(I$22="Error","Error",IF(AND($E$22<>"/",$E$22>'Paramètres - Admin'!$A5),'Paramètres - Admin'!$A6,"/")) -> 4 | H27: =IF(G27<>"/",VLOOKUP(G27,COSTS_Dark_Elixir_Drill[#All],2),"/") -> 3000000 | I27: =IF(G27<>"/",VLOOKUP(G27,COSTS_Dark_Elixir_Drill[#All],3),"/") -> 96 | J27: 0 | K27: 0 | L27: 4 | M27: =IF(Paramètres!F9=0,"",Paramètres!F9) ->  | N27: 0 | Q27: 0 | R27: =IF(T$22="Error","Error",IF(AND($P$22<>"/",$P$22>'Paramètres - Admin'!$A5),'Paramètres - Admin'!$A6,"/")) -> 4 | S27: =IF(R27<>"/",VLOOKUP(R27,COSTS_Elixir_Storage[#All],2),"/") -> 3000 | T27: =IF(R27<>"/",VLOOKUP(R27,COSTS_Elixir_Storage[#All],3),"/") -> 2 | U27: 0 | V27: 0
A28: 5 | B28: =IF(Paramètres!D10=0,"",Paramètres!D10) ->  | C28: 3 | F28: 3 | G28: =IF(I$22="Error","Error",IF(AND($E$22<>"/",$E$22>'Paramètres - Admin'!$A6),'Paramètres - Admin'!$A7,"/")) -> 5 | H28: =IF(G28<>"/",VLOOKUP(G28,COSTS_Dark_Elixir_Drill[#All],2),"/") -> 4000000 | I28: =IF(G28<>"/",VLOOKUP(G28,COSTS_Dark_Elixir_Drill[#All],3),"/") -> 144 | J28: 12000000 | K28: 432 | L28: 5 | M28: =IF(Paramètres!F10=0,"",Paramètres!F10) ->  | N28: 0 | Q28: 0 | R28: =IF(T$22="Error","Error",IF(AND($P$22<>"/",$P$22>'Paramètres - Admin'!$A6),'Paramètres - Admin'!$A7,"/")) -> 5 | S28: =IF(R28<>"/",VLOOKUP(R28,COSTS_Elixir_Storage[#All],2),"/") -> 6000 | T28: =IF(R28<>"/",VLOOKUP(R28,COSTS_Elixir_Storage[#All],3),"/") -> 3 | U28: 0 | V28: 0
A29: 6 | B29: =IF(Paramètres!D11=0,"",Paramètres!D11) ->  | C29: 3 | F29: 3 | G29: =IF(I$22="Error","Error",IF(AND($E$22<>"/",$E$22>'Paramètres - Admin'!$A7),'Paramètres - Admin'!$A8,"/")) -> 6 | H29: =IF(G29<>"/",VLOOKUP(G29,COSTS_Dark_Elixir_Drill[#All],2),"/") -> 5000000 | I29: =IF(G29<>"/",VLOOKUP(G29,COSTS_Dark_Elixir_Drill[#All],3),"/") -> 192 | J29: 15000000 | K29: 576 | L29: 6 | M29: =IF(Paramètres!F11=0,"",Paramètres!F11) ->  | N29: 0 | Q29: 0 | R29: =IF(T$22="Error","Error",IF(AND($P$22<>"/",$P$22>'Paramètres - Admin'!$A7),'Paramètres - Admin'!$A8,"/")) -> 6 | S29: =IF(R29<>"/",VLOOKUP(R29,COSTS_Elixir_Storage[#All],2),"/") -> 12000 | T29: =IF(R29<>"/",VLOOKUP(R29,COSTS_Elixir_Storage[#All],3),"/") -> 4 | U29: 0 | V29: 0
I30: Total | J30: =IF(I$22="Error","Error",SUM(J24:J29)) -> 27000000 | K30: =IF(I$22="Error","Error",SUM(K24:K29)) -> 1008 | L30: 7 | M30: =IF(Paramètres!F12=0,"",Paramètres!F12) ->  | N30: 0 | Q30: 0 | R30: =IF(T$22="Error","Error",IF(AND($P$22<>"/",$P$22>'Paramètres - Admin'!$A8),'Paramètres - Admin'!$A9,"/")) -> 7 | S30: =IF(R30<>"/",VLOOKUP(R30,COSTS_Elixir_Storage[#All],2),"/") -> 25000 | T30: =IF(R30<>"/",VLOOKUP(R30,COSTS_Elixir_Storage[#All],3),"/") -> 6 | U30: 0 | V30: 0
A31: Réserve d'Or | D31: Max | E31: Max + | I31: Actuel | J31: À Faire | K31: Améliorations | L31: 8 | M31: =IF(Paramètres!F13=0,"",Paramètres!F13) ->  | N31: 0 | Q31: 0 | R31: =IF(T$22="Error","Error",IF(AND($P$22<>"/",$P$22>'Paramètres - Admin'!$A9),'Paramètres - Admin'!$A10,"/")) -> 8 | S31: =IF(R31<>"/",VLOOKUP(R31,COSTS_Elixir_Storage[#All],2),"/") -> 50000 | T31: =IF(R31<>"/",VLOOKUP(R31,COSTS_Elixir_Storage[#All],3),"/") -> 8 | U31: 0 | V31: 0
D32: =VLOOKUP($A$2,AVAILABLE_Buildings_Resource[#All],MATCH(A31,AVAILABLE_Buildings_Resource[#Headers],0)) -> 4 | E32: =VLOOKUP($A$2,AVAILABLE_Buildings_Resource[#All],MATCH(A31,AVAILABLE_Buildings_Resource[#Headers],0)+1) -> 11 | I32: =IF(SUM(B34:B44)>D32,"Error",SUM(B34:B44)) -> 4 | J32: =IF(I$32="Error","Error",D32-I32) -> 0 | K32: =IF(I$32="Error","Error",SUM(F34:F44)) -> 0 | L32: 9 | M32: =IF(Paramètres!F14=0,"",Paramètres!F14) ->  | N32: 0 | Q32: 0 | R32: =IF(T$22="Error","Error",IF(AND($P$22<>"/",$P$22>'Paramètres - Admin'!$A10),'Paramètres - Admin'!$A11,"/")) -> 9 | S32: =IF(R32<>"/",VLOOKUP(R32,COSTS_Elixir_Storage[#All],2),"/") -> 100000 | T32: =IF(R32<>"/",VLOOKUP(R32,COSTS_Elixir_Storage[#All],3),"/") -> 12 | U32: 0 | V32: 0
A33: + | B33: NB | F33: NB | G33: + | H33: Coût | I33: Temps | J33: Coût Total | K33: Temps Total | L33: 10 | M33: =IF(Paramètres!F15=0,"",Paramètres!F15) ->  | N33: 0 | Q33: 0 | R33: =IF(T$22="Error","Error",IF(AND($P$22<>"/",$P$22>'Paramètres - Admin'!$A11),'Paramètres - Admin'!$A12,"/")) -> 10 | S33: =IF(R33<>"/",VLOOKUP(R33,COSTS_Elixir_Storage[#All],2),"/") -> 250000 | T33: =IF(R33<>"/",VLOOKUP(R33,COSTS_Elixir_Storage[#All],3),"/") -> 24 | U33: 0 | V33: 0
A34: 1 | B34: =IF(Paramètres!E6=0,"",Paramètres!E6) ->  | C34: =IF(C33<>0,C33+IF(AND(B33<>"",A33<E$6),B33,0),IF(AND(B33<>"",A33<E$6),B33,0)) -> 0 | F34: =IF(G34<>"/",IF(I$32="Error","Error",$J$32+C34),"/") -> 0 | G34: =IF(I$32="Error","Error",IF(AND($E$32<>"/",$E$32>'Paramètres - Admin'!$A2),'Paramètres - Admin'!$A3,"/")) -> 1 | H34: =IF(G34<>"/",VLOOKUP(G34,COSTS_Gold_Storage[#All],2),"/") -> 300 | I34: =IF(G34<>"/",VLOOKUP(G34,COSTS_Gold_Storage[#All],3),"/") -> 0.25 | J34: =IF(I$32="Error","Error",IF(H34<>"/",F34*H34,0)) -> 0 | K34: =IF(I$32="Error","Error",IF(I34<>"/",F34*I34,0)) -> 0 | L34: 11 | M34: =IF(Paramètres!F16=0,"",Paramètres!F16) -> 4 | N34: 0 | Q34: 0 | R34: =IF(T$22="Error","Error",IF(AND($P$22<>"/",$P$22>'Paramètres - Admin'!$A12),'Paramètres - Admin'!$A13,"/")) -> 11 | S34: =IF(R34<>"/",VLOOKUP(R34,COSTS_Elixir_Storage[#All],2),"/") -> 500000 | T34: =IF(R34<>"/",VLOOKUP(R34,COSTS_Elixir_Storage[#All],3),"/") -> 48 | U34: 0 | V34: 0
A35: 2 | B35: =IF(Paramètres!E7=0,"",Paramètres!E7) ->  | C35: 0 | F35: 0 | G35: =IF(I$32="Error","Error",IF(AND($E$32<>"/",$E$32>'Paramètres - Admin'!$A3),'Paramètres - Admin'!$A4,"/")) -> 2 | H35: =IF(G35<>"/",VLOOKUP(G35,COSTS_Gold_Storage[#All],2),"/") -> 750 | I35: =IF(G35<>"/",VLOOKUP(G35,COSTS_Gold_Storage[#All],3),"/") -> 0.5 | J35: 0 | K35: 0 | T35: Total | U35: =IF(T$22="Error","Error",SUM(U24:U34)) -> 0 | V35: =IF(T$22="Error","Error",SUM(V24:V34)) -> 0
A36: 3 | B36: =IF(Paramètres!E8=0,"",Paramètres!E8) ->  | C36: 0 | F36: 0 | G36: =IF(I$32="Error","Error",IF(AND($E$32<>"/",$E$32>'Paramètres - Admin'!$A4),'Paramètres - Admin'!$A5,"/")) -> 3 | H36: =IF(G36<>"/",VLOOKUP(G36,COSTS_Gold_Storage[#All],2),"/") -> 1500 | I36: =IF(G36<>"/",VLOOKUP(G36,COSTS_Gold_Storage[#All],3),"/") -> 1 | J36: 0 | K36: 0
A37: 4 | B37: =IF(Paramètres!E9=0,"",Paramètres!E9) ->  | C37: 0 | F37: 0 | G37: =IF(I$32="Error","Error",IF(AND($E$32<>"/",$E$32>'Paramètres - Admin'!$A5),'Paramètres - Admin'!$A6,"/")) -> 4 | H37: =IF(G37<>"/",VLOOKUP(G37,COSTS_Gold_Storage[#All],2),"/") -> 3000 | I37: =IF(G37<>"/",VLOOKUP(G37,COSTS_Gold_Storage[#All],3),"/") -> 2 | J37: 0 | K37: 0
A38: 5 | B38: =IF(Paramètres!E10=0,"",Paramètres!E10) ->  | C38: 0 | F38: 0 | G38: =IF(I$32="Error","Error",IF(AND($E$32<>"/",$E$32>'Paramètres - Admin'!$A6),'Paramètres - Admin'!$A7,"/")) -> 5 | H38: =IF(G38<>"/",VLOOKUP(G38,COSTS_Gold_Storage[#All],2),"/") -> 6000 | I38: =IF(G38<>"/",VLOOKUP(G38,COSTS_Gold_Storage[#All],3),"/") -> 3 | J38: 0 | K38: 0
A39: 6 | B39: =IF(Paramètres!E11=0,"",Paramètres!E11) ->  | C39: 0 | F39: 0 | G39: =IF(I$32="Error","Error",IF(AND($E$32<>"/",$E$32>'Paramètres - Admin'!$A7),'Paramètres - Admin'!$A8,"/")) -> 6 | H39: =IF(G39<>"/",VLOOKUP(G39,COSTS_Gold_Storage[#All],2),"/") -> 12000 | I39: =IF(G39<>"/",VLOOKUP(G39,COSTS_Gold_Storage[#All],3),"/") -> 4 | J39: 0 | K39: 0
A40: 7 | B40: =IF(Paramètres!E12=0,"",Paramètres!E12) ->  | C40: 0 | F40: 0 | G40: =IF(I$32="Error","Error",IF(AND($E$32<>"/",$E$32>'Paramètres - Admin'!$A8),'Paramètres - Admin'!$A9,"/")) -> 7 | H40: =IF(G40<>"/",VLOOKUP(G40,COSTS_Gold_Storage[#All],2),"/") -> 25000 | I40: =IF(G40<>"/",VLOOKUP(G40,COSTS_Gold_Storage[#All],3),"/") -> 6 | J40: 0 | K40: 0
A41: 8 | B41: =IF(Paramètres!E13=0,"",Paramètres!E13) ->  | C41: 0 | F41: 0 | G41: =IF(I$32="Error","Error",IF(AND($E$32<>"/",$E$32>'Paramètres - Admin'!$A9),'Paramètres - Admin'!$A10,"/")) -> 8 | H41: =IF(G41<>"/",VLOOKUP(G41,COSTS_Gold_Storage[#All],2),"/") -> 50000 | I41: =IF(G41<>"/",VLOOKUP(G41,COSTS_Gold_Storage[#All],3),"/") -> 8 | J41: 0 | K41: 0
A42: 9 | B42: =IF(Paramètres!E14=0,"",Paramètres!E14) ->  | C42: 0 | F42: 0 | G42: =IF(I$32="Error","Error",IF(AND($E$32<>"/",$E$32>'Paramètres - Admin'!$A10),'Paramètres - Admin'!$A11,"/")) -> 9 | H42: =IF(G42<>"/",VLOOKUP(G42,COSTS_Gold_Storage[#All],2),"/") -> 100000 | I42: =IF(G42<>"/",VLOOKUP(G42,COSTS_Gold_Storage[#All],3),"/") -> 12 | J42: 0 | K42: 0
A43: 10 | B43: =IF(Paramètres!E15=0,"",Paramètres!E15) ->  | C43: 0 | F43: 0 | G43: =IF(I$32="Error","Error",IF(AND($E$32<>"/",$E$32>'Paramètres - Admin'!$A11),'Paramètres - Admin'!$A12,"/")) -> 10 | H43: =IF(G43<>"/",VLOOKUP(G43,COSTS_Gold_Storage[#All],2),"/") -> 250000 | I43: =IF(G43<>"/",VLOOKUP(G43,COSTS_Gold_Storage[#All],3),"/") -> 24 | J43: 0 | K43: 0
A44: 11 | B44: =IF(Paramètres!E16=0,"",Paramètres!E16) -> 4 | C44: 0 | F44: 0 | G44: =IF(I$32="Error","Error",IF(AND($E$32<>"/",$E$32>'Paramètres - Admin'!$A12),'Paramètres - Admin'!$A13,"/")) -> 11 | H44: =IF(G44<>"/",VLOOKUP(G44,COSTS_Gold_Storage[#All],2),"/") -> 500000 | I44: =IF(G44<>"/",VLOOKUP(G44,COSTS_Gold_Storage[#All],3),"/") -> 48 | J44: 0 | K44: 0
I45: Total | J45: =IF(I$32="Error","Error",SUM(J34:J44)) -> 0 | K45: =IF(I$32="Error","Error",SUM(K34:K44)) -> 0
A46: Réservoir d'Élixir Noir | D46: Max | E46: Max + | I46: Actuel | J46: À Faire | K46: Améliorations
D47: =VLOOKUP($A$2,AVAILABLE_Buildings_Resource[#All],MATCH(A46,AVAILABLE_Buildings_Resource[#Headers],0)) -> 1 | E47: =VLOOKUP($A$2,AVAILABLE_Buildings_Resource[#All],MATCH(A46,AVAILABLE_Buildings_Resource[#Headers],0)+1) -> 6 | I47: =IF(SUM(B49:B54)>D47,"Error",SUM(B49:B54)) -> 1 | J47: =IF(I$47="Error","Error",D47-I47) -> 0 | K47: =IF(I$47="Error","Error",SUM(F49:F54)) -> 1
A48: + | B48: NB | F48: NB | G48: + | H48: Coût | I48: Temps | J48: Coût Total | K48: Temps Total
A49: 1 | B49: =IF(Paramètres!G6=0,"",Paramètres!G6) ->  | C49: =IF(C48<>0,C48+IF(AND(B48<>"",A48<E$6),B48,0),IF(AND(B48<>"",A48<E$6),B48,0)) -> 0 | F49: =IF(G49<>"/",IF(I$47="Error","Error",$J$47+C49),"/") -> 0 | G49: =IF(I$47="Error","Error",IF(AND($E$47<>"/",$E$47>'Paramètres - Admin'!$A2),'Paramètres - Admin'!$A3,"/")) -> 1 | H49: =IF(G49<>"/",VLOOKUP(G49,COSTS_Dark_Elixir_Storage[#All],2),"/") -> 600000 | I49: =IF(G49<>"/",VLOOKUP(G49,COSTS_Dark_Elixir_Storage[#All],3),"/") -> 24 | J49: =IF(I$47="Error","Error",IF(H49<>"/",F49*H49,0)) -> 0 | K49: =IF(I$47="Error","Error",IF(I49<>"/",F49*I49,0)) -> 0
A50: 2 | B50: =IF(Paramètres!G7=0,"",Paramètres!G7) ->  | C50: 0 | F50: 0 | G50: =IF(I$47="Error","Error",IF(AND($E$47<>"/",$E$47>'Paramètres - Admin'!$A3),'Paramètres - Admin'!$A4,"/")) -> 2 | H50: =IF(G50<>"/",VLOOKUP(G50,COSTS_Dark_Elixir_Storage[#All],2),"/") -> 1200000 | I50: =IF(G50<>"/",VLOOKUP(G50,COSTS_Dark_Elixir_Storage[#All],3),"/") -> 48 | J50: 0 | K50: 0
A51: 3 | B51: =IF(Paramètres!G8=0,"",Paramètres!G8) ->  | C51: 0 | F51: 0 | G51: =IF(I$47="Error","Error",IF(AND($E$47<>"/",$E$47>'Paramètres - Admin'!$A4),'Paramètres - Admin'!$A5,"/")) -> 3 | H51: =IF(G51<>"/",VLOOKUP(G51,COSTS_Dark_Elixir_Storage[#All],2),"/") -> 1800000 | I51: =IF(G51<>"/",VLOOKUP(G51,COSTS_Dark_Elixir_Storage[#All],3),"/") -> 72 | J51: 0 | K51: 0
A52: 4 | B52: =IF(Paramètres!G9=0,"",Paramètres!G9) ->  | C52: 0 | F52: 0 | G52: =IF(I$47="Error","Error",IF(AND($E$47<>"/",$E$47>'Paramètres - Admin'!$A5),'Paramètres - Admin'!$A6,"/")) -> 4 | H52: =IF(G52<>"/",VLOOKUP(G52,COSTS_Dark_Elixir_Storage[#All],2),"/") -> 2400000 | I52: =IF(G52<>"/",VLOOKUP(G52,COSTS_Dark_Elixir_Storage[#All],3),"/") -> 96 | J52: 0 | K52: 0
A53: 5 | B53: =IF(Paramètres!G10=0,"",Paramètres!G10) -> 1 | C53: 0 | F53: 0 | G53: =IF(I$47="Error","Error",IF(AND($E$47<>"/",$E$47>'Paramètres - Admin'!$A6),'Paramètres - Admin'!$A7,"/")) -> 5 | H53: =IF(G53<>"/",VLOOKUP(G53,COSTS_Dark_Elixir_Storage[#All],2),"/") -> 3000000 | I53: =IF(G53<>"/",VLOOKUP(G53,COSTS_Dark_Elixir_Storage[#All],3),"/") -> 120 | J53: 0 | K53: 0
A54: 6 | B54: =IF(Paramètres!G11=0,"",Paramètres!G11) ->  | C54: 1 | F54: 1 | G54: =IF(I$47="Error","Error",IF(AND($E$47<>"/",$E$47>'Paramètres - Admin'!$A7),'Paramètres - Admin'!$A8,"/")) -> 6 | H54: =IF(G54<>"/",VLOOKUP(G54,COSTS_Dark_Elixir_Storage[#All],2),"/") -> 3600000 | I54: =IF(G54<>"/",VLOOKUP(G54,COSTS_Dark_Elixir_Storage[#All],3),"/") -> 144 | J54: 3600000 | K54: 144
I55: Total | J55: =IF(I$47="Error","Error",SUM(J49:J54)) -> 3600000 | K55: =IF(I$47="Error","Error",SUM(K49:K54)) -> 144
A58: Bâtiments d'Armée
A59: Élixir
A60: Caserne | D60: Max | E60: Max + | I60: Actuel | J60: À Faire | K60: Améliorations | L60: Laboratoire | O60: Max | P60: Max + | T60: Actuel | U60: À Faire | V60: Améliorations
D61: =VLOOKUP($A$2,AVAILABLE_Buildings_Army[#All],MATCH(A60,AVAILABLE_Buildings_Army[#Headers],0)) -> 4 | E61: =VLOOKUP($A$2,AVAILABLE_Buildings_Army[#All],MATCH(A60,AVAILABLE_Buildings_Army[#Headers],0)+1) -> 10 | I61: =IF(SUM(B63:B72)>D61,"Error",SUM(B63:B72)) -> 4 | J61: =IF(I$61="Error","Error",D61-I61) -> 0 | K61: =IF(I$61="Error","Error",SUM(F63:F72)) -> 1 | O61: =VLOOKUP($A$2,AVAILABLE_Buildings_Army[#All],MATCH(L60,AVAILABLE_Buildings_Army[#Headers],0)) -> 1 | P61: =VLOOKUP($A$2,AVAILABLE_Buildings_Army[#All],MATCH(L60,AVAILABLE_Buildings_Army[#Headers],0)+1) -> 8 | T61: =IF(SUM(M63:M70)>O61,"Error",SUM(M63:M70)) -> 1 | U61: =IF(T$61="Error","Error",O61-T61) -> 0 | V61: =IF(T$61="Error","Error",SUM(Q63:Q70)) -> 0
A62: + | B62: NB | F62: NB | G62: + | H62: Coût | I62: Temps | J62: Coût Total | K62: Temps Total | L62: + | M62: NB | Q62: NB | R62: + | S62: Coût | T62: Temps | U62: Coût Total | V62: Temps Total
A63: 1 | B63: =IF(Paramètres!H6=0,"",Paramètres!H6) ->  | C63: =IF(C62<>0,C62+IF(AND(B62<>"",A62<E$6),B62,0),IF(AND(B62<>"",A62<E$6),B62,0)) -> 0 | F63: =IF(G63<>"/",IF(I$61="Error","Error",$J$61+C63),"/") -> 0 | G63: =IF(I$61="Error","Error",IF(AND($E$61<>"/",$E$61>'Paramètres - Admin'!$A2),'Paramètres - Admin'!$A3,"/")) -> 1 | H63: =IF(G63<>"/",VLOOKUP(G63,COSTS_Barrack[#All],2),"/") -> 200 | I63: =IF(G63<>"/",VLOOKUP(G63,COSTS_Barrack[#All],3),"/") -> 0.02 | J63: =IF(I$61="Error","Error",IF(H63<>"/",F63*H63,0)) -> 0 | K63: =IF(I$61="Error","Error",IF(I63<>"/",F63*I63,0)) -> 0 | L63: 1 | M63: =IF(Paramètres!K6=0,"",Paramètres!K6) ->  | N63: =IF(N62<>0,N62+IF(AND(M62<>"",L62<E$6),M62,0),IF(AND(M62<>"",L62<E$6),M62,0)) -> 0 | Q63: =IF(R63<>"/",IF(T$61="Error","Error",$U$61+N63),"/") -> 0 | R63: =IF(T$61="Error","Error",IF(AND($P$61<>"/",$P$61>'Paramètres - Admin'!$A2),'Paramètres - Admin'!$A3,"/")) -> 1 | S63: =IF(R63<>"/",VLOOKUP(R63,COSTS_Laboratory[#All],2),"/") -> 25000 | T63: =IF(R63<>"/",VLOOKUP(R63,COSTS_Laboratory[#All],3),"/") -> 0.5 | U63: =IF(T$61="Error","Error",IF(S63<>"/",Q63*S63,0)) -> 0 | V63: =IF(T$61="Error","Error",IF(T63<>"/",Q63*T63,0)) -> 0
A64: 2 | B64: =IF(Paramètres!H7=0,"",Paramètres!H7) ->  | C64: =IF(C63<>0,C63+IF(AND(B63<>"",A63<E$6),B63,0),IF(AND(B63<>"",A63<E$6),B63,0)) -> 0 | F64: =IF(G64<>"/",IF(I$61="Error","Error",$J$61+C64),"/") -> 0 | G64: =IF(I$61="Error","Error",IF(AND($E$61<>"/",$E$61>'Paramètres - Admin'!$A3),'Paramètres - Admin'!$A4,"/")) -> 2 | H64: =IF(G64<>"/",VLOOKUP(G64,COSTS_Barrack[#All],2),"/") -> 1000 | I64: =IF(G64<>"/",VLOOKUP(G64,COSTS_Barrack[#All],3),"/") -> 0.25 | J64: =IF(I$61="Error","Error",IF(H64<>"/",F64*H64,0)) -> 0 | K64: =IF(I$61="Error","Error",IF(I64<>"/",F64*I64,0)) -> 0 | L64: 2 | M64: =IF(Paramètres!K7=0,"",Paramètres!K7) ->  | N64: =IF(N63<>0,N63+IF(AND(M63<>"",L63<E$6),M63,0),IF(AND(M63<>"",L63<E$6),M63,0)) -> 0 | Q64: =IF(R64<>"/",IF(T$61="Error","Error",$U$61+N64),"/") -> 0 | R64: =IF(T$61="Error","Error",IF(AND($P$61<>"/",$P$61>'Paramètres - Admin'!$A3),'Paramètres - Admin'!$A4,"/")) -> 2 | S64: =IF(R64<>"/",VLOOKUP(R64,COSTS_Laboratory[#All],2),"/") -> 50000 | T64: =IF(R64<>"/",VLOOKUP(R64,COSTS_Laboratory[#All],3),"/") -> 5 | U64: =IF(T$61="Error","Error",IF(S64<>"/",Q64*S64,0)) -> 0 | V64: =IF(T$61="Error","Error",IF(T64<>"/",Q64*T64,0)) -> 0
A65: 3 | B65: =IF(Paramètres!H8=0,"",Paramètres!H8) ->  | C65: 0 | F65: 0 | G65: =IF(I$61="Error","Error",IF(AND($E$61<>"/",$E$61>'Paramètres - Admin'!$A4),'Paramètres - Admin'!$A5,"/")) -> 3 | H65: =IF(G65<>"/",VLOOKUP(G65,COSTS_Barrack[#All],2),"/") -> 2500 | I65: =IF(G65<>"/",VLOOKUP(G65,COSTS_Barrack[#All],3),"/") -> 2 | J65: 0 | K65: 0 | L65: 3 | M65: =IF(Paramètres!K8=0,"",Paramètres!K8) ->  | N65: 0 | Q65: 0 | R65: =IF(T$61="Error","Error",IF(AND($P$61<>"/",$P$61>'Paramètres - Admin'!$A4),'Paramètres - Admin'!$A5,"/")) -> 3 | S65: =IF(R65<>"/",VLOOKUP(R65,COSTS_Laboratory[#All],2),"/") -> 90000 | T65: =IF(R65<>"/",VLOOKUP(R65,COSTS_Laboratory[#All],3),"/") -> 12 | U65: 0 | V65: 0
A66: 4 | B66: =IF(Paramètres!H9=0,"",Paramètres!H9) ->  | C66: 0 | F66: 0 | G66: =IF(I$61="Error","Error",IF(AND($E$61<>"/",$E$61>'Paramètres - Admin'!$A5),'Paramètres - Admin'!$A6,"/")) -> 4 | H66: =IF(G66<>"/",VLOOKUP(G66,COSTS_Barrack[#All],2),"/") -> 5000 | I66: =IF(G66<>"/",VLOOKUP(G66,COSTS_Barrack[#All],3),"/") -> 4 | J66: 0 | K66: 0 | L66: 4 | M66: =IF(Paramètres!K9=0,"",Paramètres!K9) ->  | N66: 0 | Q66: 0 | R66: =IF(T$61="Error","Error",IF(AND($P$61<>"/",$P$61>'Paramètres - Admin'!$A5),'Paramètres - Admin'!$A6,"/")) -> 4 | S66: =IF(R66<>"/",VLOOKUP(R66,COSTS_Laboratory[#All],2),"/") -> 270000 | T66: =IF(R66<>"/",VLOOKUP(R66,COSTS_Laboratory[#All],3),"/") -> 24 | U66: 0 | V66: 0
A67: 5 | B67: =IF(Paramètres!H10=0,"",Paramètres!H10) ->  | C67: 0 | F67: 0 | G67: =IF(I$61="Error","Error",IF(AND($E$61<>"/",$E$61>'Paramètres - Admin'!$A6),'Paramètres - Admin'!$A7,"/")) -> 5 | H67: =IF(G67<>"/",VLOOKUP(G67,COSTS_Barrack[#All],2),"/") -> 10000 | I67: =IF(G67<>"/",VLOOKUP(G67,COSTS_Barrack[#All],3),"/") -> 10 | J67: 0 | K67: 0 | L67: 5 | M67: =IF(Paramètres!K10=0,"",Paramètres!K10) ->  | N67: 0 | Q67: 0 | R67: =IF(T$61="Error","Error",IF(AND($P$61<>"/",$P$61>'Paramètres - Admin'!$A6),'Paramètres - Admin'!$A7,"/")) -> 5 | S67: =IF(R67<>"/",VLOOKUP(R67,COSTS_Laboratory[#All],2),"/") -> 500000 | T67: =IF(R67<>"/",VLOOKUP(R67,COSTS_Laboratory[#All],3),"/") -> 48 | U67: 0 | V67: 0
A68: 6 | B68: =IF(Paramètres!H11=0,"",Paramètres!H11) ->  | C68: 0 | F68: 0 | G68: =IF(I$61="Error","Error",IF(AND($E$61<>"/",$E$61>'Paramètres - Admin'!$A7),'Paramètres - Admin'!$A8,"/")) -> 6 | H68: =IF(G68<>"/",VLOOKUP(G68,COSTS_Barrack[#All],2),"/") -> 80000 | I68: =IF(G68<>"/",VLOOKUP(G68,COSTS_Barrack[#All],3),"/") -> 16 | J68: 0 | K68: 0 | L68: 6 | M68: =IF(Paramètres!K11=0,"",Paramètres!K11) ->  | N68: 0 | Q68: 0 | R68: =IF(T$61="Error","Error",IF(AND($P$61<>"/",$P$61>'Paramètres - Admin'!$A7),'Paramètres - Admin'!$A8,"/")) -> 6 | S68: =IF(R68<>"/",VLOOKUP(R68,COSTS_Laboratory[#All],2),"/") -> 1000000 | T68: =IF(R68<>"/",VLOOKUP(R68,COSTS_Laboratory[#All],3),"/") -> 96 | U68: 0 | V68: 0
A69: 7 | B69: =IF(Paramètres!H12=0,"",Paramètres!H12) ->  | C69: 0 | F69: 0 | G69: =IF(I$61="Error","Error",IF(AND($E$61<>"/",$E$61>'Paramètres - Admin'!$A8),'Paramètres - Admin'!$A9,"/")) -> 7 | H69: =IF(G69<>"/",VLOOKUP(G69,COSTS_Barrack[#All],2),"/") -> 240000 | I69: =IF(G69<>"/",VLOOKUP(G69,COSTS_Barrack[#All],3),"/") -> 24 | J69: 0 | K69: 0 | L69: 7 | M69: =IF(Paramètres!K12=0,"",Paramètres!K12) ->  | N69: 0 | Q69: 0 | R69: =IF(T$61="Error","Error",IF(AND($P$61<>"/",$P$61>'Paramètres - Admin'!$A8),'Paramètres - Admin'!$A9,"/")) -> 7 | S69: =IF(R69<>"/",VLOOKUP(R69,COSTS_Laboratory[#All],2),"/") -> 2500000 | T69: =IF(R69<>"/",VLOOKUP(R69,COSTS_Laboratory[#All],3),"/") -> 120 | U69: 0 | V69: 0
A70: 8 | B70: =IF(Paramètres!H13=0,"",Paramètres!H13) ->  | C70: 0 | F70: 0 | G70: =IF(I$61="Error","Error",IF(AND($E$61<>"/",$E$61>'Paramètres - Admin'!$A9),'Paramètres - Admin'!$A10,"/")) -> 8 | H70: =IF(G70<>"/",VLOOKUP(G70,COSTS_Barrack[#All],2),"/") -> 700000 | I70: =IF(G70<>"/",VLOOKUP(G70,COSTS_Barrack[#All],3),"/") -> 48 | J70: 0 | K70: 0 | L70: 8 | M70: =IF(Paramètres!K13=0,"",Paramètres!K13) -> 1 | N70: 0 | Q70: 0 | R70: =IF(T$61="Error","Error",IF(AND($P$61<>"/",$P$61>'Paramètres - Admin'!$A9),'Paramètres - Admin'!$A10,"/")) -> 8 | S70: =IF(R70<>"/",VLOOKUP(R70,COSTS_Laboratory[#All],2),"/") -> 4000000 | T70: =IF(R70<>"/",VLOOKUP(R70,COSTS_Laboratory[#All],3),"/") -> 144 | U70: 0 | V70: 0
A71: 9 | B71: =IF(Paramètres!H14=0,"",Paramètres!H14) -> 1 | C71: 0 | F71: 0 | G71: =IF(I$61="Error","Error",IF(AND($E$61<>"/",$E$61>'Paramètres - Admin'!$A10),'Paramètres - Admin'!$A11,"/")) -> 9 | H71: =IF(G71<>"/",VLOOKUP(G71,COSTS_Barrack[#All],2),"/") -> 1500000 | I71: =IF(G71<>"/",VLOOKUP(G71,COSTS_Barrack[#All],3),"/") -> 96 | J71: 0 | K71: 0 | T71: Total | U71: =IF(T$61="Error","Error",SUM(U63:U70)) -> 0 | V71: =IF(T$61="Error","Error",SUM(V63:V70)) -> 0
A72: 10 | B72: =IF(Paramètres!H15=0,"",Paramètres!H15) -> 3 | C72: 1 | F72: 1 | G72: =IF(I$61="Error","Error",IF(AND($E$61<>"/",$E$61>'Paramètres - Admin'!$A11),'Paramètres - Admin'!$A12,"/")) -> 10 | H72: =IF(G72<>"/",VLOOKUP(G72,COSTS_Barrack[#All],2),"/") -> 2000000 | I72: =IF(G72<>"/",VLOOKUP(G72,COSTS_Barrack[#All],3),"/") -> 144 | J72: 2000000 | K72: 144 | L72: Usine de Sorts | O72: Max | P72: Max + | T72: Actuel | U72: À Faire | V72: Améliorations
I73: Total | J73: =IF(I$61="Error","Error",SUM(J63:J72)) -> 2000000 | K73: =IF(I$61="Error","Error",SUM(K63:K72)) -> 144 | O73: =VLOOKUP($A$2,AVAILABLE_Buildings_Army[#All],MATCH(L72,AVAILABLE_Buildings_Army[#Headers],0)) -> 1 | P73: =VLOOKUP($A$2,AVAILABLE_Buildings_Army[#All],MATCH(L72,AVAILABLE_Buildings_Army[#Headers],0)+1) -> 5 | T73: =IF(SUM(M75:M79)>O73,"Error",SUM(M75:M79)) -> 1 | U73: =IF(T$73="Error","Error",O73-T73) -> 0 | V73: =IF(T$73="Error","Error",SUM(Q75:Q79)) -> 0
A74: Caserne Noire | D74: Max | E74: Max + | I74: Actuel | J74: À Faire | K74: Améliorations | L74: + | M74: NB | Q74: NB | R74: + | S74: Coût | T74: Temps | U74: Coût Total | V74: Temps Total
D75: =VLOOKUP($A$2,AVAILABLE_Buildings_Army[#All],MATCH(A74,AVAILABLE_Buildings_Army[#Headers],0)) -> 2 | E75: =VLOOKUP($A$2,AVAILABLE_Buildings_Army[#All],MATCH(A74,AVAILABLE_Buildings_Army[#Headers],0)+1) -> 6 | I75: =IF(SUM(B77:B82)>D75,"Error",SUM(B77:B82)) -> 2 | J75: =IF(I$75="Error","Error",D75-I75) -> 0 | K75: =IF(I$75="Error","Error",SUM(F77:F82)) -> 3 | L75: 1 | M75: =IF(Paramètres!L6=0,"",Paramètres!L6) ->  | N75: =IF(N74<>0,N74+IF(AND(M74<>"",L74<E$6),M74,0),IF(AND(M74<>"",L74<E$6),M74,0)) -> 0 | Q75: =IF(R75<>"/",IF(T$73="Error","Error",$U$73+N75),"/") -> 0 | R75: =IF(T$73="Error","Error",IF(AND($P$73<>"/",$P$73>'Paramètres - Admin'!$A2),'Paramètres - Admin'!$A3,"/")) -> 1 | S75: =IF(R75<>"/",VLOOKUP(R75,COSTS_Spell_Factory[#All],2),"/") -> 200000 | T75: =IF(R75<>"/",VLOOKUP(R75,COSTS_Spell_Factory[#All],3),"/") -> 24 | U75: =IF(T$73="Error","Error",IF(S75<>"/",Q75*S75,0)) -> 0 | V75: =IF(T$73="Error","Error",IF(T75<>"/",Q75*T75,0)) -> 0
A76: + | B76: NB | F76: NB | G76: + | H76: Coût | I76: Temps | J76: Coût Total | K76: Temps Total | L76: 2 | M76: =IF(Paramètres!L7=0,"",Paramètres!L7) ->  | N76: =IF(N75<>0,N75+IF(AND(M75<>"",L75<E$6),M75,0),IF(AND(M75<>"",L75<E$6),M75,0)) -> 0 | Q76: =IF(R76<>"/",IF(T$73="Error","Error",$U$73+N76),"/") -> 0 | R76: =IF(T$73="Error","Error",IF(AND($P$73<>"/",$P$73>'Paramètres - Admin'!$A3),'Paramètres - Admin'!$A4,"/")) -> 2 | S76: =IF(R76<>"/",VLOOKUP(R76,COSTS_Spell_Factory[#All],2),"/") -> 400000 | T76: =IF(R76<>"/",VLOOKUP(R76,COSTS_Spell_Factory[#All],3),"/") -> 48 | U76: =IF(T$73="Error","Error",IF(S76<>"/",Q76*S76,0)) -> 0 | V76: =IF(T$73="Error","Error",IF(T76<>"/",Q76*T76,0)) -> 0
A77: 1 | B77: =IF(Paramètres!I6=0,"",Paramètres!I6) ->  | C77: =IF(C76<>0,C76+IF(AND(B76<>"",A76<E$6),B76,0),IF(AND(B76<>"",A76<E$6),B76,0)) -> 0 | F77: =IF(G77<>"/",IF(I$75="Error","Error",$J$75+C77),"/") -> 0 | G77: =IF(I$75="Error","Error",IF(AND($E$75<>"/",$E$75>'Paramètres - Admin'!$A2),'Paramètres - Admin'!$A3,"/")) -> 1 | H77: =IF(G77<>"/",VLOOKUP(G77,COSTS_Dark_Barrack[#All],2),"/") -> 750000 | I77: =IF(G77<>"/",VLOOKUP(G77,COSTS_Dark_Barrack[#All],3),"/") -> 72 | J77: =IF(I$75="Error","Error",IF(H77<>"/",F77*H77,0)) -> 0 | K77: =IF(I$75="Error","Error",IF(I77<>"/",F77*I77,0)) -> 0 | L77: 3 | M77: =IF(Paramètres!L8=0,"",Paramètres!L8) ->  | N77: =IF(N76<>0,N76+IF(AND(M76<>"",L76<E$6),M76,0),IF(AND(M76<>"",L76<E$6),M76,0)) -> 0 | Q77: =IF(R77<>"/",IF(T$73="Error","Error",$U$73+N77),"/") -> 0 | R77: =IF(T$73="Error","Error",IF(AND($P$73<>"/",$P$73>'Paramètres - Admin'!$A4),'Paramètres - Admin'!$A5,"/")) -> 3 | S77: =IF(R77<>"/",VLOOKUP(R77,COSTS_Spell_Factory[#All],2),"/") -> 800000 | T77: =IF(R77<>"/",VLOOKUP(R77,COSTS_Spell_Factory[#All],3),"/") -> 96 | U77: =IF(T$73="Error","Error",IF(S77<>"/",Q77*S77,0)) -> 0 | V77: =IF(T$73="Error","Error",IF(T77<>"/",Q77*T77,0)) -> 0
A78: 2 | B78: =IF(Paramètres!I7=0,"",Paramètres!I7) ->  | C78: 0 | F78: 0 | G78: =IF(I$75="Error","Error",IF(AND($E$75<>"/",$E$75>'Paramètres - Admin'!$A3),'Paramètres - Admin'!$A4,"/")) -> 2 | H78: =IF(G78<>"/",VLOOKUP(G78,COSTS_Dark_Barrack[#All],2),"/") -> 1250000 | I78: =IF(G78<>"/",VLOOKUP(G78,COSTS_Dark_Barrack[#All],3),"/") -> 120 | J78: 0 | K78: 0 | L78: 4 | M78: =IF(Paramètres!L9=0,"",Paramètres!L9) ->  | N78: =IF(N77<>0,N77+IF(AND(M77<>"",L77<E$6),M77,0),IF(AND(M77<>"",L77<E$6),M77,0)) -> 0 | Q78: =IF(R78<>"/",IF(T$73="Error","Error",$U$73+N78),"/") -> 0 | R78: =IF(T$73="Error","Error",IF(AND($P$73<>"/",$P$73>'Paramètres - Admin'!$A5),'Paramètres - Admin'!$A6,"/")) -> 4 | S78: =IF(R78<>"/",VLOOKUP(R78,COSTS_Spell_Factory[#All],2),"/") -> 1600000 | T78: =IF(R78<>"/",VLOOKUP(R78,COSTS_Spell_Factory[#All],3),"/") -> 120 | U78: =IF(T$73="Error","Error",IF(S78<>"/",Q78*S78,0)) -> 0 | V78: =IF(T$73="Error","Error",IF(T78<>"/",Q78*T78,0)) -> 0
A79: 3 | B79: =IF(Paramètres!I8=0,"",Paramètres!I8) -> 1 | C79: 0 | F79: 0 | G79: =IF(I$75="Error","Error",IF(AND($E$75<>"/",$E$75>'Paramètres - Admin'!$A4),'Paramètres - Admin'!$A5,"/")) -> 3 | H79: =IF(G79<>"/",VLOOKUP(G79,COSTS_Dark_Barrack[#All],2),"/") -> 1750000 | I79: =IF(G79<>"/",VLOOKUP(G79,COSTS_Dark_Barrack[#All],3),"/") -> 144 | J79: 0 | K79: 0 | L79: 5 | M79: =IF(Paramètres!L10=0,"",Paramètres!L10) -> 1 | N79: =IF(N78<>0,N78+IF(AND(M78<>"",L78<E$6),M78,0),IF(AND(M78<>"",L78<E$6),M78,0)) -> 0 | Q79: =IF(R79<>"/",IF(T$73="Error","Error",$U$73+N79),"/") -> 0 | R79: =IF(T$73="Error","Error",IF(AND($P$73<>"/",$P$73>'Paramètres - Admin'!$A6),'Paramètres - Admin'!$A7,"/")) -> 5 | S79: =IF(R79<>"/",VLOOKUP(R79,COSTS_Spell_Factory[#All],2),"/") -> 3200000 | T79: =IF(R79<>"/",VLOOKUP(R79,COSTS_Spell_Factory[#All],3),"/") -> 144 | U79: =IF(T$73="Error","Error",IF(S79<>"/",Q79*S79,0)) -> 0 | V79: =IF(T$73="Error","Error",IF(T79<>"/",Q79*T79,0)) -> 0
A80: 4 | B80: =IF(Paramètres!I9=0,"",Paramètres!I9) ->  | C80: 1 | F80: 1 | G80: =IF(I$75="Error","Error",IF(AND($E$75<>"/",$E$75>'Paramètres - Admin'!$A5),'Paramètres - Admin'!$A6,"/")) -> 4 | H80: =IF(G80<>"/",VLOOKUP(G80,COSTS_Dark_Barrack[#All],2),"/") -> 2250000 | I80: =IF(G80<>"/",VLOOKUP(G80,COSTS_Dark_Barrack[#All],3),"/") -> 168 | J80: 2250000 | K80: 168 | T80: Total | U80: =IF(T$73="Error","Error",SUM(U75:U79)) -> 0 | V80: =IF(T$73="Error","Error",SUM(V75:V79)) -> 0
A81: 5 | B81: =IF(Paramètres!I10=0,"",Paramètres!I10) ->  | C81: 1 | F81: 1 | G81: =IF(I$75="Error","Error",IF(AND($E$75<>"/",$E$75>'Paramètres - Admin'!$A6),'Paramètres - Admin'!$A7,"/")) -> 5 | H81: =IF(G81<>"/",VLOOKUP(G81,COSTS_Dark_Barrack[#All],2),"/") -> 2750000 | I81: =IF(G81<>"/",VLOOKUP(G81,COSTS_Dark_Barrack[#All],3),"/") -> 192 | J81: 2750000 | K81: 192
A82: 6 | B82: =IF(Paramètres!I11=0,"",Paramètres!I11) -> 1 | C82: 1 | F82: 1 | G82: =IF(I$75="Error","Error",IF(AND($E$75<>"/",$E$75>'Paramètres - Admin'!$A7),'Paramètres - Admin'!$A8,"/")) -> 6 | H82: =IF(G82<>"/",VLOOKUP(G82,COSTS_Dark_Barrack[#All],2),"/") -> 3500000 | I82: =IF(G82<>"/",VLOOKUP(G82,COSTS_Dark_Barrack[#All],3),"/") -> 216 | J82: 3500000 | K82: 216
I83: Total | J83: =IF(I$75="Error","Error",SUM(J77:J82)) -> 8500000 | K83: =IF(I$75="Error","Error",SUM(K77:K82)) -> 576
A84: Camp Militaire | D84: Max | E84: Max + | I84: Actuel | J84: À Faire | K84: Améliorations
D85: =VLOOKUP($A$2,AVAILABLE_Buildings_Army[#All],MATCH(A84,AVAILABLE_Buildings_Army[#Headers],0)) -> 4 | E85: =VLOOKUP($A$2,AVAILABLE_Buildings_Army[#All],MATCH(A84,AVAILABLE_Buildings_Army[#Headers],0)+1) -> 8 | I85: =IF(SUM(B87:B94)>D85,"Error",SUM(B87:B94)) -> 4 | J85: =IF(I$85="Error","Error",D85-I85) -> 0 | K85: =IF(I$85="Error","Error",SUM(F87:F94)) -> 0
A86: + | B86: NB | F86: NB | G86: + | H86: Coût | I86: Temps | J86: Coût Total | K86: Temps Total
A87: 1 | B87: =IF(Paramètres!J6=0,"",Paramètres!J6) ->  | C87: =IF(C86<>0,C86+IF(AND(B86<>"",A86<E$6),B86,0),IF(AND(B86<>"",A86<E$6),B86,0)) -> 0 | F87: =IF(G87<>"/",IF(I$85="Error","Error",$J$85+C87),"/") -> 0 | G87: =IF(I$85="Error","Error",IF(AND($E$85<>"/",$E$85>'Paramètres - Admin'!$A2),'Paramètres - Admin'!$A3,"/")) -> 1 | H87: =IF(G87<>"/",VLOOKUP(G87,COSTS_Army_Camp[#All],2),"/") -> 250 | I87: =IF(G87<>"/",VLOOKUP(G87,COSTS_Army_Camp[#All],3),"/") -> 0.08333333333 | J87: =IF(I$85="Error","Error",IF(H87<>"/",F87*H87,0)) -> 0 | K87: =IF(I$85="Error","Error",IF(I87<>"/",F87*I87,0)) -> 0
A88: 2 | B88: =IF(Paramètres!J7=0,"",Paramètres!J7) ->  | C88: =IF(C87<>0,C87+IF(AND(B87<>"",A87<E$6),B87,0),IF(AND(B87<>"",A87<E$6),B87,0)) -> 0 | F88: =IF(G88<>"/",IF(I$85="Error","Error",$J$85+C88),"/") -> 0 | G88: =IF(I$85="Error","Error",IF(AND($E$85<>"/",$E$85>'Paramètres - Admin'!$A3),'Paramètres - Admin'!$A4,"/")) -> 2 | H88: =IF(G88<>"/",VLOOKUP(G88,COSTS_Army_Camp[#All],2),"/") -> 2500 | I88: =IF(G88<>"/",VLOOKUP(G88,COSTS_Army_Camp[#All],3),"/") -> 1 | J88: =IF(I$85="Error","Error",IF(H88<>"/",F88*H88,0)) -> 0 | K88: =IF(I$85="Error","Error",IF(I88<>"/",F88*I88,0)) -> 0
A89: 3 | B89: =IF(Paramètres!J8=0,"",Paramètres!J8) ->  | C89: 0 | F89: 0 | G89: =IF(I$85="Error","Error",IF(AND($E$85<>"/",$E$85>'Paramètres - Admin'!$A4),'Paramètres - Admin'!$A5,"/")) -> 3 | H89: =IF(G89<>"/",VLOOKUP(G89,COSTS_Army_Camp[#All],2),"/") -> 10000 | I89: =IF(G89<>"/",VLOOKUP(G89,COSTS_Army_Camp[#All],3),"/") -> 3 | J89: 0 | K89: 0
A90: 4 | B90: =IF(Paramètres!J9=0,"",Paramètres!J9) ->  | C90: 0 | F90: 0 | G90: =IF(I$85="Error","Error",IF(AND($E$85<>"/",$E$85>'Paramètres - Admin'!$A5),'Paramètres - Admin'!$A6,"/")) -> 4 | H90: =IF(G90<>"/",VLOOKUP(G90,COSTS_Army_Camp[#All],2),"/") -> 100000 | I90: =IF(G90<>"/",VLOOKUP(G90,COSTS_Army_Camp[#All],3),"/") -> 8 | J90: 0 | K90: 0
A91: 5 | B91: =IF(Paramètres!J10=0,"",Paramètres!J10) ->  | C91: 0 | F91: 0 | G91: =IF(I$85="Error","Error",IF(AND($E$85<>"/",$E$85>'Paramètres - Admin'!$A6),'Paramètres - Admin'!$A7,"/")) -> 5 | H91: =IF(G91<>"/",VLOOKUP(G91,COSTS_Army_Camp[#All],2),"/") -> 250000 | I91: =IF(G91<>"/",VLOOKUP(G91,COSTS_Army_Camp[#All],3),"/") -> 24 | J91: 0 | K91: 0
A92: 6 | B92: =IF(Paramètres!J11=0,"",Paramètres!J11) ->  | C92: 0 | F92: 0 | G92: =IF(I$85="Error","Error",IF(AND($E$85<>"/",$E$85>'Paramètres - Admin'!$A7),'Paramètres - Admin'!$A8,"/")) -> 6 | H92: =IF(G92<>"/",VLOOKUP(G92,COSTS_Army_Camp[#All],2),"/") -> 750000 | I92: =IF(G92<>"/",VLOOKUP(G92,COSTS_Army_Camp[#All],3),"/") -> 72 | J92: 0 | K92: 0
A93: 7 | B93: =IF(Paramètres!J12=0,"",Paramètres!J12) ->  | C93: 0 | F93: 0 | G93: =IF(I$85="Error","Error",IF(AND($E$85<>"/",$E$85>'Paramètres - Admin'!$A8),'Paramètres - Admin'!$A9,"/")) -> 7 | H93: =IF(G93<>"/",VLOOKUP(G93,COSTS_Army_Camp[#All],2),"/") -> 2250000 | I93: =IF(G93<>"/",VLOOKUP(G93,COSTS_Army_Camp[#All],3),"/") -> 120 | J93: 0 | K93: 0
A94: 8 | B94: =IF(Paramètres!J13=0,"",Paramètres!J13) -> 4 | C94: 0 | F94: 0 | G94: =IF(I$85="Error","Error",IF(AND($E$85<>"/",$E$85>'Paramètres - Admin'!$A9),'Paramètres - Admin'!$A10,"/")) -> 8 | H94: =IF(G94<>"/",VLOOKUP(G94,COSTS_Army_Camp[#All],2),"/") -> 6750000 | I94: =IF(G94<>"/",VLOOKUP(G94,COSTS_Army_Camp[#All],3),"/") -> 240 | J94: 0 | K94: 0
I95: Total | J95: =IF(I$85="Error","Error",SUM(J87:J94)) -> 0 | K95: =IF(I$85="Error","Error",SUM(K87:K94)) -> 0
A98: Bâtiments Défensifs
A99: Or
A100: Rempart | D100: Max | E100: Max + | I100: Actuel | J100: À Faire | K100: Améliorations | L100: Défense Antiaérienne | O100: Max | P100: Max + | T100: Actuel | U100: À Faire | V100: Améliorations
D101: =VLOOKUP($A$2,AVAILABLE_Buildings_Defensive[#All],MATCH(A100,AVAILABLE_Buildings_Defensive[#Headers],0)) -> 250 | E101: =VLOOKUP($A$2,AVAILABLE_Buildings_Defensive[#All],MATCH(A100,AVAILABLE_Buildings_Defensive[#Headers],0)+1) -> 11 | I101: =IF(SUM(B103:B113)>D101,"Error",SUM(B103:B113)) -> 250 | J101: =IF(I$101="Error","Error",D101-I101) -> 0 | K101: =IF(I$101="Error","Error",SUM(F103:F113)) -> 748 | O101: =VLOOKUP($A$2,AVAILABLE_Buildings_Defensive[#All],MATCH(L100,AVAILABLE_Buildings_Defensive[#Headers],0)) -> 4 | P101: =VLOOKUP($A$2,AVAILABLE_Buildings_Defensive[#All],MATCH(L100,AVAILABLE_Buildings_Defensive[#Headers],0)+1) -> 8 | T101: =IF(SUM(M103:M110)>O101,"Error",SUM(M103:M110)) -> 4 | U101: =IF(T$101="Error","Error",O101-T101) -> 0 | V101: =IF(T$101="Error","Error",SUM(Q103:Q110)) -> 10
A102: + | B102: NB | F102: NB | G102: + | H102: Coût | I102: Temps | J102: Coût Total | K102: Temps Total | L102: + | M102: NB | Q102: NB | R102: + | S102: Coût | T102: Temps | U102: Coût Total | V102: Temps Total
A103: 1 | B103: =IF(Paramètres!M6=0,"",Paramètres!M6) ->  | C103: =IF(C102<>0,C102+IF(AND(B102<>"",A102<E$6),B102,0),IF(AND(B102<>"",A102<E$6),B102,0)) -> 0 | F103: =IF(G103<>"/",IF(I$101="Error","Error",$J$101+C103),"/") -> 0 | G103: =IF(I$101="Error","Error",IF(AND($E$101<>"/",$E$101>'Paramètres - Admin'!$A2),'Paramètres - Admin'!$A3,"/")) -> 1 | H103: =IF(G103<>"/",VLOOKUP(G103,COSTS_Wall[#All],2),"/") -> 200 | I103: =IF(G103<>"/",VLOOKUP(G103,COSTS_Wall[#All],3),"/") -> 0 | J103: =IF(I$101="Error","Error",IF(H103<>"/",F103*H103,0)) -> 0 | K103: =IF(I$101="Error","Error",IF(I103<>"/",F103*I103,0)) -> 0 | L103: 1 | M103: =IF(Paramètres!Q6=0,"",Paramètres!Q6) ->  | N103: =IF(N102<>0,N102+IF(AND(M102<>"",L102<E$6),M102,0),IF(AND(M102<>"",L102<E$6),M102,0)) -> 0 | Q103: =IF(R103<>"/",IF(T$101="Error","Error",$U$101+N103),"/") -> 0 | R103: =IF(T$101="Error","Error",IF(AND($P$101<>"/",$P$101>'Paramètres - Admin'!$A2),'Paramètres - Admin'!$A3,"/")) -> 1 | S103: =IF(R103<>"/",VLOOKUP(R103,COSTS_Air_Defense[#All],2),"/") -> 22500 | T103: =IF(R103<>"/",VLOOKUP(R103,COSTS_Air_Defense[#All],3),"/") -> 5 | U103: =IF(T$101="Error","Error",IF(S103<>"/",Q103*S103,0)) -> 0 | V103: =IF(T$101="Error","Error",IF(T103<>"/",Q103*T103,0)) -> 0
A104: 2 | B104: =IF(Paramètres!M7=0,"",Paramètres!M7) ->  | C104: 0 | F104: 0 | G104: =IF(I$101="Error","Error",IF(AND($E$101<>"/",$E$101>'Paramètres - Admin'!$A3),'Paramètres - Admin'!$A4,"/")) -> 2 | H104: =IF(G104<>"/",VLOOKUP(G104,COSTS_Wall[#All],2),"/") -> 1000 | I104: =IF(G104<>"/",VLOOKUP(G104,COSTS_Wall[#All],3),"/") -> 0 | J104: 0 | K104: 0 | L104: 2 | M104: =IF(Paramètres!Q7=0,"",Paramètres!Q7) ->  | N104: =IF(N103<>0,N103+IF(AND(M103<>"",L103<E$6),M103,0),IF(AND(M103<>"",L103<E$6),M103,0)) -> 0 | Q104: =IF(R104<>"/",IF(T$101="Error","Error",$U$101+N104),"/") -> 0 | R104: =IF(T$101="Error","Error",IF(AND($P$101<>"/",$P$101>'Paramètres - Admin'!$A3),'Paramètres - Admin'!$A4,"/")) -> 2 | S104: =IF(R104<>"/",VLOOKUP(R104,COSTS_Air_Defense[#All],2),"/") -> 90000 | T104: =IF(R104<>"/",VLOOKUP(R104,COSTS_Air_Defense[#All],3),"/") -> 24 | U104: =IF(T$101="Error","Error",IF(S104<>"/",Q104*S104,0)) -> 0 | V104: =IF(T$101="Error","Error",IF(T104<>"/",Q104*T104,0)) -> 0
A105: 3 | B105: =IF(Paramètres!M8=0,"",Paramètres!M8) ->  | C105: 0 | F105: 0 | G105: =IF(I$101="Error","Error",IF(AND($E$101<>"/",$E$101>'Paramètres - Admin'!$A4),'Paramètres - Admin'!$A5,"/")) -> 3 | H105: =IF(G105<>"/",VLOOKUP(G105,COSTS_Wall[#All],2),"/") -> 5000 | I105: =IF(G105<>"/",VLOOKUP(G105,COSTS_Wall[#All],3),"/") -> 0 | J105: 0 | K105: 0 | L105: 3 | M105: =IF(Paramètres!Q8=0,"",Paramètres!Q8) ->  | N105: 0 | Q105: 0 | R105: =IF(T$101="Error","Error",IF(AND($P$101<>"/",$P$101>'Paramètres - Admin'!$A4),'Paramètres - Admin'!$A5,"/")) -> 3 | S105: =IF(R105<>"/",VLOOKUP(R105,COSTS_Air_Defense[#All],2),"/") -> 270000 | T105: =IF(R105<>"/",VLOOKUP(R105,COSTS_Air_Defense[#All],3),"/") -> 72 | U105: 0 | V105: 0
A106: 4 | B106: =IF(Paramètres!M9=0,"",Paramètres!M9) ->  | C106: 0 | F106: 0 | G106: =IF(I$101="Error","Error",IF(AND($E$101<>"/",$E$101>'Paramètres - Admin'!$A5),'Paramètres - Admin'!$A6,"/")) -> 4 | H106: =IF(G106<>"/",VLOOKUP(G106,COSTS_Wall[#All],2),"/") -> 10000 | I106: =IF(G106<>"/",VLOOKUP(G106,COSTS_Wall[#All],3),"/") -> 0 | J106: 0 | K106: 0 | L106: 4 | M106: =IF(Paramètres!Q9=0,"",Paramètres!Q9) -> 1 | N106: 0 | Q106: 0 | R106: =IF(T$101="Error","Error",IF(AND($P$101<>"/",$P$101>'Paramètres - Admin'!$A5),'Paramètres - Admin'!$A6,"/")) -> 4 | S106: =IF(R106<>"/",VLOOKUP(R106,COSTS_Air_Defense[#All],2),"/") -> 540000 | T106: =IF(R106<>"/",VLOOKUP(R106,COSTS_Air_Defense[#All],3),"/") -> 120 | U106: 0 | V106: 0
A107: 5 | B107: =IF(Paramètres!M10=0,"",Paramètres!M10) ->  | C107: 0 | F107: 0 | G107: =IF(I$101="Error","Error",IF(AND($E$101<>"/",$E$101>'Paramètres - Admin'!$A6),'Paramètres - Admin'!$A7,"/")) -> 5 | H107: =IF(G107<>"/",VLOOKUP(G107,COSTS_Wall[#All],2),"/") -> 30000 | I107: =IF(G107<>"/",VLOOKUP(G107,COSTS_Wall[#All],3),"/") -> 0 | J107: 0 | K107: 0 | L107: 5 | M107: =IF(Paramètres!Q10=0,"",Paramètres!Q10) ->  | N107: 1 | Q107: 1 | R107: =IF(T$101="Error","Error",IF(AND($P$101<>"/",$P$101>'Paramètres - Admin'!$A6),'Paramètres - Admin'!$A7,"/")) -> 5 | S107: =IF(R107<>"/",VLOOKUP(R107,COSTS_Air_Defense[#All],2),"/") -> 1080000 | T107: =IF(R107<>"/",VLOOKUP(R107,COSTS_Air_Defense[#All],3),"/") -> 144 | U107: 1080000 | V107: 144
A108: 6 | B108: =IF(Paramètres!M11=0,"",Paramètres!M11) ->  | C108: 0 | F108: 0 | G108: =IF(I$101="Error","Error",IF(AND($E$101<>"/",$E$101>'Paramètres - Admin'!$A7),'Paramètres - Admin'!$A8,"/")) -> 6 | H108: =IF(G108<>"/",VLOOKUP(G108,COSTS_Wall[#All],2),"/") -> 75000 | I108: =IF(G108<>"/",VLOOKUP(G108,COSTS_Wall[#All],3),"/") -> 0 | J108: 0 | K108: 0 | L108: 6 | M108: =IF(Paramètres!Q11=0,"",Paramètres!Q11) -> 3 | N108: 1 | Q108: 1 | R108: =IF(T$101="Error","Error",IF(AND($P$101<>"/",$P$101>'Paramètres - Admin'!$A7),'Paramètres - Admin'!$A8,"/")) -> 6 | S108: =IF(R108<>"/",VLOOKUP(R108,COSTS_Air_Defense[#All],2),"/") -> 2160000 | T108: =IF(R108<>"/",VLOOKUP(R108,COSTS_Air_Defense[#All],3),"/") -> 192 | U108: 2160000 | V108: 192
A109: 7 | B109: =IF(Paramètres!M12=0,"",Paramètres!M12) ->  | C109: 0 | F109: 0 | G109: =IF(I$101="Error","Error",IF(AND($E$101<>"/",$E$101>'Paramètres - Admin'!$A8),'Paramètres - Admin'!$A9,"/")) -> 7 | H109: =IF(G109<>"/",VLOOKUP(G109,COSTS_Wall[#All],2),"/") -> 200000 | I109: =IF(G109<>"/",VLOOKUP(G109,COSTS_Wall[#All],3),"/") -> 0 | J109: 0 | K109: 0 | L109: 7 | M109: =IF(Paramètres!Q12=0,"",Paramètres!Q12) ->  | N109: 4 | Q109: 4 | R109: =IF(T$101="Error","Error",IF(AND($P$101<>"/",$P$101>'Paramètres - Admin'!$A8),'Paramètres - Admin'!$A9,"/")) -> 7 | S109: =IF(R109<>"/",VLOOKUP(R109,COSTS_Air_Defense[#All],2),"/") -> 4320000 | T109: =IF(R109<>"/",VLOOKUP(R109,COSTS_Air_Defense[#All],3),"/") -> 240 | U109: 17280000 | V109: 960
A110: 8 | B110: =IF(Paramètres!M13=0,"",Paramètres!M13) -> 248 | C110: 0 | F110: 0 | G110: =IF(I$101="Error","Error",IF(AND($E$101<>"/",$E$101>'Paramètres - Admin'!$A9),'Paramètres - Admin'!$A10,"/")) -> 8 | H110: =IF(G110<>"/",VLOOKUP(G110,COSTS_Wall[#All],2),"/") -> 500000 | I110: =IF(G110<>"/",VLOOKUP(G110,COSTS_Wall[#All],3),"/") -> 0 | J110: 0 | K110: 0 | L110: 8 | M110: =IF(Paramètres!Q13=0,"",Paramètres!Q13) ->  | N110: 4 | Q110: 4 | R110: =IF(T$101="Error","Error",IF(AND($P$101<>"/",$P$101>'Paramètres - Admin'!$A9),'Paramètres - Admin'!$A10,"/")) -> 8 | S110: =IF(R110<>"/",VLOOKUP(R110,COSTS_Air_Defense[#All],2),"/") -> 7560000 | T110: =IF(R110<>"/",VLOOKUP(R110,COSTS_Air_Defense[#All],3),"/") -> 288 | U110: 30240000 | V110: 1152
A111: 9 | B111: =IF(Paramètres!M14=0,"",Paramètres!M14) -> 2 | C111: 248 | F111: 248 | G111: =IF(I$101="Error","Error",IF(AND($E$101<>"/",$E$101>'Paramètres - Admin'!$A10),'Paramètres - Admin'!$A11,"/")) -> 9 | H111: =IF(G111<>"/",VLOOKUP(G111,COSTS_Wall[#All],2),"/") -> 1000000 | I111: =IF(G111<>"/",VLOOKUP(G111,COSTS_Wall[#All],3),"/") -> 0 | J111: 248000000 | K111: 0 | T111: Total | U111: =IF(T$101="Error","Error",SUM(U103:U110)) -> 50760000 | V111: =IF(T$101="Error","Error",SUM(V103:V110)) -> 2448
A112: 10 | B112: =IF(Paramètres!M15=0,"",Paramètres!M15) ->  | C112: 250 | F112: 250 | G112: =IF(I$101="Error","Error",IF(AND($E$101<>"/",$E$101>'Paramètres - Admin'!$A11),'Paramètres - Admin'!$A12,"/")) -> 10 | H112: =IF(G112<>"/",VLOOKUP(G112,COSTS_Wall[#All],2),"/") -> 3000000 | I112: =IF(G112<>"/",VLOOKUP(G112,COSTS_Wall[#All],3),"/") -> 0 | J112: 750000000 | K112: 0 | L112: Tour de Sorciers | O112: Max | P112: Max + | T112: Actuel | U112: À Faire | V112: Améliorations
A113: 11 | B113: =IF(Paramètres!M16=0,"",Paramètres!M16) ->  | C113: 250 | F113: 250 | G113: =IF(I$101="Error","Error",IF(AND($E$101<>"/",$E$101>'Paramètres - Admin'!$A12),'Paramètres - Admin'!$A13,"/")) -> 11 | H113: =IF(G113<>"/",VLOOKUP(G113,COSTS_Wall[#All],2),"/") -> 4000000 | I113: =IF(G113<>"/",VLOOKUP(G113,COSTS_Wall[#All],3),"/") -> 0 | J113: 1000000000 | K113: 0 | O113: =VLOOKUP($A$2,AVAILABLE_Buildings_Defensive[#All],MATCH(L112,AVAILABLE_Buildings_Defensive[#Headers],0)) -> 4 | P113: =VLOOKUP($A$2,AVAILABLE_Buildings_Defensive[#All],MATCH(L112,AVAILABLE_Buildings_Defensive[#Headers],0)+1) -> 8 | T113: =IF(SUM(M115:M122)>O113,"Error",SUM(M115:M122)) -> 4 | U113: =IF(T$113="Error","Error",O113-T113) -> 0 | V113: =IF(T$113="Error","Error",SUM(Q115:Q122)) -> 10
I114: Total | J114: =IF(I$101="Error","Error",SUM(J103:J113)) -> 1998000000 | K114: =IF(I$101="Error","Error",SUM(K103:K113)) -> 0 | L114: + | M114: NB | Q114: NB | R114: + | S114: Coût | T114: Temps | U114: Coût Total | V114: Temps Total
A115: Canon | D115: Max | E115: Max + | I115: Actuel | J115: À Faire | K115: Améliorations | L115: 1 | M115: =IF(Paramètres!R6=0,"",Paramètres!R6) ->  | N115: =IF(N114<>0,N114+IF(AND(M114<>"",L114<P$6),M114,0),IF(AND(M114<>"",L114<P$6),M114,0)) -> 0 | Q115: =IF(R115<>"/",IF(T$113="Error","Error",$U$113+N115),"/") -> 0 | R115: =IF(T$113="Error","Error",IF(AND($P$113<>"/",$P$113>'Paramètres - Admin'!$A2),'Paramètres - Admin'!$A3,"/")) -> 1 | S115: =IF(R115<>"/",VLOOKUP(R115,COSTS_Wizard_Tower[#All],2),"/") -> 180000 | T115: =IF(R115<>"/",VLOOKUP(R115,COSTS_Wizard_Tower[#All],3),"/") -> 12 | U115: =IF(T$113="Error","Error",IF(S115<>"/",Q115*S115,0)) -> 0 | V115: =IF(T$113="Error","Error",IF(T115<>"/",Q115*T115,0)) -> 0
D116: =VLOOKUP($A$2,AVAILABLE_Buildings_Defensive[#All],MATCH(A115,AVAILABLE_Buildings_Defensive[#Headers],0)) -> 6 | E116: =VLOOKUP($A$2,AVAILABLE_Buildings_Defensive[#All],MATCH(A115,AVAILABLE_Buildings_Defensive[#Headers],0)+1) -> 13 | I116: =IF(SUM(B118:B130)>D116,"Error",SUM(B118:B130)) -> 6 | J116: =IF(I$116="Error","Error",D116-I116) -> 0 | K116: =IF(I$116="Error","Error",SUM(F118:F130)) -> 19 | L116: 2 | M116: =IF(Paramètres!R7=0,"",Paramètres!R7) ->  | N116: =IF(N115<>0,N115+IF(AND(M115<>"",L115<P$6),M115,0),IF(AND(M115<>"",L115<P$6),M115,0)) -> 0 | Q116: =IF(R116<>"/",IF(T$113="Error","Error",$U$113+N116),"/") -> 0 | R116: =IF(T$113="Error","Error",IF(AND($P$113<>"/",$P$113>'Paramètres - Admin'!$A3),'Paramètres - Admin'!$A4,"/")) -> 2 | S116: =IF(R116<>"/",VLOOKUP(R116,COSTS_Wizard_Tower[#All],2),"/") -> 360000 | T116: =IF(R116<>"/",VLOOKUP(R116,COSTS_Wizard_Tower[#All],3),"/") -> 24 | U116: =IF(T$113="Error","Error",IF(S116<>"/",Q116*S116,0)) -> 0 | V116: =IF(T$113="Error","Error",IF(T116<>"/",Q116*T116,0)) -> 0
A117: + | B117: NB | F117: NB | G117: + | H117: Coût | I117: Temps | J117: Coût Total | K117: Temps Total | L117: 3 | M117: =IF(Paramètres!R8=0,"",Paramètres!R8) ->  | N117: 0 | Q117: 0 | R117: =IF(T$113="Error","Error",IF(AND($P$113<>"/",$P$113>'Paramètres - Admin'!$A4),'Paramètres - Admin'!$A5,"/")) -> 3 | S117: =IF(R117<>"/",VLOOKUP(R117,COSTS_Wizard_Tower[#All],2),"/") -> 720000 | T117: =IF(R117<>"/",VLOOKUP(R117,COSTS_Wizard_Tower[#All],3),"/") -> 48 | U117: 0 | V117: 0
A118: 1 | B118: =IF(Paramètres!N6=0,"",Paramètres!N6) ->  | C118: =IF(C117<>0,C117+IF(AND(B117<>"",A117<$E$116),B117,0),IF(AND(B117<>"",A117<$E$116),B117,0)) -> 0 | F118: =IF(G118<>"/",IF(I$116="Error","Error",$J$116+C118),"/") -> 0 | G118: =IF(I$116="Error","Error",IF(AND($E$116<>"/",$E$116>'Paramètres - Admin'!$A2),'Paramètres - Admin'!$A3,"/")) -> 1 | H118: =IF(G118<>"/",VLOOKUP(G118,COSTS_Cannon[#All],2),"/") -> 250 | I118: =IF(G118<>"/",VLOOKUP(G118,COSTS_Cannon[#All],3),"/") -> 0.01666666667 | J118: =IF(I$116="Error","Error",IF(H118<>"/",F118*H118,0)) -> 0 | K118: =IF(I$116="Error","Error",IF(I118<>"/",F118*I118,0)) -> 0 | L118: 4 | M118: =IF(Paramètres!R9=0,"",Paramètres!R9) -> 1 | N118: 0 | Q118: 0 | R118: =IF(T$113="Error","Error",IF(AND($P$113<>"/",$P$113>'Paramètres - Admin'!$A5),'Paramètres - Admin'!$A6,"/")) -> 4 | S118: =IF(R118<>"/",VLOOKUP(R118,COSTS_Wizard_Tower[#All],2),"/") -> 1280000 | T118: =IF(R118<>"/",VLOOKUP(R118,COSTS_Wizard_Tower[#All],3),"/") -> 72 | U118: 0 | V118: 0
A119: 2 | B119: =IF(Paramètres!N7=0,"",Paramètres!N7) ->  | C119: =IF(C118<>0,C118+IF(AND(B118<>"",A118<$E$116),B118,0),IF(AND(B118<>"",A118<$E$116),B118,0)) -> 0 | F119: =IF(G119<>"/",IF(I$116="Error","Error",$J$116+C119),"/") -> 0 | G119: =IF(I$116="Error","Error",IF(AND($E$116<>"/",$E$116>'Paramètres - Admin'!$A3),'Paramètres - Admin'!$A4,"/")) -> 2 | H119: =IF(G119<>"/",VLOOKUP(G119,COSTS_Cannon[#All],2),"/") -> 1000 | I119: =IF(G119<>"/",VLOOKUP(G119,COSTS_Cannon[#All],3),"/") -> 0.25 | J119: =IF(I$116="Error","Error",IF(H119<>"/",F119*H119,0)) -> 0 | K119: =IF(I$116="Error","Error",IF(I119<>"/",F119*I119,0)) -> 0 | L119: 5 | M119: =IF(Paramètres!R10=0,"",Paramètres!R10) ->  | N119: 1 | Q119: 1 | R119: =IF(T$113="Error","Error",IF(AND($P$113<>"/",$P$113>'Paramètres - Admin'!$A6),'Paramètres - Admin'!$A7,"/")) -> 5 | S119: =IF(R119<>"/",VLOOKUP(R119,COSTS_Wizard_Tower[#All],2),"/") -> 1960000 | T119: =IF(R119<>"/",VLOOKUP(R119,COSTS_Wizard_Tower[#All],3),"/") -> 96 | U119: 1960000 | V119: 96
A120: 3 | B120: =IF(Paramètres!N8=0,"",Paramètres!N8) ->  | C120: 0 | F120: 0 | G120: =IF(I$116="Error","Error",IF(AND($E$116<>"/",$E$116>'Paramètres - Admin'!$A4),'Paramètres - Admin'!$A5,"/")) -> 3 | H120: =IF(G120<>"/",VLOOKUP(G120,COSTS_Cannon[#All],2),"/") -> 4000 | I120: =IF(G120<>"/",VLOOKUP(G120,COSTS_Cannon[#All],3),"/") -> 0.75 | J120: 0 | K120: 0 | L120: 6 | M120: =IF(Paramètres!R11=0,"",Paramètres!R11) -> 3 | N120: 1 | Q120: 1 | R120: =IF(T$113="Error","Error",IF(AND($P$113<>"/",$P$113>'Paramètres - Admin'!$A7),'Paramètres - Admin'!$A8,"/")) -> 6 | S120: =IF(R120<>"/",VLOOKUP(R120,COSTS_Wizard_Tower[#All],2),"/") -> 2680000 | T120: =IF(R120<>"/",VLOOKUP(R120,COSTS_Wizard_Tower[#All],3),"/") -> 120 | U120: 2680000 | V120: 120
A121: 4 | B121: =IF(Paramètres!N9=0,"",Paramètres!N9) ->  | C121: 0 | F121: 0 | G121: =IF(I$116="Error","Error",IF(AND($E$116<>"/",$E$116>'Paramètres - Admin'!$A5),'Paramètres - Admin'!$A6,"/")) -> 4 | H121: =IF(G121<>"/",VLOOKUP(G121,COSTS_Cannon[#All],2),"/") -> 16000 | I121: =IF(G121<>"/",VLOOKUP(G121,COSTS_Cannon[#All],3),"/") -> 2 | J121: 0 | K121: 0 | L121: 7 | M121: =IF(Paramètres!R12=0,"",Paramètres!R12) ->  | N121: 4 | Q121: 4 | R121: =IF(T$113="Error","Error",IF(AND($P$113<>"/",$P$113>'Paramètres - Admin'!$A8),'Paramètres - Admin'!$A9,"/")) -> 7 | S121: =IF(R121<>"/",VLOOKUP(R121,COSTS_Wizard_Tower[#All],2),"/") -> 5360000 | T121: =IF(R121<>"/",VLOOKUP(R121,COSTS_Wizard_Tower[#All],3),"/") -> 168 | U121: 21440000 | V121: 672
A122: 5 | B122: =IF(Paramètres!N10=0,"",Paramètres!N10) ->  | C122: 0 | F122: 0 | G122: =IF(I$116="Error","Error",IF(AND($E$116<>"/",$E$116>'Paramètres - Admin'!$A6),'Paramètres - Admin'!$A7,"/")) -> 5 | H122: =IF(G122<>"/",VLOOKUP(G122,COSTS_Cannon[#All],2),"/") -> 50000 | I122: =IF(G122<>"/",VLOOKUP(G122,COSTS_Cannon[#All],3),"/") -> 6 | J122: 0 | K122: 0 | L122: 8 | M122: =IF(Paramètres!R13=0,"",Paramètres!R13) ->  | N122: 4 | Q122: 4 | R122: =IF(T$113="Error","Error",IF(AND($P$113<>"/",$P$113>'Paramètres - Admin'!$A9),'Paramètres - Admin'!$A10,"/")) -> 8 | S122: =IF(R122<>"/",VLOOKUP(R122,COSTS_Wizard_Tower[#All],2),"/") -> 6400000 | T122: =IF(R122<>"/",VLOOKUP(R122,COSTS_Wizard_Tower[#All],3),"/") -> 240 | U122: 25600000 | V122: 960
A123: 6 | B123: =IF(Paramètres!N11=0,"",Paramètres!N11) ->  | C123: 0 | F123: 0 | G123: =IF(I$116="Error","Error",IF(AND($E$116<>"/",$E$116>'Paramètres - Admin'!$A7),'Paramètres - Admin'!$A8,"/")) -> 6 | H123: =IF(G123<>"/",VLOOKUP(G123,COSTS_Cannon[#All],2),"/") -> 100000 | I123: =IF(G123<>"/",VLOOKUP(G123,COSTS_Cannon[#All],3),"/") -> 12 | J123: 0 | K123: 0 | T123: Total | U123: =IF(T$113="Error","Error",SUM(U115:U122)) -> 51680000 | V123: =IF(T$113="Error","Error",SUM(V115:V122)) -> 1848
A124: 7 | B124: =IF(Paramètres!N12=0,"",Paramètres!N12) ->  | C124: 0 | F124: 0 | G124: =IF(I$116="Error","Error",IF(AND($E$116<>"/",$E$116>'Paramètres - Admin'!$A8),'Paramètres - Admin'!$A9,"/")) -> 7 | H124: =IF(G124<>"/",VLOOKUP(G124,COSTS_Cannon[#All],2),"/") -> 200000 | I124: =IF(G124<>"/",VLOOKUP(G124,COSTS_Cannon[#All],3),"/") -> 24 | J124: 0 | K124: 0 | L124: Tesla Camouflée | O124: Max | P124: Max + | T124: Actuel | U124: À Faire | V124: Améliorations
A125: 8 | B125: =IF(Paramètres!N13=0,"",Paramètres!N13) ->  | C125: 0 | F125: 0 | G125: =IF(I$116="Error","Error",IF(AND($E$116<>"/",$E$116>'Paramètres - Admin'!$A9),'Paramètres - Admin'!$A10,"/")) -> 8 | H125: =IF(G125<>"/",VLOOKUP(G125,COSTS_Cannon[#All],2),"/") -> 400000 | I125: =IF(G125<>"/",VLOOKUP(G125,COSTS_Cannon[#All],3),"/") -> 48 | J125: 0 | K125: 0 | O125: =VLOOKUP($A$2,AVAILABLE_Buildings_Defensive[#All],MATCH(L124,AVAILABLE_Buildings_Defensive[#Headers],0)) -> 4 | P125: =VLOOKUP($A$2,AVAILABLE_Buildings_Defensive[#All],MATCH(L124,AVAILABLE_Buildings_Defensive[#Headers],0)+1) -> 8 | T125: =IF(SUM(M127:M134)>O125,"Error",SUM(M127:M134)) -> 4 | U125: =IF(T$125="Error","Error",O125-T125) -> 0 | V125: =IF(T$125="Error","Error",SUM(Q127:Q134)) -> 13
A126: 9 | B126: =IF(Paramètres!N14=0,"",Paramètres!N14) -> 1 | C126: 0 | F126: 0 | G126: =IF(I$116="Error","Error",IF(AND($E$116<>"/",$E$116>'Paramètres - Admin'!$A10),'Paramètres - Admin'!$A11,"/")) -> 9 | H126: =IF(G126<>"/",VLOOKUP(G126,COSTS_Cannon[#All],2),"/") -> 800000 | I126: =IF(G126<>"/",VLOOKUP(G126,COSTS_Cannon[#All],3),"/") -> 72 | J126: 0 | K126: 0 | L126: + | M126: NB | Q126: NB | R126: + | S126: Coût | T126: Temps | U126: Coût Total | V126: Temps Total
A127: 10 | B127: =IF(Paramètres!N15=0,"",Paramètres!N15) -> 5 | C127: 1 | F127: 1 | G127: =IF(I$116="Error","Error",IF(AND($E$116<>"/",$E$116>'Paramètres - Admin'!$A11),'Paramètres - Admin'!$A12,"/")) -> 10 | H127: =IF(G127<>"/",VLOOKUP(G127,COSTS_Cannon[#All],2),"/") -> 1600000 | I127: =IF(G127<>"/",VLOOKUP(G127,COSTS_Cannon[#All],3),"/") -> 96 | J127: 1600000 | K127: 96 | L127: 1 | M127: =IF(Paramètres!T6=0,"",Paramètres!T6) -> 1 | N127: =IF(N126<>0,N126+IF(AND(M126<>"",L126<P$6),M126,0),IF(AND(M126<>"",L126<P$6),M126,0)) -> 0 | Q127: =IF(R127<>"/",IF(T$125="Error","Error",$U$125+N127),"/") -> 0 | R127: =IF(T$125="Error","Error",IF(AND($P$125<>"/",$P$125>'Paramètres - Admin'!$A2),'Paramètres - Admin'!$A3,"/")) -> 1 | S127: =IF(R127<>"/",VLOOKUP(R127,COSTS_Hidden_Tesla[#All],2),"/") -> 1000000 | T127: =IF(R127<>"/",VLOOKUP(R127,COSTS_Hidden_Tesla[#All],3),"/") -> 24 | U127: =IF(T$125="Error","Error",IF(S127<>"/",Q127*S127,0)) -> 0 | V127: =IF(T$125="Error","Error",IF(T127<>"/",Q127*T127,0)) -> 0
A128: 11 | B128: =IF(Paramètres!N16=0,"",Paramètres!N16) ->  | C128: 6 | F128: 6 | G128: =IF(I$116="Error","Error",IF(AND($E$116<>"/",$E$116>'Paramètres - Admin'!$A12),'Paramètres - Admin'!$A13,"/")) -> 11 | H128: =IF(G128<>"/",VLOOKUP(G128,COSTS_Cannon[#All],2),"/") -> 3200000 | I128: =IF(G128<>"/",VLOOKUP(G128,COSTS_Cannon[#All],3),"/") -> 120 | J128: 19200000 | K128: 720 | L128: 2 | M128: =IF(Paramètres!T7=0,"",Paramètres!T7) ->  | N128: =IF(N127<>0,N127+IF(AND(M127<>"",L127<P$6),M127,0),IF(AND(M127<>"",L127<P$6),M127,0)) -> 1 | Q128: =IF(R128<>"/",IF(T$125="Error","Error",$U$125+N128),"/") -> 1 | R128: =IF(T$125="Error","Error",IF(AND($P$125<>"/",$P$125>'Paramètres - Admin'!$A3),'Paramètres - Admin'!$A4,"/")) -> 2 | S128: =IF(R128<>"/",VLOOKUP(R128,COSTS_Hidden_Tesla[#All],2),"/") -> 1250000 | T128: =IF(R128<>"/",VLOOKUP(R128,COSTS_Hidden_Tesla[#All],3),"/") -> 72 | U128: =IF(T$125="Error","Error",IF(S128<>"/",Q128*S128,0)) -> 1250000 | V128: =IF(T$125="Error","Error",IF(T128<>"/",Q128*T128,0)) -> 72
A129: 12 | B129: =IF(Paramètres!N17=0,"",Paramètres!N17) ->  | C129: =IF(C127<>0,C127+IF(AND(B127<>"",A127<$E$116),B127,0),IF(AND(B127<>"",A127<$E$116),B127,0)) -> 6 | F129: =IF(G129<>"/",IF(I$116="Error","Error",$J$116+C129),"/") -> 6 | G129: =IF(I$116="Error","Error",IF(AND($E$116<>"/",$E$116>'Paramètres - Admin'!$A12),'Paramètres - Admin'!$A13,"/")) -> 11 | H129: =IF(G129<>"/",VLOOKUP(G129,COSTS_Cannon[#All],2),"/") -> 3200000 | I129: =IF(G129<>"/",VLOOKUP(G129,COSTS_Cannon[#All],3),"/") -> 120 | J129: =IF(I$116="Error","Error",IF(H129<>"/",F129*H129,0)) -> 19200000 | K129: =IF(I$116="Error","Error",IF(I129<>"/",F129*I129,0)) -> 720 | L129: 3 | M129: =IF(Paramètres!T8=0,"",Paramètres!T8) ->  | N129: 1 | Q129: 1 | R129: =IF(T$125="Error","Error",IF(AND($P$125<>"/",$P$125>'Paramètres - Admin'!$A4),'Paramètres - Admin'!$A5,"/")) -> 3 | S129: =IF(R129<>"/",VLOOKUP(R129,COSTS_Hidden_Tesla[#All],2),"/") -> 1500000 | T129: =IF(R129<>"/",VLOOKUP(R129,COSTS_Hidden_Tesla[#All],3),"/") -> 120 | U129: 1500000 | V129: 120
A130: 13 | B130: =IF(Paramètres!N18=0,"",Paramètres!N18) ->  | C130: =IF(C128<>0,C128+IF(AND(B128<>"",A128<$E$116),B128,0),IF(AND(B128<>"",A128<$E$116),B128,0)) -> 6 | F130: 6 | G130: =IF(I$116="Error","Error",IF(AND($E$116<>"/",$E$116>'Paramètres - Admin'!$A13),'Paramètres - Admin'!$A14,"/")) -> 12 | H130: =IF(G130<>"/",VLOOKUP(G130,COSTS_Cannon[#All],2),"/") -> 6400000 | I130: =IF(G130<>"/",VLOOKUP(G130,COSTS_Cannon[#All],3),"/") -> 144 | J130: 38400000 | K130: 864 | L130: 4 | M130: =IF(Paramètres!T9=0,"",Paramètres!T9) ->  | N130: 1 | Q130: 1 | R130: =IF(T$125="Error","Error",IF(AND($P$125<>"/",$P$125>'Paramètres - Admin'!$A5),'Paramètres - Admin'!$A6,"/")) -> 4 | S130: =IF(R130<>"/",VLOOKUP(R130,COSTS_Hidden_Tesla[#All],2),"/") -> 2000000 | T130: =IF(R130<>"/",VLOOKUP(R130,COSTS_Hidden_Tesla[#All],3),"/") -> 144 | U130: 2000000 | V130: 144
I131: Total | J131: =IF(I$116="Error","Error",SUM(J118:J130)) -> 78400000 | K131: =IF(I$116="Error","Error",SUM(K118:K130)) -> 2400 | L131: 5 | M131: =IF(Paramètres!T10=0,"",Paramètres!T10) ->  | N131: 1 | Q131: 1 | R131: =IF(T$125="Error","Error",IF(AND($P$125<>"/",$P$125>'Paramètres - Admin'!$A6),'Paramètres - Admin'!$A7,"/")) -> 5 | S131: =IF(R131<>"/",VLOOKUP(R131,COSTS_Hidden_Tesla[#All],2),"/") -> 2500000 | T131: =IF(R131<>"/",VLOOKUP(R131,COSTS_Hidden_Tesla[#All],3),"/") -> 192 | U131: 2500000 | V131: 192
A132: Tour d'Archers | D132: Max | E132: Max + | I132: Actuel | J132: À Faire | K132: Améliorations | L132: 6 | M132: =IF(Paramètres!T11=0,"",Paramètres!T11) -> 3 | N132: 1 | Q132: 1 | R132: =IF(T$125="Error","Error",IF(AND($P$125<>"/",$P$125>'Paramètres - Admin'!$A7),'Paramètres - Admin'!$A8,"/")) -> 6 | S132: =IF(R132<>"/",VLOOKUP(R132,COSTS_Hidden_Tesla[#All],2),"/") -> 3000000 | T132: =IF(R132<>"/",VLOOKUP(R132,COSTS_Hidden_Tesla[#All],3),"/") -> 240 | U132: 3000000 | V132: 240
D133: =VLOOKUP($A$2,AVAILABLE_Buildings_Defensive[#All],MATCH(A132,AVAILABLE_Buildings_Defensive[#Headers],0)) -> 7 | E133: =VLOOKUP($A$2,AVAILABLE_Buildings_Defensive[#All],MATCH(A132,AVAILABLE_Buildings_Defensive[#Headers],0)+1) -> 13 | I133: =IF(SUM(B135:B147)>D133,"Error",SUM(B135:B147)) -> 7 | J133: =IF(I$133="Error","Error",D133-I133) -> 0 | K133: =IF(I$133="Error","Error",SUM(F135:F147)) -> 24 | L133: 7 | M133: =IF(Paramètres!T12=0,"",Paramètres!T12) ->  | N133: 4 | Q133: 4 | R133: =IF(T$125="Error","Error",IF(AND($P$125<>"/",$P$125>'Paramètres - Admin'!$A8),'Paramètres - Admin'!$A9,"/")) -> 7 | S133: =IF(R133<>"/",VLOOKUP(R133,COSTS_Hidden_Tesla[#All],2),"/") -> 3500000 | T133: =IF(R133<>"/",VLOOKUP(R133,COSTS_Hidden_Tesla[#All],3),"/") -> 288 | U133: 14000000 | V133: 1152
A134: + | B134: NB | F134: NB | G134: + | H134: Coût | I134: Temps | J134: Coût Total | K134: Temps Total | L134: 8 | M134: =IF(Paramètres!T13=0,"",Paramètres!T13) ->  | N134: 4 | Q134: 4 | R134: =IF(T$125="Error","Error",IF(AND($P$125<>"/",$P$125>'Paramètres - Admin'!$A9),'Paramètres - Admin'!$A10,"/")) -> 8 | S134: =IF(R134<>"/",VLOOKUP(R134,COSTS_Hidden_Tesla[#All],2),"/") -> 5000000 | T134: =IF(R134<>"/",VLOOKUP(R134,COSTS_Hidden_Tesla[#All],3),"/") -> 336 | U134: 20000000 | V134: 1344
A135: 1 | B135: =IF(Paramètres!O6=0,"",Paramètres!O6) ->  | C135: =IF(C134<>0,C134+IF(AND(B134<>"",A134<$E$133),B134,0),IF(AND(B134<>"",A134<$E$133),B134,0)) -> 0 | F135: =IF(G135<>"/",IF(I$133="Error","Error",$J$133+C135),"/") -> 0 | G135: =IF(I$133="Error","Error",IF(AND($E$133<>"/",$E$133>'Paramètres - Admin'!$A2),'Paramètres - Admin'!$A3,"/")) -> 1 | H135: =IF(G135<>"/",VLOOKUP(G135,COSTS_Archer_Tower[#All],2),"/") -> 1000 | I135: =IF(G135<>"/",VLOOKUP(G135,COSTS_Archer_Tower[#All],3),"/") -> 0.25 | J135: =IF(I$133="Error","Error",IF(H135<>"/",F135*H135,0)) -> 0 | K135: =IF(I$133="Error","Error",IF(I135<>"/",F135*I135,0)) -> 0 | T135: Total | U135: =IF(T$125="Error","Error",SUM(U127:U134)) -> 44250000 | V135: =IF(T$125="Error","Error",SUM(V127:V134)) -> 3264
A136: 2 | B136: =IF(Paramètres!O7=0,"",Paramètres!O7) ->  | C136: 0 | F136: 0 | G136: =IF(I$133="Error","Error",IF(AND($E$133<>"/",$E$133>'Paramètres - Admin'!$A3),'Paramètres - Admin'!$A4,"/")) -> 2 | H136: =IF(G136<>"/",VLOOKUP(G136,COSTS_Archer_Tower[#All],2),"/") -> 2000 | I136: =IF(G136<>"/",VLOOKUP(G136,COSTS_Archer_Tower[#All],3),"/") -> 0.5 | J136: 0 | K136: 0 | L136: Arc-X | O136: Max | P136: Max + | T136: Actuel | U136: À Faire | V136: Améliorations
A137: 3 | B137: =IF(Paramètres!O8=0,"",Paramètres!O8) ->  | C137: 0 | F137: 0 | G137: =IF(I$133="Error","Error",IF(AND($E$133<>"/",$E$133>'Paramètres - Admin'!$A4),'Paramètres - Admin'!$A5,"/")) -> 3 | H137: =IF(G137<>"/",VLOOKUP(G137,COSTS_Archer_Tower[#All],2),"/") -> 5000 | I137: =IF(G137<>"/",VLOOKUP(G137,COSTS_Archer_Tower[#All],3),"/") -> 0.75 | J137: 0 | K137: 0 | O137: =VLOOKUP($A$2,AVAILABLE_Buildings_Defensive[#All],MATCH(L136,AVAILABLE_Buildings_Defensive[#Headers],0)) -> 3 | P137: =VLOOKUP($A$2,AVAILABLE_Buildings_Defensive[#All],MATCH(L136,AVAILABLE_Buildings_Defensive[#Headers],0)+1) -> 4 | T137: =IF(SUM(M139:M142)>O137,"Error",SUM(M139:M142)) -> 3 | U137: =IF(T$137="Error","Error",O137-T137) -> 0 | V137: =IF(T$137="Error","Error",SUM(Q139:Q142)) -> 9
A138: 4 | B138: =IF(Paramètres!O9=0,"",Paramètres!O9) ->  | C138: 0 | F138: 0 | G138: =IF(I$133="Error","Error",IF(AND($E$133<>"/",$E$133>'Paramètres - Admin'!$A5),'Paramètres - Admin'!$A6,"/")) -> 4 | H138: =IF(G138<>"/",VLOOKUP(G138,COSTS_Archer_Tower[#All],2),"/") -> 20000 | I138: =IF(G138<>"/",VLOOKUP(G138,COSTS_Archer_Tower[#All],3),"/") -> 4 | J138: 0 | K138: 0 | L138: + | M138: NB | Q138: NB | R138: + | S138: Coût | T138: Temps | U138: Coût Total | V138: Temps Total
A139: 5 | B139: =IF(Paramètres!O10=0,"",Paramètres!O10) ->  | C139: 0 | F139: 0 | G139: =IF(I$133="Error","Error",IF(AND($E$133<>"/",$E$133>'Paramètres - Admin'!$A6),'Paramètres - Admin'!$A7,"/")) -> 5 | H139: =IF(G139<>"/",VLOOKUP(G139,COSTS_Archer_Tower[#All],2),"/") -> 80000 | I139: =IF(G139<>"/",VLOOKUP(G139,COSTS_Archer_Tower[#All],3),"/") -> 12 | J139: 0 | K139: 0 | L139: 1 | M139: =IF(Paramètres!U6=0,"",Paramètres!U6) -> 3 | N139: =IF(N138<>0,N138+IF(AND(M138<>"",L138<P$6),M138,0),IF(AND(M138<>"",L138<P$6),M138,0)) -> 0 | Q139: =IF(R139<>"/",IF(T$137="Error","Error",$U$137+N139),"/") -> 0 | R139: =IF(T$137="Error","Error",IF(AND($P$137<>"/",$P$137>'Paramètres - Admin'!$A2),'Paramètres - Admin'!$A3,"/")) -> 1 | S139: =IF(R139<>"/",VLOOKUP(R139,COSTS_XBow[#All],2),"/") -> 3000000 | T139: =IF(R139<>"/",VLOOKUP(R139,COSTS_XBow[#All],3),"/") -> 168 | U139: =IF(T$137="Error","Error",IF(S139<>"/",Q139*S139,0)) -> 0 | V139: =IF(T$137="Error","Error",IF(T139<>"/",Q139*T139,0)) -> 0
A140: 6 | B140: =IF(Paramètres!O11=0,"",Paramètres!O11) ->  | C140: 0 | F140: 0 | G140: =IF(I$133="Error","Error",IF(AND($E$133<>"/",$E$133>'Paramètres - Admin'!$A7),'Paramètres - Admin'!$A8,"/")) -> 6 | H140: =IF(G140<>"/",VLOOKUP(G140,COSTS_Archer_Tower[#All],2),"/") -> 180000 | I140: =IF(G140<>"/",VLOOKUP(G140,COSTS_Archer_Tower[#All],3),"/") -> 24 | J140: 0 | K140: 0 | L140: 2 | M140: =IF(Paramètres!U7=0,"",Paramètres!U7) ->  | N140: =IF(N139<>0,N139+IF(AND(M139<>"",L139<P$6),M139,0),IF(AND(M139<>"",L139<P$6),M139,0)) -> 3 | Q140: =IF(R140<>"/",IF(T$137="Error","Error",$U$137+N140),"/") -> 3 | R140: =IF(T$137="Error","Error",IF(AND($P$137<>"/",$P$137>'Paramètres - Admin'!$A3),'Paramètres - Admin'!$A4,"/")) -> 2 | S140: =IF(R140<>"/",VLOOKUP(R140,COSTS_XBow[#All],2),"/") -> 5000000 | T140: =IF(R140<>"/",VLOOKUP(R140,COSTS_XBow[#All],3),"/") -> 240 | U140: =IF(T$137="Error","Error",IF(S140<>"/",Q140*S140,0)) -> 15000000 | V140: =IF(T$137="Error","Error",IF(T140<>"/",Q140*T140,0)) -> 720
A141: 7 | B141: =IF(Paramètres!O12=0,"",Paramètres!O12) ->  | C141: 0 | F141: 0 | G141: =IF(I$133="Error","Error",IF(AND($E$133<>"/",$E$133>'Paramètres - Admin'!$A8),'Paramètres - Admin'!$A9,"/")) -> 7 | H141: =IF(G141<>"/",VLOOKUP(G141,COSTS_Archer_Tower[#All],2),"/") -> 360000 | I141: =IF(G141<>"/",VLOOKUP(G141,COSTS_Archer_Tower[#All],3),"/") -> 48 | J141: 0 | K141: 0 | L141: 3 | M141: =IF(Paramètres!U8=0,"",Paramètres!U8) ->  | N141: =IF(N140<>0,N140+IF(AND(M140<>"",L140<P$6),M140,0),IF(AND(M140<>"",L140<P$6),M140,0)) -> 3 | Q141: =IF(R141<>"/",IF(T$137="Error","Error",$U$137+N141),"/") -> 3 | R141: =IF(T$137="Error","Error",IF(AND($P$137<>"/",$P$137>'Paramètres - Admin'!$A4),'Paramètres - Admin'!$A5,"/")) -> 3 | S141: =IF(R141<>"/",VLOOKUP(R141,COSTS_XBow[#All],2),"/") -> 7000000 | T141: =IF(R141<>"/",VLOOKUP(R141,COSTS_XBow[#All],3),"/") -> 336 | U141: =IF(T$137="Error","Error",IF(S141<>"/",Q141*S141,0)) -> 21000000 | V141: =IF(T$137="Error","Error",IF(T141<>"/",Q141*T141,0)) -> 1008
A142: 8 | B142: =IF(Paramètres!O13=0,"",Paramètres!O13) -> 1 | C142: 0 | F142: 0 | G142: =IF(I$133="Error","Error",IF(AND($E$133<>"/",$E$133>'Paramètres - Admin'!$A9),'Paramètres - Admin'!$A10,"/")) -> 8 | H142: =IF(G142<>"/",VLOOKUP(G142,COSTS_Archer_Tower[#All],2),"/") -> 720000 | I142: =IF(G142<>"/",VLOOKUP(G142,COSTS_Archer_Tower[#All],3),"/") -> 72 | J142: 0 | K142: 0 | L142: 4 | M142: =IF(Paramètres!U9=0,"",Paramètres!U9) ->  | N142: =IF(N141<>0,N141+IF(AND(M141<>"",L141<P$6),M141,0),IF(AND(M141<>"",L141<P$6),M141,0)) -> 3 | Q142: =IF(R142<>"/",IF(T$137="Error","Error",$U$137+N142),"/") -> 3 | R142: =IF(T$137="Error","Error",IF(AND($P$137<>"/",$P$137>'Paramètres - Admin'!$A5),'Paramètres - Admin'!$A6,"/")) -> 4 | S142: =IF(R142<>"/",VLOOKUP(R142,COSTS_XBow[#All],2),"/") -> 8000000 | T142: =IF(R142<>"/",VLOOKUP(R142,COSTS_XBow[#All],3),"/") -> 336 | U142: =IF(T$137="Error","Error",IF(S142<>"/",Q142*S142,0)) -> 24000000 | V142: =IF(T$137="Error","Error",IF(T142<>"/",Q142*T142,0)) -> 1008
A143: 9 | B143: =IF(Paramètres!O14=0,"",Paramètres!O14) -> 1 | C143: 1 | F143: 1 | G143: =IF(I$133="Error","Error",IF(AND($E$133<>"/",$E$133>'Paramètres - Admin'!$A10),'Paramètres - Admin'!$A11,"/")) -> 9 | H143: =IF(G143<>"/",VLOOKUP(G143,COSTS_Archer_Tower[#All],2),"/") -> 1500000 | I143: =IF(G143<>"/",VLOOKUP(G143,COSTS_Archer_Tower[#All],3),"/") -> 96 | J143: 1500000 | K143: 96 | T143: Total | U143: =IF(T$137="Error","Error",SUM(U139:U142)) -> 60000000 | V143: =IF(T$137="Error","Error",SUM(V139:V142)) -> 2736
A144: 10 | B144: =IF(Paramètres!O15=0,"",Paramètres!O15) -> 5 | C144: 2 | F144: 2 | G144: =IF(I$133="Error","Error",IF(AND($E$133<>"/",$E$133>'Paramètres - Admin'!$A11),'Paramètres - Admin'!$A12,"/")) -> 10 | H144: =IF(G144<>"/",VLOOKUP(G144,COSTS_Archer_Tower[#All],2),"/") -> 2500000 | I144: =IF(G144<>"/",VLOOKUP(G144,COSTS_Archer_Tower[#All],3),"/") -> 120 | J144: 5000000 | K144: 240 | L144: Tour de l'Enfer | O144: Max | P144: Max + | T144: Actuel | U144: À Faire | V144: Améliorations
A145: 11 | B145: =IF(Paramètres!O16=0,"",Paramètres!O16) ->  | C145: 7 | F145: 7 | G145: =IF(I$133="Error","Error",IF(AND($E$133<>"/",$E$133>'Paramètres - Admin'!$A12),'Paramètres - Admin'!$A13,"/")) -> 11 | H145: =IF(G145<>"/",VLOOKUP(G145,COSTS_Archer_Tower[#All],2),"/") -> 4500000 | I145: =IF(G145<>"/",VLOOKUP(G145,COSTS_Archer_Tower[#All],3),"/") -> 144 | J145: 31500000 | K145: 1008 | O145: =VLOOKUP($A$2,AVAILABLE_Buildings_Defensive[#All],MATCH(L144,AVAILABLE_Buildings_Defensive[#Headers],0)) -> 2 | P145: =VLOOKUP($A$2,AVAILABLE_Buildings_Defensive[#All],MATCH(L144,AVAILABLE_Buildings_Defensive[#Headers],0)+1) -> 3 | T145: =IF(SUM(M147:M149)>O145,"Error",SUM(M147:M149)) -> 2 | U145: =IF(T$145="Error","Error",O145-T145) -> 0 | V145: =IF(T$145="Error","Error",SUM(Q147:Q149)) -> 2
A146: 12 | B146: =IF(Paramètres!O17=0,"",Paramètres!O17) ->  | C146: 7 | F146: 7 | G146: =IF(I$133="Error","Error",IF(AND($E$133<>"/",$E$133>'Paramètres - Admin'!$A13),'Paramètres - Admin'!$A14,"/")) -> 12 | H146: =IF(G146<>"/",VLOOKUP(G146,COSTS_Archer_Tower[#All],2),"/") -> 6500000 | I146: =IF(G146<>"/",VLOOKUP(G146,COSTS_Archer_Tower[#All],3),"/") -> 168 | J146: 45500000 | K146: 1176 | L146: + | M146: NB | Q146: NB | R146: + | S146: Coût | T146: Temps | U146: Coût Total | V146: Temps Total
A147: 13 | B147: =IF(Paramètres!O18=0,"",Paramètres!O18) ->  | C147: 7 | F147: 7 | G147: =IF(I$133="Error","Error",IF(AND($E$133<>"/",$E$133>'Paramètres - Admin'!$A14),'Paramètres - Admin'!$A15,"/")) -> 13 | H147: =IF(G147<>"/",VLOOKUP(G147,COSTS_Archer_Tower[#All],2),"/") -> 7500000 | I147: =IF(G147<>"/",VLOOKUP(G147,COSTS_Archer_Tower[#All],3),"/") -> 192 | J147: 52500000 | K147: 1344 | L147: 1 | M147: =IF(Paramètres!V6=0,"",Paramètres!V6) ->  | N147: =IF(N146<>0,N146+IF(AND(M146<>"",L146<P$6),M146,0),IF(AND(M146<>"",L146<P$6),M146,0)) -> 0 | Q147: =IF(R147<>"/",IF(T$145="Error","Error",$U$145+N147),"/") -> 0 | R147: =IF(T$145="Error","Error",IF(AND($P$145<>"/",$P$145>'Paramètres - Admin'!$A2),'Paramètres - Admin'!$A3,"/")) -> 1 | S147: =IF(R147<>"/",VLOOKUP(R147,COSTS_Inferno_Tower[#All],2),"/") -> 5000000 | T147: =IF(R147<>"/",VLOOKUP(R147,COSTS_Inferno_Tower[#All],3),"/") -> 168 | U147: =IF(T$145="Error","Error",IF(S147<>"/",Q147*S147,0)) -> 0 | V147: =IF(T$145="Error","Error",IF(T147<>"/",Q147*T147,0)) -> 0
I148: Total | J148: =IF(I$133="Error","Error",SUM(J135:J147)) -> 136000000 | K148: =IF(I$133="Error","Error",SUM(K135:K147)) -> 3864 | L148: 2 | M148: =IF(Paramètres!V7=0,"",Paramètres!V7) -> 2 | N148: =IF(N147<>0,N147+IF(AND(M147<>"",L147<P$6),M147,0),IF(AND(M147<>"",L147<P$6),M147,0)) -> 0 | Q148: =IF(R148<>"/",IF(T$145="Error","Error",$U$145+N148),"/") -> 0 | R148: =IF(T$145="Error","Error",IF(AND($P$145<>"/",$P$145>'Paramètres - Admin'!$A3),'Paramètres - Admin'!$A4,"/")) -> 2 | S148: =IF(R148<>"/",VLOOKUP(R148,COSTS_Inferno_Tower[#All],2),"/") -> 6500000 | T148: =IF(R148<>"/",VLOOKUP(R148,COSTS_Inferno_Tower[#All],3),"/") -> 240 | U148: =IF(T$145="Error","Error",IF(S148<>"/",Q148*S148,0)) -> 0 | V148: =IF(T$145="Error","Error",IF(T148<>"/",Q148*T148,0)) -> 0
A149: Mortier | D149: Max | E149: Max + | I149: Actuel | J149: À Faire | K149: Améliorations | L149: 3 | M149: =IF(Paramètres!V8=0,"",Paramètres!V8) ->  | N149: =IF(N148<>0,N148+IF(AND(M148<>"",L148<P$6),M148,0),IF(AND(M148<>"",L148<P$6),M148,0)) -> 2 | Q149: =IF(R149<>"/",IF(T$145="Error","Error",$U$145+N149),"/") -> 2 | R149: =IF(T$145="Error","Error",IF(AND($P$145<>"/",$P$145>'Paramètres - Admin'!$A4),'Paramètres - Admin'!$A5,"/")) -> 3 | S149: =IF(R149<>"/",VLOOKUP(R149,COSTS_Inferno_Tower[#All],2),"/") -> 8000000 | T149: =IF(R149<>"/",VLOOKUP(R149,COSTS_Inferno_Tower[#All],3),"/") -> 336 | U149: =IF(T$145="Error","Error",IF(S149<>"/",Q149*S149,0)) -> 16000000 | V149: =IF(T$145="Error","Error",IF(T149<>"/",Q149*T149,0)) -> 672
D150: =VLOOKUP($A$2,AVAILABLE_Buildings_Defensive[#All],MATCH(A149,AVAILABLE_Buildings_Defensive[#Headers],0)) -> 4 | E150: =VLOOKUP($A$2,AVAILABLE_Buildings_Defensive[#All],MATCH(A149,AVAILABLE_Buildings_Defensive[#Headers],0)+1) -> 8 | I150: =IF(SUM(B152:B159)>D150,"Error",SUM(B152:B159)) -> 4 | J150: =IF(I$150="Error","Error",D150-I150) -> 0 | K150: =IF(I$150="Error","Error",SUM(F152:F159)) -> 8 | T150: Total | U150: =IF(T$145="Error","Error",SUM(U147:U149)) -> 16000000 | V150: =IF(T$145="Error","Error",SUM(V147:V149)) -> 672
A151: + | B151: NB | F151: NB | G151: + | H151: Coût | I151: Temps | J151: Coût Total | K151: Temps Total
A152: 1 | B152: =IF(Paramètres!P6=0,"",Paramètres!P6) ->  | C152: =IF(C151<>0,C151+IF(AND(B151<>"",A151<E$6),B151,0),IF(AND(B151<>"",A151<E$6),B151,0)) -> 0 | F152: =IF(G152<>"/",IF(I$150="Error","Error",$J$150+C152),"/") -> 0 | G152: =IF(I$150="Error","Error",IF(AND($E$150<>"/",$E$150>'Paramètres - Admin'!$A2),'Paramètres - Admin'!$A3,"/")) -> 1 | H152: =IF(G152<>"/",VLOOKUP(G152,COSTS_Mortar[#All],2),"/") -> 8000 | I152: =IF(G152<>"/",VLOOKUP(G152,COSTS_Mortar[#All],3),"/") -> 8 | J152: =IF(I$150="Error","Error",IF(H152<>"/",F152*H152,0)) -> 0 | K152: =IF(I$150="Error","Error",IF(I152<>"/",F152*I152,0)) -> 0
A153: 2 | B153: =IF(Paramètres!P7=0,"",Paramètres!P7) ->  | C153: =IF(C152<>0,C152+IF(AND(B152<>"",A152<E$6),B152,0),IF(AND(B152<>"",A152<E$6),B152,0)) -> 0 | F153: 0 | G153: =IF(I$150="Error","Error",IF(AND($E$150<>"/",$E$150>'Paramètres - Admin'!$A3),'Paramètres - Admin'!$A4,"/")) -> 2 | H153: =IF(G153<>"/",VLOOKUP(G153,COSTS_Mortar[#All],2),"/") -> 32000 | I153: =IF(G153<>"/",VLOOKUP(G153,COSTS_Mortar[#All],3),"/") -> 12 | J153: 0 | K153: 0
A154: 3 | B154: =IF(Paramètres!P8=0,"",Paramètres!P8) ->  | C154: 0 | F154: 0 | G154: =IF(I$150="Error","Error",IF(AND($E$150<>"/",$E$150>'Paramètres - Admin'!$A4),'Paramètres - Admin'!$A5,"/")) -> 3 | H154: =IF(G154<>"/",VLOOKUP(G154,COSTS_Mortar[#All],2),"/") -> 120000 | I154: =IF(G154<>"/",VLOOKUP(G154,COSTS_Mortar[#All],3),"/") -> 24 | J154: 0 | K154: 0
A155: 4 | B155: =IF(Paramètres!P9=0,"",Paramètres!P9) ->  | C155: 0 | F155: 0 | G155: =IF(I$150="Error","Error",IF(AND($E$150<>"/",$E$150>'Paramètres - Admin'!$A5),'Paramètres - Admin'!$A6,"/")) -> 4 | H155: =IF(G155<>"/",VLOOKUP(G155,COSTS_Mortar[#All],2),"/") -> 400000 | I155: =IF(G155<>"/",VLOOKUP(G155,COSTS_Mortar[#All],3),"/") -> 48 | J155: 0 | K155: 0
A156: 5 | B156: =IF(Paramètres!P10=0,"",Paramètres!P10) ->  | C156: 0 | F156: 0 | G156: =IF(I$150="Error","Error",IF(AND($E$150<>"/",$E$150>'Paramètres - Admin'!$A6),'Paramètres - Admin'!$A7,"/")) -> 5 | H156: =IF(G156<>"/",VLOOKUP(G156,COSTS_Mortar[#All],2),"/") -> 800000 | I156: =IF(G156<>"/",VLOOKUP(G156,COSTS_Mortar[#All],3),"/") -> 96 | J156: 0 | K156: 0
A157: 6 | B157: =IF(Paramètres!P11=0,"",Paramètres!P11) -> 4 | C157: 0 | F157: 0 | G157: =IF(I$150="Error","Error",IF(AND($E$150<>"/",$E$150>'Paramètres - Admin'!$A7),'Paramètres - Admin'!$A8,"/")) -> 6 | H157: =IF(G157<>"/",VLOOKUP(G157,COSTS_Mortar[#All],2),"/") -> 1600000 | I157: =IF(G157<>"/",VLOOKUP(G157,COSTS_Mortar[#All],3),"/") -> 120 | J157: 0 | K157: 0
A158: 7 | B158: =IF(Paramètres!P12=0,"",Paramètres!P12) ->  | C158: 4 | F158: 4 | G158: =IF(I$150="Error","Error",IF(AND($E$150<>"/",$E$150>'Paramètres - Admin'!$A8),'Paramètres - Admin'!$A9,"/")) -> 7 | H158: =IF(G158<>"/",VLOOKUP(G158,COSTS_Mortar[#All],2),"/") -> 3200000 | I158: =IF(G158<>"/",VLOOKUP(G158,COSTS_Mortar[#All],3),"/") -> 168 | J158: 12800000 | K158: 672
A159: 8 | B159: =IF(Paramètres!P13=0,"",Paramètres!P13) ->  | C159: 4 | F159: 4 | G159: =IF(I$150="Error","Error",IF(AND($E$150<>"/",$E$150>'Paramètres - Admin'!$A9),'Paramètres - Admin'!$A10,"/")) -> 8 | H159: =IF(G159<>"/",VLOOKUP(G159,COSTS_Mortar[#All],2),"/") -> 6400000 | I159: =IF(G159<>"/",VLOOKUP(G159,COSTS_Mortar[#All],3),"/") -> 240 | J159: 25600000 | K159: 960
I160: Total | J160: =IF(I$150="Error","Error",SUM(J152:J159)) -> 38400000 | K160: =IF(I$150="Error","Error",SUM(K152:K159)) -> 1632
A162: Bâtiments Autres
A163: Or
A164: Château de Clan | D164: Max | E164: Max + | I164: Actuel | J164: À Faire | K164: Améliorations | L164: Hôtel de Ville | O164: Max | P164: Max + | T164: Actuel | U164: À Faire | V164: Améliorations
D165: =VLOOKUP($A$2,AVAILABLE_Buildings_Other[#All],MATCH(A164,AVAILABLE_Buildings_Other[#Headers],0)) -> 1 | E165: =VLOOKUP($A$2,AVAILABLE_Buildings_Other[#All],MATCH(A164,AVAILABLE_Buildings_Other[#Headers],0)+1) -> 6 | I165: =IF(SUM(B167:B172)>D165,"Error",SUM(B167:B172)) -> 1 | J165: =IF(I$165="Error","Error",D165-I165) -> 0 | K165: =IF(I$165="Error","Error",SUM(F167:F172)) -> 2 | O165: =VLOOKUP($A$2,AVAILABLE_Buildings_Other[#All],MATCH(L164,AVAILABLE_Buildings_Other[#Headers],0)) -> 1 | P165: =VLOOKUP($A$2,AVAILABLE_Buildings_Other[#All],MATCH(L164,AVAILABLE_Buildings_Other[#Headers],0)+1) -> 10 | T165: =IF(SUM(M167:M176)>O165,"Error",SUM(M167:M176)) -> 1 | U165: =IF(T$165="Error","Error",O165-T165) -> 0 | V165: =IF(T$165="Error","Error",SUM(Q167:Q176)) -> 0
A166: + | B166: NB | F166: NB | G166: + | H166: Coût | I166: Temps | J166: Coût Total | K166: Temps Total | L166: + | M166: NB | Q166: NB | R166: + | S166: Coût | T166: Temps | U166: Coût Total | V166: Temps Total
A167: 1 | B167: =IF(Paramètres!AC6=0,"",Paramètres!AC6) ->  | C167: =IF(C166<>0,C166+IF(AND(B166<>"",A166<P$6),B166,0),IF(AND(B166<>"",A166<P$6),B166,0)) -> 0 | F167: =IF(G167<>"/",IF(I$165="Error","Error",$J$165+C167),"/") -> 0 | G167: =IF(I$165="Error","Error",IF(AND($E$165<>"/",$E$165>'Paramètres - Admin'!$A2),'Paramètres - Admin'!$A3,"/")) -> 1 | H167: =IF(G167<>"/",VLOOKUP(G167,COSTS_Clan_Castle[#All],2),"/") -> 40000 | I167: =IF(G167<>"/",VLOOKUP(G167,COSTS_Clan_Castle[#All],3),"/") -> 0 | J167: =IF(I$165="Error","Error",IF(H167<>"/",F167*H167,0)) -> 0 | K167: =IF(I$165="Error","Error",IF(I167<>"/",F167*I167,0)) -> 0 | L167: 1 | M167: =IF(Paramètres!AD6=0,"",Paramètres!AD6) ->  | N167: =IF(N166<>0,N166+IF(AND(M166<>"",L166<P$6),M166,0),IF(AND(M166<>"",L166<P$6),M166,0)) -> 0 | Q167: =IF(R167<>"/",IF(T$165="Error","Error",$U$165+N167),"/") -> 0 | R167: =IF(T$165="Error","Error",IF(AND($P$165<>"/",$P$165>'Paramètres - Admin'!$A2),'Paramètres - Admin'!$A3,"/")) -> 1 | S167: =IF(R167<>"/",VLOOKUP(R167,COSTS_Town_Home[#All],2),"/") -> 0 | T167: =IF(R167<>"/",VLOOKUP(R167,COSTS_Town_Home[#All],3),"/") -> 0 | U167: =IF(T$165="Error","Error",IF(S167<>"/",Q167*S167,0)) -> 0 | V167: =IF(T$165="Error","Error",IF(T167<>"/",Q167*T167,0)) -> 0
A168: 2 | B168: =IF(Paramètres!AC7=0,"",Paramètres!AC7) ->  | C168: 0 | F168: 0 | G168: =IF(I$165="Error","Error",IF(AND($E$165<>"/",$E$165>'Paramètres - Admin'!$A3),'Paramètres - Admin'!$A4,"/")) -> 2 | H168: =IF(G168<>"/",VLOOKUP(G168,COSTS_Clan_Castle[#All],2),"/") -> 100000 | I168: =IF(G168<>"/",VLOOKUP(G168,COSTS_Clan_Castle[#All],3),"/") -> 6 | J168: 0 | K168: 0 | L168: 2 | M168: =IF(Paramètres!AD7=0,"",Paramètres!AD7) ->  | N168: =IF(N167<>0,N167+IF(AND(M167<>"",L167<P$6),M167,0),IF(AND(M167<>"",L167<P$6),M167,0)) -> 0 | Q168: =IF(R168<>"/",IF(T$165="Error","Error",$U$165+N168),"/") -> 0 | R168: =IF(T$165="Error","Error",IF(AND($P$165<>"/",$P$165>'Paramètres - Admin'!$A3),'Paramètres - Admin'!$A4,"/")) -> 2 | S168: =IF(R168<>"/",VLOOKUP(R168,COSTS_Town_Home[#All],2),"/") -> 1000 | T168: =IF(R168<>"/",VLOOKUP(R168,COSTS_Town_Home[#All],3),"/") -> 0.08333333333 | U168: =IF(T$165="Error","Error",IF(S168<>"/",Q168*S168,0)) -> 0 | V168: =IF(T$165="Error","Error",IF(T168<>"/",Q168*T168,0)) -> 0
A169: 3 | B169: =IF(Paramètres!AC8=0,"",Paramètres!AC8) ->  | C169: 0 | F169: 0 | G169: =IF(I$165="Error","Error",IF(AND($E$165<>"/",$E$165>'Paramètres - Admin'!$A4),'Paramètres - Admin'!$A5,"/")) -> 3 | H169: =IF(G169<>"/",VLOOKUP(G169,COSTS_Clan_Castle[#All],2),"/") -> 800000 | I169: =IF(G169<>"/",VLOOKUP(G169,COSTS_Clan_Castle[#All],3),"/") -> 24 | J169: 0 | K169: 0 | L169: 3 | M169: =IF(Paramètres!AD8=0,"",Paramètres!AD8) ->  | N169: 0 | Q169: 0 | R169: =IF(T$165="Error","Error",IF(AND($P$165<>"/",$P$165>'Paramètres - Admin'!$A4),'Paramètres - Admin'!$A5,"/")) -> 3 | S169: =IF(R169<>"/",VLOOKUP(R169,COSTS_Town_Home[#All],2),"/") -> 4000 | T169: =IF(R169<>"/",VLOOKUP(R169,COSTS_Town_Home[#All],3),"/") -> 3 | U169: 0 | V169: 0
A170: 4 | B170: =IF(Paramètres!AC9=0,"",Paramètres!AC9) -> 1 | C170: 0 | F170: 0 | G170: =IF(I$165="Error","Error",IF(AND($E$165<>"/",$E$165>'Paramètres - Admin'!$A5),'Paramètres - Admin'!$A6,"/")) -> 4 | H170: =IF(G170<>"/",VLOOKUP(G170,COSTS_Clan_Castle[#All],2),"/") -> 1800000 | I170: =IF(G170<>"/",VLOOKUP(G170,COSTS_Clan_Castle[#All],3),"/") -> 48 | J170: 0 | K170: 0 | L170: 4 | M170: =IF(Paramètres!AD9=0,"",Paramètres!AD9) ->  | N170: 0 | Q170: 0 | R170: =IF(T$165="Error","Error",IF(AND($P$165<>"/",$P$165>'Paramètres - Admin'!$A5),'Paramètres - Admin'!$A6,"/")) -> 4 | S170: =IF(R170<>"/",VLOOKUP(R170,COSTS_Town_Home[#All],2),"/") -> 25000 | T170: =IF(R170<>"/",VLOOKUP(R170,COSTS_Town_Home[#All],3),"/") -> 24 | U170: 0 | V170: 0
A171: 5 | B171: =IF(Paramètres!AC10=0,"",Paramètres!AC10) ->  | C171: 1 | F171: 1 | G171: =IF(I$165="Error","Error",IF(AND($E$165<>"/",$E$165>'Paramètres - Admin'!$A6),'Paramètres - Admin'!$A7,"/")) -> 5 | H171: =IF(G171<>"/",VLOOKUP(G171,COSTS_Clan_Castle[#All],2),"/") -> 5000000 | I171: =IF(G171<>"/",VLOOKUP(G171,COSTS_Clan_Castle[#All],3),"/") -> 168 | J171: 5000000 | K171: 168 | L171: 5 | M171: =IF(Paramètres!AD10=0,"",Paramètres!AD10) ->  | N171: 0 | Q171: 0 | R171: =IF(T$165="Error","Error",IF(AND($P$165<>"/",$P$165>'Paramètres - Admin'!$A6),'Paramètres - Admin'!$A7,"/")) -> 5 | S171: =IF(R171<>"/",VLOOKUP(R171,COSTS_Town_Home[#All],2),"/") -> 150000 | T171: =IF(R171<>"/",VLOOKUP(R171,COSTS_Town_Home[#All],3),"/") -> 48 | U171: 0 | V171: 0
A172: 6 | B172: =IF(Paramètres!AC11=0,"",Paramètres!AC11) ->  | C172: 1 | F172: 1 | G172: =IF(I$165="Error","Error",IF(AND($E$165<>"/",$E$165>'Paramètres - Admin'!$A7),'Paramètres - Admin'!$A8,"/")) -> 6 | H172: =IF(G172<>"/",VLOOKUP(G172,COSTS_Clan_Castle[#All],2),"/") -> 7000000 | I172: =IF(G172<>"/",VLOOKUP(G172,COSTS_Clan_Castle[#All],3),"/") -> 336 | J172: 7000000 | K172: 336 | L172: 6 | M172: =IF(Paramètres!AD11=0,"",Paramètres!AD11) ->  | N172: 0 | Q172: 0 | R172: =IF(T$165="Error","Error",IF(AND($P$165<>"/",$P$165>'Paramètres - Admin'!$A7),'Paramètres - Admin'!$A8,"/")) -> 6 | S172: =IF(R172<>"/",VLOOKUP(R172,COSTS_Town_Home[#All],2),"/") -> 750000 | T172: =IF(R172<>"/",VLOOKUP(R172,COSTS_Town_Home[#All],3),"/") -> 96 | U172: 0 | V172: 0
I173: Total | J173: =IF(I$165="Error","Error",SUM(J167:J172)) -> 12000000 | K173: =IF(I$165="Error","Error",SUM(K167:K172)) -> 504 | L173: 7 | M173: =IF(Paramètres!AD12=0,"",Paramètres!AD12) ->  | N173: 0 | Q173: 0 | R173: =IF(T$165="Error","Error",IF(AND($P$165<>"/",$P$165>'Paramètres - Admin'!$A8),'Paramètres - Admin'!$A9,"/")) -> 7 | S173: =IF(R173<>"/",VLOOKUP(R173,COSTS_Town_Home[#All],2),"/") -> 1200000 | T173: =IF(R173<>"/",VLOOKUP(R173,COSTS_Town_Home[#All],3),"/") -> 144 | U173: 0 | V173: 0
L174: 8 | M174: =IF(Paramètres!AD13=0,"",Paramètres!AD13) ->  | N174: 0 | Q174: 0 | R174: =IF(T$165="Error","Error",IF(AND($P$165<>"/",$P$165>'Paramètres - Admin'!$A9),'Paramètres - Admin'!$A10,"/")) -> 8 | S174: =IF(R174<>"/",VLOOKUP(R174,COSTS_Town_Home[#All],2),"/") -> 2000000 | T174: =IF(R174<>"/",VLOOKUP(R174,COSTS_Town_Home[#All],3),"/") -> 192 | U174: 0 | V174: 0
L175: 9 | M175: =IF(Paramètres!AD14=0,"",Paramètres!AD14) ->  | N175: 0 | Q175: 0 | R175: =IF(T$165="Error","Error",IF(AND($P$165<>"/",$P$165>'Paramètres - Admin'!$A10),'Paramètres - Admin'!$A11,"/")) -> 9 | S175: =IF(R175<>"/",VLOOKUP(R175,COSTS_Town_Home[#All],2),"/") -> 3000000 | T175: =IF(R175<>"/",VLOOKUP(R175,COSTS_Town_Home[#All],3),"/") -> 240 | U175: 0 | V175: 0
L176: 10 | M176: =IF(Paramètres!AD15=0,"",Paramètres!AD15) -> 1 | N176: 0 | Q176: 0 | R176: =IF(T$165="Error","Error",IF(AND($P$165<>"/",$P$165>'Paramètres - Admin'!$A11),'Paramètres - Admin'!$A12,"/")) -> 10 | S176: =IF(R176<>"/",VLOOKUP(R176,COSTS_Town_Home[#All],2),"/") -> 4000000 | T176: =IF(R176<>"/",VLOOKUP(R176,COSTS_Town_Home[#All],3),"/") -> 336 | U176: 0 | V176: 0
T177: Total | U177: =IF(T$165="Error","Error",SUM(U167:U176)) -> 0 | V177: =IF(T$165="Error","Error",SUM(V167:V176)) -> 0
A180: Pièges Défensifs
A181: Or
A182: Bombe | D182: Max | E182: Max + | I182: Actuel | J182: À Faire | K182: Améliorations | L182: Bombe aérienne | O182: Max | P182: Max + | T182: Actuel | U182: À Faire | V182: Améliorations
D183: =VLOOKUP($A$2,AVAILABLE_Traps[#All],MATCH(A182,AVAILABLE_Traps[#Headers],0)) -> 6 | E183: =VLOOKUP($A$2,AVAILABLE_Traps[#All],MATCH(A182,AVAILABLE_Traps[#Headers],0)+1) -> 6 | I183: =IF(SUM(B185:B190)>D183,"Error",SUM(B185:B190)) -> 6 | J183: =IF(I$183="Error","Error",D183-I183) -> 0 | K183: =IF(I$183="Error","Error",SUM(F185:F190)) -> 12 | O183: =VLOOKUP($A$2,AVAILABLE_Traps[#All],MATCH(L182,AVAILABLE_Traps[#Headers],0)) -> 5 | P183: =VLOOKUP($A$2,AVAILABLE_Traps[#All],MATCH(L182,AVAILABLE_Traps[#Headers],0)+1) -> 4 | T183: =IF(SUM(M185:M188)>O183,"Error",SUM(M185:M188)) -> 5 | U183: =IF(T$183="Error","Error",O183-T183) -> 0 | V183: =IF(T$183="Error","Error",SUM(Q185:Q188)) -> 6
A184: + | B184: NB | F184: NB | G184: + | H184: Coût | I184: Temps | J184: Coût Total | K184: Temps Total | L184: + | M184: NB | Q184: NB | R184: + | S184: Coût | T184: Temps | U184: Coût Total | V184: Temps Total
A185: 1 | B185: =IF(Paramètres!W6=0,"",Paramètres!W6) ->  | C185: =IF(C184<>0,C184+IF(AND(B184<>"",A184<E$183),B184,0),IF(AND(B184<>"",A184<E$183),B184,0)) -> 0 | F185: =IF(G185<>"/",IF($I$183="Error","Error",$J$183+C185),"/") -> 0 | G185: =IF(I$183="Error","Error",IF(AND($E$183<>"/",$E$183>'Paramètres - Admin'!$A2),'Paramètres - Admin'!$A3,"/")) -> 1 | H185: =IF(G185<>"/",VLOOKUP(G185,COSTS_Bomb[#All],2),"/") -> 400 | I185: =IF(G185<>"/",VLOOKUP(G185,COSTS_Bomb[#All],3),"/") -> 0 | J185: =IF(I$183="Error","Error",IF(H185<>"/",F185*H185,0)) -> 0 | K185: =IF(I$183="Error","Error",IF(I185<>"/",F185*I185,0)) -> 0 | L185: 1 | M185: =IF(Paramètres!Z6=0,"",Paramètres!Z6) ->  | N185: =IF(N184<>0,N184+IF(AND(M184<>"",L184<P$183),M184,0),IF(AND(M184<>"",L184<P$183),M184,0)) -> 0 | Q185: =IF(R185<>"/",IF($T$183="Error","Error",$U$183+N185),"/") -> 0 | R185: =IF(T$183="Error","Error",IF(AND($P$183<>"/",$P$183>'Paramètres - Admin'!$A2),'Paramètres - Admin'!$A3,"/")) -> 1 | S185: =IF(R185<>"/",VLOOKUP(R185,COST_Air_Bomb[#All],2),"/") -> 4000 | T185: =IF(R185<>"/",VLOOKUP(R185,COST_Air_Bomb[#All],3),"/") -> 0 | U185: =IF(T$183="Error","Error",IF(S185<>"/",Q185*S185,0)) -> 0 | V185: =IF(T$183="Error","Error",IF(T185<>"/",Q185*T185,0)) -> 0
A186: 2 | B186: =IF(Paramètres!W7=0,"",Paramètres!W7) ->  | C186: 0 | F186: 0 | G186: =IF(I$183="Error","Error",IF(AND($E$183<>"/",$E$183>'Paramètres - Admin'!$A3),'Paramètres - Admin'!$A4,"/")) -> 2 | H186: =IF(G186<>"/",VLOOKUP(G186,COSTS_Bomb[#All],2),"/") -> 1000 | I186: =IF(G186<>"/",VLOOKUP(G186,COSTS_Bomb[#All],3),"/") -> 0.25 | J186: 0 | K186: =IF(I$101="Error","Error",IF(I186<>"/",F186*I186,0)) -> 0 | L186: 2 | M186: =IF(Paramètres!Z7=0,"",Paramètres!Z7) -> 1 | N186: =IF(N185<>0,N185+IF(AND(M185<>"",L185<P$183),M185,0),IF(AND(M185<>"",L185<P$183),M185,0)) -> 0 | Q186: =IF(R186<>"/",IF($T$183="Error","Error",$U$183+N186),"/") -> 0 | R186: =IF(T$183="Error","Error",IF(AND($P$183<>"/",$P$183>'Paramètres - Admin'!$A3),'Paramètres - Admin'!$A4,"/")) -> 2 | S186: =IF(R186<>"/",VLOOKUP(R186,COST_Air_Bomb[#All],2),"/") -> 20000 | T186: =IF(R186<>"/",VLOOKUP(R186,COST_Air_Bomb[#All],3),"/") -> 4 | U186: =IF(T$183="Error","Error",IF(S186<>"/",Q186*S186,0)) -> 0 | V186: =IF(T$183="Error","Error",IF(T186<>"/",Q186*T186,0)) -> 0
A187: 3 | B187: =IF(Paramètres!W8=0,"",Paramètres!W8) ->  | C187: 0 | F187: 0 | G187: =IF(I$183="Error","Error",IF(AND($E$183<>"/",$E$183>'Paramètres - Admin'!$A4),'Paramètres - Admin'!$A5,"/")) -> 3 | H187: =IF(G187<>"/",VLOOKUP(G187,COSTS_Bomb[#All],2),"/") -> 10000 | I187: =IF(G187<>"/",VLOOKUP(G187,COSTS_Bomb[#All],3),"/") -> 2 | J187: 0 | K187: =IF(I$101="Error","Error",IF(I187<>"/",F187*I187,0)) -> 0 | L187: 3 | M187: =IF(Paramètres!Z8=0,"",Paramètres!Z8) -> 4 | N187: =IF(N186<>0,N186+IF(AND(M186<>"",L186<P$183),M186,0),IF(AND(M186<>"",L186<P$183),M186,0)) -> 1 | Q187: =IF(R187<>"/",IF($T$183="Error","Error",$U$183+N187),"/") -> 1 | R187: =IF(T$183="Error","Error",IF(AND($P$183<>"/",$P$183>'Paramètres - Admin'!$A4),'Paramètres - Admin'!$A5,"/")) -> 3 | S187: =IF(R187<>"/",VLOOKUP(R187,COST_Air_Bomb[#All],2),"/") -> 200000 | T187: =IF(R187<>"/",VLOOKUP(R187,COST_Air_Bomb[#All],3),"/") -> 12 | U187: =IF(T$183="Error","Error",IF(S187<>"/",Q187*S187,0)) -> 200000 | V187: =IF(T$183="Error","Error",IF(T187<>"/",Q187*T187,0)) -> 12
A188: 4 | B188: =IF(Paramètres!W9=0,"",Paramètres!W9) -> 6 | C188: 0 | F188: 0 | G188: =IF(I$183="Error","Error",IF(AND($E$183<>"/",$E$183>'Paramètres - Admin'!$A5),'Paramètres - Admin'!$A6,"/")) -> 4 | H188: =IF(G188<>"/",VLOOKUP(G188,COSTS_Bomb[#All],2),"/") -> 100000 | I188: =IF(G188<>"/",VLOOKUP(G188,COSTS_Bomb[#All],3),"/") -> 8 | J188: 0 | K188: =IF(I$101="Error","Error",IF(I188<>"/",F188*I188,0)) -> 0 | L188: 4 | M188: =IF(Paramètres!Z9=0,"",Paramètres!Z9) ->  | N188: =IF(N187<>0,N187+IF(AND(M187<>"",L187<P$183),M187,0),IF(AND(M187<>"",L187<P$183),M187,0)) -> 5 | Q188: =IF(R188<>"/",IF($T$183="Error","Error",$U$183+N188),"/") -> 5 | R188: =IF(T$183="Error","Error",IF(AND($P$183<>"/",$P$183>'Paramètres - Admin'!$A5),'Paramètres - Admin'!$A6,"/")) -> 4 | S188: =IF(R188<>"/",VLOOKUP(R188,COST_Air_Bomb[#All],2),"/") -> 1500000 | T188: =IF(R188<>"/",VLOOKUP(R188,COST_Air_Bomb[#All],3),"/") -> 24 | U188: =IF(T$183="Error","Error",IF(S188<>"/",Q188*S188,0)) -> 7500000 | V188: =IF(T$183="Error","Error",IF(T188<>"/",Q188*T188,0)) -> 120
A189: 5 | B189: =IF(Paramètres!W10=0,"",Paramètres!W10) ->  | C189: 6 | F189: 6 | G189: =IF(I$183="Error","Error",IF(AND($E$183<>"/",$E$183>'Paramètres - Admin'!$A6),'Paramètres - Admin'!$A7,"/")) -> 5 | H189: =IF(G189<>"/",VLOOKUP(G189,COSTS_Bomb[#All],2),"/") -> 1000000 | I189: =IF(G189<>"/",VLOOKUP(G189,COSTS_Bomb[#All],3),"/") -> 24 | J189: 6000000 | K189: =IF(I$101="Error","Error",IF(I189<>"/",F189*I189,0)) -> 144 | T189: Total | U189: =IF(T$183="Error","Error",SUM(U185:U188)) -> 7700000 | V189: =IF(T$183="Error","Error",SUM(V185:V188)) -> 132
A190: 6 | B190: =IF(Paramètres!W11=0,"",Paramètres!W11) ->  | C190: 6 | F190: 6 | G190: =IF(I$183="Error","Error",IF(AND($E$183<>"/",$E$183>'Paramètres - Admin'!$A7),'Paramètres - Admin'!$A8,"/")) -> 6 | H190: =IF(G190<>"/",VLOOKUP(G190,COSTS_Bomb[#All],2),"/") -> 1500000 | I190: =IF(G190<>"/",VLOOKUP(G190,COSTS_Bomb[#All],3),"/") -> 48 | J190: 9000000 | K190: =IF(I$183="Error","Error",IF(I190<>"/",F190*I190,0)) -> 288 | L190: Tête chercheuse | O190: Max | P190: Max + | T190: Actuel | U190: À Faire | V190: Améliorations
I191: Total | J191: =IF(I$183="Error","Error",SUM(J185:J190)) -> 15000000 | K191: =IF(I$183="Error","Error",SUM(K185:K190)) -> 432 | O191: =VLOOKUP($A$2,AVAILABLE_Traps[#All],MATCH(L190,AVAILABLE_Traps[#Headers],0)) -> 5 | P191: =VLOOKUP($A$2,AVAILABLE_Traps[#All],MATCH(L190,AVAILABLE_Traps[#Headers],0)+1) -> 3 | T191: =IF(SUM(M193:M195)>O191,"Error",SUM(M193:M195)) -> 5 | U191: =IF(T$191="Error","Error",O191-T191) -> 0 | V191: =IF(T$191="Error","Error",SUM(Q193:Q195)) -> 10
A192: Piège à ressort | D192: Max | E192: Max + | I192: Actuel | J192: À Faire | K192: Améliorations | L192: + | M192: NB | Q192: NB | R192: + | S192: Coût | T192: Temps | U192: Coût Total | V192: Temps Total
D193: =VLOOKUP($A$2,AVAILABLE_Traps[#All],MATCH(A192,AVAILABLE_Traps[#Headers],0)) -> 6 | E193: =VLOOKUP($A$2,AVAILABLE_Traps[#All],MATCH(A192,AVAILABLE_Traps[#Headers],0)+1) -> 1 | I193: =IF(SUM(B195:B195)>D193,"Error",SUM(B195:B195)) -> 6 | J193: =IF(I$193="Error","Error",D193-I193) -> 0 | K193: =IF(I$193="Error","Error",SUM(F195:F195)) -> 0 | L193: 1 | M193: =IF(Paramètres!AA6=0,"",Paramètres!AA6) -> 5 | N193: =IF(N192<>0,N192+IF(AND(M192<>"",L192<P$191),M192,0),IF(AND(M192<>"",L192<P$191),M192,0)) -> 0 | Q193: =IF(R193<>"/",IF($T$191="Error","Error",$U$191+N193),"/") -> 0 | R193: =IF(T$191="Error","Error",IF(AND($P$191<>"/",$P$191>'Paramètres - Admin'!$A2),'Paramètres - Admin'!$A3,"/")) -> 1 | S193: =IF(R193<>"/",VLOOKUP(R193,COST_Seeking_Air_Mine[#All],2),"/") -> 15000 | T193: =IF(R193<>"/",VLOOKUP(R193,COST_Seeking_Air_Mine[#All],3),"/") -> 5 | U193: =IF(T$191="Error","Error",IF(S193<>"/",Q193*S193,0)) -> 0 | V193: =IF(T$191="Error","Error",IF(T193<>"/",Q193*T193,0)) -> 0
A194: + | B194: NB | F194: NB | G194: + | H194: Coût | I194: Temps | J194: Coût Total | K194: Temps Total | L194: 2 | M194: =IF(Paramètres!AA7=0,"",Paramètres!AA7) ->  | N194: =IF(N193<>0,N193+IF(AND(M193<>"",L193<P$191),M193,0),IF(AND(M193<>"",L193<P$191),M193,0)) -> 5 | Q194: =IF(R194<>"/",IF($T$191="Error","Error",$U$191+N194),"/") -> 5 | R194: =IF(T$191="Error","Error",IF(AND($P$191<>"/",$P$191>'Paramètres - Admin'!$A3),'Paramètres - Admin'!$A4,"/")) -> 2 | S194: =IF(R194<>"/",VLOOKUP(R194,COST_Seeking_Air_Mine[#All],2),"/") -> 2000000 | T194: =IF(R194<>"/",VLOOKUP(R194,COST_Seeking_Air_Mine[#All],3),"/") -> 24 | U194: =IF(T$191="Error","Error",IF(S194<>"/",Q194*S194,0)) -> 10000000 | V194: =IF(T$191="Error","Error",IF(T194<>"/",Q194*T194,0)) -> 120
A195: 1 | B195: =IF(Paramètres!X6=0,"",Paramètres!X6) -> 6 | C195: =IF(C194<>0,C194+IF(AND(B194<>"",A194<E$193),B194,0),IF(AND(B194<>"",A194<E$193),B194,0)) -> 0 | F195: =IF(G195<>"/",IF($I$193="Error","Error",$J$193+C195),"/") -> 0 | G195: =IF(I$193="Error","Error",IF(AND($E$193<>"/",$E$193>'Paramètres - Admin'!$A2),'Paramètres - Admin'!$A3,"/")) -> 1 | H195: =IF(G195<>"/",VLOOKUP(G195,COSTS_Spring_Trap[#All],2),"/") -> 2000 | I195: =IF(G195<>"/",VLOOKUP(G195,COSTS_Spring_Trap[#All],3),"/") -> 0 | J195: =IF(I$193="Error","Error",IF(H195<>"/",F195*H195,0)) -> 0 | K195: =IF(I$193="Error","Error",IF(I195<>"/",F195*I195,0)) -> 0 | L195: 3 | M195: =IF(Paramètres!AA8=0,"",Paramètres!AA8) ->  | N195: =IF(N194<>0,N194+IF(AND(M194<>"",L194<P$191),M194,0),IF(AND(M194<>"",L194<P$191),M194,0)) -> 5 | Q195: =IF(R195<>"/",IF($T$191="Error","Error",$U$191+N195),"/") -> 5 | R195: =IF(T$191="Error","Error",IF(AND($P$191<>"/",$P$191>'Paramètres - Admin'!$A4),'Paramètres - Admin'!$A5,"/")) -> 3 | S195: =IF(R195<>"/",VLOOKUP(R195,COST_Seeking_Air_Mine[#All],2),"/") -> 4000000 | T195: =IF(R195<>"/",VLOOKUP(R195,COST_Seeking_Air_Mine[#All],3),"/") -> 72 | U195: =IF(T$191="Error","Error",IF(S195<>"/",Q195*S195,0)) -> 20000000 | V195: =IF(T$191="Error","Error",IF(T195<>"/",Q195*T195,0)) -> 360
I196: Total | J196: =IF(I$193="Error","Error",SUM(J195:J195)) -> 0 | K196: =IF(I$193="Error","Error",SUM(K195:K195)) -> 0 | T196: Total | U196: =IF(T$191="Error","Error",SUM(U193:U195)) -> 30000000 | V196: =IF(T$191="Error","Error",SUM(V193:V195)) -> 480
A197: Bombe géante | D197: Max | E197: Max + | I197: Actuel | J197: À Faire | K197: Améliorations | L197: Piège squelettique | O197: Max | P197: Max + | T197: Actuel | U197: À Faire | V197: Améliorations
D198: =VLOOKUP($A$2,AVAILABLE_Traps[#All],MATCH(A197,AVAILABLE_Traps[#Headers],0)) -> 5 | E198: =VLOOKUP($A$2,AVAILABLE_Traps[#All],MATCH(A197,AVAILABLE_Traps[#Headers],0)+1) -> 4 | I198: =IF(SUM(B200:B203)>D198,"Error",SUM(B200:B203)) -> 5 | J198: =IF(I$198="Error","Error",D198-I198) -> 0 | K198: =IF(I$198="Error","Error",SUM(F200:F203)) -> 10 | O198: =VLOOKUP($A$2,AVAILABLE_Traps[#All],MATCH(L197,AVAILABLE_Traps[#Headers],0)) -> 3 | P198: =VLOOKUP($A$2,AVAILABLE_Traps[#All],MATCH(L197,AVAILABLE_Traps[#Headers],0)+1) -> 3 | T198: =IF(SUM(M200:M202)>O198,"Error",SUM(M200:M202)) -> 3 | U198: =IF(T$198="Error","Error",O198-T198) -> 0 | V198: =IF(T$198="Error","Error",SUM(Q200:Q202)) -> 6
A199: + | B199: NB | F199: NB | G199: + | H199: Coût | I199: Temps | J199: Coût Total | K199: Temps Total | L199: + | M199: NB | Q199: NB | R199: + | S199: Coût | T199: Temps | U199: Coût Total | V199: Temps Total
A200: 1 | B200: =IF(Paramètres!Y6=0,"",Paramètres!Y6) ->  | C200: =IF(C199<>0,C199+IF(AND(B199<>"",A199<E$198),B199,0),IF(AND(B199<>"",A199<E$198),B199,0)) -> 0 | F200: =IF(G200<>"/",IF($I$198="Error","Error",$J$198+C200),"/") -> 0 | G200: =IF(I$198="Error","Error",IF(AND($E$198<>"/",$E$198>'Paramètres - Admin'!$A2),'Paramètres - Admin'!$A3,"/")) -> 1 | H200: =IF(G200<>"/",VLOOKUP(G200,COSTS_Giant_Bomb[#All],2),"/") -> 12500 | I200: =IF(G200<>"/",VLOOKUP(G200,COSTS_Giant_Bomb[#All],3),"/") -> 0 | J200: =IF(I$198="Error","Error",IF(H200<>"/",F200*H200,0)) -> 0 | K200: =IF(I$198="Error","Error",IF(I200<>"/",F200*I200,0)) -> 0 | L200: 1 | M200: =IF(Paramètres!AB6=0,"",Paramètres!AB6) -> 3 | N200: =IF(N199<>0,N199+IF(AND(M199<>"",L199<P$198),M199,0),IF(AND(M199<>"",L199<P$198),M199,0)) -> 0 | Q200: =IF(R200<>"/",IF($T$198="Error","Error",$U$198+N200),"/") -> 0 | R200: =IF(T$198="Error","Error",IF(AND($P$198<>"/",$P$198>'Paramètres - Admin'!$A2),'Paramètres - Admin'!$A3,"/")) -> 1 | S200: =IF(R200<>"/",VLOOKUP(R200,COST_Skeleton_Trap[#All],2),"/") -> 6000 | T200: =IF(R200<>"/",VLOOKUP(R200,COST_Skeleton_Trap[#All],3),"/") -> 0 | U200: =IF(T$198="Error","Error",IF(S200<>"/",Q200*S200,0)) -> 0 | V200: =IF(T$198="Error","Error",IF(T200<>"/",Q200*T200,0)) -> 0
A201: 2 | B201: =IF(Paramètres!Y7=0,"",Paramètres!Y7) -> 5 | C201: =IF(C200<>0,C200+IF(AND(B200<>"",A200<E$198),B200,0),IF(AND(B200<>"",A200<E$198),B200,0)) -> 0 | F201: =IF(G201<>"/",IF($I$198="Error","Error",$J$198+C201),"/") -> 0 | G201: =IF(I$198="Error","Error",IF(AND($E$198<>"/",$E$198>'Paramètres - Admin'!$A3),'Paramètres - Admin'!$A4,"/")) -> 2 | H201: =IF(G201<>"/",VLOOKUP(G201,COSTS_Giant_Bomb[#All],2),"/") -> 75000 | I201: =IF(G201<>"/",VLOOKUP(G201,COSTS_Giant_Bomb[#All],3),"/") -> 6 | J201: =IF(I$198="Error","Error",IF(H201<>"/",F201*H201,0)) -> 0 | K201: =IF(I$198="Error","Error",IF(I201<>"/",F201*I201,0)) -> 0 | L201: 2 | M201: =IF(Paramètres!AB7=0,"",Paramètres!AB7) ->  | N201: =IF(N200<>0,N200+IF(AND(M200<>"",L200<P$198),M200,0),IF(AND(M200<>"",L200<P$198),M200,0)) -> 3 | Q201: =IF(R201<>"/",IF($T$198="Error","Error",$U$198+N201),"/") -> 3 | R201: =IF(T$198="Error","Error",IF(AND($P$198<>"/",$P$198>'Paramètres - Admin'!$A3),'Paramètres - Admin'!$A4,"/")) -> 2 | S201: =IF(R201<>"/",VLOOKUP(R201,COST_Skeleton_Trap[#All],2),"/") -> 600000 | T201: =IF(R201<>"/",VLOOKUP(R201,COST_Skeleton_Trap[#All],3),"/") -> 6 | U201: =IF(T$198="Error","Error",IF(S201<>"/",Q201*S201,0)) -> 1800000 | V201: =IF(T$198="Error","Error",IF(T201<>"/",Q201*T201,0)) -> 18
A202: 3 | B202: =IF(Paramètres!Y8=0,"",Paramètres!Y8) ->  | C202: =IF(C201<>0,C201+IF(AND(B201<>"",A201<E$198),B201,0),IF(AND(B201<>"",A201<E$198),B201,0)) -> 5 | F202: =IF(G202<>"/",IF($I$198="Error","Error",$J$198+C202),"/") -> 5 | G202: =IF(I$198="Error","Error",IF(AND($E$198<>"/",$E$198>'Paramètres - Admin'!$A4),'Paramètres - Admin'!$A5,"/")) -> 3 | H202: =IF(G202<>"/",VLOOKUP(G202,COSTS_Giant_Bomb[#All],2),"/") -> 750000 | I202: =IF(G202<>"/",VLOOKUP(G202,COSTS_Giant_Bomb[#All],3),"/") -> 24 | J202: =IF(I$198="Error","Error",IF(H202<>"/",F202*H202,0)) -> 3750000 | K202: =IF(I$198="Error","Error",IF(I202<>"/",F202*I202,0)) -> 120 | L202: 3 | M202: =IF(Paramètres!AB8=0,"",Paramètres!AB8) ->  | N202: =IF(N201<>0,N201+IF(AND(M201<>"",L201<P$198),M201,0),IF(AND(M201<>"",L201<P$198),M201,0)) -> 3 | Q202: =IF(R202<>"/",IF($T$198="Error","Error",$U$198+N202),"/") -> 3 | R202: =IF(T$198="Error","Error",IF(AND($P$198<>"/",$P$198>'Paramètres - Admin'!$A4),'Paramètres - Admin'!$A5,"/")) -> 3 | S202: =IF(R202<>"/",VLOOKUP(R202,COST_Skeleton_Trap[#All],2),"/") -> 1300000 | T202: =IF(R202<>"/",VLOOKUP(R202,COST_Skeleton_Trap[#All],3),"/") -> 24 | U202: =IF(T$198="Error","Error",IF(S202<>"/",Q202*S202,0)) -> 3900000 | V202: =IF(T$198="Error","Error",IF(T202<>"/",Q202*T202,0)) -> 72
A203: 4 | B203: =IF(Paramètres!Y9=0,"",Paramètres!Y9) ->  | C203: =IF(C202<>0,C202+IF(AND(B202<>"",A202<E$198),B202,0),IF(AND(B202<>"",A202<E$198),B202,0)) -> 5 | F203: =IF(G203<>"/",IF($I$198="Error","Error",$J$198+C203),"/") -> 5 | G203: =IF(I$198="Error","Error",IF(AND($E$198<>"/",$E$198>'Paramètres - Admin'!$A5),'Paramètres - Admin'!$A6,"/")) -> 4 | H203: =IF(G203<>"/",VLOOKUP(G203,COSTS_Giant_Bomb[#All],2),"/") -> 2500000 | I203: =IF(G203<>"/",VLOOKUP(G203,COSTS_Giant_Bomb[#All],3),"/") -> 72 | J203: =IF(I$198="Error","Error",IF(H203<>"/",F203*H203,0)) -> 12500000 | K203: =IF(I$198="Error","Error",IF(I203<>"/",F203*I203,0)) -> 360 | T203: Total | U203: =IF(T$198="Error","Error",SUM(U200:U202)) -> 5700000 | V203: =IF(T$198="Error","Error",SUM(V200:V202)) -> 90
I204: Total | J204: =IF(I$198="Error","Error",SUM(J200:J203)) -> 16250000 | K204: =IF(I$198="Error","Error",SUM(K200:K203)) -> 480
A207: Améliorations de Sorts
A208: Élixir
A209: Sort de Foudre | D209: Max | E209: Max + | I209: Actuel | J209: À Faire | K209: Améliorations | L209: Sort de Saut | O209: Max | P209: Max + | T209: Actuel | U209: À Faire | V209: Améliorations
... 158 more rows

Sheet Production
A1: LVL HdV | B1: Période | C1: Or Total : | D1: Élixir Total : | E1: Élixir Noir Total :
A2: =Paramètres!$BE$2 -> 10 | B2: 1 jour | C2: ='À Faire - Récapitulatif'!D2 -> 2 562 492 000 | D2: ='À Faire - Récapitulatif'!G2 -> 163 486 000 | E2: ='À Faire - Récapitulatif'!I2 -> 8 397 500
A3: Production
A4: Type | B4: Mine d'Or | C4: Extracteur d'Élixir | D4: Foreuse d'Élixir Noir
A5: Max + | B5: =VLOOKUP($A$2,AVAILABLE_Buildings_Resource[#All],MATCH(B$4,AVAILABLE_Buildings_Resource[#Headers],0)+1) -> 12 | C5: =VLOOKUP($A$2,AVAILABLE_Buildings_Resource[#All],MATCH(C$4,AVAILABLE_Buildings_Resource[#Headers],0)+1) -> 12 | D5: =VLOOKUP($A$2,AVAILABLE_Buildings_Resource[#All],MATCH(D$4,AVAILABLE_Buildings_Resource[#Headers],0)+1) -> 6
A6: 1 | B6: =Paramètres!B6 -> 0 | C6: =Paramètres!C6 -> 0 | D6: =Paramètres!D6 -> 0
A7: 2 | B7: =Paramètres!B7 -> 0 | C7: =Paramètres!C7 -> 0 | D7: =Paramètres!D7 -> 0
A8: 3 | B8: =Paramètres!B8 -> 0 | C8: =Paramètres!C8 -> 0 | D8: =Paramètres!D8 -> 0
A9: 4 | B9: =Paramètres!B9 -> 0 | C9: =Paramètres!C9 -> 0 | D9: =Paramètres!D9 -> 3
A10: 5 | B10: =Paramètres!B10 -> 0 | C10: =Paramètres!C10 -> 0 | D10: =Paramètres!D10 -> 0
A11: 6 | B11: =Paramètres!B11 -> 0 | C11: =Paramètres!C11 -> 0 | D11: =Paramètres!D11 -> 0
A12: 7 | B12: =Paramètres!B12 -> 0 | C12: =Paramètres!C12 -> 0 | D12: =Paramètres!D12 -> 0
A13: 8 | B13: =Paramètres!B13 -> 0 | C13: =Paramètres!C13 -> 0 | D13: =Paramètres!D13 -> 0
A14: 9 | B14: =Paramètres!B14 -> 0 | C14: =Paramètres!C14 -> 0 | D14: =Paramètres!D14 -> 0
A15: 10 | B15: =Paramètres!B15 -> 0 | C15: =Paramètres!C15 -> 0 | D15: =Paramètres!D15 -> 0
A16: 11 | B16: =Paramètres!B16 -> 1 | C16: =Paramètres!C16 -> 7 | D16: =Paramètres!D16 -> 0
A17: 12 | B17: =Paramètres!B17 -> 6 | C17: =Paramètres!C17 -> 0 | D17: =Paramètres!D17 -> 0
A18: Production / heure | B18: =SUMPRODUCT(B6:B17,EARNINGS_Gold_Mine[Production]) -> 24000 | C18: =SUMPRODUCT(C6:C17,EARNINGS_Elixir_Collector[Production]) -> 21000 | D18: =SUMPRODUCT(D6:D11,EARNINGS_Dark_Elixir_Drill[Production]) -> 240
A19: Production / période | B19: =IF($B$2='Paramètres - Admin'!$E$2,B18,IF($B$2='Paramètres - Admin'!$E$3,B18*2,IF($B$2='Paramètres - Admin'!$E$4,B18*4,IF($B$2='Paramètres - Admin'!$E$5,B18*8,IF($B$2='Paramètres - Admin'!$E$6,B18*16,IF($B$2='Paramètres - Admin'!$E$7,B18*24,IF($B$2='Paramètres - Admin'!$E$8,B18*48,IF($B$2='Paramètres - Admin'!$E$9,B18*72,IF($B$2='Paramètres - Admin'!$E$10,B18*168,IF($B$2='Paramètres - Admin'!$E$11,B18*720)))))))))) -> 576000 | C19: =IF($B$2='Paramètres - Admin'!$E$2,C18,IF($B$2='Paramètres - Admin'!$E$3,C18*2,IF($B$2='Paramètres - Admin'!$E$4,C18*4,IF($B$2='Paramètres - Admin'!$E$5,C18*8,IF($B$2='Paramètres - Admin'!$E$6,C18*16,IF($B$2='Paramètres - Admin'!$E$7,C18*24,IF($B$2='Paramètres - Admin'!$E$8,C18*48,IF($B$2='Paramètres - Admin'!$E$9,C18*72,IF($B$2='Paramètres - Admin'!$E$10,C18*168,IF($B$2='Paramètres - Admin'!$E$11,C18*720)))))))))) -> 504000 | D19: =IF($B$2='Paramètres - Admin'!$E$2,D18,IF($B$2='Paramètres - Admin'!$E$3,D18*2,IF($B$2='Paramètres - Admin'!$E$4,D18*4,IF($B$2='Paramètres - Admin'!$E$5,D18*8,IF($B$2='Paramètres - Admin'!$E$6,D18*16,IF($B$2='Paramètres - Admin'!$E$7,D18*24,IF($B$2='Paramètres - Admin'!$E$8,D18*48,IF($B$2='Paramètres - Admin'!$E$9,D18*72,IF($B$2='Paramètres - Admin'!$E$10,D18*168,IF($B$2='Paramètres - Admin'!$E$11,D18*720)))))))))) -> 5760
A20: Temps pour obtenir besoins | B20: =IF(B$18<>0,IF($B$2='Paramètres - Admin'!$B$2,TEXT((('À Faire - Récapitulatif'!D8+'À Faire - Récapitulatif'!D11+'À Faire - Récapitulatif'!P16+'À Faire - Récapitulatif'!V9)/B$18)*60*60,"# 0")&" " & 'Paramètres - Admin'!$B$2,IF($B$2='Paramètres - Admin'!$B$3,TEXT((('À Faire - Récapitulatif'!D8+'À Faire - Récapitulatif'!D11+'À Faire - Récapitulatif'!P16+'À Faire - Récapitulatif'!V9)/B$18)*60,"# 0")&" " & 'Paramètres - Admin'!$B$3,IF($B$2='Paramètres - Admin'!$B$4,TEXT((('À Faire - Récapitulatif'!D8+'À Faire - Récapitulatif'!D11+'À Faire - Récapitulatif'!P16+'À Faire - Récapitulatif'!V9)/B$18),"# 0,00")&" " & 'Paramètres - Admin'!$B$4,IF($B$2='Paramètres - Admin'!$B$5,TEXT((('À Faire - Récapitulatif'!D8+'À Faire - Récapitulatif'!D11+'À Faire - Récapitulatif'!P16+'À Faire - Récapitulatif'!V9)/B$18)/24,"# 0,00")&" " & 'Paramètres - Admin'!$B$5,IF($B$2='Paramètres - Admin'!$B$6,TEXT(((('À Faire - Récapitulatif'!D8+'À Faire - Récapitulatif'!D11+'À Faire - Récapitulatif'!P16+'À Faire - Récapitulatif'!V9)/B$18)/24)/30,"# 0,00")&" " & 'Paramètres - Admin'!$B$6,IF((('À Faire - Récapitulatif'!D8+'À Faire - Récapitulatif'!D11+'À Faire - Récapitulatif'!P16+'À Faire - Récapitulatif'!V9)/B$18)/24>=1,INT((('À Faire - Récapitulatif'!D8+'À Faire - Récapitulatif'!D11+'À Faire - Récapitulatif'!P16+'À Faire - Récapitulatif'!V9)/B$18)/24)&" " & 'Paramètres - Admin'!$D$4 & " " & HOUR((('À Faire - Récapitulatif'!D8+'À Faire - Récapitulatif'!D11+'À Faire - Récapitulatif'!P16+'À Faire - Récapitulatif'!V9)/B$18)/24-INT((('À Faire - Récapitulatif'!D8+'À Faire - Récapitulatif'!D11+'À Faire - Récapitulatif'!P16+'À Faire - Récapitulatif'!V9)/B$18)/24))&" " & 'Paramètres - Admin'!$D$3 & " " & MINUTE((('À Faire - Récapitulatif'!D8+'À Faire - Récapitulatif'!D11+'À Faire - Récapitulatif'!P16+'À Faire - Récapitulatif'!V9)/B$18)/24-INT((('À Faire - Récapitulatif'!D8+'À Faire - Récapitulatif'!D11+'À Faire - Récapitulatif'!P16+'À Faire - Récapitulatif'!V9)/B$18)/24))&" " & 'Paramètres - Admin'!$D$2,HOUR((('À Faire - Récapitulatif'!D8+'À Faire - Récapitulatif'!D11+'À Faire - Récapitulatif'!P16+'À Faire - Récapitulatif'!V9)/B$18)/24-INT((('À Faire - Récapitulatif'!D8+'À Faire - Récapitulatif'!D11+'À Faire - Récapitulatif'!P16+'À Faire - Récapitulatif'!V9)/B$18)/24))&" " & 'Paramètres - Admin'!$D$3 & " " & MINUTE((('À Faire - Récapitulatif'!D8+'À Faire - Récapitulatif'!D11+'À Faire - Récapitulatif'!P16+'À Faire - Récapitulatif'!V9)/B$18)/24-INT((('À Faire - Récapitulatif'!D8+'À Faire - Récapitulatif'!D11+'À Faire - Récapitulatif'!P16+'À Faire - Récapitulatif'!V9)/B$18)/24))&" " & 'Paramètres - Admin'!$D$2)))))),0) -> 4319 jours 4 hrs 5 mins | C20: =IF(C$18<>0,IF($B$2='Paramètres - Admin'!$B$2,TEXT((('À Faire - Récapitulatif'!D7+'À Faire - Récapitulatif'!D9+'À Faire - Récapitulatif'!D10+'À Faire - Récapitulatif'!D12+'À Faire - Récapitulatif'!J12+'À Faire - Récapitulatif'!D26+'À Faire - Récapitulatif'!J31)/C$18)*60*60,"# 0")&" " & 'Paramètres - Admin'!$B$2,IF($B$2='Paramètres - Admin'!$B$3,TEXT((('À Faire - Récapitulatif'!D7+'À Faire - Récapitulatif'!D9+'À Faire - Récapitulatif'!D10+'À Faire - Récapitulatif'!D12+'À Faire - Récapitulatif'!J12+'À Faire - Récapitulatif'!D26+'À Faire - Récapitulatif'!J31)/C$18)*60,"# 0")&" " & 'Paramètres - Admin'!$B$3,IF($B$2='Paramètres - Admin'!$B$4,TEXT((('À Faire - Récapitulatif'!D7+'À Faire - Récapitulatif'!D9+'À Faire - Récapitulatif'!D10+'À Faire - Récapitulatif'!D12+'À Faire - Récapitulatif'!J12+'À Faire - Récapitulatif'!D26+'À Faire - Récapitulatif'!J31)/C$18),"# 0,00")&" " & 'Paramètres - Admin'!$B$4,IF($B$2='Paramètres - Admin'!$B$5,TEXT((('À Faire - Récapitulatif'!D7+'À Faire - Récapitulatif'!D9+'À Faire - Récapitulatif'!D10+'À Faire - Récapitulatif'!D12+'À Faire - Récapitulatif'!J12+'À Faire - Récapitulatif'!D26+'À Faire - Récapitulatif'!J31)/C$18)/24,"# 0,00")&" " & 'Paramètres - Admin'!$B$5,IF($B$2='Paramètres - Admin'!$B$6,TEXT(((('À Faire - Récapitulatif'!D7+'À Faire - Récapitulatif'!D9+'À Faire - Récapitulatif'!D10+'À Faire - Récapitulatif'!D12+'À Faire - Récapitulatif'!J12+'À Faire - Récapitulatif'!D26+'À Faire - Récapitulatif'!J31)/C$18)/24)/30,"# 0,00")&" " & 'Paramètres - Admin'!$B$6,IF((('À Faire - Récapitulatif'!D7+'À Faire - Récapitulatif'!D9+'À Faire - Récapitulatif'!D10+'À Faire - Récapitulatif'!D12+'À Faire - Récapitulatif'!J12+'À Faire - Récapitulatif'!D26+'À Faire - Récapitulatif'!J31)/C$18)/24>=1,INT((('À Faire - Récapitulatif'!D7+'À Faire - Récapitulatif'!D9+'À Faire - Récapitulatif'!D10+'À Faire - Récapitulatif'!D12+'À Faire - Récapitulatif'!J12+'À Faire - Récapitulatif'!D26+'À Faire - Récapitulatif'!J31)/C$18)/24)&" " & 'Paramètres - Admin'!$D$4 & " " & HOUR((('À Faire - Récapitulatif'!D7+'À Faire - Récapitulatif'!D9+'À Faire - Récapitulatif'!D10+'À Faire - Récapitulatif'!D12+'À Faire - Récapitulatif'!J12+'À Faire - Récapitulatif'!D26+'À Faire - Récapitulatif'!J31)/C$18)/24-INT((('À Faire - Récapitulatif'!D7+'À Faire - Récapitulatif'!D9+'À Faire - Récapitulatif'!D10+'À Faire - Récapitulatif'!D12+'À Faire - Récapitulatif'!J12+'À Faire - Récapitulatif'!D26+'À Faire - Récapitulatif'!J31)/C$18)/24))&" " & 'Paramètres - Admin'!$D$3 & " " & MINUTE((('À Faire - Récapitulatif'!D7+'À Faire - Récapitulatif'!D9+'À Faire - Récapitulatif'!D10+'À Faire - Récapitulatif'!D12+'À Faire - Récapitulatif'!J12+'À Faire - Récapitulatif'!D26+'À Faire - Récapitulatif'!J31)/C$18)/24-INT((('À Faire - Récapitulatif'!D7+'À Faire - Récapitulatif'!D9+'À Faire - Récapitulatif'!D10+'À Faire - Récapitulatif'!D12+'À Faire - Récapitulatif'!J12+'À Faire - Récapitulatif'!D26+'À Faire - Récapitulatif'!J31)/C$18)/24))&" " & 'Paramètres - Admin'!$D$2,HOUR((('À Faire - Récapitulatif'!D7+'À Faire - Récapitulatif'!D9+'À Faire - Récapitulatif'!D10+'À Faire - Récapitulatif'!D12+'À Faire - Récapitulatif'!J12+'À Faire - Récapitulatif'!D26+'À Faire - Récapitulatif'!J31)/C$18)/24-INT((('À Faire - Récapitulatif'!D7+'À Faire - Récapitulatif'!D9+'À Faire - Récapitulatif'!D10+'À Faire - Récapitulatif'!D12+'À Faire - Récapitulatif'!J12+'À Faire - Récapitulatif'!D26+'À Faire - Récapitulatif'!J31)/C$18)/24))&" " & 'Paramètres - Admin'!$D$3 & " " & MINUTE((('À Faire - Récapitulatif'!D7+'À Faire - Récapitulatif'!D9+'À Faire - Récapitulatif'!D10+'À Faire - Récapitulatif'!D12+'À Faire - Récapitulatif'!J12+'À Faire - Récapitulatif'!D26+'À Faire - Récapitulatif'!J31)/C$18)/24-INT((('À Faire - Récapitulatif'!D7+'À Faire - Récapitulatif'!D9+'À Faire - Récapitulatif'!D10+'À Faire - Récapitulatif'!D12+'À Faire - Récapitulatif'!J12+'À Faire - Récapitulatif'!D26+'À Faire - Récapitulatif'!J31)/C$18)/24))&" " & 'Paramètres - Admin'!$D$2)))))),0) -> 324 jours 9 hrs 2 mins | D20: =IF(D$18<>0,IF($B$2='Paramètres - Admin'!$B$2,TEXT((('À Faire - Récapitulatif'!P27+'À Faire - Récapitulatif'!V23)/D$18)*60*60,"# 0")&" " & 'Paramètres - Admin'!$B$2,IF($B$2='Paramètres - Admin'!$B$3,TEXT((('À Faire - Récapitulatif'!P27+'À Faire - Récapitulatif'!V23)/D$18)*60,"# 0")&" " & 'Paramètres - Admin'!$B$3,IF($B$2='Paramètres - Admin'!$B$4,TEXT((('À Faire - Récapitulatif'!P27+'À Faire - Récapitulatif'!V23)/D$18),"# 0,00")&" " & 'Paramètres - Admin'!$B$4,IF($B$2='Paramètres - Admin'!$B$5,TEXT((('À Faire - Récapitulatif'!P27+'À Faire - Récapitulatif'!V23)/D$18)/24,"# 0,00")&" " & 'Paramètres - Admin'!$B$5,IF($B$2='Paramètres - Admin'!$B$6,TEXT(((('À Faire - Récapitulatif'!P27+'À Faire - Récapitulatif'!V23)/D$18)/24)/30,"# 0,00")&" " & 'Paramètres - Admin'!$B$6,IF((('À Faire - Récapitulatif'!P27+'À Faire - Récapitulatif'!V23)/D$18)/24>=1,INT((('À Faire - Récapitulatif'!P27+'À Faire - Récapitulatif'!V23)/D$18)/24)&" " & 'Paramètres - Admin'!$D$4 & " " & HOUR((('À Faire - Récapitulatif'!P27+'À Faire - Récapitulatif'!V23)/D$18)/24-INT((('À Faire - Récapitulatif'!P27+'À Faire - Récapitulatif'!V23)/D$18)/24))&" " & 'Paramètres - Admin'!$D$3 & " " & MINUTE((('À Faire - Récapitulatif'!P27+'À Faire - Récapitulatif'!V23)/D$18)/24-INT((('À Faire - Récapitulatif'!P27+'À Faire - Récapitulatif'!V23)/D$18)/24))&" " & 'Paramètres - Admin'!$D$2,HOUR((('À Faire - Récapitulatif'!P27+'À Faire - Récapitulatif'!V23)/D$18)/24-INT((('À Faire - Récapitulatif'!P27+'À Faire - Récapitulatif'!V23)/D$18)/24))&" " & 'Paramètres - Admin'!$D$3 & " " & MINUTE((('À Faire - Récapitulatif'!P27+'À Faire - Récapitulatif'!V23)/D$18)/24-INT((('À Faire - Récapitulatif'!P27+'À Faire - Récapitulatif'!V23)/D$18)/24))&" " & 'Paramètres - Admin'!$D$2)))))),0) -> 1457 jours 21 hrs 35 mins

Sheet Combats - Loots (hidden)
A1: LVL HdV | B1: Attaque / Défense | C1: LVL HdV Opposant | D1: Différence LVL HdV | E1: Trophées
A2: =Paramètres!$BE$2 -> 10 | B2: Attaque | C2: 1 | D2: =IF($B$2='Paramètres - Admin'!$F$2,$C$2-$A$2,IF(B2='Paramètres - Admin'!$F$3,$A$2-$C$2)) -> -9 | E2: 980
A3: Combat - Nombre Total de Ressources | M3: Type | N3: % | O3: Gain Maximum
B4: Réserve d'Or | C4: Réservoir d'Élixir | D4: Réservoir d'Élixir Noir | E4: Mine d'Or | F4: Extracteur d'Élixir | G4: Foreuse d'Élixir Noir | M4: Réserve d'Or | N4: 0.1 | O4: 400000
A5: Max | B5: =IF($B$2='Paramètres - Admin'!$F$2,VLOOKUP($C$2,AVAILABLE_Buildings_Resource[#All],MATCH(B$4,AVAILABLE_Buildings_Resource[#Headers],0)),IF($B$2='Paramètres - Admin'!$F$3,VLOOKUP($A$2,AVAILABLE_Buildings_Resource[#All],MATCH(B$4,AVAILABLE_Buildings_Resource[#Headers],0)))) -> 1 | C5: =IF($B$2='Paramètres - Admin'!$F$2,VLOOKUP($C$2,AVAILABLE_Buildings_Resource[#All],MATCH(C$4,AVAILABLE_Buildings_Resource[#Headers],0)),IF($B$2='Paramètres - Admin'!$F$3,VLOOKUP($A$2,AVAILABLE_Buildings_Resource[#All],MATCH(C$4,AVAILABLE_Buildings_Resource[#Headers],0)))) -> 1 | D5: =IF($B$2='Paramètres - Admin'!$F$2,VLOOKUP($C$2,AVAILABLE_Buildings_Resource[#All],MATCH(D$4,AVAILABLE_Buildings_Resource[#Headers],0)),IF($B$2='Paramètres - Admin'!$F$3,VLOOKUP($A$2,AVAILABLE_Buildings_Resource[#All],MATCH(D$4,AVAILABLE_Buildings_Resource[#Headers],0)))) -> 0 | E5: =IF($B$2='Paramètres - Admin'!$F$2,VLOOKUP($C$2,AVAILABLE_Buildings_Resource[#All],MATCH(E$4,AVAILABLE_Buildings_Resource[#Headers],0)),IF($B$2='Paramètres - Admin'!$F$3,VLOOKUP($A$2,AVAILABLE_Buildings_Resource[#All],MATCH(E$4,AVAILABLE_Buildings_Resource[#Headers],0)))) -> 1 | F5: =IF($B$2='Paramètres - Admin'!$F$2,VLOOKUP($C$2,AVAILABLE_Buildings_Resource[#All],MATCH(F$4,AVAILABLE_Buildings_Resource[#Headers],0)),IF($B$2='Paramètres - Admin'!$F$3,VLOOKUP($A$2,AVAILABLE_Buildings_Resource[#All],MATCH(F$4,AVAILABLE_Buildings_Resource[#Headers],0)))) -> 1 | G5: =IF($B$2='Paramètres - Admin'!$F$2,VLOOKUP($C$2,AVAILABLE_Buildings_Resource[#All],MATCH(G$4,AVAILABLE_Buildings_Resource[#Headers],0)),IF($B$2='Paramètres - Admin'!$F$3,VLOOKUP($A$2,AVAILABLE_Buildings_Resource[#All],MATCH(G$4,AVAILABLE_Buildings_Resource[#Headers],0)))) -> 0 | I5: Cellule rouge : | J5: Bâtiment non disponible | M5: Réservoir d'Élixir | N5: 0.1 | O5: 400000
A6: Stockage Max | B6: =IF($B$2='Paramètres - Admin'!$F$2,IF(ISERROR(VLOOKUP(VLOOKUP($C$2,AVAILABLE_Buildings_Resource[#All],MATCH(B$4,AVAILABLE_Buildings_Resource[#Headers],0)+1),EARNINGS_Gold_Storage[#All],2)),0,VLOOKUP(VLOOKUP($C$2,AVAILABLE_Buildings_Resource[#All],MATCH(B$4,AVAILABLE_Buildings_Resource[#Headers],0)+1),EARNINGS_Gold_Storage[#All],2)),IF($B$2='Paramètres - Admin'!$F$3,IF(ISERROR(VLOOKUP(VLOOKUP($A$2,AVAILABLE_Buildings_Resource[#All],MATCH(B$4,AVAILABLE_Buildings_Resource[#Headers],0)+1),EARNINGS_Gold_Storage[#All],2)),0,VLOOKUP(VLOOKUP($A$2,AVAILABLE_Buildings_Resource[#All],MATCH(B$4,AVAILABLE_Buildings_Resource[#Headers],0)+1),EARNINGS_Gold_Storage[#All],2)))) -> 1500 | C6: =IF($B$2='Paramètres - Admin'!$F$2,IF(ISERROR(VLOOKUP(VLOOKUP($C$2,AVAILABLE_Buildings_Resource[#All],MATCH(C$4,AVAILABLE_Buildings_Resource[#Headers],0)+1),EARNINGS_Elixir_Storage[#All],2)),0,VLOOKUP(VLOOKUP($C$2,AVAILABLE_Buildings_Resource[#All],MATCH(C$4,AVAILABLE_Buildings_Resource[#Headers],0)+1),EARNINGS_Elixir_Storage[#All],2)),IF($B$2='Paramètres - Admin'!$F$3,IF(ISERROR(VLOOKUP(VLOOKUP($A$2,AVAILABLE_Buildings_Resource[#All],MATCH(C$4,AVAILABLE_Buildings_Resource[#Headers],0)+1),EARNINGS_Elixir_Storage[#All],2)),0,VLOOKUP(VLOOKUP($A$2,AVAILABLE_Buildings_Resource[#All],MATCH(C$4,AVAILABLE_Buildings_Resource[#Headers],0)+1),EARNINGS_Elixir_Storage[#All],2)))) -> 1500 | D6: =IF($B$2='Paramètres - Admin'!$F$2,IF(ISERROR(VLOOKUP(VLOOKUP($C$2,AVAILABLE_Buildings_Resource[#All],MATCH(D$4,AVAILABLE_Buildings_Resource[#Headers],0)+1),EARNINGS_Dark_Elixir_Storage[#All],2)),0,VLOOKUP(VLOOKUP($C$2,AVAILABLE_Buildings_Resource[#All],MATCH(D$4,AVAILABLE_Buildings_Resource[#Headers],0)+1),EARNINGS_Dark_Elixir_Storage[#All],2)),IF($B$2='Paramètres - Admin'!$F$3,IF(ISERROR(VLOOKUP(VLOOKUP($A$2,AVAILABLE_Buildings_Resource[#All],MATCH(D$4,AVAILABLE_Buildings_Resource[#Headers],0)+1),EARNINGS_Dark_Elixir_Storage[#All],2)),0,VLOOKUP(VLOOKUP($A$2,AVAILABLE_Buildings_Resource[#All],MATCH(D$4,AVAILABLE_Buildings_Resource[#Headers],0)+1),EARNINGS_Dark_Elixir_Storage[#All],2)))) -> 0 | E6: =IF($B$2='Paramètres - Admin'!$F$2,IF(ISERROR(VLOOKUP(VLOOKUP($C$2,AVAILABLE_Buildings_Resource[#All],MATCH(E$4,AVAILABLE_Buildings_Resource[#Headers],0)+1),EARNINGS_Gold_Mine[#All],3)),0,VLOOKUP(VLOOKUP($C$2,AVAILABLE_Buildings_Resource[#All],MATCH(E$4,AVAILABLE_Buildings_Resource[#Headers],0)+1),EARNINGS_Gold_Mine[#All],3)),IF($B$2='Paramètres - Admin'!$F$3,IF(ISERROR(VLOOKUP(VLOOKUP($A$2,AVAILABLE_Buildings_Resource[#All],MATCH(E$4,AVAILABLE_Buildings_Resource[#Headers],0)+1),EARNINGS_Gold_Mine[#All],3)),0,VLOOKUP(VLOOKUP($A$2,AVAILABLE_Buildings_Resource[#All],MATCH(E$4,AVAILABLE_Buildings_Resource[#Headers],0)+1),EARNINGS_Gold_Mine[#All],3)))) -> 1000 | F6: =IF($B$2='Paramètres - Admin'!$F$2,IF(ISERROR(VLOOKUP(VLOOKUP($C$2,AVAILABLE_Buildings_Resource[#All],MATCH(F$4,AVAILABLE_Buildings_Resource[#Headers],0)+1),EARNINGS_Elixir_Collector[#All],3)),0,VLOOKUP(VLOOKUP($C$2,AVAILABLE_Buildings_Resource[#All],MATCH(F$4,AVAILABLE_Buildings_Resource[#Headers],0)+1),EARNINGS_Elixir_Collector[#All],3)),IF($B$2='Paramètres - Admin'!$F$3,IF(ISERROR(VLOOKUP(VLOOKUP($A$2,AVAILABLE_Buildings_Resource[#All],MATCH(F$4,AVAILABLE_Buildings_Resource[#Headers],0)+1),EARNINGS_Elixir_Collector[#All],3)),0,VLOOKUP(VLOOKUP($A$2,AVAILABLE_Buildings_Resource[#All],MATCH(F$4,AVAILABLE_Buildings_Resource[#Headers],0)+1),EARNINGS_Elixir_Collector[#All],3)))) -> 1000 | G6: =IF($B$2='Paramètres - Admin'!$F$2,IF(ISERROR(VLOOKUP(VLOOKUP($C$2,AVAILABLE_Buildings_Resource[#All],MATCH(E$4,AVAILABLE_Buildings_Resource[#Headers],0)+1),EARNINGS_Dark_Elixir_Drill[#All],3)),0,VLOOKUP(VLOOKUP($C$2,AVAILABLE_Buildings_Resource[#All],MATCH(E$4,AVAILABLE_Buildings_Resource[#Headers],0)+1),EARNINGS_Dark_Elixir_Drill[#All],3)),IF($B$2='Paramètres - Admin'!$F$3,IF(ISERROR(VLOOKUP(VLOOKUP($A$2,AVAILABLE_Buildings_Resource[#All],MATCH(E$4,AVAILABLE_Buildings_Resource[#Headers],0)+1),EARNINGS_Dark_Elixir_Drill[#All],3)),0,VLOOKUP(VLOOKUP($A$2,AVAILABLE_Buildings_Resource[#All],MATCH(E$4,AVAILABLE_Buildings_Resource[#Headers],0)+1),EARNINGS_Dark_Elixir_Drill[#All],3)))) -> 240 | M6: Réservoir d'Élixir Noir | N6: 0.04 | O6: 3000
A7: 1 | M7: Mine d'Or | N7: 0.5 | O7: =IF($B$2='Paramètres - Admin'!$F$2,IF(ISERROR(VLOOKUP(VLOOKUP($C$2,AVAILABLE_Buildings_Resource[#All],MATCH(E$4,AVAILABLE_Buildings_Resource[#Headers],0)+1),EARNINGS_Gold_Storage[#All],2)),0,VLOOKUP(VLOOKUP($C$2,AVAILABLE_Buildings_Resource[#All],MATCH(E$4,AVAILABLE_Buildings_Resource[#Headers],0)+1),EARNINGS_Gold_Mine[#All],3)),IF($B$2='Paramètres - Admin'!$F$3,IF(ISERROR(VLOOKUP(VLOOKUP($A$2,AVAILABLE_Buildings_Resource[#All],MATCH(E$4,AVAILABLE_Buildings_Resource[#Headers],0)+1),EARNINGS_Gold_Storage[#All],2)),0,VLOOKUP(VLOOKUP($A$2,AVAILABLE_Buildings_Resource[#All],MATCH(E$4,AVAILABLE_Buildings_Resource[#Headers],0)+1),EARNINGS_Gold_Mine[#All],3)))) -> 1000
A8: 2 | I8: Cellule orange : | J8: Erreur - Bâtiment Max. total atteint | M8: Extracteur d'Élixir | N8: 0.5 | O8: =IF($B$2='Paramètres - Admin'!$F$2,IF(ISERROR(VLOOKUP(VLOOKUP($C$2,AVAILABLE_Buildings_Resource[#All],MATCH(F$4,AVAILABLE_Buildings_Resource[#Headers],0)+1),EARNINGS_Gold_Storage[#All],2)),0,VLOOKUP(VLOOKUP($C$2,AVAILABLE_Buildings_Resource[#All],MATCH(F$4,AVAILABLE_Buildings_Resource[#Headers],0)+1),EARNINGS_Elixir_Collector[#All],3)),IF($B$2='Paramètres - Admin'!$F$3,IF(ISERROR(VLOOKUP(VLOOKUP($A$2,AVAILABLE_Buildings_Resource[#All],MATCH(F$4,AVAILABLE_Buildings_Resource[#Headers],0)+1),EARNINGS_Gold_Storage[#All],2)),0,VLOOKUP(VLOOKUP($A$2,AVAILABLE_Buildings_Resource[#All],MATCH(F$4,AVAILABLE_Buildings_Resource[#Headers],0)+1),EARNINGS_Elixir_Collector[#All],3)))) -> 1000
A9: 3 | M9: Foreuse d'Élixir Noir | N9: 0.75 | O9: 1600
A10: 4 | M10: Hôtel de Ville - Or | N10: 1 | O10: 1000
A11: 5 | M11: Hôtel de Ville - Élixir | N11: 1 | O11: 1000
A12: 6
A13: 7
A14: Total | B14: =SUMIF($A7:$A13,"<="&B$5,B7:B13) -> 0 | C14: 0 | D14: 0 | E14: 0 | F14: 0 | G14: 0
A17: Combat - Nombre de Ressources Disponibles
B18: Réserve d'Or | C18: Réservoir d'Élixir | D18: Réservoir d'Élixir Noir | E18: Mine d'Or | F18: Extracteur d'Élixir | G18: Foreuse d'Élixir Noir
A19: 1 | B19: =IF($A19>B$5,0,IF((B$7*$N$4)+(B$8*$N$4)+(B$9*$N$4)+(B$10*$N$4)+(B$11*$N$4)+(B$12*$N$4)+(B$13*$N$4)>$O$4,$O$4*(B7/B$14),B7*$N$4)) -> 0 | C19: =IF($A19>C$5,0,IF((C$7*$N$5)+(C$8*$N$5)+(C$9*$N$5)+(C$10*$N$5)+(C$11*$N$5)+(C$12*$N$5)+(C$13*$N$5)>$O$5,$O$5*(C7/C$14),C7*$N$5)) -> 0 | D19: =IF($A19>D$5,0,IF((D$7*$N$6)+(D$8*$N$6)+(D$9*$N$6)+(D$10*$N$6)+(D$11*$N$6)+(D$12*$N$6)+(D$13*$N$6)>$O$6,$O$6*(D7/D$14),D7*$N$6)) -> 0 | E19: =IF($A19>E$5,0,IF(E7>$O$7,$O$7*$N$7,E7*$N$7)) -> 0 | F19: =IF($A19>F$5,0,IF(F7>$O$8,$O$8*$N$8,F7*$N$8)) -> 0 | G19: =IF($A19>G$5,0,IF(G7>$O$9,$O$9*$N$9,G7*$N$9)) -> 0
A20: 2 | B20: =IF($A20>B$5,0,IF((B$7*$N$4)+(B$8*$N$4)+(B$9*$N$4)+(B$10*$N$4)+(B$11*$N$4)+(B$12*$N$4)+(B$13*$N$4)>$O$4,$O$4*(B8/B$14),B8*$N$4)) -> 0 | C20: 0 | D20: 0 | E20: 0 | F20: =IF($A20>F$5,0,IF(F8>$O$8,$O$8*$N$8,F8*$N$8)) -> 0 | G20: 0
A21: 3 | B21: 0 | C21: 0 | D21: 0 | E21: 0 | F21: 0 | G21: 0
A22: 4 | B22: 0 | C22: 0 | D22: 0 | E22: 0 | F22: 0 | G22: 0
A23: 5 | B23: 0 | C23: 0 | D23: 0 | E23: 0 | F23: 0 | G23: 0
A24: 6 | B24: 0 | C24: 0 | D24: 0 | E24: 0 | F24: 0 | G24: 0
A25: 7 | B25: 0 | C25: 0 | D25: 0 | E25: 0 | F25: 0 | G25: 0
A26: Total | B26: =SUM(B19:B25) -> 0 | C26: 0 | D26: 0 | E26: 0 | F26: 0 | G26: 0
A29: =IF($B$2='Paramètres - Admin'!$F$2,$G$29 & C2,IF($B$2='Paramètres - Admin'!$F$3,$H$29 & C2)) -> Loots - Gains Possibles vs HdV LVL 1 | G29: Loots - Gains Possibles vs HdV LVL | H29: Loots - Pertes Possibles vs HdV LVL
C30: Multiplicateur de Loot | D30: Or | E30: Élixir | F30: Élixir Noir
A31: Stockages | C31: =VLOOKUP(1,LEAGUES_Loot_Multiplier[#All],3) -> 0.05 | D31: =B26*$C31 -> 0 | E31: =C26*$C31 -> 0 | F31: =D26*$C31 -> 0
A32: Mines/Extracteurs/Foreuses | C32: =VLOOKUP(1,LEAGUES_Loot_Multiplier[#All],3) -> 0.05 | D32: =E26*$C32 -> 0 | E32: =F26*$C32 -> 0 | F32: =G26*$C32 -> 0
A33: Hôtel de Ville | C33: =IF(D2>0,1,VLOOKUP(1,LEAGUES_Loot_Multiplier[#All],3)) -> 0.05 | D33: =$O$10*$C33 -> 50 | E33: =$O$11*$C33 -> 50 | F33: 0
A34: Bonus de Ligue | C34: / | D34: =IF($B$2='Paramètres - Admin'!$F$2,VLOOKUP(1,LEAGUES_Bonus[#All],3),0) -> 1300 | E34: =IF($B$2='Paramètres - Admin'!$F$2,VLOOKUP(1,LEAGUES_Bonus[#All],4),0) -> 1300 | F34: =IF($B$2='Paramètres - Admin'!$F$2,VLOOKUP(1,LEAGUES_Bonus[#All],5),0) -> 0
C35: Total | D35: =SUM(D31:D34) -> 1350 | E35: =SUM(E31:E34) -> 1350 | F35: =SUM(F31:F34) -> 0

Sheet Formation de Troupes (hidden)
A1: LVL HdV | B1: Affichage Temps | G1: LVL Usine de Sorts | I1: NB Caserne | O1: LVL Caserne n°1 | P1: LVL Caserne n°2 | Q1: LVL Caserne n°3 | R1: LVL Caserne n°4 | U1: NB Caserne Noire | AA1: LVL Caserne Noire n°1 | AB1: LVL Caserne Noire n°2
A2: =Paramètres!$BE$2 -> 10 | B2: h/m/s | G2: =IF(ISERROR(MATCH(1,Paramètres!L$6:L$45,0)),0,MATCH(1,Paramètres!L$6:L$45,0)) -> 5 | I2: =Paramètres!H46 -> 4 | U2: =Paramètres!I46 -> 2
A3: Création de Sorts | I3: Formation de Troupes Normales | U3: Formation de Troupes Noires
B4: Max + | C4: Actuel + | D4: Espace | E4: Coût | F4: Time (s) | G4: Laboratoire - NB | J4: Max + | K4: Actuel + | L4: Espace | M4: Coût | N4: Time (s) | O4: Caserne n°1 - NB | P4: Caserne° 2 - NB | Q4: Caserne n°3 - NB | R4: Caserne n°4 - NB | S4: Total | V4: Max + | W4: Actuel + | X4: Espace | Y4: Coût | Z4: Time (s) | AA4: Caserne Noire n°1 - NB | AB4: Caserne Noire n°2 - NB | AC4: Total
A5: Sort de Foudre | B5: =VLOOKUP($A$2,AVAILABLE_Upgrades_Spells[#All],MATCH($A5,AVAILABLE_Upgrades_Spells[#Headers],0)+1) -> 6 | C5: =IF(ISERROR(MATCH(1,Paramètres!AF$6:AF$45,0)),0,MATCH(1,Paramètres!AF$6:AF$45,0)) -> 5 | D5: =IF($C5<>0,VLOOKUP($C5,TRAINING_Spell_Lightning[#All],2),0) -> 1 | E5: =IF($C5<>0,VLOOKUP($C5,TRAINING_Spell_Lightning[#All],3),0) -> 22000 | F5: =IF($C5<>0,VLOOKUP($C5,TRAINING_Spell_Lightning[#All],4),0) -> 1800 | I5: Barbare | J5: =VLOOKUP($A$2,AVAILABLE_Upgrades_Normal_Troops[#All],MATCH($I5,AVAILABLE_Upgrades_Normal_Troops[#Headers],0)+1) -> 7 | K5: =IF(ISERROR(MATCH(1,Paramètres!AK$6:AK$45,0)),0,MATCH(1,Paramètres!AK$6:AK$45,0)) -> 5 | L5: =IF($K5<>0,VLOOKUP($K5,TRAINING_Barbarian[#All],2),0) -> 1 | M5: =IF($K5<>0,VLOOKUP($K5,TRAINING_Barbarian[#All],3),0) -> 100 | N5: =IF($K5<>0,VLOOKUP($K5,TRAINING_Barbarian[#All],4),0) -> 20 | S5: =SUM(O5:R5) -> 0 | U5: Serviteur | V5: =VLOOKUP($A$2,AVAILABLE_Upgrades_Dark_Troops[#All],MATCH($U5,AVAILABLE_Upgrades_Dark_Troops[#Headers],0)+1) -> 6 | W5: =IF(ISERROR(MATCH(1,Paramètres!AU$6:AU$45,0)),0,MATCH(1,Paramètres!AU$6:AU$45,0)) -> 5 | X5: =IF($W5<>0,VLOOKUP($W5,TRAINING_Minion[#All],2),0) -> 2 | Y5: =IF($W5<>0,VLOOKUP($W5,TRAINING_Minion[#All],3),0) -> 10 | Z5: =IF($W5<>0,VLOOKUP($W5,TRAINING_Minion[#All],4),0) -> 45 | AC5: =SUM(AA5:AB5) -> 0
A6: Sort de Guérison | B6: =VLOOKUP($A$2,AVAILABLE_Upgrades_Spells[#All],MATCH($A6,AVAILABLE_Upgrades_Spells[#Headers],0)+1) -> 6 | C6: =IF(ISERROR(MATCH(1,Paramètres!AG$6:AG$45,0)),0,MATCH(1,Paramètres!AG$6:AG$45,0)) -> 5 | D6: =IF($C6<>0,VLOOKUP($C6,TRAINING_Spell_Healing[#All],2),0) -> 1 | E6: =IF($C6<>0,VLOOKUP($C6,TRAINING_Spell_Healing[#All],3),0) -> 22000 | F6: =IF($C6<>0,VLOOKUP($C6,TRAINING_Spell_Healing[#All],4),0) -> 1800 | I6: Archer | J6: =VLOOKUP($A$2,AVAILABLE_Upgrades_Normal_Troops[#All],MATCH($I6,AVAILABLE_Upgrades_Normal_Troops[#Headers],0)+1) -> 7 | K6: =IF(ISERROR(MATCH(1,Paramètres!AL$6:AL$45,0)),0,MATCH(1,Paramètres!AL$6:AL$45,0)) -> 5 | L6: =IF($K6<>0,VLOOKUP($K6,TRAINING_Archer[#All],2),0) -> 1 | M6: =IF($K6<>0,VLOOKUP($K6,TRAINING_Archer[#All],3),0) -> 200 | N6: =IF($K6<>0,VLOOKUP($K6,TRAINING_Archer[#All],4),0) -> 25 | S6: =SUM(O6:R6) -> 0 | U6: Chevaucheur de Cochon | V6: =VLOOKUP($A$2,AVAILABLE_Upgrades_Dark_Troops[#All],MATCH($U6,AVAILABLE_Upgrades_Dark_Troops[#Headers],0)+1) -> 5 | W6: =IF(ISERROR(MATCH(1,Paramètres!AV$6:AV$45,0)),0,MATCH(1,Paramètres!AV$6:AV$45,0)) -> 4 | X6: =IF($W6<>0,VLOOKUP($W6,TRAINING_Hog_Rider[#All],2),0) -> 5 | Y6: =IF($W6<>0,VLOOKUP($W6,TRAINING_Hog_Rider[#All],3),0) -> 58 | Z6: =IF($W6<>0,VLOOKUP($W6,TRAINING_Hog_Rider[#All],4),0) -> 120 | AC6: 0
A7: Sort de Rage | B7: =VLOOKUP($A$2,AVAILABLE_Upgrades_Spells[#All],MATCH($A7,AVAILABLE_Upgrades_Spells[#Headers],0)+1) -> 5 | C7: =IF(ISERROR(MATCH(1,Paramètres!AH$6:AH$45,0)),0,MATCH(1,Paramètres!AH$6:AH$45,0)) -> 5 | D7: =IF($C7<>0,VLOOKUP($C7,TRAINING_Spell_Rage[#All],2),0) -> 1 | E7: =IF($C7<>0,VLOOKUP($C7,TRAINING_Spell_Rage[#All],3),0) -> 33000 | F7: =IF($C7<>0,VLOOKUP($C7,TRAINING_Spell_Rage[#All],4),0) -> 2700 | I7: Gobelin | J7: =VLOOKUP($A$2,AVAILABLE_Upgrades_Normal_Troops[#All],MATCH($I7,AVAILABLE_Upgrades_Normal_Troops[#Headers],0)+1) -> 6 | K7: =IF(ISERROR(MATCH(1,Paramètres!AM$6:AM$45,0)),0,MATCH(1,Paramètres!AM$6:AM$45,0)) -> 5 | L7: =IF($K7<>0,VLOOKUP($K7,TRAINING_Goblin[#All],2),0) -> 1 | M7: =IF($K7<>0,VLOOKUP($K7,TRAINING_Goblin[#All],3),0) -> 100 | N7: =IF($K7<>0,VLOOKUP($K7,TRAINING_Goblin[#All],4),0) -> 30 | S7: 0 | U7: Valkyrie | V7: =VLOOKUP($A$2,AVAILABLE_Upgrades_Dark_Troops[#All],MATCH($U7,AVAILABLE_Upgrades_Dark_Troops[#Headers],0)+1) -> 4 | W7: =IF(ISERROR(MATCH(1,Paramètres!AW$6:AW$45,0)),0,MATCH(1,Paramètres!AW$6:AW$45,0)) -> 1 | X7: =IF($W7<>0,VLOOKUP($W7,TRAINING_Valkyrie[#All],2),0) -> 8 | Y7: =IF($W7<>0,VLOOKUP($W7,TRAINING_Valkyrie[#All],3),0) -> 70 | Z7: =IF($W7<>0,VLOOKUP($W7,TRAINING_Valkyrie[#All],4),0) -> 900 | AC7: 0
A8: Sort de Saut | B8: =VLOOKUP($A$2,AVAILABLE_Upgrades_Spells[#All],MATCH($A8,AVAILABLE_Upgrades_Spells[#Headers],0)+1) -> 3 | C8: =IF(ISERROR(MATCH(1,Paramètres!AI$6:AI$45,0)),0,MATCH(1,Paramètres!AI$6:AI$45,0)) -> 2 | D8: =IF($C8<>0,VLOOKUP($C8,TRAINING_Spell_Jump[#All],2),0) -> 1 | E8: =IF($C8<>0,VLOOKUP($C8,TRAINING_Spell_Jump[#All],3),0) -> 29000 | F8: =IF($C8<>0,VLOOKUP($C8,TRAINING_Spell_Jump[#All],4),0) -> 2700 | I8: Géant | J8: =VLOOKUP($A$2,AVAILABLE_Upgrades_Normal_Troops[#All],MATCH($I8,AVAILABLE_Upgrades_Normal_Troops[#Headers],0)+1) -> 7 | K8: =IF(ISERROR(MATCH(1,Paramètres!AN$6:AN$45,0)),0,MATCH(1,Paramètres!AN$6:AN$45,0)) -> 5 | L8: =IF($K8<>0,VLOOKUP($K8,TRAINING_Giant[#All],2),0) -> 5 | M8: =IF($K8<>0,VLOOKUP($K8,TRAINING_Giant[#All],3),0) -> 2500 | N8: =IF($K8<>0,VLOOKUP($K8,TRAINING_Giant[#All],4),0) -> 120 | S8: 0 | U8: Golem | V8: =VLOOKUP($A$2,AVAILABLE_Upgrades_Dark_Troops[#All],MATCH($U8,AVAILABLE_Upgrades_Dark_Troops[#Headers],0)+1) -> 5 | W8: =IF(ISERROR(MATCH(1,Paramètres!AX$6:AX$45,0)),0,MATCH(1,Paramètres!AX$6:AX$45,0)) -> 2 | X8: =IF($W8<>0,VLOOKUP($W8,TRAINING_Golem[#All],2),0) -> 30 | Y8: =IF($W8<>0,VLOOKUP($W8,TRAINING_Golem[#All],3),0) -> 525 | Z8: =IF($W8<>0,VLOOKUP($W8,TRAINING_Golem[#All],4),0) -> 2700 | AC8: 0
A9: Sort de Gel | B9: =VLOOKUP($A$2,AVAILABLE_Upgrades_Spells[#All],MATCH($A9,AVAILABLE_Upgrades_Spells[#Headers],0)+1) -> 5 | C9: =IF(ISERROR(MATCH(1,Paramètres!AJ$6:AJ$45,0)),0,MATCH(1,Paramètres!AJ$6:AJ$45,0)) -> 1 | D9: =IF($C9<>0,VLOOKUP($C9,TRAINING_Spell_Freeze[#All],2),0) -> 1 | E9: =IF($C9<>0,VLOOKUP($C9,TRAINING_Spell_Freeze[#All],3),0) -> 26000 | F9: =IF($C9<>0,VLOOKUP($C9,TRAINING_Spell_Freeze[#All],4),0) -> 2700 | I9: Sapeur | J9: =VLOOKUP($A$2,AVAILABLE_Upgrades_Normal_Troops[#All],MATCH($I9,AVAILABLE_Upgrades_Normal_Troops[#Headers],0)+1) -> 6 | K9: =IF(ISERROR(MATCH(1,Paramètres!AO$6:AO$45,0)),0,MATCH(1,Paramètres!AO$6:AO$45,0)) -> 5 | L9: =IF($K9<>0,VLOOKUP($K9,TRAINING_Wall_Breaker[#All],2),0) -> 2 | M9: =IF($K9<>0,VLOOKUP($K9,TRAINING_Wall_Breaker[#All],3),0) -> 3000 | N9: =IF($K9<>0,VLOOKUP($K9,TRAINING_Wall_Breaker[#All],4),0) -> 120 | S9: 0 | U9: Sorcière | V9: =VLOOKUP($A$2,AVAILABLE_Upgrades_Dark_Troops[#All],MATCH($U9,AVAILABLE_Upgrades_Dark_Troops[#Headers],0)+1) -> 2 | W9: =IF(ISERROR(MATCH(1,Paramètres!AY$6:AY$45,0)),0,MATCH(1,Paramètres!AY$6:AY$45,0)) -> 1 | X9: =IF($W9<>0,VLOOKUP($W9,TRAINING_Witch[#All],2),0) -> 12 | Y9: =IF($W9<>0,VLOOKUP($W9,TRAINING_Witch[#All],3),0) -> 250 | Z9: =IF($W9<>0,VLOOKUP($W9,TRAINING_Witch[#All],4),0) -> 1200 | AC9: 0
B10: Espace Max | G10: =VLOOKUP($G$2,TRAINING_Spell_Factory[#All],2) -> 5 | I10: Ballon | J10: =VLOOKUP($A$2,AVAILABLE_Upgrades_Normal_Troops[#All],MATCH($I10,AVAILABLE_Upgrades_Normal_Troops[#Headers],0)+1) -> 6 | K10: =IF(ISERROR(MATCH(1,Paramètres!AP$6:AP$45,0)),0,MATCH(1,Paramètres!AP$6:AP$45,0)) -> 6 | L10: =IF($K10<>0,VLOOKUP($K10,TRAINING_Balloon[#All],2),0) -> 5 | M10: =IF($K10<>0,VLOOKUP($K10,TRAINING_Balloon[#All],3),0) -> 4500 | N10: =IF($K10<>0,VLOOKUP($K10,TRAINING_Balloon[#All],4),0) -> 480 | S10: 0 | U10: Molosse de lave | V10: =VLOOKUP($A$2,AVAILABLE_Upgrades_Dark_Troops[#All],MATCH($U10,AVAILABLE_Upgrades_Dark_Troops[#Headers],0)+1) -> 3 | W10: =IF(ISERROR(MATCH(1,Paramètres!AZ$6:AZ$45,0)),0,MATCH(1,Paramètres!AZ$6:AZ$45,0)) -> 2 | X10: =IF($W10<>0,VLOOKUP($W10,TRAINING_Lava_Hound[#All],2),0) -> 30 | Y10: =IF($W10<>0,VLOOKUP($W10,TRAINING_Lava_Hound[#All],3),0) -> 450 | Z10: =IF($W10<>0,VLOOKUP($W10,TRAINING_Lava_Hound[#All],4),0) -> 2700 | AC10: 0
B11: Espace Total | G11: =SUMPRODUCT(G$5:G$9,$D$5:$D$9) -> 0 | I11: Sorcier | J11: =VLOOKUP($A$2,AVAILABLE_Upgrades_Normal_Troops[#All],MATCH($I11,AVAILABLE_Upgrades_Normal_Troops[#Headers],0)+1) -> 6 | K11: =IF(ISERROR(MATCH(1,Paramètres!AQ$6:AQ$45,0)),0,MATCH(1,Paramètres!AQ$6:AQ$45,0)) -> 5 | L11: =IF($K11<>0,VLOOKUP($K11,TRAINING_Wizard[#All],2),0) -> 4 | M11: =IF($K11<>0,VLOOKUP($K11,TRAINING_Wizard[#All],3),0) -> 3500 | N11: =IF($K11<>0,VLOOKUP($K11,TRAINING_Wizard[#All],4),0) -> 480 | S11: 0 | V11: Espace Max | AA11: =VLOOKUP(AA$2,TRAINING_Dark_Barrack[#All],2) -> 0 | AB11: =VLOOKUP(AB$2,TRAINING_Dark_Barrack[#All],2) -> 0 | AC11: 0
B12: Coût Total | G12: =SUMPRODUCT(G$5:G$9,$E$5:$E$9) -> 0 | I12: Guérisseuse | J12: =VLOOKUP($A$2,AVAILABLE_Upgrades_Normal_Troops[#All],MATCH($I12,AVAILABLE_Upgrades_Normal_Troops[#Headers],0)+1) -> 4 | K12: =IF(ISERROR(MATCH(1,Paramètres!AR$6:AR$45,0)),0,MATCH(1,Paramètres!AR$6:AR$45,0)) -> 3 | L12: =IF($K12<>0,VLOOKUP($K12,TRAINING_Healer[#All],2),0) -> 14 | M12: =IF($K12<>0,VLOOKUP($K12,TRAINING_Healer[#All],3),0) -> 8000 | N12: =IF($K12<>0,VLOOKUP($K12,TRAINING_Healer[#All],4),0) -> 900 | S12: 0 | V12: Espace Total | AA12: =SUMPRODUCT(AA$5:AA$10,$X$5:$X$10) -> 0 | AB12: =SUMPRODUCT(AB$5:AB$10,$X$5:$X$10) -> 0 | AC12: 0
B13: Temps Total | G13: =IF($B$2='Paramètres - Admin'!$B$2,TEXT(SUMPRODUCT(G$5:G$9,$F$5:$F$9),"# 0")&" " & 'Paramètres - Admin'!$B$2,IF($B$2='Paramètres - Admin'!$B$3,TEXT(SUMPRODUCT(G$5:G$9,$F$5:$F$9)/60,"# 0")&" " & 'Paramètres - Admin'!$B$3,IF($B$2='Paramètres - Admin'!$B$4,TEXT(SUMPRODUCT(G$5:G$9,$F$5:$F$9)/3600,"# 0,00")&" " & 'Paramètres - Admin'!$B$4,IF(SUMPRODUCT(G$5:G$9,$F$5:$F$9)/3600>=1,INT(SUMPRODUCT(G$5:G$9,$F$5:$F$9)/3600) &" " & 'Paramètres - Admin'!$D$3 & " " & MINUTE(SUMPRODUCT(G$5:G$9,$F$5:$F$9)/86400-INT(SUMPRODUCT(G$5:G$9,$F$5:$F$9)/86400)) &" " & 'Paramètres - Admin'!$D$2 & " " & SECOND(SUMPRODUCT(G$5:G$9,$F$5:$F$9)/86400-INT(SUMPRODUCT(G$5:G$9,$F$5:$F$9)/86400)) &" " & 'Paramètres - Admin'!$D$5,MINUTE(SUMPRODUCT(G$5:G$9,$F$5:$F$9)/86400-INT(SUMPRODUCT(G$5:G$9,$F$5:$F$9)/86400)) &" " & 'Paramètres - Admin'!$D$2 & " " & SECOND(SUMPRODUCT(G$5:G$9,$F$5:$F$9)/86400-INT(SUMPRODUCT(G$5:G$9,$F$5:$F$9)/86400)) &" " & 'Paramètres - Admin'!$D$5)))) -> 0 mins 0 sec | I13: Dragon | J13: =VLOOKUP($A$2,AVAILABLE_Upgrades_Normal_Troops[#All],MATCH($I13,AVAILABLE_Upgrades_Normal_Troops[#Headers],0)+1) -> 4 | K13: =IF(ISERROR(MATCH(1,Paramètres!AS$6:AS$45,0)),0,MATCH(1,Paramètres!AS$6:AS$45,0)) -> 4 | L13: =IF($K13<>0,VLOOKUP($K13,TRAINING_Dragon[#All],2),0) -> 20 | M13: =IF($K13<>0,VLOOKUP($K13,TRAINING_Dragon[#All],3),0) -> 42000 | N13: =IF($K13<>0,VLOOKUP($K13,TRAINING_Dragon[#All],4),0) -> 1800 | S13: 0 | V13: Coût Total | AA13: =SUMPRODUCT(AA$5:AA$10,$Y$5:$Y$10) -> 0 | AB13: =SUMPRODUCT(AB$5:AB$10,$Y$5:$Y$10) -> 0 | AC13: 0
I14: P.E.K.K.A | J14: =VLOOKUP($A$2,AVAILABLE_Upgrades_Normal_Troops[#All],MATCH($I14,AVAILABLE_Upgrades_Normal_Troops[#Headers],0)+1) -> 5 | K14: =IF(ISERROR(MATCH(1,Paramètres!AT$6:AT$45,0)),0,MATCH(1,Paramètres!AT$6:AT$45,0)) -> 2 | L14: =IF($K14<>0,VLOOKUP($K14,TRAINING_PEKKA[#All],2),0) -> 25 | M14: =IF($K14<>0,VLOOKUP($K14,TRAINING_PEKKA[#All],3),0) -> 35000 | N14: =IF($K14<>0,VLOOKUP($K14,TRAINING_PEKKA[#All],4),0) -> 2700 | S14: 0 | V14: Temps Total | AA14: =IF($B$2='Paramètres - Admin'!$B$2,TEXT(SUMPRODUCT(AA$5:AA$10,$Z$5:$Z$10),"# 0")&" " & 'Paramètres - Admin'!$B$2,IF($B$2='Paramètres - Admin'!$B$3,TEXT(SUMPRODUCT(AA$5:AA$10,$Z$5:$Z$10)/60,"# 0")&" " & 'Paramètres - Admin'!$B$3,IF($B$2='Paramètres - Admin'!$B$4,TEXT(SUMPRODUCT(AA$5:AA$10,$Z$5:$Z$10)/3600,"# 0,00")&" " & 'Paramètres - Admin'!$B$4,IF(SUMPRODUCT(AA$5:AA$10,$Z$5:$Z$10)/3600>=1,INT(SUMPRODUCT(AA$5:AA$10,$Z$5:$Z$10)/3600) &" " & 'Paramètres - Admin'!$D$3 & " " & MINUTE(SUMPRODUCT(AA$5:AA$10,$Z$5:$Z$10)/86400-INT(SUMPRODUCT(AA$5:AA$10,$Z$5:$Z$10)/86400)) &" " & 'Paramètres - Admin'!$D$2 & " " & SECOND(SUMPRODUCT(AA$5:AA$10,$Z$5:$Z$10)/86400-INT(SUMPRODUCT(AA$5:AA$10,$Z$5:$Z$10)/86400)) &" " & 'Paramètres - Admin'!$D$5,MINUTE(SUMPRODUCT(AA$5:AA$10,$Z$5:$Z$10)/86400-INT(SUMPRODUCT(AA$5:AA$10,$Z$5:$Z$10)/86400)) &" " & 'Paramètres - Admin'!$D$2 & " " & SECOND(SUMPRODUCT(AA$5:AA$10,$Z$5:$Z$10)/86400-INT(SUMPRODUCT(AA$5:AA$10,$Z$5:$Z$10)/86400)) &" " & 'Paramètres - Admin'!$D$5)))) -> 0 mins 0 sec | AB14: =IF($B$2='Paramètres - Admin'!$B$2,TEXT(SUMPRODUCT(AB$5:AB$10,$Z$5:$Z$10),"# 0")&" " & 'Paramètres - Admin'!$B$2,IF($B$2='Paramètres - Admin'!$B$3,TEXT(SUMPRODUCT(AB$5:AB$10,$Z$5:$Z$10)/60,"# 0")&" " & 'Paramètres - Admin'!$B$3,IF($B$2='Paramètres - Admin'!$B$4,TEXT(SUMPRODUCT(AB$5:AB$10,$Z$5:$Z$10)/3600,"# 0,00")&" " & 'Paramètres - Admin'!$B$4,IF(SUMPRODUCT(AB$5:AB$10,$Z$5:$Z$10)/3600>=1,INT(SUMPRODUCT(AB$5:AB$10,$Z$5:$Z$10)/3600) &" " & 'Paramètres - Admin'!$D$3 & " " & MINUTE(SUMPRODUCT(AB$5:AB$10,$Z$5:$Z$10)/86400-INT(SUMPRODUCT(AB$5:AB$10,$Z$5:$Z$10)/86400)) &" " & 'Paramètres - Admin'!$D$2 & " " & SECOND(SUMPRODUCT(AB$5:AB$10,$Z$5:$Z$10)/86400-INT(SUMPRODUCT(AB$5:AB$10,$Z$5:$Z$10)/86400)) &" " & 'Paramètres - Admin'!$D$5,MINUTE(SUMPRODUCT(AB$5:AB$10,$Z$5:$Z$10)/86400-INT(SUMPRODUCT(AB$5:AB$10,$Z$5:$Z$10)/86400)) &" " & 'Paramètres - Admin'!$D$2 & " " & SECOND(SUMPRODUCT(AB$5:AB$10,$Z$5:$Z$10)/86400-INT(SUMPRODUCT(AB$5:AB$10,$Z$5:$Z$10)/86400)) &" " & 'Paramètres - Admin'!$D$5)))) -> 0 mins 0 sec | AC14: =IF($B$2='Paramètres - Admin'!$B$2,TEXT((SUMPRODUCT(AA$5:AA$10,$Z$5:$Z$10)+SUMPRODUCT(AB$5:AB$10,$Z$5:$Z$10)),"# 0")&" " & 'Paramètres - Admin'!$B$2,IF($B$2='Paramètres - Admin'!$B$3,TEXT((SUMPRODUCT(AA$5:AA$10,$Z$5:$Z$10)+SUMPRODUCT(AB$5:AB$10,$Z$5:$Z$10))/60,"# 0")&" " & 'Paramètres - Admin'!$B$3,IF($B$2='Paramètres - Admin'!$B$4,TEXT((SUMPRODUCT(AA$5:AA$10,$Z$5:$Z$10)+SUMPRODUCT(AB$5:AB$10,$Z$5:$Z$10))/3600,"# 0,00")&" " & 'Paramètres - Admin'!$B$4,IF((SUMPRODUCT(AA$5:AA$10,$Z$5:$Z$10)+SUMPRODUCT(AB$5:AB$10,$Z$5:$Z$10))/3600>=1,INT((SUMPRODUCT(AA$5:AA$10,$Z$5:$Z$10)+SUMPRODUCT(AB$5:AB$10,$Z$5:$Z$10))/3600) &" " & 'Paramètres - Admin'!$D$3 & " " & MINUTE((SUMPRODUCT(AA$5:AA$10,$Z$5:$Z$10)+SUMPRODUCT(AB$5:AB$10,$Z$5:$Z$10))/86400-INT((SUMPRODUCT(AA$5:AA$10,$Z$5:$Z$10)+SUMPRODUCT(AB$5:AB$10,$Z$5:$Z$10))/86400)) &" " & 'Paramètres - Admin'!$D$2 & " " & SECOND((SUMPRODUCT(AA$5:AA$10,$Z$5:$Z$10)+SUMPRODUCT(AB$5:AB$10,$Z$5:$Z$10))/86400-INT((SUMPRODUCT(AA$5:AA$10,$Z$5:$Z$10)+SUMPRODUCT(AB$5:AB$10,$Z$5:$Z$10))/86400)) &" " & 'Paramètres - Admin'!$D$5,MINUTE((SUMPRODUCT(AA$5:AA$10,$Z$5:$Z$10)+SUMPRODUCT(AB$5:AB$10,$Z$5:$Z$10))/86400-INT((SUMPRODUCT(AA$5:AA$10,$Z$5:$Z$10)+SUMPRODUCT(AB$5:AB$10,$Z$5:$Z$10))/86400)) &" " & 'Paramètres - Admin'!$D$2 & " " & SECOND((SUMPRODUCT(AA$5:AA$10,$Z$5:$Z$10)+SUMPRODUCT(AB$5:AB$10,$Z$5:$Z$10))/86400-INT((SUMPRODUCT(AA$5:AA$10,$Z$5:$Z$10)+SUMPRODUCT(AB$5:AB$10,$Z$5:$Z$10))/86400)) &" " & 'Paramètres - Admin'!$D$5)))) -> 0 mins 0 sec
J15: Espace Max | O15: =VLOOKUP(O$2,TRAINING_Barrack[#All],2) -> 0 | P15: =VLOOKUP(P$2,TRAINING_Barrack[#All],2) -> 0 | Q15: =VLOOKUP(Q$2,TRAINING_Barrack[#All],2) -> 0 | R15: =VLOOKUP(R$2,TRAINING_Barrack[#All],2) -> 0 | S15: =SUM(O15:R15) -> 0
J16: Espace Total | O16: =SUMPRODUCT(O$5:O$14,$L$5:$L$14) -> 0 | P16: =SUMPRODUCT(P$5:P$14,$L$5:$L$14) -> 0 | Q16: =SUMPRODUCT(Q$5:Q$14,$L$5:$L$14) -> 0 | R16: =SUMPRODUCT(R$5:R$14,$L$5:$L$14) -> 0 | S16: =SUM(O16:R16) -> 0
J17: Coût Total | O17: =SUMPRODUCT(O$5:O$14,$M$5:$M$14) -> 0 | P17: =SUMPRODUCT(P$5:P$14,$M$5:$M$14) -> 0 | Q17: =SUMPRODUCT(Q$5:Q$14,$M$5:$M$14) -> 0 | R17: =SUMPRODUCT(R$5:R$14,$M$5:$M$14) -> 0 | S17: =SUM(O17:R17) -> 0 | U17: Coût Total
J18: Temps Total | O18: =IF($B$2='Paramètres - Admin'!$B$2,TEXT(SUMPRODUCT(O$5:O$14,$N$5:$N$14),"# 0")&" " & 'Paramètres - Admin'!$B$2,IF($B$2='Paramètres - Admin'!$B$3,TEXT(SUMPRODUCT(O$5:O$14,$N$5:$N$14)/60,"# 0")&" " & 'Paramètres - Admin'!$B$3,IF($B$2='Paramètres - Admin'!$B$4,TEXT(SUMPRODUCT(O$5:O$14,$N$5:$N$14)/3600,"# 0,00")&" " & 'Paramètres - Admin'!$B$4,IF(SUMPRODUCT(O$5:O$14,$N$5:$N$14)/3600>=1,INT(SUMPRODUCT(O$5:O$14,$N$5:$N$14)/3600) &" " & 'Paramètres - Admin'!$D$3 & " " & MINUTE(SUMPRODUCT(O$5:O$14,$N$5:$N$14)/86400-INT(SUMPRODUCT(O$5:O$14,$N$5:$N$14)/86400)) &" " & 'Paramètres - Admin'!$D$2 & " " & SECOND(SUMPRODUCT(O$5:O$14,$N$5:$N$14)/86400-INT(SUMPRODUCT(O$5:O$14,$N$5:$N$14)/86400)) &" " & 'Paramètres - Admin'!$D$5,MINUTE(SUMPRODUCT(O$5:O$14,$N$5:$N$14)/86400-INT(SUMPRODUCT(O$5:O$14,$N$5:$N$14)/86400)) &" " & 'Paramètres - Admin'!$D$2 & " " & SECOND(SUMPRODUCT(O$5:O$14,$N$5:$N$14)/86400-INT(SUMPRODUCT(O$5:O$14,$N$5:$N$14)/86400)) &" " & 'Paramètres - Admin'!$D$5)))) -> 0 mins 0 sec | P18: =IF($B$2='Paramètres - Admin'!$B$2,TEXT(SUMPRODUCT(P$5:P$14,$N$5:$N$14),"# 0")&" " & 'Paramètres - Admin'!$B$2,IF($B$2='Paramètres - Admin'!$B$3,TEXT(SUMPRODUCT(P$5:P$14,$N$5:$N$14)/60,"# 0")&" " & 'Paramètres - Admin'!$B$3,IF($B$2='Paramètres - Admin'!$B$4,TEXT(SUMPRODUCT(P$5:P$14,$N$5:$N$14)/3600,"# 0,00")&" " & 'Paramètres - Admin'!$B$4,IF(SUMPRODUCT(P$5:P$14,$N$5:$N$14)/3600>=1,INT(SUMPRODUCT(P$5:P$14,$N$5:$N$14)/3600) &" " & 'Paramètres - Admin'!$D$3 & " " & MINUTE(SUMPRODUCT(P$5:P$14,$N$5:$N$14)/86400-INT(SUMPRODUCT(P$5:P$14,$N$5:$N$14)/86400)) &" " & 'Paramètres - Admin'!$D$2 & " " & SECOND(SUMPRODUCT(P$5:P$14,$N$5:$N$14)/86400-INT(SUMPRODUCT(P$5:P$14,$N$5:$N$14)/86400)) &" " & 'Paramètres - Admin'!$D$5,MINUTE(SUMPRODUCT(P$5:P$14,$N$5:$N$14)/86400-INT(SUMPRODUCT(P$5:P$14,$N$5:$N$14)/86400)) &" " & 'Paramètres - Admin'!$D$2 & " " & SECOND(SUMPRODUCT(P$5:P$14,$N$5:$N$14)/86400-INT(SUMPRODUCT(P$5:P$14,$N$5:$N$14)/86400)) &" " & 'Paramètres - Admin'!$D$5)))) -> 0 mins 0 sec | Q18: =IF($B$2='Paramètres - Admin'!$B$2,TEXT(SUMPRODUCT(Q$5:Q$14,$N$5:$N$14),"# 0")&" " & 'Paramètres - Admin'!$B$2,IF($B$2='Paramètres - Admin'!$B$3,TEXT(SUMPRODUCT(Q$5:Q$14,$N$5:$N$14)/60,"# 0")&" " & 'Paramètres - Admin'!$B$3,IF($B$2='Paramètres - Admin'!$B$4,TEXT(SUMPRODUCT(Q$5:Q$14,$N$5:$N$14)/3600,"# 0,00")&" " & 'Paramètres - Admin'!$B$4,IF(SUMPRODUCT(Q$5:Q$14,$N$5:$N$14)/3600>=1,INT(SUMPRODUCT(Q$5:Q$14,$N$5:$N$14)/3600) &" " & 'Paramètres - Admin'!$D$3 & " " & MINUTE(SUMPRODUCT(Q$5:Q$14,$N$5:$N$14)/86400-INT(SUMPRODUCT(Q$5:Q$14,$N$5:$N$14)/86400)) &" " & 'Paramètres - Admin'!$D$2 & " " & SECOND(SUMPRODUCT(Q$5:Q$14,$N$5:$N$14)/86400-INT(SUMPRODUCT(Q$5:Q$14,$N$5:$N$14)/86400)) &" " & 'Paramètres - Admin'!$D$5,MINUTE(SUMPRODUCT(Q$5:Q$14,$N$5:$N$14)/86400-INT(SUMPRODUCT(Q$5:Q$14,$N$5:$N$14)/86400)) &" " & 'Paramètres - Admin'!$D$2 & " " & SECOND(SUMPRODUCT(Q$5:Q$14,$N$5:$N$14)/86400-INT(SUMPRODUCT(Q$5:Q$14,$N$5:$N$14)/86400)) &" " & 'Paramètres - Admin'!$D$5)))) -> 0 mins 0 sec | R18: =IF($B$2='Paramètres - Admin'!$B$2,TEXT(SUMPRODUCT(R$5:R$14,$N$5:$N$14),"# 0")&" " & 'Paramètres - Admin'!$B$2,IF($B$2='Paramètres - Admin'!$B$3,TEXT(SUMPRODUCT(R$5:R$14,$N$5:$N$14)/60,"# 0")&" " & 'Paramètres - Admin'!$B$3,IF($B$2='Paramètres - Admin'!$B$4,TEXT(SUMPRODUCT(R$5:R$14,$N$5:$N$14)/3600,"# 0,00")&" " & 'Paramètres - Admin'!$B$4,IF(SUMPRODUCT(R$5:R$14,$N$5:$N$14)/3600>=1,INT(SUMPRODUCT(R$5:R$14,$N$5:$N$14)/3600) &" " & 'Paramètres - Admin'!$D$3 & " " & MINUTE(SUMPRODUCT(R$5:R$14,$N$5:$N$14)/86400-INT(SUMPRODUCT(R$5:R$14,$N$5:$N$14)/86400)) &" " & 'Paramètres - Admin'!$D$2 & " " & SECOND(SUMPRODUCT(R$5:R$14,$N$5:$N$14)/86400-INT(SUMPRODUCT(R$5:R$14,$N$5:$N$14)/86400)) &" " & 'Paramètres - Admin'!$D$5,MINUTE(SUMPRODUCT(R$5:R$14,$N$5:$N$14)/86400-INT(SUMPRODUCT(R$5:R$14,$N$5:$N$14)/86400)) &" " & 'Paramètres - Admin'!$D$2 & " " & SECOND(SUMPRODUCT(R$5:R$14,$N$5:$N$14)/86400-INT(SUMPRODUCT(R$5:R$14,$N$5:$N$14)/86400)) &" " & 'Paramètres - Admin'!$D$5)))) -> 0 mins 0 sec | S18: =IF($B$2='Paramètres - Admin'!$B$2,TEXT((SUMPRODUCT(O$5:O$14,$N$5:$N$14)+SUMPRODUCT(P$5:P$14,$N$5:$N$14)+SUMPRODUCT(Q$5:Q$14,$N$5:$N$14)+SUMPRODUCT(R$5:R$14,$N$5:$N$14)),"# 0")&" " & 'Paramètres - Admin'!$B$2,IF($B$2='Paramètres - Admin'!$B$3,TEXT((SUMPRODUCT(O$5:O$14,$N$5:$N$14)+SUMPRODUCT(P$5:P$14,$N$5:$N$14)+SUMPRODUCT(Q$5:Q$14,$N$5:$N$14)+SUMPRODUCT(R$5:R$14,$N$5:$N$14))/60,"# 0")&" " & 'Paramètres - Admin'!$B$3,IF($B$2='Paramètres - Admin'!$B$4,TEXT((SUMPRODUCT(O$5:O$14,$N$5:$N$14)+SUMPRODUCT(P$5:P$14,$N$5:$N$14)+SUMPRODUCT(Q$5:Q$14,$N$5:$N$14)+SUMPRODUCT(R$5:R$14,$N$5:$N$14))/3600,"# 0,00")&" " & 'Paramètres - Admin'!$B$4,IF((SUMPRODUCT(O$5:O$14,$N$5:$N$14)+SUMPRODUCT(P$5:P$14,$N$5:$N$14)+SUMPRODUCT(Q$5:Q$14,$N$5:$N$14)+SUMPRODUCT(R$5:R$14,$N$5:$N$14))/3600>=1,INT((SUMPRODUCT(O$5:O$14,$N$5:$N$14)+SUMPRODUCT(P$5:P$14,$N$5:$N$14)+SUMPRODUCT(Q$5:Q$14,$N$5:$N$14)+SUMPRODUCT(R$5:R$14,$N$5:$N$14))/3600) &" " & 'Paramètres - Admin'!$D$3 & " " & MINUTE((SUMPRODUCT(O$5:O$14,$N$5:$N$14)+SUMPRODUCT(P$5:P$14,$N$5:$N$14)+SUMPRODUCT(Q$5:Q$14,$N$5:$N$14)+SUMPRODUCT(R$5:R$14,$N$5:$N$14))/86400-INT((SUMPRODUCT(O$5:O$14,$N$5:$N$14)+SUMPRODUCT(P$5:P$14,$N$5:$N$14)+SUMPRODUCT(Q$5:Q$14,$N$5:$N$14)+SUMPRODUCT(R$5:R$14,$N$5:$N$14))/86400)) &" " & 'Paramètres - Admin'!$D$2 & " " & SECOND((SUMPRODUCT(O$5:O$14,$N$5:$N$14)+SUMPRODUCT(P$5:P$14,$N$5:$N$14)+SUMPRODUCT(Q$5:Q$14,$N$5:$N$14)+SUMPRODUCT(R$5:R$14,$N$5:$N$14))/86400-INT((SUMPRODUCT(O$5:O$14,$N$5:$N$14)+SUMPRODUCT(P$5:P$14,$N$5:$N$14)+SUMPRODUCT(Q$5:Q$14,$N$5:$N$14)+SUMPRODUCT(R$5:R$14,$N$5:$N$14))/86400)) &" " & 'Paramètres - Admin'!$D$5,MINUTE((SUMPRODUCT(O$5:O$14,$N$5:$N$14)+SUMPRODUCT(P$5:P$14,$N$5:$N$14)+SUMPRODUCT(Q$5:Q$14,$N$5:$N$14)+SUMPRODUCT(R$5:R$14,$N$5:$N$14))/86400-INT((SUMPRODUCT(O$5:O$14,$N$5:$N$14)+SUMPRODUCT(P$5:P$14,$N$5:$N$14)+SUMPRODUCT(Q$5:Q$14,$N$5:$N$14)+SUMPRODUCT(R$5:R$14,$N$5:$N$14))/86400)) &" " & 'Paramètres - Admin'!$D$2 & " " & SECOND((SUMPRODUCT(O$5:O$14,$N$5:$N$14)+SUMPRODUCT(P$5:P$14,$N$5:$N$14)+SUMPRODUCT(Q$5:Q$14,$N$5:$N$14)+SUMPRODUCT(R$5:R$14,$N$5:$N$14))/86400-INT((SUMPRODUCT(O$5:O$14,$N$5:$N$14)+SUMPRODUCT(P$5:P$14,$N$5:$N$14)+SUMPRODUCT(Q$5:Q$14,$N$5:$N$14)+SUMPRODUCT(R$5:R$14,$N$5:$N$14))/86400)) &" " & 'Paramètres - Admin'!$D$5)))) -> 0 mins 0 sec | U18: =S17+G12 -> 0
A19: Combat - Gains
A20: Type | B20: Montant | J20: Cellule rouge : | K20: Troupe/Sort non disponible | Q20: Camp Militaire Capacité Totale | R20: =SUMPRODUCT(Paramètres!J6:J13,'Coûts de Formation'!AF31:AF38) -> 240
A21: Or
A22: Élixir
A23: Élixir Noir | J23: Colonne orange : | K23: Erreur - Caserne Max. total atteint
A25: Combat - Profits
A26: Type | B26: Montant | J26: Cellule marron : | K26: Caserne non disponible (ou pas de Laboratoire) | Q26: Ligne jaune : | R26: Erreur - Camp Militaire Max. total atteint
A27: Or | B27: =B21 -> 0
A28: Élixir | B28: =B22-S17-G12 -> 0
A29: Élixir Noir | B29: =B23-AC13 -> 0

Sheet Bâtiments (hidden)
A1: Bâtiments de Ressources (Disponibles et LVL Max) | O1: Bâtiments de Ressources (Changements)
A2: LVL HdV | B2: Mine d'Or | C2: LVL Max | D2: Extracteur d'Élixir | E2: LVL Max2 | F2: Foreuse d'Élixir Noir | G2: LVL Max3 | H2: Réserve d'Or | I2: LVL Max4 | J2: Réservoir d'Élixir | K2: LVL Max5 | L2: Réservoir d'Élixir Noir | M2: LVL Max6 | O2: LVL HdV | P2: Mine d'Or | Q2: LVL Max | R2: Extracteur d'Élixir | S2: LVL Max2 | T2: Foreuse d'Élixir Noir | U2: LVL Max3 | V2: Réserve d'Or | W2: LVL Max4 | X2: Réservoir d'Élixir | Y2: LVL Max5 | Z2: Réservoir d'Élixir Noir | AA2: LVL Max6
A3: 0 | B3: 0 | C3: 0 | D3: 0 | E3: 0 | F3: 0 | G3: 0 | H3: 0 | I3: 0 | J3: 0 | K3: 0 | L3: 0 | M3: 0 | O3: 0 | P3: =B3 -> 0 | Q3: 0 | R3: 0 | S3: 0 | T3: 0 | U3: 0 | V3: 0 | W3: 0 | X3: 0 | Y3: 0 | Z3: 0 | AA3: 0
A4: 1 | B4: 1 | C4: 2 | D4: 1 | E4: 2 | F4: 0 | G4: 0 | H4: 1 | I4: 1 | J4: 1 | K4: 1 | L4: 0 | M4: 0 | O4: 1 | P4: =B4-B3 -> 1 | Q4: =C4-C3 -> 2 | R4: =D4-D3 -> 1 | S4: =E4-E3 -> 2 | T4: =F4-F3 -> 0 | U4: =G4-G3 -> 0 | V4: =H4-H3 -> 1 | W4: =I4-I3 -> 1 | X4: =J4-J3 -> 1 | Y4: =K4-K3 -> 1 | Z4: =L4-L3 -> 0 | AA4: =M4-M3 -> 0
A5: 2 | B5: 2 | C5: 4 | D5: 2 | E5: 4 | F5: 0 | G5: 0 | H5: 1 | I5: 3 | J5: 1 | K5: 3 | L5: 0 | M5: 0 | O5: 2 | P5: 1 | Q5: 2 | R5: 1 | S5: 2 | T5: 0 | U5: 0 | V5: 0 | W5: 2 | X5: 0 | Y5: 2 | Z5: 0 | AA5: 0
A6: 3 | B6: 3 | C6: 6 | D6: 3 | E6: 6 | F6: 0 | G6: 0 | H6: 2 | I6: 6 | J6: 2 | K6: 6 | L6: 0 | M6: 0 | O6: 3 | P6: 1 | Q6: 2 | R6: 1 | S6: 2 | T6: 0 | U6: 0 | V6: 1 | W6: 3 | X6: 1 | Y6: 3 | Z6: 0 | AA6: 0
A7: 4 | B7: 4 | C7: 8 | D7: 4 | E7: 8 | F7: 0 | G7: 0 | H7: 2 | I7: 8 | J7: 2 | K7: 8 | L7: 0 | M7: 0 | O7: 4 | P7: 1 | Q7: 2 | R7: 1 | S7: 2 | T7: 0 | U7: 0 | V7: 0 | W7: 2 | X7: 0 | Y7: 2 | Z7: 0 | AA7: 0
A8: 5 | B8: 5 | C8: 10 | D8: 5 | E8: 10 | F8: 0 | G8: 0 | H8: 2 | I8: 9 | J8: 2 | K8: 9 | L8: 0 | M8: 0 | O8: 5 | P8: 1 | Q8: 2 | R8: 1 | S8: =E8-E7 -> 2 | T8: 0 | U8: 0 | V8: 0 | W8: 1 | X8: 0 | Y8: 1 | Z8: 0 | AA8: 0
A9: 6 | B9: 6 | C9: 10 | D9: 6 | E9: 10 | F9: 0 | G9: 0 | H9: 2 | I9: 10 | J9: 2 | K9: 10 | L9: 0 | M9: 0 | O9: 6 | P9: 1 | Q9: 0 | R9: 1 | S9: 0 | T9: 0 | U9: 0 | V9: 0 | W9: 1 | X9: 0 | Y9: 1 | Z9: 0 | AA9: 0
A10: 7 | B10: 6 | C10: 11 | D10: 6 | E10: 11 | F10: 1 | G10: 3 | H10: 2 | I10: 11 | J10: 2 | K10: 11 | L10: 1 | M10: 2 | O10: 7 | P10: 0 | Q10: 1 | R10: 0 | S10: 1 | T10: 1 | U10: 3 | V10: 0 | W10: 1 | X10: 0 | Y10: 1 | Z10: 1 | AA10: 2
A11: 8 | B11: 6 | C11: 12 | D11: 6 | E11: 12 | F11: 2 | G11: 3 | H11: 3 | I11: 11 | J11: 3 | K11: 11 | L11: 1 | M11: 4 | O11: 8 | P11: 0 | Q11: 1 | R11: 0 | S11: 1 | T11: 1 | U11: 0 | V11: 1 | W11: 0 | X11: 1 | Y11: 0 | Z11: 0 | AA11: 2
A12: 9 | B12: 6 | C12: 12 | D12: 6 | E12: 12 | F12: 2 | G12: 6 | H12: 4 | I12: 11 | J12: 4 | K12: 11 | L12: 1 | M12: 6 | O12: 9 | P12: 0 | Q12: 0 | R12: 0 | S12: 0 | T12: 0 | U12: 3 | V12: 1 | W12: 0 | X12: 1 | Y12: 0 | Z12: 0 | AA12: 2
A13: 10 | B13: 7 | C13: 12 | D13: 7 | E13: 12 | F13: 3 | G13: 6 | H13: 4 | I13: 11 | J13: 4 | K13: 11 | L13: 1 | M13: 6 | O13: 10 | P13: 1 | Q13: 0 | R13: 1 | S13: 0 | T13: 1 | U13: 0 | V13: 0 | W13: 0 | X13: 0 | Y13: 0 | Z13: 0 | AA13: 0
A16: Bâtiments d'Armée (Disponibles et LVL Max) | M16: Bâtiments d'Armée (Changements)
A17: LVL HdV | B17: Caserne | C17: LVL Max | D17: Caserne Noire | E17: LVL Max2 | F17: Camp Militaire | G17: LVL Max3 | H17: Laboratoire | I17: LVL Max4 | J17: Usine de Sorts | K17: LVL Max5 | M17: LVL HdV | N17: Caserne | O17: LVL Max | P17: Caserne Noire | Q17: LVL Max2 | R17: Camp Militaire | S17: LVL Max3 | T17: Laboratoire | U17: LVL Max4 | V17: Usine de Sorts | W17: LVL Max5
A18: 0 | B18: 0 | C18: 0 | D18: 0 | E18: 0 | F18: 0 | G18: 0 | H18: 0 | I18: 0 | J18: 0 | K18: 0 | M18: 0 | N18: =B18 -> 0 | O18: 0 | P18: 0 | Q18: 0 | R18: 0 | S18: 0 | T18: 0 | U18: 0 | V18: 0 | W18: 0
A19: 1 | B19: 1 | C19: 3 | D19: 0 | E19: 0 | F19: 1 | G19: 1 | H19: 0 | I19: 0 | J19: 0 | K19: 0 | M19: 1 | N19: =B19-B18 -> 1 | O19: =C19-C18 -> 3 | P19: =D19-D18 -> 0 | Q19: =E19-E18 -> 0 | R19: =F19-F18 -> 1 | S19: =G19-G18 -> 1 | T19: =H19-H18 -> 0 | U19: =I19-I18 -> 0 | V19: =J19-J18 -> 0 | W19: =K19-K18 -> 0
A20: 2 | B20: 2 | C20: 4 | D20: 0 | E20: 0 | F20: 1 | G20: 2 | H20: 0 | I20: 0 | J20: 0 | K20: 0 | M20: 2 | N20: 1 | O20: 1 | P20: 0 | Q20: 0 | R20: 0 | S20: 1 | T20: 0 | U20: 0 | V20: 0 | W20: 0
A21: 3 | B21: 2 | C21: 5 | D21: 0 | E21: 0 | F21: 2 | G21: 3 | H21: 1 | I21: 1 | J21: 0 | K21: 0 | M21: 3 | N21: 0 | O21: 1 | P21: 0 | Q21: 0 | R21: 1 | S21: 1 | T21: 1 | U21: 1 | V21: 0 | W21: 0
A22: 4 | B22: 3 | C22: 6 | D22: 0 | E22: 0 | F22: 2 | G22: 4 | H22: 1 | I22: 2 | J22: 0 | K22: 0 | M22: 4 | N22: 1 | O22: 1 | P22: 0 | Q22: 0 | R22: 0 | S22: 1 | T22: 0 | U22: 1 | V22: 0 | W22: 0
A23: 5 | B23: 3 | C23: 7 | D23: 0 | E23: 0 | F23: 3 | G23: 5 | H23: 1 | I23: 3 | J23: 1 | K23: 1 | M23: 5 | N23: 0 | O23: 1 | P23: 0 | Q23: 0 | R23: 1 | S23: 1 | T23: 0 | U23: 1 | V23: 1 | W23: 1
A24: 6 | B24: 3 | C24: 8 | D24: 0 | E24: 0 | F24: 3 | G24: 6 | H24: 1 | I24: 4 | J24: 1 | K24: 2 | M24: 6 | N24: 0 | O24: 1 | P24: 0 | Q24: 0 | R24: 0 | S24: 1 | T24: 0 | U24: 1 | V24: 0 | W24: 1
A25: 7 | B25: 4 | C25: 9 | D25: 1 | E25: 2 | F25: 4 | G25: 6 | H25: 1 | I25: 5 | J25: 1 | K25: 3 | M25: 7 | N25: 1 | O25: 1 | P25: 1 | Q25: 2 | R25: 1 | S25: 0 | T25: 0 | U25: 1 | V25: 0 | W25: 1
A26: 8 | B26: 4 | C26: 10 | D26: 2 | E26: 4 | F26: 4 | G26: 6 | H26: 1 | I26: 6 | J26: 1 | K26: 3 | M26: 8 | N26: 0 | O26: 1 | P26: 1 | Q26: 2 | R26: 0 | S26: 0 | T26: 0 | U26: 1 | V26: 0 | W26: 0
A27: 9 | B27: 4 | C27: 10 | D27: 2 | E27: 6 | F27: 4 | G27: 7 | H27: 1 | I27: 7 | J27: 1 | K27: 4 | M27: 9 | N27: 0 | O27: 0 | P27: 0 | Q27: 2 | R27: 0 | S27: 1 | T27: 0 | U27: 1 | V27: 0 | W27: 1
A28: 10 | B28: 4 | C28: 10 | D28: 2 | E28: 6 | F28: 4 | G28: 8 | H28: 1 | I28: 8 | J28: 1 | K28: 5 | M28: 10 | N28: 0 | O28: 0 | P28: 0 | Q28: 0 | R28: 0 | S28: 1 | T28: 0 | U28: 1 | V28: 0 | W28: 1
A31: Bâtiments de Défense (Disponibles et LVL Max) | V31: Pièges (Disponibles) | AK31: Bâtiments de Défense (Changements) | BD31: Pièges (Changements)
A32: LVL HdV | B32: Rempart | C32: LVL Max | D32: Canon | E32: LVL Max2 | F32: Tour d'Archers | G32: LVL Max3 | H32: Mortier | I32: LVL Max4 | J32: Défense Antiaérienne | K32: LVL Max5 | L32: Tour de Sorciers | M32: LVL Max6 | N32: Propulseur d'air | O32: LVL Max62 | P32: Tesla Camouflée | Q32: LVL Max7 | R32: Arc-X | S32: LVL Max8 | T32: Tour de l'Enfer | U32: LVL Max9 | V32: LVL HdV | W32: Bombe | X32: LVL Max33 | Y32: Piège à ressort | Z32: LVL Max35 | AA32: Bombe géante | AB32: LVL Max37 | AC32: Bombe aérienne | AD32: LVL Max39 | AE32: Tête chercheuse | AF32: LVL Max41 | AG32: Piège squelettique | AH32: LVL Max43 | AK32: LVL HdV | AL32: Rempart | AM32: LVL Max | AN32: Canon | AO32: LVL Max2 | AP32: Tour d'Archers | AQ32: LVL Max3 | AR32: Mortier | AS32: LVL Max43 | AT32: Défense Antiaérienne | AU32: LVL Max55 | AV32: Tour de Sorciers | AW32: LVL Max6 | AX32: Propulsion d'air | AY32: LVL Max6. | AZ32: Tesla Camouflée | BA32: LVL Max7 | BB32: Arc-X | BC32: LVL Max8 | BD32: Tour de l'Enfer | BE32: LVL Max4 | BF32: LVL HdV | BG32: Bombe | BH32: LVL Max | BI32: Piège à ressort | BJ32: LVL Max2 | BK32: Bombe géante | BL32: LVL Max3 | BM32: Bombe aérienne | BN32: LVL Max32 | BO32: Tête chercheuse | BP32: LVL Max4 | BQ32: Piège squelettique | BR32: LVL Max5
A33: 0 | B33: 0 | C33: 0 | D33: 0 | E33: 0 | F33: 0 | G33: 0 | H33: 0 | I33: 0 | J33: 0 | K33: 0 | L33: 0 | M33: 0 | N33: 0 | O33: 0 | P33: 0 | Q33: 0 | R33: 0 | S33: 0 | T33: 0 | U33: 0 | V33: 0 | W33: 0 | X33: 0 | Y33: 0 | Z33: 0 | AA33: 0 | AB33: 0 | AC33: 0 | AD33: 0 | AE33: 0 | AF33: 0 | AG33: 0 | AH33: 0 | AK33: 0 | AL33: =B33 -> 0 | AM33: 0 | AN33: 0 | AO33: 0 | AP33: 0 | AQ33: 0 | AR33: =P33 -> 0 | AS33: =Q33 -> 0 | AT33: =R33 -> 0 | AU33: =S33 -> 0 | AV33: =L33 -> 0 | AW33: =M33 -> 0 | AX33: =N33 -> 0 | AY33: =O33 -> 0 | AZ33: =P33 -> 0 | BA33: 0 | BB33: 0 | BC33: 0 | BD33: 0 | BE33: 0 | BF33: 0 | BG33: =W33 -> 0 | BH33: 0 | BI33: 0 | BJ33: 0 | BK33: 0 | BL33: 0 | BM33: =AC33 -> 0 | BN33: 0 | BO33: 0 | BP33: 0 | BQ33: 0 | BR33: 0
A34: 1 | B34: 0 | C34: 0 | D34: 2 | E34: 2 | F34: 0 | G34: 0 | H34: 0 | I34: 0 | J34: 0 | K34: 0 | L34: 0 | M34: 0 | N34: 0 | O34: 0 | P34: 0 | Q34: 0 | R34: 0 | S34: 0 | T34: 0 | U34: 0 | V34: 1 | W34: 0 | X34: 0 | Y34: 0 | Z34: 0 | AA34: 0 | AB34: 0 | AC34: 0 | AD34: 0 | AE34: 0 | AF34: 0 | AG34: 0 | AH34: 0 | AK34: 1 | AL34: =B34-B33 -> 0 | AM34: =C34-C33 -> 0 | AN34: =D34-D33 -> 2 | AO34: =E34-E33 -> 2 | AP34: =F34-F33 -> 0 | AQ34: =G34-G33 -> 0 | AR34: =P34-P33 -> 0 | AS34: =Q34-Q33 -> 0 | AT34: =R34-R33 -> 0 | AU34: =S34-S33 -> 0 | AV34: =L34-L33 -> 0 | AW34: =M34-M33 -> 0 | AX34: =N34-N33 -> 0 | AY34: =O34-O33 -> 0 | AZ34: =P34-P33 -> 0 | BA34: =Q34-Q33 -> 0 | BB34: =R34-R33 -> 0 | BC34: =S34-S33 -> 0 | BD34: =T34-T33 -> 0 | BE34: =U34-U33 -> 0 | BF34: 1 | BG34: =W34-W33 -> 0 | BH34: =X34-X33 -> 0 | BI34: =Y34-Y33 -> 0 | BJ34: =Z34-Z33 -> 0 | BK34: =AA34-AA33 -> 0 | BL34: =AB34-AB33 -> 0 | BM34: =AC34-AC33 -> 0 | BN34: 0 | BO34: 0 | BP34: 0 | BQ34: 0 | BR34: 0
A35: 2 | B35: 25 | C35: 2 | D35: 2 | E35: 3 | F35: 1 | G35: 2 | H35: 0 | I35: 0 | J35: 0 | K35: 0 | L35: 0 | M35: 0 | N35: 0 | O35: 0 | P35: 0 | Q35: 0 | R35: 0 | S35: 0 | T35: 0 | U35: 0 | V35: 2 | W35: 0 | X35: 0 | Y35: 0 | Z35: 0 | AA35: 0 | AB35: 0 | AC35: 0 | AD35: 0 | AE35: 0 | AF35: 0 | AG35: 0 | AH35: 0 | AK35: 2 | AL35: 25 | AM35: 2 | AN35: 0 | AO35: 1 | AP35: 1 | AQ35: 2 | AR35: 0 | AS35: 0 | AT35: 0 | AU35: 0 | AV35: 0 | AW35: 0 | AX35: 0 | AY35: 0 | AZ35: 0 | BA35: 0 | BB35: 0 | BC35: 0 | BD35: 0 | BE35: 0 | BF35: 2 | BG35: 0 | BH35: 0 | BI35: 0 | BJ35: 0 | BK35: 0 | BL35: 0 | BM35: =AC35-AC34 -> 0 | BN35: =AD35-AD34 -> 0 | BO35: =AE35-AE34 -> 0 | BP35: =AF35-AF34 -> 0 | BQ35: =AG35-AG34 -> 0 | BR35: =AH35-AH34 -> 0
A36: 3 | B36: 50 | C36: 3 | D36: 2 | E36: 4 | F36: 1 | G36: 3 | H36: 1 | I36: 1 | J36: 0 | K36: 0 | L36: 0 | M36: 0 | N36: 0 | O36: 0 | P36: 0 | Q36: 0 | R36: 0 | S36: 0 | T36: 0 | U36: 0 | V36: 3 | W36: 2 | X36: 2 | Y36: 0 | Z36: 0 | AA36: 0 | AB36: 0 | AC36: 0 | AD36: 0 | AE36: 0 | AF36: 0 | AG36: 0 | AH36: 0 | AK36: 3 | AL36: 25 | AM36: 1 | AN36: 0 | AO36: 1 | AP36: 0 | AQ36: 1 | AR36: 0 | AS36: 0 | AT36: 0 | AU36: 0 | AV36: 0 | AW36: 0 | AX36: 0 | AY36: 0 | AZ36: 0 | BA36: 0 | BB36: 0 | BC36: 0 | BD36: 0 | BE36: 0 | BF36: 3 | BG36: 2 | BH36: 2 | BI36: 0 | BJ36: 0 | BK36: 0 | BL36: 0 | BM36: 0 | BN36: 0 | BO36: 0 | BP36: 0 | BQ36: 0 | BR36: 0
A37: 4 | B37: 75 | C37: 4 | D37: 2 | E37: 5 | F37: 2 | G37: 4 | H37: 1 | I37: 2 | J37: 1 | K37: 2 | L37: 0 | M37: 0 | N37: 0 | O37: 0 | P37: 0 | Q37: 0 | R37: 0 | S37: 0 | T37: 0 | U37: 0 | V37: 4 | W37: 2 | X37: 2 | Y37: 2 | Z37: 1 | AA37: 0 | AB37: 0 | AC37: 0 | AD37: 0 | AE37: 0 | AF37: 0 | AG37: 0 | AH37: 0 | AK37: 4 | AL37: 25 | AM37: 1 | AN37: 0 | AO37: 1 | AP37: 1 | AQ37: 1 | AR37: 0 | AS37: 0 | AT37: 0 | AU37: 0 | AV37: 0 | AW37: 0 | AX37: 0 | AY37: 0 | AZ37: 0 | BA37: 0 | BB37: 0 | BC37: 0 | BD37: 0 | BE37: 0 | BF37: 4 | BG37: 0 | BH37: 0 | BI37: 2 | BJ37: 1 | BK37: 0 | BL37: 0 | BM37: 0 | BN37: 0 | BO37: 0 | BP37: 0 | BQ37: 0 | BR37: 0
A38: 5 | B38: 100 | C38: 5 | D38: 3 | E38: 6 | F38: 3 | G38: 6 | H38: 1 | I38: 3 | J38: 1 | K38: 3 | L38: 1 | M38: 2 | N38: 0 | O38: 0 | P38: 0 | Q38: 0 | R38: 0 | S38: 0 | T38: 0 | U38: 0 | V38: 5 | W38: 4 | X38: 3 | Y38: 2 | Z38: 1 | AA38: 0 | AB38: 0 | AC38: 2 | AD38: 2 | AE38: 0 | AF38: 0 | AG38: 0 | AH38: 0 | AK38: 5 | AL38: 25 | AM38: 1 | AN38: 1 | AO38: 1 | AP38: 1 | AQ38: 2 | AR38: 0 | AS38: 0 | AT38: 0 | AU38: 0 | AV38: 1 | AW38: 2 | AX38: 0 | AY38: 0 | AZ38: 0 | BA38: 0 | BB38: 0 | BC38: 0 | BD38: 0 | BE38: 0 | BF38: 5 | BG38: 2 | BH38: 1 | BI38: 0 | BJ38: 0 | BK38: 0 | BL38: 0 | BM38: 2 | BN38: 2 | BO38: 0 | BP38: 0 | BQ38: 0 | BR38: 0
A39: 6 | B39: 125 | C39: 6 | D39: 3 | E39: 7 | F39: 3 | G39: 7 | H39: 2 | I39: 4 | J39: 1 | K39: 4 | L39: 2 | M39: 3 | N39: 1 | O39: 2 | P39: 0 | Q39: 0 | R39: 0 | S39: 0 | T39: 0 | U39: 0 | V39: 6 | W39: 4 | X39: 3 | Y39: 4 | Z39: 1 | AA39: 1 | AB39: 2 | AC39: 2 | AD39: 2 | AE39: 0 | AF39: 0 | AG39: 0 | AH39: 0 | AK39: 6 | AL39: 25 | AM39: 1 | AN39: 0 | AO39: 1 | AP39: 0 | AQ39: 1 | AR39: 0 | AS39: 0 | AT39: 0 | AU39: 0 | AV39: 1 | AW39: 1 | AX39: 1 | AY39: 2 | AZ39: 0 | BA39: 0 | BB39: 0 | BC39: 0 | BD39: 0 | BE39: 0 | BF39: 6 | BG39: 0 | BH39: 0 | BI39: 2 | BJ39: 0 | BK39: 1 | BL39: 2 | BM39: 0 | BN39: 0 | BO39: 0 | BP39: 0 | BQ39: 0 | BR39: 0
A40: 7 | B40: 175 | C40: 7 | D40: 5 | E40: 8 | F40: 4 | G40: 8 | H40: 3 | I40: 5 | J40: 2 | K40: 5 | L40: 2 | M40: 4 | N40: 1 | O40: 3 | P40: 2 | Q40: 3 | R40: 0 | S40: 0 | T40: 0 | U40: 0 | V40: 7 | W40: 6 | X40: 4 | Y40: 4 | Z40: 1 | AA40: 2 | AB40: 2 | AC40: 2 | AD40: 3 | AE40: 1 | AF40: 1 | AG40: 0 | AH40: 0 | AK40: 7 | AL40: 50 | AM40: 1 | AN40: 2 | AO40: 1 | AP40: 1 | AQ40: 1 | AR40: 2 | AS40: 3 | AT40: 0 | AU40: 0 | AV40: 0 | AW40: 1 | AX40: 0 | AY40: 1 | AZ40: 2 | BA40: 3 | BB40: 0 | BC40: 0 | BD40: 0 | BE40: 0 | BF40: 7 | BG40: 2 | BH40: 1 | BI40: 0 | BJ40: 0 | BK40: 1 | BL40: 0 | BM40: 0 | BN40: 1 | BO40: 1 | BP40: 1 | BQ40: 0 | BR40: 0
A41: 8 | B41: 225 | C41: 8 | D41: 5 | E41: 10 | F41: 5 | G41: 10 | H41: 4 | I41: 6 | J41: 3 | K41: 6 | L41: 3 | M41: 6 | N41: 1 | O41: 4 | P41: 3 | Q41: 6 | R41: 0 | S41: 0 | T41: 0 | U41: 0 | V41: 8 | W41: 6 | X41: 5 | Y41: 6 | Z41: 1 | AA41: 3 | AB41: 3 | AC41: 4 | AD41: 3 | AE41: 2 | AF41: 1 | AG41: 2 | AH41: 2 | AK41: 8 | AL41: 50 | AM41: 1 | AN41: 0 | AO41: 2 | AP41: 1 | AQ41: 2 | AR41: 1 | AS41: 3 | AT41: 0 | AU41: 0 | AV41: 1 | AW41: 2 | AX41: 0 | AY41: 1 | AZ41: 1 | BA41: 3 | BB41: 0 | BC41: 0 | BD41: 0 | BE41: 0 | BF41: 8 | BG41: 0 | BH41: 1 | BI41: 2 | BJ41: 0 | BK41: 1 | BL41: 1 | BM41: 2 | BN41: 0 | BO41: 1 | BP41: 0 | BQ41: 2 | BR41: 2
A42: 9 | B42: 250 | C42: 10 | D42: 5 | E42: 11 | F42: 6 | G42: 11 | H42: 4 | I42: 7 | J42: 4 | K42: 7 | L42: 4 | M42: 7 | N42: 1 | O42: 5 | P42: 4 | Q42: 7 | R42: 2 | S42: 3 | T42: 0 | U42: 0 | V42: 9 | W42: 6 | X42: 6 | Y42: 6 | Z42: 1 | AA42: 4 | AB42: 3 | AC42: 4 | AD42: 4 | AE42: 4 | AF42: 2 | AG42: 2 | AH42: 3 | AK42: 9 | AL42: 25 | AM42: 2 | AN42: 0 | AO42: 1 | AP42: 1 | AQ42: 1 | AR42: 1 | AS42: 1 | AT42: 2 | AU42: 3 | AV42: 1 | AW42: 1 | AX42: 0 | AY42: 1 | AZ42: 1 | BA42: 1 | BB42: 2 | BC42: 3 | BD42: 0 | BE42: 0 | BF42: 9 | BG42: 0 | BH42: 1 | BI42: 0 | BJ42: 0 | BK42: 1 | BL42: 0 | BM42: 0 | BN42: 1 | BO42: 2 | BP42: 1 | BQ42: 0 | BR42: 1
A43: 10 | B43: 250 | C43: 11 | D43: 6 | E43: 13 | F43: 7 | G43: 13 | H43: 4 | I43: 8 | J43: 4 | K43: 8 | L43: 4 | M43: 8 | N43: 1 | O43: 6 | P43: 4 | Q43: 8 | R43: 3 | S43: 4 | T43: 2 | U43: 3 | V43: 10 | W43: 6 | X43: 6 | Y43: 6 | Z43: 1 | AA43: 5 | AB43: 4 | AC43: 5 | AD43: 4 | AE43: 5 | AF43: 3 | AG43: 3 | AH43: 3 | AK43: 10 | AL43: 0 | AM43: 1 | AN43: 1 | AO43: 2 | AP43: 1 | AQ43: 2 | AR43: 0 | AS43: 1 | AT43: 1 | AU43: 1 | AV43: 0 | AW43: 1 | AX43: 0 | AY43: 1 | AZ43: 0 | BA43: 1 | BB43: 1 | BC43: 1 | BD43: 2 | BE43: 3 | BF43: 10 | BG43: 0 | BH43: 0 | BI43: 0 | BJ43: 0 | BK43: 1 | BL43: 1 | BM43: 1 | BN43: 0 | BO43: 1 | BP43: 1 | BQ43: 1 | BR43: 0
A46: Bâtiments Autres (Disponibles et LVL Max) | G46: Bâtiments Autres (Changements)
A47: LVL HdV | B47: Château de Clan | C47: LVL Max | D47: Hôtel de Ville | E47: LVL Max2 | G47: LVL HdV | H47: Château de Clan | I47: LVL Max | J47: Hôtel de Ville | K47: LVL Max2
A48: 0 | B48: 0 | C48: 0 | D48: 0 | E48: 0 | G48: 0 | H48: =B48 -> 0 | I48: =C48 -> 0 | J48: =D48 -> 0 | K48: =E48 -> 0
A49: 1 | B49: 0 | C49: 0 | D49: 1 | E49: 2 | G49: 1 | H49: =B49-B48 -> 0 | I49: =C49-C48 -> 0 | J49: =D49-D48 -> 1 | K49: =E49-E48 -> 2
A50: 2 | B50: 0 | C50: 0 | D50: 1 | E50: 3 | G50: 2 | H50: 0 | I50: 0 | J50: 0 | K50: 1
A51: 3 | B51: 1 | C51: 1 | D51: 1 | E51: 4 | G51: 3 | H51: 1 | I51: 1 | J51: 0 | K51: 1
A52: 4 | B52: 1 | C52: 2 | D52: 1 | E52: 5 | G52: 4 | H52: 0 | I52: 1 | J52: 0 | K52: 1
A53: 5 | B53: 1 | C53: 2 | D53: 1 | E53: 6 | G53: 5 | H53: 0 | I53: 0 | J53: 0 | K53: 1
A54: 6 | B54: 1 | C54: 3 | D54: 1 | E54: 7 | G54: 6 | H54: 0 | I54: 1 | J54: 0 | K54: 1
A55: 7 | B55: 1 | C55: 3 | D55: 1 | E55: 8 | G55: 7 | H55: 0 | I55: 0 | J55: 0 | K55: 1
A56: 8 | B56: 1 | C56: 4 | D56: 1 | E56: 9 | G56: 8 | H56: 0 | I56: 1 | J56: 0 | K56: 1
A57: 9 | B57: 1 | C57: 5 | D57: 1 | E57: 10 | G57: 9 | H57: 0 | I57: 1 | J57: 0 | K57: 1
A58: 10 | B58: 1 | C58: 6 | D58: 1 | E58: 10 | G58: 10 | H58: 0 | I58: 1 | J58: 0 | K58: 0

Sheet Paramètres
A1: + | B1: Bâtiments de Ressources | H1: Bâtiments d'Armée | M1: Bâtiments Défensifs | W1: Pièges Défensifs | AC1: Bâtiments Autres | AF1: Améliorations de Sorts | AK1: Améliorations de Troupes | AU1: Améliorations de Troupes Noires | BB1: Héros | BE1: LVL HdV | BF1: Ouvriers | BG1: Langue
B2: Mine d'Or | C2: Extracteur d'Élixir | D2: Foreuse d'Élixir Noir | E2: Réserve d'Or | F2: Réservoir d'Élixir | G2: Réservoir d'Élixir Noir | H2: Caserne | I2: Caserne Noire | J2: Camp Militaire | K2: Laboratoire | L2: Usine de Sorts | M2: Rempart | N2: Canon | O2: Tour d'Archers | P2: Mortier | Q2: Défense Antiaérienne | R2: Tour de Sorciers | S2: Propulseur d'air | T2: Tesla Camouflée | U2: Arc-X | V2: Tour de l'Enfer | W2: Bombe | X2: Piège à ressort | Y2: Bombe géante | Z2: Bombe aérienne | AA2: Tête chercheuse | AB2: Piège squelettique | AC2: Château de Clan | AD2: Hôtel de Ville | AE2: a | AF2: Sort de Foudre | AG2: Sort de Guérison | AH2: Sort de Rage | AI2: Sort de Saut | AJ2: Sort de Gel | AK2: Barbare | AL2: Archer | AM2: Gobelin | AN2: Géant | AO2: Sapeur | AP2: Ballon | AQ2: Sorcier | AR2: Guérisseuse | AS2: Dragon | AT2: P.E.K.K.A | AU2: Serviteur | AV2: Chevaucheur de Cochon | AW2: Valkyrie | AX2: Golem | AY2: Sorcière | AZ2: Molosse de lave | BA2: a | BB2: Roi des Barbares | BC2: Reine des Archers | BE2: 10 | BF2: 5 | BG2: Français
A3: Max | B3: =VLOOKUP($BE$2,AVAILABLE_Buildings_Resource[#All],MATCH(B$2,AVAILABLE_Buildings_Resource[#Headers],0)) -> 7 | C3: =VLOOKUP($BE$2,AVAILABLE_Buildings_Resource[#All],MATCH(C$2,AVAILABLE_Buildings_Resource[#Headers],0)) -> 7 | D3: =VLOOKUP($BE$2,AVAILABLE_Buildings_Resource[#All],MATCH(D$2,AVAILABLE_Buildings_Resource[#Headers],0)) -> 3 | E3: =VLOOKUP($BE$2,AVAILABLE_Buildings_Resource[#All],MATCH(E$2,AVAILABLE_Buildings_Resource[#Headers],0)) -> 4 | F3: =VLOOKUP($BE$2,AVAILABLE_Buildings_Resource[#All],MATCH(F$2,AVAILABLE_Buildings_Resource[#Headers],0)) -> 4 | G3: =VLOOKUP($BE$2,AVAILABLE_Buildings_Resource[#All],MATCH(G$2,AVAILABLE_Buildings_Resource[#Headers],0)) -> 1 | H3: =VLOOKUP($BE$2,AVAILABLE_Buildings_Army[#All],MATCH(H$2,AVAILABLE_Buildings_Army[#Headers],0)) -> 4 | I3: =VLOOKUP($BE$2,AVAILABLE_Buildings_Army[#All],MATCH(I$2,AVAILABLE_Buildings_Army[#Headers],0)) -> 2 | J3: =VLOOKUP($BE$2,AVAILABLE_Buildings_Army[#All],MATCH(J$2,AVAILABLE_Buildings_Army[#Headers],0)) -> 4 | K3: =VLOOKUP($BE$2,AVAILABLE_Buildings_Army[#All],MATCH(K$2,AVAILABLE_Buildings_Army[#Headers],0)) -> 1 | L3: =VLOOKUP($BE$2,AVAILABLE_Buildings_Army[#All],MATCH(L$2,AVAILABLE_Buildings_Army[#Headers],0)) -> 1 | M3: =VLOOKUP($BE$2,AVAILABLE_Buildings_Defensive[#All],MATCH(M$2,AVAILABLE_Buildings_Defensive[#Headers],0)) -> 250 | N3: =VLOOKUP($BE$2,AVAILABLE_Buildings_Defensive[#All],MATCH(N$2,AVAILABLE_Buildings_Defensive[#Headers],0)) -> 6 | O3: =VLOOKUP($BE$2,AVAILABLE_Buildings_Defensive[#All],MATCH(O$2,AVAILABLE_Buildings_Defensive[#Headers],0)) -> 7 | P3: =VLOOKUP($BE$2,AVAILABLE_Buildings_Defensive[#All],MATCH(P$2,AVAILABLE_Buildings_Defensive[#Headers],0)) -> 4 | Q3: =VLOOKUP($BE$2,AVAILABLE_Buildings_Defensive[#All],MATCH(Q$2,AVAILABLE_Buildings_Defensive[#Headers],0)) -> 4 | R3: =VLOOKUP($BE$2,AVAILABLE_Buildings_Defensive[#All],MATCH(R$2,AVAILABLE_Buildings_Defensive[#Headers],0)) -> 4 | S3: =VLOOKUP($BE$2,AVAILABLE_Buildings_Defensive[#All],MATCH(S$2,AVAILABLE_Buildings_Defensive[#Headers],0)) -> 1 | T3: =VLOOKUP($BE$2,AVAILABLE_Buildings_Defensive[#All],MATCH(T$2,AVAILABLE_Buildings_Defensive[#Headers],0)) -> 4 | U3: =VLOOKUP($BE$2,AVAILABLE_Buildings_Defensive[#All],MATCH(U$2,AVAILABLE_Buildings_Defensive[#Headers],0)) -> 3 | V3: =VLOOKUP($BE$2,AVAILABLE_Buildings_Defensive[#All],MATCH(V$2,AVAILABLE_Buildings_Defensive[#Headers],0)) -> 2 | W3: =VLOOKUP($BE$2,AVAILABLE_Traps[#All],MATCH(W$2,AVAILABLE_Traps[#Headers],0)) -> 6 | X3: =VLOOKUP($BE$2,AVAILABLE_Traps[#All],MATCH(X$2,AVAILABLE_Traps[#Headers],0)) -> 6 | Y3: =VLOOKUP($BE$2,AVAILABLE_Traps[#All],MATCH(Y$2,AVAILABLE_Traps[#Headers],0)) -> 5 | Z3: =VLOOKUP($BE$2,AVAILABLE_Traps[#All],MATCH(Z$2,AVAILABLE_Traps[#Headers],0)) -> 5 | AA3: =VLOOKUP($BE$2,AVAILABLE_Traps[#All],MATCH(AA$2,AVAILABLE_Traps[#Headers],0)) -> 5 | AB3: =VLOOKUP($BE$2,AVAILABLE_Traps[#All],MATCH(AB$2,AVAILABLE_Traps[#Headers],0)) -> 3 | AC3: =VLOOKUP($BE$2,AVAILABLE_Buildings_Other[#All],MATCH(AC$2,AVAILABLE_Buildings_Other[#Headers],0)) -> 1 | AD3: =VLOOKUP($BE$2,AVAILABLE_Buildings_Other[#All],MATCH(AD$2,AVAILABLE_Buildings_Other[#Headers],0)) -> 1 | AF3: =IF(IF(ISERROR(LOOKUP(MATCH(4,Paramètres!$L$6:$L$45,1),Paramètres!$A$6:$A$45)),0,LOOKUP(MATCH(4,Paramètres!$L$6:$L$45,1),Paramètres!$A$6:$A$45))>=1,1,0) -> 1 | AG3: =IF(IF(ISERROR(LOOKUP(MATCH(4,Paramètres!$L$6:$L$45,1),Paramètres!$A$6:$A$45)),0,LOOKUP(MATCH(4,Paramètres!$L$6:$L$45,1),Paramètres!$A$6:$A$45))>=2,1,0) -> 1 | AH3: =IF(IF(ISERROR(LOOKUP(MATCH(4,Paramètres!$L$6:$L$45,1),Paramètres!$A$6:$A$45)),0,LOOKUP(MATCH(4,Paramètres!$L$6:$L$45,1),Paramètres!$A$6:$A$45))>=3,1,0) -> 1 | AI3: =IF(IF(ISERROR(LOOKUP(MATCH(4,Paramètres!$L$6:$L$45,1),Paramètres!$A$6:$A$45)),0,LOOKUP(MATCH(4,Paramètres!$L$6:$L$45,1),Paramètres!$A$6:$A$45))>=4,1,0) -> 1 | AJ3: =IF(IF(ISERROR(LOOKUP(MATCH(4,Paramètres!$L$6:$L$45,1),Paramètres!$A$6:$A$45)),0,LOOKUP(MATCH(4,Paramètres!$L$6:$L$45,1),Paramètres!$A$6:$A$45))>=5,1,0) -> 1 | AK3: =IF(IF(ISERROR(LOOKUP(MATCH(4,Paramètres!$H$6:$H$45,1),Paramètres!$A$6:$A$45)),0,LOOKUP(MATCH(4,Paramètres!$H$6:$H$45,1),Paramètres!$A$6:$A$45))>=1,1,0) -> 1 | AL3: =IF(IF(ISERROR(LOOKUP(MATCH(4,Paramètres!$H$6:$H$45,1),Paramètres!$A$6:$A$45)),0,LOOKUP(MATCH(4,Paramètres!$H$6:$H$45,1),Paramètres!$A$6:$A$45))>=2,1,0) -> 1 | AM3: =IF(IF(ISERROR(LOOKUP(MATCH(4,Paramètres!$H$6:$H$45,1),Paramètres!$A$6:$A$45)),0,LOOKUP(MATCH(4,Paramètres!$H$6:$H$45,1),Paramètres!$A$6:$A$45))>=3,1,0) -> 1 | AN3: =IF(IF(ISERROR(LOOKUP(MATCH(4,Paramètres!$H$6:$H$45,1),Paramètres!$A$6:$A$45)),0,LOOKUP(MATCH(4,Paramètres!$H$6:$H$45,1),Paramètres!$A$6:$A$45))>=4,1,0) -> 1 | AO3: =IF(IF(ISERROR(LOOKUP(MATCH(4,Paramètres!$H$6:$H$45,1),Paramètres!$A$6:$A$45)),0,LOOKUP(MATCH(4,Paramètres!$H$6:$H$45,1),Paramètres!$A$6:$A$45))>=5,1,0) -> 1 | AP3: =IF(IF(ISERROR(LOOKUP(MATCH(4,Paramètres!$H$6:$H$45,1),Paramètres!$A$6:$A$45)),0,LOOKUP(MATCH(4,Paramètres!$H$6:$H$45,1),Paramètres!$A$6:$A$45))>=6,1,0) -> 1 | AQ3: =IF(IF(ISERROR(LOOKUP(MATCH(4,Paramètres!$H$6:$H$45,1),Paramètres!$A$6:$A$45)),0,LOOKUP(MATCH(4,Paramètres!$H$6:$H$45,1),Paramètres!$A$6:$A$45))>=7,1,0) -> 1 | AR3: =IF(IF(ISERROR(LOOKUP(MATCH(4,Paramètres!$H$6:$H$45,1),Paramètres!$A$6:$A$45)),0,LOOKUP(MATCH(4,Paramètres!$H$6:$H$45,1),Paramètres!$A$6:$A$45))>=8,1,0) -> 1 | AS3: =IF(IF(ISERROR(LOOKUP(MATCH(4,Paramètres!$H$6:$H$45,1),Paramètres!$A$6:$A$45)),0,LOOKUP(MATCH(4,Paramètres!$H$6:$H$45,1),Paramètres!$A$6:$A$45))>=9,1,0) -> 1 | AT3: =IF(IF(ISERROR(LOOKUP(MATCH(4,Paramètres!$H$6:$H$45,1),Paramètres!$A$6:$A$45)),0,LOOKUP(MATCH(4,Paramètres!$H$6:$H$45,1),Paramètres!$A$6:$A$45))>=10,1,0) -> 1 | AU3: =IF(IF(ISERROR(LOOKUP(MATCH(4,Paramètres!$I$6:$I$45,1),Paramètres!$A$6:$A$45)),0,LOOKUP(MATCH(4,Paramètres!$I$6:$I$45,1),Paramètres!$A$6:$A$45))>=1,1,0) -> 1 | AV3: =IF(IF(ISERROR(LOOKUP(MATCH(4,Paramètres!$I$6:$I$45,1),Paramètres!$A$6:$A$45)),0,LOOKUP(MATCH(4,Paramètres!$I$6:$I$45,1),Paramètres!$A$6:$A$45))>=2,1,0) -> 1 | AW3: =IF(IF(ISERROR(LOOKUP(MATCH(4,Paramètres!$I$6:$I$45,1),Paramètres!$A$6:$A$45)),0,LOOKUP(MATCH(4,Paramètres!$I$6:$I$45,1),Paramètres!$A$6:$A$45))>=3,1,0) -> 1 | AX3: =IF(IF(ISERROR(LOOKUP(MATCH(4,Paramètres!$I$6:$I$45,1),Paramètres!$A$6:$A$45)),0,LOOKUP(MATCH(4,Paramètres!$I$6:$I$45,1),Paramètres!$A$6:$A$45))>=4,1,0) -> 1 | AY3: =IF(IF(ISERROR(LOOKUP(MATCH(4,Paramètres!$I$6:$I$45,1),Paramètres!$A$6:$A$45)),0,LOOKUP(MATCH(4,Paramètres!$I$6:$I$45,1),Paramètres!$A$6:$A$45))>=5,1,0) -> 1 | AZ3: =IF(IF(ISERROR(LOOKUP(MATCH(4,Paramètres!$I$6:$I$45,1),Paramètres!$A$6:$A$45)),0,LOOKUP(MATCH(4,Paramètres!$I$6:$I$45,1),Paramètres!$A$6:$A$45))>=6,1,0) -> 1 | BB3: =VLOOKUP($BE$2,AVAILABLE_Heroes[#All],MATCH(BB$2,AVAILABLE_Heroes[#Headers],0)) -> 1 | BC3: =VLOOKUP($BE$2,AVAILABLE_Heroes[#All],MATCH(BC$2,AVAILABLE_Heroes[#Headers],0)) -> 1
A4: À Faire | B4: =B3-B46 -> 0 | C4: 0 | D4: 0 | E4: 0 | F4: 0 | G4: 0 | H4: 0 | I4: 0 | J4: 0 | K4: 0 | L4: 0 | M4: 0 | N4: 0 | O4: 0 | P4: =P3-P46 -> 0 | Q4: =Q3-Q46 -> 0 | R4: 0 | S4: =S3-S46 -> 0 | T4: 0 | U4: 0 | V4: =V3-V46 -> 0 | W4: 0 | X4: 0 | Y4: 0 | Z4: 0 | AA4: 0 | AB4: 0 | AC4: 0 | AD4: 0 | AF4: =AF3-AF46 -> 0 | AG4: 0 | AH4: 0 | AI4: =AI3-AI46 -> 0 | AJ4: 0 | AK4: 0 | AL4: 0 | AM4: 0 | AN4: 0 | AO4: 0 | AP4: 0 | AQ4: 0 | AR4: 0 | AS4: 0 | AT4: =AT3-AT46 -> 0 | AU4: 0 | AV4: 0 | AW4: =AW3-AW46 -> 0 | AX4: 0 | AY4: 0 | AZ4: =AZ3-AZ46 -> 0 | BB4: =BB3-BB46 -> 0 | BC4: =BC3-BC46 -> 0
